Workbook

Sheet Notes
A4: 2013-10-11 | B4: ALW | D4: Variables defined during the "Open Database" procedure do not have their values when the "Run .." procedure is executed.
D5: This issue seems to have started with the move to Excel 10.
D7: The documentation (help notes, etc.) indicate that all variables are initialized when a procedure starts.
D8: (So integer variables set in the "Open Database" procedure would be reset to zero.)
D9: Also, if I am reading it correctly, all variables in a procedure go out of scope when a procedure ends.
D11: These notes are consistent with what we are experiencing, but the big question is why we haven't experienced
D12: this as a problem before. It would be nice to know why but enough time has been invested in this so it is time to move on.
D14: Solution (at least for now).
D15: Variables defined in the "Open Database" procedure are saved in named ranges in the "UI" worksheet.
D16: (Specifically, StudyID, number of iterations and DataID for the hydro index table.)
D17: (Start and end FY are already specified in the "UI" worksheet.)
D18: These varaibles are then set from the named ranges in the VBA procedure to run the study.
D21: Study Setup Form & Misc.:
D23: Added "Quit" command button to Study Setup form.
D24: Added a check in the "Run Model" procedure to abort if the study setup is not complete.
D26: Added a new procedure connected to the "Run All Iterations" command button to call "Run Model".
D27: This was done to assure that the "bIter" variable was set, i.e., don't depend on a default value.
D28: During testing the "Run All Iterations" command ran only the iterations specified for "Run Iterations".
D30: Checked:
E31: Transmission Expense Data (SourceID=8) - Check & Combo Boxes OK.
E32: 4(h)(10)© Input - Check & Combo Boxes OK.
D35: Deleted Check Box for "Use Hydro Adjustments" - Did not appear to be used.
A37: 2013-10-30 | B37: MLK | C37: 1 | D37: Added Sub Routine to Load Block Costomer for Long Term Studies Type 1
C38: 2 | D38: Added Slice Range 4 "Slice_Pct4" and updated SliceAdjustment tab last two years

Sheet Cover
A1: =LEN(C13) -> 
C13: =Version -> 
C14: =MID(CELL("filename"),SEARCH("[",CELL("filename"))+1, SEARCH("]",CELL("filename"))-SEARCH("[",CELL("filename"))-1) -> RM_FY17_H17Q2_ID282__BP18FP_ID284_FY18-19_Final06-20-2017.xlsx
C15: Home / Contents
C17: Purpose of this Workbook:
C18: The purpose of this workbook is to provide a template and an example for RiskMod Excel developers.
C20: Legend:
C22: Tab Colors | H22: Font Colors | L22: Hyperlink Types
D24: Light Blue Tab | F24: Cover Sheet | H24: Blue Font | J24: Input Values | L24: Cover Hyperlink | N24: Cover Page
D25: Green Tab | F25: Table of Contents | H25: Black Font | J25: Calculated Values | L25: TOC Hyperlink | N25: TOC
D26: Dark Blue Tab | F26: User Interface | H26: Magenta Font | J26: Hyperlinks | L26: Sheet Top Hyperlink | N26: é
D27: Black Tab | F27: Calculation
D28: Purple Tab | F28: Output
D29: Gray Tab | F29: Inputs

Sheet Report
C2: Report Tool
B6: Before opening the database set the Reports Years.
D9: 1 | E9: Report Years | I9: 2018 | J9: To | K9: 2019
B11: Choose a Report | D11: Period Type | F11: Report Range | I11: Type
B12: Risk Measures | D12: =IF(ReportName="Net Revenue","Annual", "Monthly") -> Monthly | F12: Average | I12: Flat

Sheet TOC
A1: =LEN(B2) -> 31 | B1: Table of Contents
B2: RevSim Workbook Template V2.8.5
B3: =WBLocation -> RM_FY17_H17Q2_ID282__BP18FP_ID284_FY18-19_Final06-20-2017.xlsx
B4: Cover Sheet
A6: é | B6: Section & Sheet Titles | M6: Page
B8: 1. User Interface | M8: 3
B9: 2. FedRev - Calculation Sheet | M9: 4
B10: 3. Database Outputs | M10: 5
B11: 4. Database Inputs | M11: 6
B12: 5. Revenue/Expense Inputs | M12: 7
B13: 6. Loads | M13: 8
B14: 7. Resources | M14: 9
B15: 8. Slice Adjustment | M15: 10
B16: 9. 4h10c | M16: 11

Sheet UI
A1: Users Interface | F1: =IF(StudyType = 2, "ESP", "") ->  | G1: =IF(StudyType>0,"RISK STUDY -- FY "&StartFY&" - FY "&EndFY,"70 WATER YEAR STUDY -- FY "&StartFY&" - FY "&EndFY) -> RISK STUDY -- FY 2018 - FY 2019
G2: =IF(StudyType=2, LORA!#REF! &" -- "& LORA!#REF!, "Loads - Resouces - " &#REF!& " -- Token " &#REF! ) -> 
A3: =WBLocation -> RM_FY17_H17Q2_ID282__BP18FP_ID284_FY18-19_Final06-20-2017.xlsx
A4: TOC
T5: RATE PERIODS
T6: =StartFY+2 -> 2020 | U6: =T6+2 -> 2022 | V6: 2024 | W6: 2026 | X6: 2028 | Y6: 2030 | Z6: 2032 | AA6: 2034
B7: Start FY | C7: End FY | D7: Study Type | E7: Loading Shaping | F7: Wind Risk/LaRIS | G7: Augment. Price | H7: 4h10c Impact | I7: Hydro Refill Start FY | J7: Hydro Refill End FY | K7: Hydro Contin. Start FY | L7: Hydro Contin. End FY | M7: Start Monthly Variance | N7: End Monthly Variance | P7: Slice % | Q7: Trans. Losses | R7: Load Losses | T7: Slice RP2 | U7: Slice RP3 | V7: Slice RP4 | W7: Slice RP5 | X7: Slice RP6 | Y7: Slice RP7 | Z7: Slice RP8 | AA7: Slice RP9
B8: 2018 | C8: 2019 | D8: 1 | E8: 1 | F8: =IF(StudyType=0, 0,1) -> 1 | G8: 1 | H8: 1 | I8: =IF(StudyType=2,B8,"") ->  | J8: =HydroRefill_Start ->  | K8: =IF(StudyType<2,B8,"") -> 2018 | L8: =IF(StudyType<2,C8,"") -> 2019 | M8: 1 | N8: 12 | O8: 0 | P8: 0.227358 | Q8: 0.0297 | R8: 0 | T8: 0.2649385095 | U8: 0.2649438776 | V8: 0.2649438776 | W8: 0.2649438776 | X8: 0.2649411936 | Y8: 0.2649492457 | Z8: 0.2649492457 | AA8: 0.2649492457
C10: Database Source | I10: OR | J10: Start Iter. | K10: End Iter. | P10: Green Springs | Q10: 0.0445 | R10: 0.2659529
C11: PRODUCTION | J11: 1 | K11: 9 | P11: Lost Creek | Q11: 0.0445
P12: Cowlitz Fall | Q12: 0.005
B13: Data Source:
D14: Study Description: | E14: Final Proposal | R14: 0.227358
E15: Study Data This Study
B16: Study ID: | D16: 284 | E16: Source Description | G16: DataID | R16: =R10-R14 -> 0.0385949
C17: New Study Yes/No: | D17: NO | E17: Federal Hydro Continuous | G17: 43
B18: Number of Iterations: | D18: 3200 | E18: Federal Hydro Adjustments | G18: 43
E19: 4h10c Purchases | G19: 11
B20: Hydro Index DataID: | D20: 29 | E20: Risk Data - CGS | G20: 100
E21: Risk Data - Wind | G21: 98
E22: Risk Data - PNW Load Ratios | G22: 91
E23: Risk Data - Transmission Expense | G23: 71
E24: Loads and Resources | G24: 130
E25: Aurora Data Risk | G25: 192
E26: Aurora Data Critical | G26: 192
E27: Hydro Index | G27: 29
E28: Hydro Index | G28: 0
E29: Slice Loss Return RC | G29: 43
E30: Load Shaping (Billing Determinate) | G30: 6
E31: ProForma Data | G31: 13
E32: 4h10c Credit | G32: 16
E33: Transmission Reserves COB/NOB | G33: 3
E34: Transmission Capacity COB/NOB | G34: 18

Sheet FedRev
A1: Calculation
A3: =WBLocation -> RM_FY17_H17Q2_ID282__BP18FP_ID284_FY18-19_Final06-20-2017.xlsx
A4: TOC
B6: ="FY " &StartFY -> FY 2018 | P6: ="FY " &StartFY+1 -> FY 2019 | AD6: ="FY " &StartFY+2 -> FY 2020 | AR6: ="FY " &StartFY+3 -> FY 2021 | BF6: ="FY " &StartFY+4 -> FY 2022 | BT6: ="FY " &StartFY+5 -> FY 2023 | CH6: ="FY " &StartFY+6 -> FY 2024 | CV6: ="FY " &StartFY+7 -> FY 2025 | DJ6: ="FY " &StartFY+8 -> FY 2026 | DX6: ="FY " &StartFY+9 -> FY 2027 | EL6: ="FY " &StartFY+10 -> FY 2028 | EZ6: ="FY " &StartFY+11 -> FY 2029 | FN6: ="FY " &StartFY+12 -> FY 2030 | GB6: ="FY " &StartFY+13 -> FY 2031 | GP6: ="FY " &StartFY+14 -> FY 2032
A7: Month/Year | B7: =DATE(StartFY-1,10,1) -> 2017-10-01 | C7: =DATE(StartFY-1,11,1) -> 2017-11-01 | D7: =DATE(StartFY-1,12,1) -> 2017-12-01 | E7: =DATE(StartFY,1,1) -> 2018-01-01 | F7: =DATE(StartFY,2,1) -> 2018-02-01 | G7: =DATE(StartFY,3,1) -> 2018-03-01 | H7: =DATE(StartFY,4,1) -> 2018-04-01 | I7: =DATE(StartFY,5,1) -> 2018-05-01 | J7: =DATE(StartFY,6,1) -> 2018-06-01 | K7: =DATE(StartFY,7,1) -> 2018-07-01 | L7: =DATE(StartFY,8,1) -> 2018-08-01 | M7: =DATE(StartFY,9,1) -> 2018-09-01 | N7: Total | P7: =DATE(StartFY,10,1) -> 2018-10-01 | Q7: =DATE(StartFY,11,1) -> 2018-11-01 | R7: =DATE(StartFY,12,1) -> 2018-12-01 | S7: =DATE(StartFY+1,1,1) -> 2019-01-01 | T7: =DATE(StartFY+1,2,1) -> 2019-02-01 | U7: =DATE(StartFY+1,3,1) -> 2019-03-01 | V7: =DATE(StartFY+1,4,1) -> 2019-04-01 | W7: =DATE(StartFY+1,5,1) -> 2019-05-01 | X7: =DATE(StartFY+1,6,1) -> 2019-06-01 | Y7: =DATE(StartFY+1,7,1) -> 2019-07-01 | Z7: =DATE(StartFY+1,8,1) -> 2019-08-01 | AA7: =DATE(StartFY+1,9,1) -> 2019-09-01 | AB7: Total | AD7: =DATE(StartFY+1,10,1) -> 2019-10-01 | AE7: =DATE(StartFY+1,11,1) -> 2019-11-01 | AF7: =DATE(StartFY+1,12,1) -> 2019-12-01 | AG7: =DATE(StartFY+2,1,1) -> 2020-01-01 | AH7: =DATE(StartFY+2,2,1) -> 2020-02-01 | AI7: =DATE(StartFY+2,3,1) -> 2020-03-01 | AJ7: =DATE(StartFY+2,4,1) -> 2020-04-01 | AK7: =DATE(StartFY+2,5,1) -> 2020-05-01 | AL7: =DATE(StartFY+2,6,1) -> 2020-06-01 | AM7: =DATE(StartFY+2,7,1) -> 2020-07-01 | AN7: =DATE(StartFY+2,8,1) -> 2020-08-01 | AO7: =DATE(StartFY+2,9,1) -> 2020-09-01 | AP7: Total | AR7: =DATE(StartFY+2,10,1) -> 2020-10-01 | AS7: =DATE(StartFY+2,11,1) -> 2020-11-01 | AT7: =DATE(StartFY+2,12,1) -> 2020-12-01 | AU7: =DATE(StartFY+3,1,1) -> 2021-01-01 | AV7: =DATE(StartFY+3,2,1) -> 2021-02-01 | AW7: =DATE(StartFY+3,3,1) -> 2021-03-01 | AX7: =DATE(StartFY+3,4,1) -> 2021-04-01 | AY7: =DATE(StartFY+3,5,1) -> 2021-05-01 | AZ7: =DATE(StartFY+3,6,1) -> 2021-06-01 | BA7: =DATE(StartFY+3,7,1) -> 2021-07-01 | BB7: =DATE(StartFY+3,8,1) -> 2021-08-01 | BC7: =DATE(StartFY+3,9,1) -> 2021-09-01 | BD7: Total | BF7: =DATE(StartFY+3,10,1) -> 2021-10-01 | BG7: =DATE(StartFY+3,11,1) -> 2021-11-01 | BH7: =DATE(StartFY+3,12,1) -> 2021-12-01 | BI7: =DATE(StartFY+4,1,1) -> 2022-01-01 | BJ7: =DATE(StartFY+4,2,1) -> 2022-02-01 | BK7: =DATE(StartFY+4,3,1) -> 2022-03-01 | BL7: =DATE(StartFY+4,4,1) -> 2022-04-01 | BM7: =DATE(StartFY+4,5,1) -> 2022-05-01 | BN7: =DATE(StartFY+4,6,1) -> 2022-06-01 | BO7: =DATE(StartFY+4,7,1) -> 2022-07-01 | BP7: =DATE(StartFY+4,8,1) -> 2022-08-01 | BQ7: =DATE(StartFY+4,9,1) -> 2022-09-01 | BR7: Total | BT7: =DATE(StartFY+4,10,1) -> 2022-10-01 | BU7: =DATE(StartFY+4,11,1) -> 2022-11-01 | BV7: =DATE(StartFY+4,12,1) -> 2022-12-01 | BW7: =DATE(StartFY+5,1,1) -> 2023-01-01 | BX7: =DATE(StartFY+5,2,1) -> 2023-02-01 | BY7: =DATE(StartFY+5,3,1) -> 2023-03-01 | BZ7: =DATE(StartFY+5,4,1) -> 2023-04-01 | CA7: =DATE(StartFY+5,5,1) -> 2023-05-01 | CB7: =DATE(StartFY+5,6,1) -> 2023-06-01 | CC7: =DATE(StartFY+5,7,1) -> 2023-07-01 | CD7: =DATE(StartFY+5,8,1) -> 2023-08-01 | CE7: =DATE(StartFY+5,9,1) -> 2023-09-01 | CF7: Total | CH7: =DATE(StartFY+5,10,1) -> 2023-10-01 | CI7: =DATE(StartFY+5,11,1) -> 2023-11-01 | CJ7: =DATE(StartFY+5,12,1) -> 2023-12-01 | CK7: =DATE(StartFY+6,1,1) -> 2024-01-01 | CL7: =DATE(StartFY+6,2,1) -> 2024-02-01 | CM7: =DATE(StartFY+6,3,1) -> 2024-03-01 | CN7: =DATE(StartFY+6,4,1) -> 2024-04-01 | CO7: =DATE(StartFY+6,5,1) -> 2024-05-01 | CP7: =DATE(StartFY+6,6,1) -> 2024-06-01 | CQ7: =DATE(StartFY+6,7,1) -> 2024-07-01 | CR7: =DATE(StartFY+6,8,1) -> 2024-08-01 | CS7: =DATE(StartFY+6,9,1) -> 2024-09-01 | CT7: Total | CV7: =DATE(StartFY+6,10,1) -> 2024-10-01 | CW7: =DATE(StartFY+6,11,1) -> 2024-11-01 | CX7: =DATE(StartFY+6,12,1) -> 2024-12-01 | CY7: =DATE(StartFY+7,1,1) -> 2025-01-01 | CZ7: =DATE(StartFY+7,2,1) -> 2025-02-01 | DA7: =DATE(StartFY+7,3,1) -> 2025-03-01 | DB7: =DATE(StartFY+7,4,1) -> 2025-04-01 | DC7: =DATE(StartFY+7,5,1) -> 2025-05-01 | DD7: =DATE(StartFY+7,6,1) -> 2025-06-01 | DE7: =DATE(StartFY+7,7,1) -> 2025-07-01 | DF7: =DATE(StartFY+7,8,1) -> 2025-08-01 | DG7: =DATE(StartFY+7,9,1) -> 2025-09-01 | DH7: Total | DJ7: =DATE(StartFY+7,10,1) -> 2025-10-01 | DK7: =DATE(StartFY+7,11,1) -> 2025-11-01 | DL7: =DATE(StartFY+7,12,1) -> 2025-12-01 | DM7: =DATE(StartFY+8,1,1) -> 2026-01-01 | DN7: =DATE(StartFY+8,2,1) -> 2026-02-01 | DO7: =DATE(StartFY+8,3,1) -> 2026-03-01 | DP7: =DATE(StartFY+8,4,1) -> 2026-04-01 | DQ7: =DATE(StartFY+8,5,1) -> 2026-05-01 | DR7: =DATE(StartFY+8,6,1) -> 2026-06-01 | DS7: =DATE(StartFY+8,7,1) -> 2026-07-01 | DT7: =DATE(StartFY+8,8,1) -> 2026-08-01 | DU7: =DATE(StartFY+8,9,1) -> 2026-09-01 | DV7: Total | DX7: =DATE(StartFY+8,10,1) -> 2026-10-01 | DY7: =DATE(StartFY+8,11,1) -> 2026-11-01 | DZ7: =DATE(StartFY+8,12,1) -> 2026-12-01 | EA7: =DATE(StartFY+9,1,1) -> 2027-01-01 | EB7: =DATE(StartFY+9,2,1) -> 2027-02-01 | EC7: =DATE(StartFY+9,3,1) -> 2027-03-01 | ED7: =DATE(StartFY+9,4,1) -> 2027-04-01 | EE7: =DATE(StartFY+9,5,1) -> 2027-05-01 | EF7: =DATE(StartFY+9,6,1) -> 2027-06-01 | EG7: =DATE(StartFY+9,7,1) -> 2027-07-01 | EH7: =DATE(StartFY+9,8,1) -> 2027-08-01 | EI7: =DATE(StartFY+9,9,1) -> 2027-09-01 | EJ7: Total | EL7: =DATE(StartFY+9,10,1) -> 2027-10-01 | EM7: =DATE(StartFY+9,11,1) -> 2027-11-01 | EN7: =DATE(StartFY+9,12,1) -> 2027-12-01 | EO7: =DATE(StartFY+10,1,1) -> 2028-01-01 | EP7: =DATE(StartFY+10,2,1) -> 2028-02-01 | EQ7: =DATE(StartFY+10,3,1) -> 2028-03-01 | ER7: =DATE(StartFY+10,4,1) -> 2028-04-01 | ES7: =DATE(StartFY+10,5,1) -> 2028-05-01 | ET7: =DATE(StartFY+10,6,1) -> 2028-06-01 | EU7: =DATE(StartFY+10,7,1) -> 2028-07-01 | EV7: =DATE(StartFY+10,8,1) -> 2028-08-01 | EW7: =DATE(StartFY+10,9,1) -> 2028-09-01 | EX7: Total | EZ7: =DATE(StartFY+10,10,1) -> 2028-10-01 | FA7: =DATE(StartFY+10,11,1) -> 2028-11-01 | FB7: =DATE(StartFY+10,12,1) -> 2028-12-01 | FC7: =DATE(StartFY+11,1,1) -> 2029-01-01 | FD7: =DATE(StartFY+11,2,1) -> 2029-02-01 | FE7: =DATE(StartFY+11,3,1) -> 2029-03-01 | FF7: =DATE(StartFY+11,4,1) -> 2029-04-01 | FG7: =DATE(StartFY+11,5,1) -> 2029-05-01 | FH7: =DATE(StartFY+11,6,1) -> 2029-06-01 | FI7: =DATE(StartFY+11,7,1) -> 2029-07-01 | FJ7: =DATE(StartFY+11,8,1) -> 2029-08-01 | FK7: =DATE(StartFY+11,9,1) -> 2029-09-01 | FL7: Total | FN7: =DATE(StartFY+11,10,1) -> 2029-10-01 | FO7: =DATE(StartFY+11,11,1) -> 2029-11-01 | FP7: =DATE(StartFY+11,12,1) -> 2029-12-01 | FQ7: =DATE(StartFY+12,1,1) -> 2030-01-01 | FR7: =DATE(StartFY+12,2,1) -> 2030-02-01 | FS7: =DATE(StartFY+12,3,1) -> 2030-03-01 | FT7: =DATE(StartFY+12,4,1) -> 2030-04-01 | FU7: =DATE(StartFY+12,5,1) -> 2030-05-01 | FV7: =DATE(StartFY+12,6,1) -> 2030-06-01 | FW7: =DATE(StartFY+12,7,1) -> 2030-07-01 | FX7: =DATE(StartFY+12,8,1) -> 2030-08-01 | FY7: =DATE(StartFY+12,9,1) -> 2030-09-01 | FZ7: Total | GB7: =DATE(StartFY+12,10,1) -> 2030-10-01 | GC7: =DATE(StartFY+12,11,1) -> 2030-11-01 | GD7: =DATE(StartFY+12,12,1) -> 2030-12-01 | GE7: =DATE(StartFY+13,1,1) -> 2031-01-01 | GF7: =DATE(StartFY+13,2,1) -> 2031-02-01 | GG7: =DATE(StartFY+13,3,1) -> 2031-03-01 | GH7: =DATE(StartFY+13,4,1) -> 2031-04-01 | GI7: =DATE(StartFY+13,5,1) -> 2031-05-01 | GJ7: =DATE(StartFY+13,6,1) -> 2031-06-01 | GK7: =DATE(StartFY+13,7,1) -> 2031-07-01 | GL7: =DATE(StartFY+13,8,1) -> 2031-08-01 | GM7: =DATE(StartFY+13,9,1) -> 2031-09-01 | GN7: Total | GP7: =DATE(StartFY+13,10,1) -> 2031-10-01 | GQ7: =DATE(StartFY+13,11,1) -> 2031-11-01 | GR7: =DATE(StartFY+13,12,1) -> 2031-12-01 | GS7: =DATE(StartFY+14,1,1) -> 2032-01-01 | GT7: =DATE(StartFY+14,2,1) -> 2032-02-01 | GU7: =DATE(StartFY+14,3,1) -> 2032-03-01 | GV7: =DATE(StartFY+14,4,1) -> 2032-04-01 | GW7: =DATE(StartFY+14,5,1) -> 2032-05-01 | GX7: =DATE(StartFY+14,6,1) -> 2032-06-01 | GY7: =DATE(StartFY+14,7,1) -> 2032-07-01 | GZ7: =DATE(StartFY+14,8,1) -> 2032-08-01 | HA7: =DATE(StartFY+14,9,1) -> 2032-09-01 | HB7: Total
A8: LOADS
A9: Firm Obligations HLH | B9: =IF(DB_Inputs!B$18=0,0,IF(StudyType<2,(LT_Loads!B49),SUM(Loads_ESP!B9:B27))) -> 7699.175722 | C9: =IF(DB_Inputs!C$18=0,0,IF(StudyType<2,(LT_Loads!C49),SUM(Loads_ESP!C9:C27))) -> 9261.3625 | D9: =IF(DB_Inputs!D$18=0,0,IF(StudyType<2,(LT_Loads!D49),SUM(Loads_ESP!D9:D27))) -> 10000.483 | E9: =IF(DB_Inputs!E$18=0,0,IF(StudyType<2,(LT_Loads!E49),SUM(Loads_ESP!E9:E27))) -> 9310.443774 | F9: =IF(DB_Inputs!F$18=0,0,IF(StudyType<2,(LT_Loads!F49),SUM(Loads_ESP!F9:F27))) -> 8991.065885 | G9: =IF(DB_Inputs!G$18=0,0,IF(StudyType<2,(LT_Loads!G49),SUM(Loads_ESP!G9:G27))) -> 8341.115879 | H9: =IF(DB_Inputs!H$18=0,0,IF(StudyType<2,(LT_Loads!H49),SUM(Loads_ESP!H9:H27))) -> 8063.85025 | I9: =IF(DB_Inputs!I$18=0,0,IF(StudyType<2,(LT_Loads!I49),SUM(Loads_ESP!I9:I27))) -> 8452.873077 | J9: =IF(DB_Inputs!J$18=0,0,IF(StudyType<2,(LT_Loads!J49),SUM(Loads_ESP!J9:J27))) -> 7970.10048 | K9: =IF(DB_Inputs!K$18=0,0,IF(StudyType<2,(LT_Loads!K49),SUM(Loads_ESP!K9:K27))) -> 8517.6225 | L9: =IF(DB_Inputs!L$18=0,0,IF(StudyType<2,(LT_Loads!L49),SUM(Loads_ESP!L9:L27))) -> 8319.204861 | M9: =IF(DB_Inputs!M$18=0,0,IF(StudyType<2,(LT_Loads!M49),SUM(Loads_ESP!M9:M27))) -> 8204.388802 | N9: =SUMPRODUCT(B9:M9,DB_Inputs!B$8:M$8)/DB_Inputs!N$8 -> 8587.744928 | P9: =IF(DB_Inputs!P$18=0,0,IF(StudyType<2,(LT_Loads!P49),SUM(Loads_ESP!P9:P27))) -> 7472.307407 | Q9: =IF(DB_Inputs!Q$18=0,0,IF(StudyType<2,(LT_Loads!Q49),SUM(Loads_ESP!Q9:Q27))) -> 9221.4265 | R9: =IF(DB_Inputs!R$18=0,0,IF(StudyType<2,(LT_Loads!R49),SUM(Loads_ESP!R9:R27))) -> 9971.0405 | S9: =IF(DB_Inputs!S$18=0,0,IF(StudyType<2,(LT_Loads!S49),SUM(Loads_ESP!S9:S27))) -> 9304.995216 | T9: =IF(DB_Inputs!T$18=0,0,IF(StudyType<2,(LT_Loads!T49),SUM(Loads_ESP!T9:T27))) -> 8987.965625 | U9: =IF(DB_Inputs!U$18=0,0,IF(StudyType<2,(LT_Loads!U49),SUM(Loads_ESP!U9:U27))) -> 8486.787691 | V9: =IF(DB_Inputs!V$18=0,0,IF(StudyType<2,(LT_Loads!V49),SUM(Loads_ESP!V9:V27))) -> 7845.042308 | W9: =IF(DB_Inputs!W$18=0,0,IF(StudyType<2,(LT_Loads!W49),SUM(Loads_ESP!W9:W27))) -> 8176.342789 | X9: =IF(DB_Inputs!X$18=0,0,IF(StudyType<2,(LT_Loads!X49),SUM(Loads_ESP!X9:X27))) -> 7869.515 | Y9: =IF(DB_Inputs!Y$18=0,0,IF(StudyType<2,(LT_Loads!Y49),SUM(Loads_ESP!Y9:Y27))) -> 8260.739664 | Z9: =IF(DB_Inputs!Z$18=0,0,IF(StudyType<2,(LT_Loads!Z49),SUM(Loads_ESP!Z9:Z27))) -> 8259.303935 | AA9: =IF(DB_Inputs!AA$18=0,0,IF(StudyType<2,(LT_Loads!AA49),SUM(Loads_ESP!AA9:AA27))) -> 8147.986198 | AB9: =SUMPRODUCT(P9:AA9,DB_Inputs!P$8:AA$8)/DB_Inputs!AB$8 -> 8490.187294 | AD9: =IF(StudyType<2,(LT_Loads!AD49),SUM(Loads_ESP!AD9:AD27)) -> 7484.436343 | AE9: =IF(StudyType<2,(LT_Loads!AE49),SUM(Loads_ESP!AE9:AE27)) -> 9081.9395 | AF9: =IF(StudyType<2,(LT_Loads!AF49),SUM(Loads_ESP!AF9:AF27)) -> 9787.015 | AG9: =IF(StudyType<2,(LT_Loads!AG49),SUM(Loads_ESP!AG9:AG27)) -> 9234.979952 | AH9: =IF(StudyType<2,(LT_Loads!AH49),SUM(Loads_ESP!AH9:AH27)) -> 8539.9345 | AI9: =IF(StudyType<2,(LT_Loads!AI49),SUM(Loads_ESP!AI9:AI27)) -> 8262.332909 | AJ9: =IF(StudyType<2,(LT_Loads!AJ49),SUM(Loads_ESP!AJ9:AJ27)) -> 7851.189904 | AK9: =IF(StudyType<2,(LT_Loads!AK49),SUM(Loads_ESP!AK9:AK27)) -> 8920.299 | AL9: =IF(StudyType<2,(LT_Loads!AL49),SUM(Loads_ESP!AL9:AL27)) -> 8171.330769 | AM9: =IF(StudyType<2,(LT_Loads!AM49),SUM(Loads_ESP!AM9:AM27)) -> 8396.229087 | AN9: =IF(StudyType<2,(LT_Loads!AN49),SUM(Loads_ESP!AN9:AN27)) -> 8554.139423 | AO9: =IF(StudyType<2,(LT_Loads!AO49),SUM(Loads_ESP!AO9:AO27)) -> 7934.9085 | AP9: =SUMPRODUCT(AD9:AO9,DB_Inputs!AD$8:AO$8)/DB_Inputs!AP$8 -> 8509.439763 | AR9: =IF(StudyType<2,(LT_Loads!AR49),SUM(Loads_ESP!AR9:AR27)) -> 7462.871296 | AS9: =IF(StudyType<2,(LT_Loads!AS49),SUM(Loads_ESP!AS9:AS27)) -> 9289.438932 | AT9: =IF(StudyType<2,(LT_Loads!AT49),SUM(Loads_ESP!AT9:AT27)) -> 9577.605168 | AU9: =IF(StudyType<2,(LT_Loads!AU49),SUM(Loads_ESP!AU9:AU27)) -> 9405.855 | AV9: =IF(StudyType<2,(LT_Loads!AV49),SUM(Loads_ESP!AV9:AV27)) -> 8665.669609 | AW9: =IF(StudyType<2,(LT_Loads!AW49),SUM(Loads_ESP!AW9:AW27)) -> 8084.288866 | AX9: =IF(StudyType<2,(LT_Loads!AX49),SUM(Loads_ESP!AX9:AX27)) -> 7803.918269 | AY9: =IF(StudyType<2,(LT_Loads!AY49),SUM(Loads_ESP!AY9:AY27)) -> 8595.7325 | AZ9: =IF(StudyType<2,(LT_Loads!AZ49),SUM(Loads_ESP!AZ9:AZ27)) -> 7855.065865 | BA9: =IF(StudyType<2,(LT_Loads!BA49),SUM(Loads_ESP!BA9:BA27)) -> 8313.235817 | BB9: =IF(StudyType<2,(LT_Loads!BB49),SUM(Loads_ESP!BB9:BB27)) -> 8509.011298 | BC9: =IF(StudyType<2,(LT_Loads!BC49),SUM(Loads_ESP!BC9:BC27)) -> 7897.5255 | BD9: =SUMPRODUCT(AR9:BC9,DB_Inputs!AR$8:BC$8)/DB_Inputs!BD$8 -> 8442.030949 | BF9: =IF(StudyType<2,(LT_Loads!BF49),SUM(Loads_ESP!BF9:BF27)) -> 7630.532452 | BG9: =IF(StudyType<2,(LT_Loads!BG49),SUM(Loads_ESP!BG9:BG27)) -> 9076.215 | BH9: =IF(StudyType<2,(LT_Loads!BH49),SUM(Loads_ESP!BH9:BH27)) -> 9573.094111 | BI9: =IF(StudyType<2,(LT_Loads!BI49),SUM(Loads_ESP!BI9:BI27)) -> 9404.0085 | BJ9: =IF(StudyType<2,(LT_Loads!BJ49),SUM(Loads_ESP!BJ9:BJ27)) -> 8660.897214 | BK9: =IF(StudyType<2,(LT_Loads!BK49),SUM(Loads_ESP!BK9:BK27)) -> 8065.957847 | BL9: =IF(StudyType<2,(LT_Loads!BL49),SUM(Loads_ESP!BL9:BL27)) -> 7811.855769 | BM9: =IF(StudyType<2,(LT_Loads!BM49),SUM(Loads_ESP!BM9:BM27)) -> 8886.742 | BN9: =IF(StudyType<2,(LT_Loads!BN49),SUM(Loads_ESP!BN9:BN27)) -> 8137.709856 | BO9: =IF(StudyType<2,(LT_Loads!BO49),SUM(Loads_ESP!BO9:BO27)) -> 8538.9165 | BP9: =IF(StudyType<2,(LT_Loads!BP49),SUM(Loads_ESP!BP9:BP27)) -> 8343.784491 | BQ9: =IF(StudyType<2,(LT_Loads!BQ49),SUM(Loads_ESP!BQ9:BQ27)) -> 7901.529 | BR9: =SUMPRODUCT(BF9:BQ9,DB_Inputs!BF$8:BQ$8)/DB_Inputs!BR$8 -> 8495.416443 | BT9: =IF(StudyType<2,(LT_Loads!BT49),SUM(Loads_ESP!BT9:BT27)) -> 7623.592548 | BU9: =IF(StudyType<2,(LT_Loads!BU49),SUM(Loads_ESP!BU9:BU27)) -> 9088.827 | BV9: =IF(StudyType<2,(LT_Loads!BV49),SUM(Loads_ESP!BV9:BV27)) -> 9593.482091 | BW9: =IF(StudyType<2,(LT_Loads!BW49),SUM(Loads_ESP!BW9:BW27)) -> 9420.9235 | BX9: =IF(StudyType<2,(LT_Loads!BX49),SUM(Loads_ESP!BX9:BX27)) -> 8678.343828 | BY9: =IF(StudyType<2,(LT_Loads!BY49),SUM(Loads_ESP!BY9:BY27)) -> 8090.98331 | BZ9: =IF(StudyType<2,(LT_Loads!BZ49),SUM(Loads_ESP!BZ9:BZ27)) -> 7967.6385 | CA9: =IF(StudyType<2,(LT_Loads!CA49),SUM(Loads_ESP!CA9:CA27)) -> 8405.709615 | CB9: =IF(StudyType<2,(LT_Loads!CB49),SUM(Loads_ESP!CB9:CB27)) -> 7863.389663 | CC9: =IF(StudyType<2,(LT_Loads!CC49),SUM(Loads_ESP!CC9:CC27)) -> 8500.35 | CD9: =IF(StudyType<2,(LT_Loads!CD49),SUM(Loads_ESP!CD9:CD27)) -> 8339.010417 | CE9: =IF(StudyType<2,(LT_Loads!CE49),SUM(Loads_ESP!CE9:CE27)) -> 7905.2535 | CF9: =SUMPRODUCT(BT9:CE9,DB_Inputs!BT$8:CE$8)/DB_Inputs!CF$8 -> 8451.483443 | CH9: =IF(StudyType<2,(LT_Loads!CH49),SUM(Loads_ESP!CH9:CH27)) -> 7631.619952 | CI9: =IF(StudyType<2,(LT_Loads!CI49),SUM(Loads_ESP!CI9:CI27)) -> 9086.634 | CJ9: =IF(StudyType<2,(LT_Loads!CJ49),SUM(Loads_ESP!CJ9:CJ27)) -> 9799.462 | CK9: =IF(StudyType<2,(LT_Loads!CK49),SUM(Loads_ESP!CK9:CK27)) -> 9219.989567 | CL9: =IF(StudyType<2,(LT_Loads!CL49),SUM(Loads_ESP!CL9:CL27)) -> 8519.066 | CM9: =IF(StudyType<2,(LT_Loads!CM49),SUM(Loads_ESP!CM9:CM27)) -> 8234.966082 | CN9: =IF(StudyType<2,(LT_Loads!CN49),SUM(Loads_ESP!CN9:CN27)) -> 7811.133173 | CO9: =IF(StudyType<2,(LT_Loads!CO49),SUM(Loads_ESP!CO9:CO27)) -> 8685.666106 | CP9: =IF(StudyType<2,(LT_Loads!CP49),SUM(Loads_ESP!CP9:CP27)) -> 8328.4565 | CQ9: =IF(StudyType<2,(LT_Loads!CQ49),SUM(Loads_ESP!CQ9:CQ27)) -> 8365.6375 | CR9: =IF(StudyType<2,(LT_Loads!CR49),SUM(Loads_ESP!CR9:CR27)) -> 8347.89537 | CS9: =IF(StudyType<2,(LT_Loads!CS49),SUM(Loads_ESP!CS9:CS27)) -> 8086.825521 | CT9: =SUMPRODUCT(CH9:CS9,DB_Inputs!CH$8:CS$8)/DB_Inputs!CT$8 -> 8506.487856 | CV9: =IF(StudyType<2,(LT_Loads!CV49),SUM(Loads_ESP!CV9:CV27)) -> 7471.975532 | CW9: =IF(StudyType<2,(LT_Loads!CW49),SUM(Loads_ESP!CW9:CW27)) -> 9105.8975 | CX9: =IF(StudyType<2,(LT_Loads!CX49),SUM(Loads_ESP!CX9:CX27)) -> 9826.5895 | CY9: =IF(StudyType<2,(LT_Loads!CY49),SUM(Loads_ESP!CY9:CY27)) -> 9240.952692 | CZ9: =IF(StudyType<2,(LT_Loads!CZ49),SUM(Loads_ESP!CZ9:CZ27)) -> 8696.91138 | DA9: =IF(StudyType<2,(LT_Loads!DA49),SUM(Loads_ESP!DA9:DA27)) -> 8267.60613 | DB9: =IF(StudyType<2,(LT_Loads!DB49),SUM(Loads_ESP!DB9:DB27)) -> 7814.509856 | DC9: =IF(StudyType<2,(LT_Loads!DC49),SUM(Loads_ESP!DC9:DC27)) -> 8416.105192 | DD9: =IF(StudyType<2,(LT_Loads!DD49),SUM(Loads_ESP!DD9:DD27)) -> 8064.36 | DE9: =IF(StudyType<2,(LT_Loads!DE49),SUM(Loads_ESP!DE9:DE27)) -> 8334.410721 | DF9: =IF(StudyType<2,(LT_Loads!DF49),SUM(Loads_ESP!DF9:DF27)) -> 8531.392019 | DG9: =IF(StudyType<2,(LT_Loads!DG49),SUM(Loads_ESP!DG9:DG27)) -> 7915.8705 | DH9: =SUMPRODUCT(CV9:DG9,DB_Inputs!CV$8:DG$8)/DB_Inputs!DH$8 -> 8465.851928 | DJ9: =IF(StudyType<2,(LT_Loads!DJ49),SUM(Loads_ESP!DJ9:DJ27)) -> 7461.287963 | DK9: =IF(StudyType<2,(LT_Loads!DK49),SUM(Loads_ESP!DK9:DK27)) -> 9306.907943 | DL9: =IF(StudyType<2,(LT_Loads!DL49),SUM(Loads_ESP!DL9:DL27)) -> 9580.845793 | DM9: =IF(StudyType<2,(LT_Loads!DM49),SUM(Loads_ESP!DM9:DM27)) -> 9218.256394 | DN9: =IF(StudyType<2,(LT_Loads!DN49),SUM(Loads_ESP!DN9:DN27)) -> 8671.582891 | DO9: =IF(StudyType<2,(LT_Loads!DO49),SUM(Loads_ESP!DO9:DO27)) -> 8227.681466 | DP9: =IF(StudyType<2,(LT_Loads!DP49),SUM(Loads_ESP!DP9:DP27)) -> 7799.969231 | DQ9: =IF(StudyType<2,(LT_Loads!DQ49),SUM(Loads_ESP!DQ9:DQ27)) -> 8887.903 | DR9: =IF(StudyType<2,(LT_Loads!DR49),SUM(Loads_ESP!DR9:DR27)) -> 8132.601202 | DS9: =IF(StudyType<2,(LT_Loads!DS49),SUM(Loads_ESP!DS9:DS27)) -> 8361.096154 | DT9: =IF(StudyType<2,(LT_Loads!DT49),SUM(Loads_ESP!DT9:DT27)) -> 8523.586538 | DU9: =IF(StudyType<2,(LT_Loads!DU49),SUM(Loads_ESP!DU9:DU27)) -> 7899.7475 | DV9: =SUMPRODUCT(DJ9:DU9,DB_Inputs!DJ$8:DU$8)/DB_Inputs!DV$8 -> 8496.986234 | DX9: =IF(StudyType<2,(LT_Loads!DX49),SUM(Loads_ESP!DX9:DX27)) -> 7468.174769 | DY9: =IF(StudyType<2,(LT_Loads!DY49),SUM(Loads_ESP!DY9:DY27)) -> 9335.089193 | DZ9: =IF(StudyType<2,(LT_Loads!DZ49),SUM(Loads_ESP!DZ9:DZ27)) -> 9615.987139 | EA9: =IF(StudyType<2,(LT_Loads!EA49),SUM(Loads_ESP!EA9:EA27)) -> 9451.313 | EB9: =IF(StudyType<2,(LT_Loads!EB49),SUM(Loads_ESP!EB9:EB27)) -> 8704.161797 | EC9: =IF(StudyType<2,(LT_Loads!EC49),SUM(Loads_ESP!EC9:EC27)) -> 8100.006458 | ED9: =IF(StudyType<2,(LT_Loads!ED49),SUM(Loads_ESP!ED9:ED27)) -> 7812.100962 | EE9: =IF(StudyType<2,(LT_Loads!EE49),SUM(Loads_ESP!EE9:EE27)) -> 8620.5615 | EF9: =IF(StudyType<2,(LT_Loads!EF49),SUM(Loads_ESP!EF9:EF27)) -> 7873.367788 | EG9: =IF(StudyType<2,(LT_Loads!EG49),SUM(Loads_ESP!EG9:EG27)) -> 8336.442067 | EH9: =IF(StudyType<2,(LT_Loads!EH49),SUM(Loads_ESP!EH9:EH27)) -> 8535.960817 | EI9: =IF(StudyType<2,(LT_Loads!EI49),SUM(Loads_ESP!EI9:EI27)) -> 7916.6535 | EJ9: =SUMPRODUCT(DX9:EI9,DB_Inputs!DX$8:EI$8)/DB_Inputs!EJ$8 -> 8467.480277 | EL9: =IF(StudyType<2,(LT_Loads!EL49),SUM(Loads_ESP!EL9:EL27)) -> 7611.8 | EM9: =IF(StudyType<2,(LT_Loads!EM49),SUM(Loads_ESP!EM9:EM27)) -> 9078.787 | EN9: =IF(StudyType<2,(LT_Loads!EN49),SUM(Loads_ESP!EN9:EN27)) -> 9581.734014 | EO9: =IF(StudyType<2,(LT_Loads!EO49),SUM(Loads_ESP!EO9:EO27)) -> 9425.233 | EP9: =IF(StudyType<2,(LT_Loads!EP49),SUM(Loads_ESP!EP9:EP27)) -> 8517.408 | EQ9: =IF(StudyType<2,(LT_Loads!EQ49),SUM(Loads_ESP!EQ9:EQ27)) -> 8056.249051 | ER9: =IF(StudyType<2,(LT_Loads!ER49),SUM(Loads_ESP!ER9:ER27)) -> 7961.108 | ES9: =IF(StudyType<2,(LT_Loads!ES49),SUM(Loads_ESP!ES9:ES27)) -> 8672.43149 | ET9: =IF(StudyType<2,(LT_Loads!ET49),SUM(Loads_ESP!ET9:ET27)) -> 8127.56226 | EU9: =IF(StudyType<2,(LT_Loads!EU49),SUM(Loads_ESP!EU9:EU27)) -> 8543.8075 | EV9: =IF(StudyType<2,(LT_Loads!EV49),SUM(Loads_ESP!EV9:EV27)) -> 8339.55625 | EW9: =IF(StudyType<2,(LT_Loads!EW49),SUM(Loads_ESP!EW9:EW27)) -> 7892.111 | EX9: =SUMPRODUCT(EL9:EW9,DB_Inputs!EL$8:EW$8)/DB_Inputs!EX$8 -> 8480.453985 | EZ9: =IF(StudyType<2,(LT_Loads!EZ49),SUM(Loads_ESP!EZ9:EZ27)) -> 7631.915625 | FA9: =IF(StudyType<2,(LT_Loads!FA49),SUM(Loads_ESP!FA9:FA27)) -> 9113.3835 | FB9: =IF(StudyType<2,(LT_Loads!FB49),SUM(Loads_ESP!FB9:FB27)) -> 9839.4065 | FC9: =IF(StudyType<2,(LT_Loads!FC49),SUM(Loads_ESP!FC9:FC27)) -> 9252.601106 | FD9: =IF(StudyType<2,(LT_Loads!FD49),SUM(Loads_ESP!FD9:FD27)) -> 8706.71987 | FE9: =IF(StudyType<2,(LT_Loads!FE49),SUM(Loads_ESP!FE9:FE27)) -> 8097.639329 | FF9: =IF(StudyType<2,(LT_Loads!FF49),SUM(Loads_ESP!FF9:FF27)) -> 7977.198 | FG9: =IF(StudyType<2,(LT_Loads!FG49),SUM(Loads_ESP!FG9:FG27)) -> 8414.512981 | FH9: =IF(StudyType<2,(LT_Loads!FH49),SUM(Loads_ESP!FH9:FH27)) -> 7877.009615 | FI9: =IF(StudyType<2,(LT_Loads!FI49),SUM(Loads_ESP!FI9:FI27)) -> 8528.2135 | FJ9: =IF(StudyType<2,(LT_Loads!FJ49),SUM(Loads_ESP!FJ9:FJ27)) -> 8357.960648 | FK9: =IF(StudyType<2,(LT_Loads!FK49),SUM(Loads_ESP!FK9:FK27)) -> 8103.182031 | FL9: =SUMPRODUCT(EZ9:FK9,DB_Inputs!EZ$8:FK$8)/DB_Inputs!FL$8 -> 8486.179428 | FN9: =IF(StudyType<2,(LT_Loads!FN49),SUM(Loads_ESP!FN9:FN27)) -> 7449.52662 | FO9: =IF(StudyType<2,(LT_Loads!FO49),SUM(Loads_ESP!FO9:FO27)) -> 9078.8185 | FP9: =IF(StudyType<2,(LT_Loads!FP49),SUM(Loads_ESP!FP9:FP27)) -> 9806.08 | FQ9: =IF(StudyType<2,(LT_Loads!FQ49),SUM(Loads_ESP!FQ9:FQ27)) -> 9219.105913 | FR9: =IF(StudyType<2,(LT_Loads!FR49),SUM(Loads_ESP!FR9:FR27)) -> 8677.748516 | FS9: =IF(StudyType<2,(LT_Loads!FS49),SUM(Loads_ESP!FS9:FS27)) -> 8218.519928 | FT9: =IF(StudyType<2,(LT_Loads!FT49),SUM(Loads_ESP!FT9:FT27)) -> 7787.925481 | FU9: =IF(StudyType<2,(LT_Loads!FU49),SUM(Loads_ESP!FU9:FU27)) -> 8665.625481 | FV9: =IF(StudyType<2,(LT_Loads!FV49),SUM(Loads_ESP!FV9:FV27)) -> 8307.877 | FW9: =IF(StudyType<2,(LT_Loads!FW49),SUM(Loads_ESP!FW9:FW27)) -> 8352.366106 | FX9: =IF(StudyType<2,(LT_Loads!FX49),SUM(Loads_ESP!FX9:FX27)) -> 8335.473611 | FY9: =IF(StudyType<2,(LT_Loads!FY49),SUM(Loads_ESP!FY9:FY27)) -> 8067.879167 | FZ9: =SUMPRODUCT(FN9:FY9,DB_Inputs!FN$8:FY$8)/DB_Inputs!FZ$8 -> 8489.386234 | GB9: =IF(StudyType<2,(LT_Loads!GB49),SUM(Loads_ESP!GB9:GB27)) -> 7480.153241 | GC9: =IF(StudyType<2,(LT_Loads!GC49),SUM(Loads_ESP!GC9:GC27)) -> 9122.083 | GD9: =IF(StudyType<2,(LT_Loads!GD49),SUM(Loads_ESP!GD9:GD27)) -> 9857.1755 | GE9: =IF(StudyType<2,(LT_Loads!GE49),SUM(Loads_ESP!GE9:GE27)) -> 9265.524904 | GF9: =IF(StudyType<2,(LT_Loads!GF49),SUM(Loads_ESP!GF9:GF27)) -> 8724.094349 | GG9: =IF(StudyType<2,(LT_Loads!GG49),SUM(Loads_ESP!GG9:GG27)) -> 8279.312716 | GH9: =IF(StudyType<2,(LT_Loads!GH49),SUM(Loads_ESP!GH9:GH27)) -> 7823.262019 | GI9: =IF(StudyType<2,(LT_Loads!GI49),SUM(Loads_ESP!GI9:GI27)) -> 8424.314663 | GJ9: =IF(StudyType<2,(LT_Loads!GJ49),SUM(Loads_ESP!GJ9:GJ27)) -> 8074.5115 | GK9: =IF(StudyType<2,(LT_Loads!GK49),SUM(Loads_ESP!GK9:GK27)) -> 8351.997596 | GL9: =IF(StudyType<2,(LT_Loads!GL49),SUM(Loads_ESP!GL9:GL27)) -> 8555.778846 | GM9: =IF(StudyType<2,(LT_Loads!GM49),SUM(Loads_ESP!GM9:GM27)) -> 7924.093 | GN9: =SUMPRODUCT(GB9:GM9,DB_Inputs!GB$8:GM$8)/DB_Inputs!GN$8 -> 8482.064939 | GP9: =IF(StudyType<2,(LT_Loads!GP49),SUM(Loads_ESP!GP9:GP27)) -> 0 | GQ9: =IF(StudyType<2,(LT_Loads!GQ49),SUM(Loads_ESP!GQ9:GQ27)) -> 0 | GR9: =IF(StudyType<2,(LT_Loads!GR49),SUM(Loads_ESP!GR9:GR27)) -> 0 | GS9: =IF(StudyType<2,(LT_Loads!GS49),SUM(Loads_ESP!GS9:GS27)) -> 0 | GT9: =IF(StudyType<2,(LT_Loads!GT49),SUM(Loads_ESP!GT9:GT27)) -> 0 | GU9: =IF(StudyType<2,(LT_Loads!GU49),SUM(Loads_ESP!GU9:GU27)) -> 0 | GV9: =IF(StudyType<2,(LT_Loads!GV49),SUM(Loads_ESP!GV9:GV27)) -> 0 | GW9: =IF(StudyType<2,(LT_Loads!GW49),SUM(Loads_ESP!GW9:GW27)) -> 0 | GX9: =IF(StudyType<2,(LT_Loads!GX49),SUM(Loads_ESP!GX9:GX27)) -> 0 | GY9: =IF(StudyType<2,(LT_Loads!GY49),SUM(Loads_ESP!GY9:GY27)) -> 0 | GZ9: =IF(StudyType<2,(LT_Loads!GZ49),SUM(Loads_ESP!GZ9:GZ27)) -> 0 | HA9: =IF(StudyType<2,(LT_Loads!HA49),SUM(Loads_ESP!HA9:HA27)) -> 0 | HB9: =SUMPRODUCT(GP9:HA9,DB_Inputs!GP$8:HA$8)/DB_Inputs!HB$8 -> 0
A10: Firm Obligations LLH | B10: =IF(DB_Inputs!B$18=0,0,IF(StudyType<2,(LT_Loads!B50),SUM(Loads_ESP!B29:B48))) -> 5798.507317 | C10: =IF(DB_Inputs!C$18=0,0,IF(StudyType<2,(LT_Loads!C50),SUM(Loads_ESP!C29:C48))) -> 7279.182618 | D10: =IF(DB_Inputs!D$18=0,0,IF(StudyType<2,(LT_Loads!D50),SUM(Loads_ESP!D29:D48))) -> 7664.036483 | E10: =IF(DB_Inputs!E$18=0,0,IF(StudyType<2,(LT_Loads!E50),SUM(Loads_ESP!E29:E48))) -> 7562.546768 | F10: =IF(DB_Inputs!F$18=0,0,IF(StudyType<2,(LT_Loads!F50),SUM(Loads_ESP!F29:F48))) -> 7223.158994 | G10: =IF(DB_Inputs!G$18=0,0,IF(StudyType<2,(LT_Loads!G50),SUM(Loads_ESP!G29:G48))) -> 6844.561544 | H10: =IF(DB_Inputs!H$18=0,0,IF(StudyType<2,(LT_Loads!H50),SUM(Loads_ESP!H29:H48))) -> 6154.469375 | I10: =IF(DB_Inputs!I$18=0,0,IF(StudyType<2,(LT_Loads!I50),SUM(Loads_ESP!I29:I48))) -> 6433.010976 | J10: =IF(DB_Inputs!J$18=0,0,IF(StudyType<2,(LT_Loads!J50),SUM(Loads_ESP!J29:J48))) -> 6232.969078 | K10: =IF(DB_Inputs!K$18=0,0,IF(StudyType<2,(LT_Loads!K50),SUM(Loads_ESP!K29:K48))) -> 6336.876744 | L10: =IF(DB_Inputs!L$18=0,0,IF(StudyType<2,(LT_Loads!L50),SUM(Loads_ESP!L29:L48))) -> 6517.885737 | M10: =IF(DB_Inputs!M$18=0,0,IF(StudyType<2,(LT_Loads!M50),SUM(Loads_ESP!M29:M48))) -> 6057.750893 | N10: =SUMPRODUCT(B10:M10,DB_Inputs!B$9:M$9)/DB_Inputs!N$9 -> 6673.79684 | P10: =IF(DB_Inputs!P$18=0,0,IF(StudyType<2,(LT_Loads!P50),SUM(Loads_ESP!P29:P48))) -> 5781.546153 | Q10: =IF(DB_Inputs!Q$18=0,0,IF(StudyType<2,(LT_Loads!Q50),SUM(Loads_ESP!Q29:Q48))) -> 7142.606915 | R10: =IF(DB_Inputs!R$18=0,0,IF(StudyType<2,(LT_Loads!R50),SUM(Loads_ESP!R29:R48))) -> 7537.271366 | S10: =IF(DB_Inputs!S$18=0,0,IF(StudyType<2,(LT_Loads!S50),SUM(Loads_ESP!S29:S48))) -> 7472.764451 | T10: =IF(DB_Inputs!T$18=0,0,IF(StudyType<2,(LT_Loads!T50),SUM(Loads_ESP!T29:T48))) -> 7130.158993 | U10: =IF(DB_Inputs!U$18=0,0,IF(StudyType<2,(LT_Loads!U50),SUM(Loads_ESP!U29:U48))) -> 6465.026758 | V10: =IF(DB_Inputs!V$18=0,0,IF(StudyType<2,(LT_Loads!V50),SUM(Loads_ESP!V29:V48))) -> 6032.75 | W10: =IF(DB_Inputs!W$18=0,0,IF(StudyType<2,(LT_Loads!W50),SUM(Loads_ESP!W29:W48))) -> 6083.9 | X10: =IF(DB_Inputs!X$18=0,0,IF(StudyType<2,(LT_Loads!X50),SUM(Loads_ESP!X29:X48))) -> 5566.16875 | Y10: =IF(DB_Inputs!Y$18=0,0,IF(StudyType<2,(LT_Loads!Y50),SUM(Loads_ESP!Y29:Y48))) -> 6168.107622 | Z10: =IF(DB_Inputs!Z$18=0,0,IF(StudyType<2,(LT_Loads!Z50),SUM(Loads_ESP!Z29:Z48))) -> 6240.345353 | AA10: =IF(DB_Inputs!AA$18=0,0,IF(StudyType<2,(LT_Loads!AA50),SUM(Loads_ESP!AA29:AA48))) -> 5811.684226 | AB10: =SUMPRODUCT(P10:AA10,DB_Inputs!P$9:AA$9)/DB_Inputs!AB$9 -> 6455.706601 | AD10: =IF(StudyType<2,(LT_Loads!AD50),SUM(Loads_ESP!AD29:AD48)) -> 5883.975 | AE10: =IF(StudyType<2,(LT_Loads!AE50),SUM(Loads_ESP!AE29:AE48)) -> 7127.750841 | AF10: =IF(StudyType<2,(LT_Loads!AF50),SUM(Loads_ESP!AF29:AF48)) -> 7586.96125 | AG10: =IF(StudyType<2,(LT_Loads!AG50),SUM(Loads_ESP!AG29:AG48)) -> 7551.83122 | AH10: =IF(StudyType<2,(LT_Loads!AH50),SUM(Loads_ESP!AH29:AH48)) -> 6986.600372 | AI10: =IF(StudyType<2,(LT_Loads!AI50),SUM(Loads_ESP!AI29:AI48)) -> 6563.453945 | AJ10: =IF(StudyType<2,(LT_Loads!AJ50),SUM(Loads_ESP!AJ29:AJ48)) -> 6275.119737 | AK10: =IF(StudyType<2,(LT_Loads!AK50),SUM(Loads_ESP!AK29:AK48)) -> 6488.264826 | AL10: =IF(StudyType<2,(LT_Loads!AL50),SUM(Loads_ESP!AL29:AL48)) -> 6393.162434 | AM10: =IF(StudyType<2,(LT_Loads!AM50),SUM(Loads_ESP!AM29:AM48)) -> 6503.557317 | AN10: =IF(StudyType<2,(LT_Loads!AN50),SUM(Loads_ESP!AN29:AN48)) -> 6409.741677 | AO10: =IF(StudyType<2,(LT_Loads!AO50),SUM(Loads_ESP!AO29:AO48)) -> 6159.241875 | AP10: =SUMPRODUCT(AD10:AO10,DB_Inputs!AD$9:AO$9)/DB_Inputs!AP$9 -> 6668.736263 | AR10: =IF(StudyType<2,(LT_Loads!AR50),SUM(Loads_ESP!AR29:AR48)) -> 5876.426923 | AS10: =IF(StudyType<2,(LT_Loads!AS50),SUM(Loads_ESP!AS29:AS48)) -> 6956.884243 | AT10: =IF(StudyType<2,(LT_Loads!AT50),SUM(Loads_ESP!AT29:AT48)) -> 7743.584421 | AU10: =IF(StudyType<2,(LT_Loads!AU50),SUM(Loads_ESP!AU29:AU48)) -> 7378.677471 | AV10: =IF(StudyType<2,(LT_Loads!AV50),SUM(Loads_ESP!AV29:AV48)) -> 7055.802882 | AW10: =IF(StudyType<2,(LT_Loads!AW50),SUM(Loads_ESP!AW29:AW48)) -> 6648.265338 | AX10: =IF(StudyType<2,(LT_Loads!AX50),SUM(Loads_ESP!AX29:AX48)) -> 6235.647368 | AY10: =IF(StudyType<2,(LT_Loads!AY50),SUM(Loads_ESP!AY29:AY48)) -> 6343.140116 | AZ10: =IF(StudyType<2,(LT_Loads!AZ50),SUM(Loads_ESP!AZ29:AZ48)) -> 6033.472632 | BA10: =IF(StudyType<2,(LT_Loads!BA50),SUM(Loads_ESP!BA29:BA48)) -> 6421.007622 | BB10: =IF(StudyType<2,(LT_Loads!BB50),SUM(Loads_ESP!BB29:BB48)) -> 6357.861768 | BC10: =IF(StudyType<2,(LT_Loads!BC50),SUM(Loads_ESP!BC29:BC48)) -> 6111.15625 | BD10: =SUMPRODUCT(AR10:BC10,DB_Inputs!AR$9:BC$9)/DB_Inputs!BD$9 -> 6604.638649 | BF10: =IF(StudyType<2,(LT_Loads!BF50),SUM(Loads_ESP!BF29:BF48)) -> 5748.919512 | BG10: =IF(StudyType<2,(LT_Loads!BG50),SUM(Loads_ESP!BG29:BG48)) -> 7114.217508 | BH10: =IF(StudyType<2,(LT_Loads!BH50),SUM(Loads_ESP!BH29:BH48)) -> 7744.809726 | BI10: =IF(StudyType<2,(LT_Loads!BI50),SUM(Loads_ESP!BI29:BI48)) -> 7367.564099 | BJ10: =IF(StudyType<2,(LT_Loads!BJ50),SUM(Loads_ESP!BJ29:BJ48)) -> 7053.236562 | BK10: =IF(StudyType<2,(LT_Loads!BK50),SUM(Loads_ESP!BK29:BK48)) -> 6672.960836 | BL10: =IF(StudyType<2,(LT_Loads!BL50),SUM(Loads_ESP!BL29:BL48)) -> 6244.489474 | BM10: =IF(StudyType<2,(LT_Loads!BM50),SUM(Loads_ESP!BM29:BM48)) -> 6448.024128 | BN10: =IF(StudyType<2,(LT_Loads!BN50),SUM(Loads_ESP!BN29:BN48)) -> 6353.825987 | BO10: =IF(StudyType<2,(LT_Loads!BO50),SUM(Loads_ESP!BO29:BO48)) -> 6344.22093 | BP10: =IF(StudyType<2,(LT_Loads!BP50),SUM(Loads_ESP!BP29:BP48)) -> 6511.581186 | BQ10: =IF(StudyType<2,(LT_Loads!BQ50),SUM(Loads_ESP!BQ29:BQ48)) -> 6118.450938 | BR10: =SUMPRODUCT(BF10:BQ10,DB_Inputs!BF$9:BQ$9)/DB_Inputs!BR$9 -> 6645.168877 | BT10: =IF(StudyType<2,(LT_Loads!BT50),SUM(Loads_ESP!BT29:BT48)) -> 5753.538415 | BU10: =IF(StudyType<2,(LT_Loads!BU50),SUM(Loads_ESP!BU29:BU48)) -> 7122.101308 | BV10: =IF(StudyType<2,(LT_Loads!BV50),SUM(Loads_ESP!BV29:BV48)) -> 7759.901494 | BW10: =IF(StudyType<2,(LT_Loads!BW50),SUM(Loads_ESP!BW29:BW48)) -> 7389.26468 | BX10: =IF(StudyType<2,(LT_Loads!BX50),SUM(Loads_ESP!BX29:BX48)) -> 7069.250104 | BY10: =IF(StudyType<2,(LT_Loads!BY50),SUM(Loads_ESP!BY29:BY48)) -> 6657.870482 | BZ10: =IF(StudyType<2,(LT_Loads!BZ50),SUM(Loads_ESP!BZ29:BZ48)) -> 6123.49375 | CA10: =IF(StudyType<2,(LT_Loads!CA50),SUM(Loads_ESP!CA29:CA48)) -> 6492.41128 | CB10: =IF(StudyType<2,(LT_Loads!CB50),SUM(Loads_ESP!CB29:CB48)) -> 6037.809803 | CC10: =IF(StudyType<2,(LT_Loads!CC50),SUM(Loads_ESP!CC29:CC48)) -> 6304.437209 | CD10: =IF(StudyType<2,(LT_Loads!CD50),SUM(Loads_ESP!CD29:CD48)) -> 6503.584071 | CE10: =IF(StudyType<2,(LT_Loads!CE50),SUM(Loads_ESP!CE29:CE48)) -> 6111.852812 | CF10: =SUMPRODUCT(BT10:CE10,DB_Inputs!BT$9:CE$9)/DB_Inputs!CF$9 -> 6612.581138 | CH10: =IF(StudyType<2,(LT_Loads!CH50),SUM(Loads_ESP!CH29:CH48)) -> 5751.124695 | CI10: =IF(StudyType<2,(LT_Loads!CI50),SUM(Loads_ESP!CI29:CI48)) -> 7119.531215 | CJ10: =IF(StudyType<2,(LT_Loads!CJ50),SUM(Loads_ESP!CJ29:CJ48)) -> 7590.859797 | CK10: =IF(StudyType<2,(LT_Loads!CK50),SUM(Loads_ESP!CK29:CK48)) -> 7534.157134 | CL10: =IF(StudyType<2,(LT_Loads!CL50),SUM(Loads_ESP!CL29:CL48)) -> 6970.187872 | CM10: =IF(StudyType<2,(LT_Loads!CM50),SUM(Loads_ESP!CM29:CM48)) -> 6535.994006 | CN10: =IF(StudyType<2,(LT_Loads!CN50),SUM(Loads_ESP!CN29:CN48)) -> 6253.376974 | CO10: =IF(StudyType<2,(LT_Loads!CO50),SUM(Loads_ESP!CO29:CO48)) -> 6587.080183 | CP10: =IF(StudyType<2,(LT_Loads!CP50),SUM(Loads_ESP!CP29:CP48)) -> 6204.376875 | CQ10: =IF(StudyType<2,(LT_Loads!CQ50),SUM(Loads_ESP!CQ29:CQ48)) -> 6470.57561 | CR10: =IF(StudyType<2,(LT_Loads!CR50),SUM(Loads_ESP!CR29:CR48)) -> 6514.972853 | CS10: =IF(StudyType<2,(LT_Loads!CS50),SUM(Loads_ESP!CS29:CS48)) -> 5994.1875 | CT10: =SUMPRODUCT(CH10:CS10,DB_Inputs!CH$9:CS$9)/DB_Inputs!CT$9 -> 6629.8296 | CV10: =IF(StudyType<2,(LT_Loads!CV50),SUM(Loads_ESP!CV29:CV48)) -> 5894.942147 | CW10: =IF(StudyType<2,(LT_Loads!CW50),SUM(Loads_ESP!CW29:CW48)) -> 7135.048847 | CX10: =IF(StudyType<2,(LT_Loads!CX50),SUM(Loads_ESP!CX29:CX48)) -> 7611.442587 | CY10: =IF(StudyType<2,(LT_Loads!CY50),SUM(Loads_ESP!CY29:CY48)) -> 7562.725457 | CZ10: =IF(StudyType<2,(LT_Loads!CZ50),SUM(Loads_ESP!CZ29:CZ48)) -> 7089.222153 | DA10: =IF(StudyType<2,(LT_Loads!DA50),SUM(Loads_ESP!DA29:DA48)) -> 6527.940275 | DB10: =IF(StudyType<2,(LT_Loads!DB50),SUM(Loads_ESP!DB29:DB48)) -> 6265.403355 | DC10: =IF(StudyType<2,(LT_Loads!DC50),SUM(Loads_ESP!DC29:DC48)) -> 6499.016189 | DD10: =IF(StudyType<2,(LT_Loads!DD50),SUM(Loads_ESP!DD29:DD48)) -> 5897.759312 | DE10: =IF(StudyType<2,(LT_Loads!DE50),SUM(Loads_ESP!DE29:DE48)) -> 6439.574726 | DF10: =IF(StudyType<2,(LT_Loads!DF50),SUM(Loads_ESP!DF29:DF48)) -> 6373.77997 | DG10: =IF(StudyType<2,(LT_Loads!DG50),SUM(Loads_ESP!DG29:DG48)) -> 6117.554625 | DH10: =SUMPRODUCT(CV10:DG10,DB_Inputs!CV$9:DG$9)/DB_Inputs!DH$9 -> 6623.92308 | DJ10: =IF(StudyType<2,(LT_Loads!DJ50),SUM(Loads_ESP!DJ29:DJ48)) -> 5874.43141 | DK10: =IF(StudyType<2,(LT_Loads!DK50),SUM(Loads_ESP!DK29:DK48)) -> 6952.44003 | DL10: =IF(StudyType<2,(LT_Loads!DL50),SUM(Loads_ESP!DL29:DL48)) -> 7757.234116 | DM10: =IF(StudyType<2,(LT_Loads!DM50),SUM(Loads_ESP!DM29:DM48)) -> 7531.772378 | DN10: =IF(StudyType<2,(LT_Loads!DN50),SUM(Loads_ESP!DN29:DN48)) -> 7066.310868 | DO10: =IF(StudyType<2,(LT_Loads!DO50),SUM(Loads_ESP!DO29:DO48)) -> 6529.34844 | DP10: =IF(StudyType<2,(LT_Loads!DP50),SUM(Loads_ESP!DP29:DP48)) -> 6251.696053 | DQ10: =IF(StudyType<2,(LT_Loads!DQ50),SUM(Loads_ESP!DQ29:DQ48)) -> 6431.77064 | DR10: =IF(StudyType<2,(LT_Loads!DR50),SUM(Loads_ESP!DR29:DR48)) -> 6344.389803 | DS10: =IF(StudyType<2,(LT_Loads!DS50),SUM(Loads_ESP!DS29:DS48)) -> 6464.575 | DT10: =IF(StudyType<2,(LT_Loads!DT50),SUM(Loads_ESP!DT29:DT48)) -> 6365.973232 | DU10: =IF(StudyType<2,(LT_Loads!DU50),SUM(Loads_ESP!DU29:DU48)) -> 6103.90375 | DV10: =SUMPRODUCT(DJ10:DU10,DB_Inputs!DJ$9:DU$9)/DB_Inputs!DV$9 -> 6643.500964 | DX10: =IF(StudyType<2,(LT_Loads!DX50),SUM(Loads_ESP!DX29:DX48)) -> 5895.742949 | DY10: =IF(StudyType<2,(LT_Loads!DY50),SUM(Loads_ESP!DY29:DY48)) -> 6973.874748 | DZ10: =IF(StudyType<2,(LT_Loads!DZ50),SUM(Loads_ESP!DZ29:DZ48)) -> 7786.082896 | EA10: =IF(StudyType<2,(LT_Loads!EA50),SUM(Loads_ESP!EA29:EA48)) -> 7408.950727 | EB10: =IF(StudyType<2,(LT_Loads!EB50),SUM(Loads_ESP!EB29:EB48)) -> 7093.823368 | EC10: =IF(StudyType<2,(LT_Loads!EC50),SUM(Loads_ESP!EC29:EC48)) -> 6673.749582 | ED10: =IF(StudyType<2,(LT_Loads!ED50),SUM(Loads_ESP!ED29:ED48)) -> 6264.532895 | EE10: =IF(StudyType<2,(LT_Loads!EE50),SUM(Loads_ESP!EE29:EE48)) -> 6343.786337 | EF10: =IF(StudyType<2,(LT_Loads!EF50),SUM(Loads_ESP!EF29:EF48)) -> 6042.688717 | EG10: =IF(StudyType<2,(LT_Loads!EG50),SUM(Loads_ESP!EG29:EG48)) -> 6439.246037 | EH10: =IF(StudyType<2,(LT_Loads!EH50),SUM(Loads_ESP!EH29:EH48)) -> 6368.865 | EI10: =IF(StudyType<2,(LT_Loads!EI50),SUM(Loads_ESP!EI29:EI48)) -> 6112.296875 | EJ10: =SUMPRODUCT(DX10:EI10,DB_Inputs!DX$9:EI$9)/DB_Inputs!EJ$9 -> 6624.582217 | EL10: =IF(StudyType<2,(LT_Loads!EL50),SUM(Loads_ESP!EL29:EL48)) -> 5728.642378 | EM10: =IF(StudyType<2,(LT_Loads!EM50),SUM(Loads_ESP!EM29:EM48)) -> 7102.893832 | EN10: =IF(StudyType<2,(LT_Loads!EN50),SUM(Loads_ESP!EN29:EN48)) -> 7754.677104 | EO10: =IF(StudyType<2,(LT_Loads!EO50),SUM(Loads_ESP!EO29:EO48)) -> 7372.136773 | EP10: =IF(StudyType<2,(LT_Loads!EP50),SUM(Loads_ESP!EP29:EP48)) -> 6965.078074 | EQ10: =IF(StudyType<2,(LT_Loads!EQ50),SUM(Loads_ESP!EQ29:EQ48)) -> 6669.609389 | ER10: =IF(StudyType<2,(LT_Loads!ER50),SUM(Loads_ESP!ER29:ER48)) -> 6111.797812 | ES10: =IF(StudyType<2,(LT_Loads!ES50),SUM(Loads_ESP!ES29:ES48)) -> 6564.894207 | ET10: =IF(StudyType<2,(LT_Loads!ET50),SUM(Loads_ESP!ET29:ET48)) -> 6333.326316 | EU10: =IF(StudyType<2,(LT_Loads!EU50),SUM(Loads_ESP!EU29:EU48)) -> 6329.247093 | EV10: =IF(StudyType<2,(LT_Loads!EV50),SUM(Loads_ESP!EV29:EV48)) -> 6497.721571 | EW10: =IF(StudyType<2,(LT_Loads!EW50),SUM(Loads_ESP!EW29:EW48)) -> 6091.216562 | EX10: =SUMPRODUCT(EL10:EW10,DB_Inputs!EL$9:EW$9)/DB_Inputs!EX$9 -> 6629.30903 | EZ10: =IF(StudyType<2,(LT_Loads!EZ50),SUM(Loads_ESP!EZ29:EZ48)) -> 5755.60122 | FA10: =IF(StudyType<2,(LT_Loads!FA50),SUM(Loads_ESP!FA29:FA48)) -> 7134.44648 | FB10: =IF(StudyType<2,(LT_Loads!FB50),SUM(Loads_ESP!FB29:FB48)) -> 7616.034797 | FC10: =IF(StudyType<2,(LT_Loads!FC50),SUM(Loads_ESP!FC29:FC48)) -> 7566.908049 | FD10: =IF(StudyType<2,(LT_Loads!FD50),SUM(Loads_ESP!FD29:FD48)) -> 7093.742118 | FE10: =IF(StudyType<2,(LT_Loads!FE50),SUM(Loads_ESP!FE29:FE48)) -> 6669.434791 | FF10: =IF(StudyType<2,(LT_Loads!FF50),SUM(Loads_ESP!FF29:FF48)) -> 6132.634375 | FG10: =IF(StudyType<2,(LT_Loads!FG50),SUM(Loads_ESP!FG29:FG48)) -> 6488.15122 | FH10: =IF(StudyType<2,(LT_Loads!FH50),SUM(Loads_ESP!FH29:FH48)) -> 6040.636184 | FI10: =IF(StudyType<2,(LT_Loads!FI50),SUM(Loads_ESP!FI29:FI48)) -> 6312.164826 | FJ10: =IF(StudyType<2,(LT_Loads!FJ50),SUM(Loads_ESP!FJ29:FJ48)) -> 6511.843045 | FK10: =IF(StudyType<2,(LT_Loads!FK50),SUM(Loads_ESP!FK29:FK48)) -> 5985.371726 | FL10: =SUMPRODUCT(EZ10:FK10,DB_Inputs!EZ$9:FK$9)/DB_Inputs!FL$9 -> 6609.24506 | FN10: =IF(StudyType<2,(LT_Loads!FN50),SUM(Loads_ESP!FN29:FN48)) -> 5851.861538 | FO10: =IF(StudyType<2,(LT_Loads!FO50),SUM(Loads_ESP!FO29:FO48)) -> 7099.732773 | FP10: =IF(StudyType<2,(LT_Loads!FP50),SUM(Loads_ESP!FP29:FP48)) -> 7584.220843 | FQ10: =IF(StudyType<2,(LT_Loads!FQ50),SUM(Loads_ESP!FQ29:FQ48)) -> 7526.2675 | FR10: =IF(StudyType<2,(LT_Loads!FR50),SUM(Loads_ESP!FR29:FR48)) -> 7063.386563 | FS10: =IF(StudyType<2,(LT_Loads!FS50),SUM(Loads_ESP!FS29:FS48)) -> 6510.605321 | FT10: =IF(StudyType<2,(LT_Loads!FT50),SUM(Loads_ESP!FT29:FT48)) -> 6232.655921 | FU10: =IF(StudyType<2,(LT_Loads!FU50),SUM(Loads_ESP!FU29:FU48)) -> 6549.13872 | FV10: =IF(StudyType<2,(LT_Loads!FV50),SUM(Loads_ESP!FV29:FV48)) -> 6168.17125 | FW10: =IF(StudyType<2,(LT_Loads!FW50),SUM(Loads_ESP!FW29:FW48)) -> 6445.673476 | FX10: =IF(StudyType<2,(LT_Loads!FX50),SUM(Loads_ESP!FX29:FX48)) -> 6484.572212 | FY10: =IF(StudyType<2,(LT_Loads!FY50),SUM(Loads_ESP!FY29:FY48)) -> 5953.455952 | FZ10: =SUMPRODUCT(FN10:FY10,DB_Inputs!FN$9:FY$9)/DB_Inputs!FZ$9 -> 6626.817653 | GB10: =IF(StudyType<2,(LT_Loads!GB50),SUM(Loads_ESP!GB29:GB48)) -> 5896.252564 | GC10: =IF(StudyType<2,(LT_Loads!GC50),SUM(Loads_ESP!GC29:GC48)) -> 7142.339751 | GD10: =IF(StudyType<2,(LT_Loads!GD50),SUM(Loads_ESP!GD29:GD48)) -> 7633.148808 | GE10: =IF(StudyType<2,(LT_Loads!GE50),SUM(Loads_ESP!GE29:GE48)) -> 7581.648018 | GF10: =IF(StudyType<2,(LT_Loads!GF50),SUM(Loads_ESP!GF29:GF48)) -> 7111.581319 | GG10: =IF(StudyType<2,(LT_Loads!GG50),SUM(Loads_ESP!GG29:GG48)) -> 6530.22948 | GH10: =IF(StudyType<2,(LT_Loads!GH50),SUM(Loads_ESP!GH29:GH48)) -> 6270.213816 | GI10: =IF(StudyType<2,(LT_Loads!GI50),SUM(Loads_ESP!GI29:GI48)) -> 6491.97439 | GJ10: =IF(StudyType<2,(LT_Loads!GJ50),SUM(Loads_ESP!GJ29:GJ48)) -> 5891.94 | GK10: =IF(StudyType<2,(LT_Loads!GK50),SUM(Loads_ESP!GK29:GK48)) -> 6448.597561 | GL10: =IF(StudyType<2,(LT_Loads!GL50),SUM(Loads_ESP!GL29:GL48)) -> 6371.663171 | GM10: =IF(StudyType<2,(LT_Loads!GM50),SUM(Loads_ESP!GM29:GM48)) -> 6113.852187 | GN10: =SUMPRODUCT(GB10:GM10,DB_Inputs!GB$9:GM$9)/DB_Inputs!GN$9 -> 6629.635572 | GP10: =IF(StudyType<2,(LT_Loads!GP50),SUM(Loads_ESP!GP29:GP48)) -> 0 | GQ10: =IF(StudyType<2,(LT_Loads!GQ50),SUM(Loads_ESP!GQ29:GQ48)) -> 0 | GR10: =IF(StudyType<2,(LT_Loads!GR50),SUM(Loads_ESP!GR29:GR48)) -> 0 | GS10: =IF(StudyType<2,(LT_Loads!GS50),SUM(Loads_ESP!GS29:GS48)) -> 0 | GT10: =IF(StudyType<2,(LT_Loads!GT50),SUM(Loads_ESP!GT29:GT48)) -> 0 | GU10: =IF(StudyType<2,(LT_Loads!GU50),SUM(Loads_ESP!GU29:GU48)) -> 0 | GV10: =IF(StudyType<2,(LT_Loads!GV50),SUM(Loads_ESP!GV29:GV48)) -> 0 | GW10: =IF(StudyType<2,(LT_Loads!GW50),SUM(Loads_ESP!GW29:GW48)) -> 0 | GX10: =IF(StudyType<2,(LT_Loads!GX50),SUM(Loads_ESP!GX29:GX48)) -> 0 | GY10: =IF(StudyType<2,(LT_Loads!GY50),SUM(Loads_ESP!GY29:GY48)) -> 0 | GZ10: =IF(StudyType<2,(LT_Loads!GZ50),SUM(Loads_ESP!GZ29:GZ48)) -> 0 | HA10: =IF(StudyType<2,(LT_Loads!HA50),SUM(Loads_ESP!HA29:HA48)) -> 0 | HB10: =SUMPRODUCT(GP10:HA10,DB_Inputs!GP$9:HA$9)/DB_Inputs!HB$9 -> 0
A11: Firm Obligations Flat | B11: =(B9*DB_Inputs!B$8+B10*DB_Inputs!B$9)/DB_Inputs!B$10 -> 6861.24664 | C11: =(C9*DB_Inputs!C$8+C10*DB_Inputs!C$9)/DB_Inputs!C$10 -> 8378.866325 | D11: =(D9*DB_Inputs!D$8+D10*DB_Inputs!D$9)/DB_Inputs!D$10 -> 8920.190524 | E11: =(E9*DB_Inputs!E$8+E10*DB_Inputs!E$9)/DB_Inputs!E$10 -> 8539.865524 | F11: =(F9*DB_Inputs!F$8+F10*DB_Inputs!F$9)/DB_Inputs!F$10 -> 8233.391503 | G11: =(G9*DB_Inputs!G$8+G10*DB_Inputs!G$9)/DB_Inputs!G$10 -> 7714.698116 | H11: =(H9*DB_Inputs!H$8+H10*DB_Inputs!H$9)/DB_Inputs!H$10 -> 7215.236528 | I11: =(I9*DB_Inputs!I$8+I10*DB_Inputs!I$9)/DB_Inputs!I$10 -> 7562.396237 | J11: =(J9*DB_Inputs!J$8+J10*DB_Inputs!J$9)/DB_Inputs!J$10 -> 7236.644999 | K11: =(K9*DB_Inputs!K$8+K10*DB_Inputs!K$9)/DB_Inputs!K$10 -> 7509.320699 | L11: =(L9*DB_Inputs!L$8+L10*DB_Inputs!L$9)/DB_Inputs!L$10 -> 7563.812971 | M11: =(M9*DB_Inputs!M$8+M10*DB_Inputs!M$9)/DB_Inputs!M$10 -> 7202.624444 | N11: =SUMPRODUCT(B11:M11,DB_Inputs!B$10:M$10)/DB_Inputs!N$10 -> 7743.510292 | P11: =(P9*DB_Inputs!P$8+P10*DB_Inputs!P$9)/DB_Inputs!P$10 -> 6763.278494 | Q11: =(Q9*DB_Inputs!Q$8+Q10*DB_Inputs!Q$9)/DB_Inputs!Q$10 -> 8295.904882 | R11: =(R9*DB_Inputs!R$8+R10*DB_Inputs!R$9)/DB_Inputs!R$10 -> 8845.749395 | S11: =(S9*DB_Inputs!S$8+S10*DB_Inputs!S$9)/DB_Inputs!S$10 -> 8497.237567 | T11: =(T9*DB_Inputs!T$8+T10*DB_Inputs!T$9)/DB_Inputs!T$10 -> 8191.762783 | U11: =(U9*DB_Inputs!U$8+U10*DB_Inputs!U$9)/DB_Inputs!U$10 -> 7596.995195 | V11: =(V9*DB_Inputs!V$8+V10*DB_Inputs!V$9)/DB_Inputs!V$10 -> 7079.852222 | W11: =(W9*DB_Inputs!W$8+W10*DB_Inputs!W$9)/DB_Inputs!W$10 -> 7253.868011 | X11: =(X9*DB_Inputs!X$8+X10*DB_Inputs!X$9)/DB_Inputs!X$10 -> 6845.805556 | Y11: =(Y9*DB_Inputs!Y$8+Y10*DB_Inputs!Y$9)/DB_Inputs!Y$10 -> 7338.181452 | Z11: =(Z9*DB_Inputs!Z$8+Z10*DB_Inputs!Z$9)/DB_Inputs!Z$10 -> 7412.643884 | AA11: =(AA9*DB_Inputs!AA$8+AA10*DB_Inputs!AA$9)/DB_Inputs!AA$10 -> 7057.711944 | AB11: =SUMPRODUCT(P11:AA11,DB_Inputs!P$10:AA$10)/DB_Inputs!AB$10 -> 7596.502168 | AD11: =(AD9*DB_Inputs!AD$8+AD10*DB_Inputs!AD$9)/DB_Inputs!AD$10 -> 6813.275134 | AE11: =(AE9*DB_Inputs!AE$8+AE10*DB_Inputs!AE$9)/DB_Inputs!AE$10 -> 8211.905437 | AF11: =(AF9*DB_Inputs!AF$8+AF10*DB_Inputs!AF$9)/DB_Inputs!AF$10 -> 8769.785847 | AG11: =(AG9*DB_Inputs!AG$8+AG10*DB_Inputs!AG$9)/DB_Inputs!AG$10 -> 8492.94664 | AH11: =(AH9*DB_Inputs!AH$8+AH10*DB_Inputs!AH$9)/DB_Inputs!AH$10 -> 7879.321135 | AI11: =(AI9*DB_Inputs!AI$8+AI10*DB_Inputs!AI$9)/DB_Inputs!AI$10 -> 7514.643244 | AJ11: =(AJ9*DB_Inputs!AJ$8+AJ10*DB_Inputs!AJ$9)/DB_Inputs!AJ$10 -> 7185.738056 | AK11: =(AK9*DB_Inputs!AK$8+AK10*DB_Inputs!AK$9)/DB_Inputs!AK$10 -> 7795.810081 | AL11: =(AL9*DB_Inputs!AL$8+AL10*DB_Inputs!AL$9)/DB_Inputs!AL$10 -> 7420.548583 | AM11: =(AM9*DB_Inputs!AM$8+AM10*DB_Inputs!AM$9)/DB_Inputs!AM$10 -> 7561.825403 | AN11: =(AN9*DB_Inputs!AN$8+AN10*DB_Inputs!AN$9)/DB_Inputs!AN$10 -> 7608.759772 | AO11: =(AO9*DB_Inputs!AO$8+AO10*DB_Inputs!AO$9)/DB_Inputs!AO$10 -> 7145.723333 | AP11: =SUMPRODUCT(AD11:AO11,DB_Inputs!AD$10:AO$10)/DB_Inputs!AP$10 -> 7701.407807 | AR11: =(AR9*DB_Inputs!AR$8+AR10*DB_Inputs!AR$9)/DB_Inputs!AR$10 -> 6797.588172 | AS11: =(AS9*DB_Inputs!AS$8+AS10*DB_Inputs!AS$9)/DB_Inputs!AS$10 -> 8199.187989 | AT11: =(AT9*DB_Inputs!AT$8+AT10*DB_Inputs!AT$9)/DB_Inputs!AT$10 -> 8769.058387 | AU11: =(AU9*DB_Inputs!AU$8+AU10*DB_Inputs!AU$9)/DB_Inputs!AU$10 -> 8468.557863 | AV11: =(AV9*DB_Inputs!AV$8+AV10*DB_Inputs!AV$9)/DB_Inputs!AV$10 -> 7975.726726 | AW11: =(AW9*DB_Inputs!AW$8+AW10*DB_Inputs!AW$9)/DB_Inputs!AW$10 -> 7483.207685 | AX11: =(AX9*DB_Inputs!AX$8+AX10*DB_Inputs!AX$9)/DB_Inputs!AX$10 -> 7141.759444 | AY11: =(AY9*DB_Inputs!AY$8+AY10*DB_Inputs!AY$9)/DB_Inputs!AY$10 -> 7554.21129 | AZ11: =(AZ9*DB_Inputs!AZ$8+AZ10*DB_Inputs!AZ$9)/DB_Inputs!AZ$10 -> 7085.948722 | BA11: =(BA9*DB_Inputs!BA$8+BA10*DB_Inputs!BA$9)/DB_Inputs!BA$10 -> 7479.027688 | BB11: =(BB9*DB_Inputs!BB$8+BB10*DB_Inputs!BB$9)/DB_Inputs!BB$10 -> 7560.655054 | BC11: =(BC9*DB_Inputs!BC$8+BC10*DB_Inputs!BC$9)/DB_Inputs!BC$10 -> 7103.583611 | BD11: =SUMPRODUCT(AR11:BC11,DB_Inputs!AR$10:BC$10)/DB_Inputs!BD$10 -> 7634.920724 | BF11: =(BF9*DB_Inputs!BF$8+BF10*DB_Inputs!BF$9)/DB_Inputs!BF$10 -> 6801.004167 | BG11: =(BG9*DB_Inputs!BG$8+BG10*DB_Inputs!BG$9)/DB_Inputs!BG$10 -> 8202.704327 | BH11: =(BH9*DB_Inputs!BH$8+BH10*DB_Inputs!BH$9)/DB_Inputs!BH$10 -> 8767.076263 | BI11: =(BI9*DB_Inputs!BI$8+BI10*DB_Inputs!BI$9)/DB_Inputs!BI$10 -> 8462.42668 | BJ11: =(BJ9*DB_Inputs!BJ$8+BJ10*DB_Inputs!BJ$9)/DB_Inputs!BJ$10 -> 7971.899792 | BK11: =(BK9*DB_Inputs!BK$8+BK10*DB_Inputs!BK$9)/DB_Inputs!BK$10 -> 7482.88642 | BL11: =(BL9*DB_Inputs!BL$8+BL10*DB_Inputs!BL$9)/DB_Inputs!BL$10 -> 7150.078889 | BM11: =(BM9*DB_Inputs!BM$8+BM10*DB_Inputs!BM$9)/DB_Inputs!BM$10 -> 7759.162769 | BN11: =(BN9*DB_Inputs!BN$8+BN10*DB_Inputs!BN$9)/DB_Inputs!BN$10 -> 7384.514444 | BO11: =(BO9*DB_Inputs!BO$8+BO10*DB_Inputs!BO$9)/DB_Inputs!BO$10 -> 7524.164785 | BP11: =(BP9*DB_Inputs!BP$8+BP10*DB_Inputs!BP$9)/DB_Inputs!BP$10 -> 7575.441169 | BQ11: =(BQ9*DB_Inputs!BQ$8+BQ10*DB_Inputs!BQ$9)/DB_Inputs!BQ$10 -> 7109.049861 | BR11: =SUMPRODUCT(BF11:BQ11,DB_Inputs!BF$10:BQ$10)/DB_Inputs!BR$10 -> 7682.659293 | BT11: =(BT9*DB_Inputs!BT$8+BT10*DB_Inputs!BT$9)/DB_Inputs!BT$10 -> 6799.160081 | BU11: =(BU9*DB_Inputs!BU$8+BU10*DB_Inputs!BU$9)/DB_Inputs!BU$10 -> 8213.211262 | BV11: =(BV9*DB_Inputs!BV$8+BV10*DB_Inputs!BV$9)/DB_Inputs!BV$10 -> 8785.129355 | BW11: =(BW9*DB_Inputs!BW$8+BW10*DB_Inputs!BW$9)/DB_Inputs!BW$10 -> 8481.554368 | BX11: =(BX9*DB_Inputs!BX$8+BX10*DB_Inputs!BX$9)/DB_Inputs!BX$10 -> 7988.732232 | BY11: =(BY9*DB_Inputs!BY$8+BY10*DB_Inputs!BY$9)/DB_Inputs!BY$10 -> 7491.120471 | BZ11: =(BZ9*DB_Inputs!BZ$8+BZ10*DB_Inputs!BZ$9)/DB_Inputs!BZ$10 -> 7148.018611 | CA11: =(CA9*DB_Inputs!CA$8+CA10*DB_Inputs!CA$9)/DB_Inputs!CA$10 -> 7562.2125 | CB11: =(CB9*DB_Inputs!CB$8+CB10*DB_Inputs!CB$9)/DB_Inputs!CB$10 -> 7092.589278 | CC11: =(CC9*DB_Inputs!CC$8+CC10*DB_Inputs!CC$9)/DB_Inputs!CC$10 -> 7485.035484 | CD11: =(CD9*DB_Inputs!CD$8+CD10*DB_Inputs!CD$9)/DB_Inputs!CD$10 -> 7569.315497 | CE11: =(CE9*DB_Inputs!CE$8+CE10*DB_Inputs!CE$9)/DB_Inputs!CE$10 -> 7108.186528 | CF11: =SUMPRODUCT(BT11:CE11,DB_Inputs!BT$10:CE$10)/DB_Inputs!CF$10 -> 7643.709919 | CH11: =(CH9*DB_Inputs!CH$8+CH10*DB_Inputs!CH$9)/DB_Inputs!CH$10 -> 6802.584409 | CI11: =(CI9*DB_Inputs!CI$8+CI10*DB_Inputs!CI$9)/DB_Inputs!CI$10 -> 8210.850374 | CJ11: =(CJ9*DB_Inputs!CJ$8+CJ10*DB_Inputs!CJ$9)/DB_Inputs!CJ$10 -> 8778.280336 | CK11: =(CK9*DB_Inputs!CK$8+CK10*DB_Inputs!CK$9)/DB_Inputs!CK$10 -> 8476.773118 | CL11: =(CL9*DB_Inputs!CL$8+CL10*DB_Inputs!CL$9)/DB_Inputs!CL$10 -> 7860.347716 | CM11: =(CM9*DB_Inputs!CM$8+CM10*DB_Inputs!CM$9)/DB_Inputs!CM$10 -> 7487.235437 | CN11: =(CN9*DB_Inputs!CN$8+CN10*DB_Inputs!CN$9)/DB_Inputs!CN$10 -> 7153.413889 | CO11: =(CO9*DB_Inputs!CO$8+CO10*DB_Inputs!CO$9)/DB_Inputs!CO$10 -> 7760.483065 | CP11: =(CP9*DB_Inputs!CP$8+CP10*DB_Inputs!CP$9)/DB_Inputs!CP$10 -> 7384.421111 | CQ11: =(CQ9*DB_Inputs!CQ$8+CQ10*DB_Inputs!CQ$9)/DB_Inputs!CQ$10 -> 7530.180108 | CR11: =(CR9*DB_Inputs!CR$8+CR10*DB_Inputs!CR$9)/DB_Inputs!CR$10 -> 7579.250444 | CS11: =(CS9*DB_Inputs!CS$8+CS10*DB_Inputs!CS$9)/DB_Inputs!CS$10 -> 7110.261111 | CT11: =SUMPRODUCT(CH11:CS11,DB_Inputs!CH$10:CS$10)/DB_Inputs!CT$10 -> 7679.254162 | CV11: =(CV9*DB_Inputs!CV$8+CV10*DB_Inputs!CV$9)/DB_Inputs!CV$10 -> 6810.638952 | CW11: =(CW9*DB_Inputs!CW$8+CW10*DB_Inputs!CW$9)/DB_Inputs!CW$10 -> 8228.446158 | CX11: =(CX9*DB_Inputs!CX$8+CX10*DB_Inputs!CX$9)/DB_Inputs!CX$10 -> 8802.381788 | CY11: =(CY9*DB_Inputs!CY$8+CY10*DB_Inputs!CY$9)/DB_Inputs!CY$10 -> 8501.089073 | CZ11: =(CZ9*DB_Inputs!CZ$8+CZ10*DB_Inputs!CZ$9)/DB_Inputs!CZ$10 -> 8007.901711 | DA11: =(DA9*DB_Inputs!DA$8+DA10*DB_Inputs!DA$9)/DB_Inputs!DA$10 -> 7501.965841 | DB11: =(DB9*DB_Inputs!DB$8+DB10*DB_Inputs!DB$9)/DB_Inputs!DB$10 -> 7160.442667 | DC11: =(DC9*DB_Inputs!DC$8+DC10*DB_Inputs!DC$9)/DB_Inputs!DC$10 -> 7570.936922 | DD11: =(DD9*DB_Inputs!DD$8+DD10*DB_Inputs!DD$9)/DB_Inputs!DD$10 -> 7101.426361 | DE11: =(DE9*DB_Inputs!DE$8+DE10*DB_Inputs!DE$9)/DB_Inputs!DE$10 -> 7499.052917 | DF11: =(DF9*DB_Inputs!DF$8+DF10*DB_Inputs!DF$9)/DB_Inputs!DF$10 -> 7580.186707 | DG11: =(DG9*DB_Inputs!DG$8+DG10*DB_Inputs!DG$9)/DB_Inputs!DG$10 -> 7116.619 | DH11: =SUMPRODUCT(CV11:DG11,DB_Inputs!CV$10:DG$10)/DB_Inputs!DH$10 -> 7656.748936 | DJ11: =(DJ9*DB_Inputs!DJ$8+DJ10*DB_Inputs!DJ$9)/DB_Inputs!DJ$10 -> 6795.831989 | DK11: =(DK9*DB_Inputs!DK$8+DK10*DB_Inputs!DK$9)/DB_Inputs!DK$10 -> 8206.414619 | DL11: =(DL9*DB_Inputs!DL$8+DL10*DB_Inputs!DL$9)/DB_Inputs!DL$10 -> 8776.887957 | DM11: =(DM9*DB_Inputs!DM$8+DM10*DB_Inputs!DM$9)/DB_Inputs!DM$10 -> 8474.752688 | DN11: =(DN9*DB_Inputs!DN$8+DN10*DB_Inputs!DN$9)/DB_Inputs!DN$10 -> 7983.609167 | DO11: =(DO9*DB_Inputs!DO$8+DO10*DB_Inputs!DO$9)/DB_Inputs!DO$10 -> 7480.232073 | DP11: =(DP9*DB_Inputs!DP$8+DP10*DB_Inputs!DP$9)/DB_Inputs!DP$10 -> 7146.253889 | DQ11: =(DQ9*DB_Inputs!DQ$8+DQ10*DB_Inputs!DQ$9)/DB_Inputs!DQ$10 -> 7752.271909 | DR11: =(DR9*DB_Inputs!DR$8+DR10*DB_Inputs!DR$9)/DB_Inputs!DR$10 -> 7377.578611 | DS11: =(DS9*DB_Inputs!DS$8+DS10*DB_Inputs!DS$9)/DB_Inputs!DS$10 -> 7524.99543 | DT11: =(DT9*DB_Inputs!DT$8+DT10*DB_Inputs!DT$9)/DB_Inputs!DT$10 -> 7572.380672 | DU11: =(DU9*DB_Inputs!DU$8+DU10*DB_Inputs!DU$9)/DB_Inputs!DU$10 -> 7101.594722 | DV11: =SUMPRODUCT(DJ11:DU11,DB_Inputs!DJ$10:DU$10)/DB_Inputs!DV$10 -> 7682.80686 | DX11: =(DX9*DB_Inputs!DX$8+DX10*DB_Inputs!DX$9)/DB_Inputs!DX$10 -> 6808.767876 | DY11: =(DY9*DB_Inputs!DY$8+DY10*DB_Inputs!DY$9)/DB_Inputs!DY$10 -> 8231.442497 | DZ11: =(DZ9*DB_Inputs!DZ$8+DZ10*DB_Inputs!DZ$9)/DB_Inputs!DZ$10 -> 8809.255161 | EA11: =(EA9*DB_Inputs!EA$8+EA10*DB_Inputs!EA$9)/DB_Inputs!EA$10 -> 8506.99496 | EB11: =(EB9*DB_Inputs!EB$8+EB10*DB_Inputs!EB$9)/DB_Inputs!EB$10 -> 8014.016756 | EC11: =(EC9*DB_Inputs!EC$8+EC10*DB_Inputs!EC$9)/DB_Inputs!EC$10 -> 7503.013338 | ED11: =(ED9*DB_Inputs!ED$8+ED10*DB_Inputs!ED$9)/DB_Inputs!ED$10 -> 7158.683333 | EE11: =(EE9*DB_Inputs!EE$8+EE10*DB_Inputs!EE$9)/DB_Inputs!EE$10 -> 7567.859005 | EF11: =(EF9*DB_Inputs!EF$8+EF10*DB_Inputs!EF$9)/DB_Inputs!EF$10 -> 7100.414403 | EG11: =(EG9*DB_Inputs!EG$8+EG10*DB_Inputs!EG$9)/DB_Inputs!EG$10 -> 7500.043817 | EH11: =(EH9*DB_Inputs!EH$8+EH10*DB_Inputs!EH$9)/DB_Inputs!EH$10 -> 7580.574489 | EI11: =(EI9*DB_Inputs!EI$8+EI10*DB_Inputs!EI$9)/DB_Inputs!EI$10 -> 7114.717222 | EJ11: =SUMPRODUCT(DX11:EI11,DB_Inputs!DX$10:EI$10)/DB_Inputs!EJ$10 -> 7657.95154 | EL11: =(EL9*DB_Inputs!EL$8+EL10*DB_Inputs!EL$9)/DB_Inputs!EL$10 -> 6781.590726 | EM11: =(EM9*DB_Inputs!EM$8+EM10*DB_Inputs!EM$9)/DB_Inputs!EM$10 -> 8199.089764 | EN11: =(EN9*DB_Inputs!EN$8+EN10*DB_Inputs!EN$9)/DB_Inputs!EN$10 -> 8776.257312 | EO11: =(EO9*DB_Inputs!EO$8+EO10*DB_Inputs!EO$9)/DB_Inputs!EO$10 -> 8475.951949 | EP11: =(EP9*DB_Inputs!EP$8+EP10*DB_Inputs!EP$9)/DB_Inputs!EP$10 -> 7857.22171 | EQ11: =(EQ9*DB_Inputs!EQ$8+EQ10*DB_Inputs!EQ$9)/DB_Inputs!EQ$10 -> 7475.838641 | ER11: =(ER9*DB_Inputs!ER$8+ER10*DB_Inputs!ER$9)/DB_Inputs!ER$10 -> 7139.192361 | ES11: =(ES9*DB_Inputs!ES$8+ES10*DB_Inputs!ES$9)/DB_Inputs!ES$10 -> 7743.302151 | ET11: =(ET9*DB_Inputs!ET$8+ET10*DB_Inputs!ET$9)/DB_Inputs!ET$10 -> 7369.995972 | EU11: =(EU9*DB_Inputs!EU$8+EU10*DB_Inputs!EU$9)/DB_Inputs!EU$10 -> 7519.870968 | EV11: =(EV9*DB_Inputs!EV$8+EV10*DB_Inputs!EV$9)/DB_Inputs!EV$10 -> 7567.173965 | EW11: =(EW9*DB_Inputs!EW$8+EW10*DB_Inputs!EW$9)/DB_Inputs!EW$10 -> 7091.713472 | EX11: =SUMPRODUCT(EL11:EW11,DB_Inputs!EL$10:EW$10)/DB_Inputs!EX$10 -> 7667.83844 | EZ11: =(EZ9*DB_Inputs!EZ$8+EZ10*DB_Inputs!EZ$9)/DB_Inputs!EZ$10 -> 6804.723253 | FA11: =(FA9*DB_Inputs!FA$8+FA10*DB_Inputs!FA$9)/DB_Inputs!FA$10 -> 8232.331096 | FB11: =(FB9*DB_Inputs!FB$8+FB10*DB_Inputs!FB$9)/DB_Inputs!FB$10 -> 8811.395927 | FC11: =(FC9*DB_Inputs!FC$8+FC10*DB_Inputs!FC$9)/DB_Inputs!FC$10 -> 8509.446102 | FD11: =(FD9*DB_Inputs!FD$8+FD10*DB_Inputs!FD$9)/DB_Inputs!FD$10 -> 8015.44369 | FE11: =(FE9*DB_Inputs!FE$8+FE10*DB_Inputs!FE$9)/DB_Inputs!FE$10 -> 7499.830969 | FF11: =(FF9*DB_Inputs!FF$8+FF10*DB_Inputs!FF$9)/DB_Inputs!FF$10 -> 7157.391944 | FG11: =(FG9*DB_Inputs!FG$8+FG10*DB_Inputs!FG$9)/DB_Inputs!FG$10 -> 7565.25672 | FH11: =(FH9*DB_Inputs!FH$8+FH10*DB_Inputs!FH$9)/DB_Inputs!FH$10 -> 7101.651944 | FI11: =(FI9*DB_Inputs!FI$8+FI10*DB_Inputs!FI$9)/DB_Inputs!FI$10 -> 7503.588844 | FJ11: =(FJ9*DB_Inputs!FJ$8+FJ10*DB_Inputs!FJ$9)/DB_Inputs!FJ$10 -> 7583.782298 | FK11: =(FK9*DB_Inputs!FK$8+FK10*DB_Inputs!FK$9)/DB_Inputs!FK$10 -> 7114.870556 | FL11: =SUMPRODUCT(EZ11:FK11,DB_Inputs!EZ$10:FK$10)/DB_Inputs!FL$10 -> 7658.271392 | FN11: =(FN9*DB_Inputs!FN$8+FN10*DB_Inputs!FN$9)/DB_Inputs!FN$10 -> 6779.538038 | FO11: =(FO9*DB_Inputs!FO$8+FO10*DB_Inputs!FO$9)/DB_Inputs!FO$10 -> 8197.699889 | FP11: =(FP9*DB_Inputs!FP$8+FP10*DB_Inputs!FP$9)/DB_Inputs!FP$10 -> 8778.768777 | FQ11: =(FQ9*DB_Inputs!FQ$8+FQ10*DB_Inputs!FQ$9)/DB_Inputs!FQ$10 -> 8472.800806 | FR11: =(FR9*DB_Inputs!FR$8+FR10*DB_Inputs!FR$9)/DB_Inputs!FR$10 -> 7985.879107 | FS11: =(FS9*DB_Inputs!FS$8+FS10*DB_Inputs!FS$9)/DB_Inputs!FS$10 -> 7466.853607 | FT11: =(FT9*DB_Inputs!FT$8+FT10*DB_Inputs!FT$9)/DB_Inputs!FT$10 -> 7131.256111 | FU11: =(FU9*DB_Inputs!FU$8+FU10*DB_Inputs!FU$9)/DB_Inputs!FU$10 -> 7732.550672 | FV11: =(FV9*DB_Inputs!FV$8+FV10*DB_Inputs!FV$9)/DB_Inputs!FV$10 -> 7356.896667 | FW11: =(FW9*DB_Inputs!FW$8+FW10*DB_Inputs!FW$9)/DB_Inputs!FW$10 -> 7511.781183 | FX11: =(FX9*DB_Inputs!FX$8+FX10*DB_Inputs!FX$9)/DB_Inputs!FX$10 -> 7559.289153 | FY11: =(FY9*DB_Inputs!FY$8+FY10*DB_Inputs!FY$9)/DB_Inputs!FY$10 -> 7081.148333 | FZ11: =SUMPRODUCT(FN11:FY11,DB_Inputs!FN$10:FY$10)/DB_Inputs!FZ$10 -> 7671.216839 | GB11: =(GB9*DB_Inputs!GB$8+GB10*DB_Inputs!GB$9)/DB_Inputs!GB$10 -> 6815.936828 | GC11: =(GC9*DB_Inputs!GC$8+GC10*DB_Inputs!GC$9)/DB_Inputs!GC$10 -> 8240.67165 | GD11: =(GD9*DB_Inputs!GD$8+GD10*DB_Inputs!GD$9)/DB_Inputs!GD$10 -> 8828.862083 | GE11: =(GE9*DB_Inputs!GE$8+GE10*DB_Inputs!GE$9)/DB_Inputs!GE$10 -> 8523.170578 | GF11: =(GF9*DB_Inputs!GF$8+GF10*DB_Inputs!GF$9)/DB_Inputs!GF$10 -> 8033.017336 | GG11: =(GG9*DB_Inputs!GG$8+GG10*DB_Inputs!GG$9)/DB_Inputs!GG$10 -> 7509.527766 | GH11: =(GH9*DB_Inputs!GH$8+GH10*DB_Inputs!GH$9)/DB_Inputs!GH$10 -> 7167.530556 | GI11: =(GI9*DB_Inputs!GI$8+GI10*DB_Inputs!GI$9)/DB_Inputs!GI$10 -> 7572.422715 | GJ11: =(GJ9*DB_Inputs!GJ$8+GJ10*DB_Inputs!GJ$9)/DB_Inputs!GJ$10 -> 7104.479722 | GK11: =(GK9*DB_Inputs!GK$8+GK10*DB_Inputs!GK$9)/DB_Inputs!GK$10 -> 7512.864247 | GL11: =(GL9*DB_Inputs!GL$8+GL10*DB_Inputs!GL$9)/DB_Inputs!GL$10 -> 7592.88914 | GM11: =(GM9*DB_Inputs!GM$8+GM10*DB_Inputs!GM$9)/DB_Inputs!GM$10 -> 7119.541528 | GN11: =SUMPRODUCT(GB11:GM11,DB_Inputs!GB$10:GM$10)/DB_Inputs!GN$10 -> 7668.34939 | GP11: =(GP9*DB_Inputs!GP$8+GP10*DB_Inputs!GP$9)/DB_Inputs!GP$10 -> 0 | GQ11: =(GQ9*DB_Inputs!GQ$8+GQ10*DB_Inputs!GQ$9)/DB_Inputs!GQ$10 -> 0 | GR11: =(GR9*DB_Inputs!GR$8+GR10*DB_Inputs!GR$9)/DB_Inputs!GR$10 -> 0 | GS11: =(GS9*DB_Inputs!GS$8+GS10*DB_Inputs!GS$9)/DB_Inputs!GS$10 -> 0 | GT11: =(GT9*DB_Inputs!GT$8+GT10*DB_Inputs!GT$9)/DB_Inputs!GT$10 -> 0 | GU11: =(GU9*DB_Inputs!GU$8+GU10*DB_Inputs!GU$9)/DB_Inputs!GU$10 -> 0 | GV11: =(GV9*DB_Inputs!GV$8+GV10*DB_Inputs!GV$9)/DB_Inputs!GV$10 -> 0 | GW11: =(GW9*DB_Inputs!GW$8+GW10*DB_Inputs!GW$9)/DB_Inputs!GW$10 -> 0 | GX11: =(GX9*DB_Inputs!GX$8+GX10*DB_Inputs!GX$9)/DB_Inputs!GX$10 -> 0 | GY11: =(GY9*DB_Inputs!GY$8+GY10*DB_Inputs!GY$9)/DB_Inputs!GY$10 -> 0 | GZ11: =(GZ9*DB_Inputs!GZ$8+GZ10*DB_Inputs!GZ$9)/DB_Inputs!GZ$10 -> 0 | HA11: =(HA9*DB_Inputs!HA$8+HA10*DB_Inputs!HA$9)/DB_Inputs!HA$10 -> 0 | HB11: =SUMPRODUCT(GP11:HA11,DB_Inputs!GP$10:HA$10)/DB_Inputs!HB$10 -> 0
A13: Slice Change HLH | B13: =IF(DB_Inputs!B$18=0,0,IF(StudyType<2,SliceAdjustment!B69,Slice_ESP!B43)) -> -55.69734724 | C13: =IF(DB_Inputs!C$18=0,0,IF(StudyType<2,SliceAdjustment!C69,Slice_ESP!C43)) -> -97.99537652 | D13: =IF(DB_Inputs!D$18=0,0,IF(StudyType<2,SliceAdjustment!D69,Slice_ESP!D43)) -> 6.503102683 | E13: =IF(DB_Inputs!E$18=0,0,IF(StudyType<2,SliceAdjustment!E69,Slice_ESP!E43)) -> 179.6774507 | F13: =IF(DB_Inputs!F$18=0,0,IF(StudyType<2,SliceAdjustment!F69,Slice_ESP!F43)) -> 81.05929562 | G13: =IF(DB_Inputs!G$18=0,0,IF(StudyType<2,SliceAdjustment!G69,Slice_ESP!G43)) -> 0.3778711772 | H13: =IF(DB_Inputs!H$18=0,0,IF(StudyType<2,SliceAdjustment!H69,Slice_ESP!H43)) -> -501.3115532 | I13: =IF(DB_Inputs!I$18=0,0,IF(StudyType<2,SliceAdjustment!I69,Slice_ESP!I43)) -> 387.800662 | J13: =IF(DB_Inputs!J$18=0,0,IF(StudyType<2,SliceAdjustment!J69,Slice_ESP!J43)) -> 829.0622836 | K13: =IF(DB_Inputs!K$18=0,0,IF(StudyType<2,SliceAdjustment!K69,Slice_ESP!K43)) -> 48.55673412 | L13: =IF(DB_Inputs!L$18=0,0,IF(StudyType<2,SliceAdjustment!L69,Slice_ESP!L43)) -> -40.1070253 | M13: =IF(DB_Inputs!M$18=0,0,IF(StudyType<2,SliceAdjustment!M69,Slice_ESP!M43)) -> -53.92598722 | N13: =SUMPRODUCT(B13:M13,DB_Inputs!B$12:M$12)/DB_Inputs!N$12 -> 68.08579802 | P13: =IF(DB_Inputs!P$18=0,0,IF(StudyType<2,SliceAdjustment!P69,Slice_ESP!P43)) -> -63.40594271 | Q13: =IF(DB_Inputs!Q$18=0,0,IF(StudyType<2,SliceAdjustment!Q69,Slice_ESP!Q43)) -> -69.77943147 | R13: =IF(DB_Inputs!R$18=0,0,IF(StudyType<2,SliceAdjustment!R69,Slice_ESP!R43)) -> 248.2762752 | S13: =IF(DB_Inputs!S$18=0,0,IF(StudyType<2,SliceAdjustment!S69,Slice_ESP!S43)) -> 1052.719452 | T13: =IF(DB_Inputs!T$18=0,0,IF(StudyType<2,SliceAdjustment!T69,Slice_ESP!T43)) -> 753.8261499 | U13: =IF(DB_Inputs!U$18=0,0,IF(StudyType<2,SliceAdjustment!U69,Slice_ESP!U43)) -> 834.7776174 | V13: =IF(DB_Inputs!V$18=0,0,IF(StudyType<2,SliceAdjustment!V69,Slice_ESP!V43)) -> 1313.96414 | W13: =IF(DB_Inputs!W$18=0,0,IF(StudyType<2,SliceAdjustment!W69,Slice_ESP!W43)) -> 464.4215059 | X13: =IF(DB_Inputs!X$18=0,0,IF(StudyType<2,SliceAdjustment!X69,Slice_ESP!X43)) -> 713.3342847 | Y13: =IF(DB_Inputs!Y$18=0,0,IF(StudyType<2,SliceAdjustment!Y69,Slice_ESP!Y43)) -> 974.2072361 | Z13: =IF(DB_Inputs!Z$18=0,0,IF(StudyType<2,SliceAdjustment!Z69,Slice_ESP!Z43)) -> 352.2082877 | AA13: =IF(DB_Inputs!AA$18=0,0,IF(StudyType<2,SliceAdjustment!AA69,Slice_ESP!AA43)) -> 137.1703852 | AB13: =SUMPRODUCT(P13:AA13,DB_Inputs!P$12:AA$12)/DB_Inputs!AB$12 -> 560.6504792 | AD13: =IF(StudyType<2,SliceAdjustment!AD69,Slice_ESP!AD43) -> -1471.363626 | AE13: =IF(StudyType<2,SliceAdjustment!AE69,Slice_ESP!AE43) -> -1965.973637 | AF13: =IF(StudyType<2,SliceAdjustment!AF69,Slice_ESP!AF43) -> -1918.948821 | AG13: =IF(StudyType<2,SliceAdjustment!AG69,Slice_ESP!AG43) -> -1548.513126 | AH13: =IF(StudyType<2,SliceAdjustment!AH69,Slice_ESP!AH43) -> -1370.794943 | AI13: =IF(StudyType<2,SliceAdjustment!AI69,Slice_ESP!AI43) -> -1486.973307 | AJ13: =IF(StudyType<2,SliceAdjustment!AJ69,Slice_ESP!AJ43) -> -1523.212821 | AK13: =IF(StudyType<2,SliceAdjustment!AK69,Slice_ESP!AK43) -> -2486.590083 | AL13: =IF(StudyType<2,SliceAdjustment!AL69,Slice_ESP!AL43) -> -1923.949552 | AM13: =IF(StudyType<2,SliceAdjustment!AM69,Slice_ESP!AM43) -> -1610.162912 | AN13: =IF(StudyType<2,SliceAdjustment!AN69,Slice_ESP!AN43) -> -1807.404753 | AO13: =IF(StudyType<2,SliceAdjustment!AO69,Slice_ESP!AO43) -> -1582.448078 | AP13: =SUMPRODUCT(AD13:AO13,DB_Inputs!AD$8:AO$8)/DB_Inputs!AP$8 -> -1721.595244 | AR13: =IF(StudyType<2,SliceAdjustment!AR69,Slice_ESP!AR43) -> -1469.283826 | AS13: =IF(StudyType<2,SliceAdjustment!AS69,Slice_ESP!AS43) -> -2040.041929 | AT13: =IF(StudyType<2,SliceAdjustment!AT69,Slice_ESP!AT43) -> -1847.538077 | AU13: =IF(StudyType<2,SliceAdjustment!AU69,Slice_ESP!AU43) -> -1597.656164 | AV13: =IF(StudyType<2,SliceAdjustment!AV69,Slice_ESP!AV43) -> -1370.630944 | AW13: =IF(StudyType<2,SliceAdjustment!AW69,Slice_ESP!AW43) -> -1450.74053 | AX13: =IF(StudyType<2,SliceAdjustment!AX69,Slice_ESP!AX43) -> -1520.596342 | AY13: =IF(StudyType<2,SliceAdjustment!AY69,Slice_ESP!AY43) -> -2397.398718 | AZ13: =IF(StudyType<2,SliceAdjustment!AZ69,Slice_ESP!AZ43) -> -1933.891861 | BA13: =IF(StudyType<2,SliceAdjustment!BA69,Slice_ESP!BA43) -> -1744.841169 | BB13: =IF(StudyType<2,SliceAdjustment!BB69,Slice_ESP!BB43) -> -1795.301376 | BC13: =IF(StudyType<2,SliceAdjustment!BC69,Slice_ESP!BC43) -> -1588.901422 | BD13: =SUMPRODUCT(AR13:BC13,DB_Inputs!AR$8:BC$8)/DB_Inputs!BD$8 -> -1727.010109 | BF13: =IF(StudyType<2,SliceAdjustment!BF69,Slice_ESP!BF43) -> -1525.051891 | BG13: =IF(StudyType<2,SliceAdjustment!BG69,Slice_ESP!BG43) -> -1965.883104 | BH13: =IF(StudyType<2,SliceAdjustment!BH69,Slice_ESP!BH43) -> -1851.795311 | BI13: =IF(StudyType<2,SliceAdjustment!BI69,Slice_ESP!BI43) -> -1591.350403 | BJ13: =IF(StudyType<2,SliceAdjustment!BJ69,Slice_ESP!BJ43) -> -1365.683583 | BK13: =IF(StudyType<2,SliceAdjustment!BK69,Slice_ESP!BK43) -> -1429.323802 | BL13: =IF(StudyType<2,SliceAdjustment!BL69,Slice_ESP!BL43) -> -1525.244095 | BM13: =IF(StudyType<2,SliceAdjustment!BM69,Slice_ESP!BM43) -> -2469.857649 | BN13: =IF(StudyType<2,SliceAdjustment!BN69,Slice_ESP!BN43) -> -1912.252395 | BO13: =IF(StudyType<2,SliceAdjustment!BO69,Slice_ESP!BO43) -> -1669.373359 | BP13: =IF(StudyType<2,SliceAdjustment!BP69,Slice_ESP!BP43) -> -1725.172935 | BQ13: =IF(StudyType<2,SliceAdjustment!BQ69,Slice_ESP!BQ43) -> -1587.668392 | BR13: =SUMPRODUCT(BF13:BQ13,DB_Inputs!BF$8:BQ$8)/DB_Inputs!BR$8 -> -1717.342269 | BT13: =IF(StudyType<2,SliceAdjustment!BT69,Slice_ESP!BT43) -> -1519.6568 | BU13: =IF(StudyType<2,SliceAdjustment!BU69,Slice_ESP!BU43) -> -1957.351026 | BV13: =IF(StudyType<2,SliceAdjustment!BV69,Slice_ESP!BV43) -> -1853.45404 | BW13: =IF(StudyType<2,SliceAdjustment!BW69,Slice_ESP!BW43) -> -1595.010318 | BX13: =IF(StudyType<2,SliceAdjustment!BX69,Slice_ESP!BX43) -> -1369.123939 | BY13: =IF(StudyType<2,SliceAdjustment!BY69,Slice_ESP!BY43) -> -1447.363025 | BZ13: =IF(StudyType<2,SliceAdjustment!BZ69,Slice_ESP!BZ43) -> -1573.109683 | CA13: =IF(StudyType<2,SliceAdjustment!CA69,Slice_ESP!CA43) -> -2294.427053 | CB13: =IF(StudyType<2,SliceAdjustment!CB69,Slice_ESP!CB43) -> -1930.498992 | CC13: =IF(StudyType<2,SliceAdjustment!CC69,Slice_ESP!CC43) -> -1648.817564 | CD13: =IF(StudyType<2,SliceAdjustment!CD69,Slice_ESP!CD43) -> -1772.30535 | CE13: =IF(StudyType<2,SliceAdjustment!CE69,Slice_ESP!CE43) -> -1589.751846 | CF13: =SUMPRODUCT(BT13:CE13,DB_Inputs!BT$8:CE$8)/DB_Inputs!CF$8 -> -1714.788243 | CH13: =IF(StudyType<2,SliceAdjustment!CH69,Slice_ESP!CH43) -> -1539.882413 | CI13: =IF(StudyType<2,SliceAdjustment!CI69,Slice_ESP!CI43) -> -1959.028254 | CJ13: =IF(StudyType<2,SliceAdjustment!CJ69,Slice_ESP!CJ43) -> -1930.886734 | CK13: =IF(StudyType<2,SliceAdjustment!CK69,Slice_ESP!CK43) -> -1528.709239 | CL13: =IF(StudyType<2,SliceAdjustment!CL69,Slice_ESP!CL43) -> -1361.523525 | CM13: =IF(StudyType<2,SliceAdjustment!CM69,Slice_ESP!CM43) -> -1532.688988 | CN13: =IF(StudyType<2,SliceAdjustment!CN69,Slice_ESP!CN43) -> -1514.829896 | CO13: =IF(StudyType<2,SliceAdjustment!CO69,Slice_ESP!CO43) -> -2372.212622 | CP13: =IF(StudyType<2,SliceAdjustment!CP69,Slice_ESP!CP43) -> -1988.923267 | CQ13: =IF(StudyType<2,SliceAdjustment!CQ69,Slice_ESP!CQ43) -> -1602.607697 | CR13: =IF(StudyType<2,SliceAdjustment!CR69,Slice_ESP!CR43) -> -1803.291277 | CS13: =IF(StudyType<2,SliceAdjustment!CS69,Slice_ESP!CS43) -> -1662.407901 | CT13: =SUMPRODUCT(CH13:CS13,DB_Inputs!CH$8:CS$8)/DB_Inputs!CT$8 -> -1732.768407 | CV13: =IF(StudyType<2,SliceAdjustment!CV69,Slice_ESP!CV43) -> -1473.709542 | CW13: =IF(StudyType<2,SliceAdjustment!CW69,Slice_ESP!CW43) -> -1960.494715 | CX13: =IF(StudyType<2,SliceAdjustment!CX69,Slice_ESP!CX43) -> -1919.391581 | CY13: =IF(StudyType<2,SliceAdjustment!CY69,Slice_ESP!CY43) -> -1536.677566 | CZ13: =IF(StudyType<2,SliceAdjustment!CZ69,Slice_ESP!CZ43) -> -1372.081962 | DA13: =IF(StudyType<2,SliceAdjustment!DA69,Slice_ESP!DA43) -> -1514.648557 | DB13: =IF(StudyType<2,SliceAdjustment!DB69,Slice_ESP!DB43) -> -1539.000461 | DC13: =IF(StudyType<2,SliceAdjustment!DC69,Slice_ESP!DC43) -> -2331.246093 | DD13: =IF(StudyType<2,SliceAdjustment!DD69,Slice_ESP!DD43) -> -2009.016342 | DE13: =IF(StudyType<2,SliceAdjustment!DE69,Slice_ESP!DE43) -> -1616.427135 | DF13: =IF(StudyType<2,SliceAdjustment!DF69,Slice_ESP!DF43) -> -1791.622591 | DG13: =IF(StudyType<2,SliceAdjustment!DG69,Slice_ESP!DG43) -> -1585.963696 | DH13: =SUMPRODUCT(CV13:DG13,DB_Inputs!CV$8:DG$8)/DB_Inputs!DH$8 -> -1720.397282 | DJ13: =IF(StudyType<2,SliceAdjustment!DJ69,Slice_ESP!DJ43) -> -1480.453737 | DK13: =IF(StudyType<2,SliceAdjustment!DK69,Slice_ESP!DK43) -> -2036.357566 | DL13: =IF(StudyType<2,SliceAdjustment!DL69,Slice_ESP!DL43) -> -1838.761291 | DM13: =IF(StudyType<2,SliceAdjustment!DM69,Slice_ESP!DM43) -> -1532.010537 | DN13: =IF(StudyType<2,SliceAdjustment!DN69,Slice_ESP!DN43) -> -1387.308055 | DO13: =IF(StudyType<2,SliceAdjustment!DO69,Slice_ESP!DO43) -> -1499.050419 | DP13: =IF(StudyType<2,SliceAdjustment!DP69,Slice_ESP!DP43) -> -1516.092982 | DQ13: =IF(StudyType<2,SliceAdjustment!DQ69,Slice_ESP!DQ43) -> -2470.288895 | DR13: =IF(StudyType<2,SliceAdjustment!DR69,Slice_ESP!DR43) -> -1918.161396 | DS13: =IF(StudyType<2,SliceAdjustment!DS69,Slice_ESP!DS43) -> -1607.289539 | DT13: =IF(StudyType<2,SliceAdjustment!DT69,Slice_ESP!DT43) -> -1797.016519 | DU13: =IF(StudyType<2,SliceAdjustment!DU69,Slice_ESP!DU43) -> -1590.32575 | DV13: =SUMPRODUCT(DJ13:DU13,DB_Inputs!DJ$8:DU$8)/DB_Inputs!DV$8 -> -1720.109256 | DX13: =IF(StudyType<2,SliceAdjustment!DX69,Slice_ESP!DX43) -> -1464.368841 | DY13: =IF(StudyType<2,SliceAdjustment!DY69,Slice_ESP!DY43) -> -2083.675803 | DZ13: =IF(StudyType<2,SliceAdjustment!DZ69,Slice_ESP!DZ43) -> -1838.406239 | EA13: =IF(StudyType<2,SliceAdjustment!EA69,Slice_ESP!EA43) -> -1595.165795 | EB13: =IF(StudyType<2,SliceAdjustment!EB69,Slice_ESP!EB43) -> -1374.411953 | EC13: =IF(StudyType<2,SliceAdjustment!EC69,Slice_ESP!EC43) -> -1458.426497 | ED13: =IF(StudyType<2,SliceAdjustment!ED69,Slice_ESP!ED43) -> -1516.439163 | EE13: =IF(StudyType<2,SliceAdjustment!EE69,Slice_ESP!EE43) -> -2417.72483 | EF13: =IF(StudyType<2,SliceAdjustment!EF69,Slice_ESP!EF43) -> -1932.436764 | EG13: =IF(StudyType<2,SliceAdjustment!EG69,Slice_ESP!EG43) -> -1583.476869 | EH13: =IF(StudyType<2,SliceAdjustment!EH69,Slice_ESP!EH43) -> -1796.932734 | EI13: =IF(StudyType<2,SliceAdjustment!EI69,Slice_ESP!EI43) -> -1585.976835 | EJ13: =SUMPRODUCT(DX13:EI13,DB_Inputs!DX$8:EI$8)/DB_Inputs!EJ$8 -> -1717.398217 | EL13: =IF(StudyType<2,SliceAdjustment!EL69,Slice_ESP!EL43) -> -1527.171306 | EM13: =IF(StudyType<2,SliceAdjustment!EM69,Slice_ESP!EM43) -> -1962.718054 | EN13: =IF(StudyType<2,SliceAdjustment!EN69,Slice_ESP!EN43) -> -1841.418061 | EO13: =IF(StudyType<2,SliceAdjustment!EO69,Slice_ESP!EO43) -> -1607.279833 | EP13: =IF(StudyType<2,SliceAdjustment!EP69,Slice_ESP!EP43) -> -1365.583805 | EQ13: =IF(StudyType<2,SliceAdjustment!EQ69,Slice_ESP!EQ43) -> -1432.963291 | ER13: =IF(StudyType<2,SliceAdjustment!ER69,Slice_ESP!ER43) -> -1576.114513 | ES13: =IF(StudyType<2,SliceAdjustment!ES69,Slice_ESP!ES43) -> -2383.429998 | ET13: =IF(StudyType<2,SliceAdjustment!ET69,Slice_ESP!ET43) -> -1916.841868 | EU13: =IF(StudyType<2,SliceAdjustment!EU69,Slice_ESP!EU43) -> -1669.179169 | EV13: =IF(StudyType<2,SliceAdjustment!EV69,Slice_ESP!EV43) -> -1733.760372 | EW13: =IF(StudyType<2,SliceAdjustment!EW69,Slice_ESP!EW43) -> -1580.622493 | EX13: =SUMPRODUCT(EL13:EW13,DB_Inputs!EL$8:EW$8)/DB_Inputs!EX$8 -> -1717.303174 | EZ13: =IF(StudyType<2,SliceAdjustment!EZ69,Slice_ESP!EZ43) -> -1524.28849 | FA13: =IF(StudyType<2,SliceAdjustment!FA69,Slice_ESP!FA43) -> -1954.731024 | FB13: =IF(StudyType<2,SliceAdjustment!FB69,Slice_ESP!FB43) -> -1918.263268 | FC13: =IF(StudyType<2,SliceAdjustment!FC69,Slice_ESP!FC43) -> -1529.816915 | FD13: =IF(StudyType<2,SliceAdjustment!FD69,Slice_ESP!FD43) -> -1364.749856 | FE13: =IF(StudyType<2,SliceAdjustment!FE69,Slice_ESP!FE43) -> -1445.865693 | FF13: =IF(StudyType<2,SliceAdjustment!FF69,Slice_ESP!FF43) -> -1575.042672 | FG13: =IF(StudyType<2,SliceAdjustment!FG69,Slice_ESP!FG43) -> -2301.683085 | FH13: =IF(StudyType<2,SliceAdjustment!FH69,Slice_ESP!FH43) -> -1928.071167 | FI13: =IF(StudyType<2,SliceAdjustment!FI69,Slice_ESP!FI43) -> -1804.993765 | FJ13: =IF(StudyType<2,SliceAdjustment!FJ69,Slice_ESP!FJ43) -> -1722.045644 | FK13: =IF(StudyType<2,SliceAdjustment!FK69,Slice_ESP!FK43) -> -1653.52311 | FL13: =SUMPRODUCT(EZ13:FK13,DB_Inputs!EZ$8:FK$8)/DB_Inputs!FL$8 -> -1727.706786 | FN13: =IF(StudyType<2,SliceAdjustment!FN69,Slice_ESP!FN43) -> -1468.572625 | FO13: =IF(StudyType<2,SliceAdjustment!FO69,Slice_ESP!FO43) -> -1963.291223 | FP13: =IF(StudyType<2,SliceAdjustment!FP69,Slice_ESP!FP43) -> -1925.055605 | FQ13: =IF(StudyType<2,SliceAdjustment!FQ69,Slice_ESP!FQ43) -> -1527.97448 | FR13: =IF(StudyType<2,SliceAdjustment!FR69,Slice_ESP!FR43) -> -1363.540894 | FS13: =IF(StudyType<2,SliceAdjustment!FS69,Slice_ESP!FS43) -> -1483.658698 | FT13: =IF(StudyType<2,SliceAdjustment!FT69,Slice_ESP!FT43) -> -1525.301536 | FU13: =IF(StudyType<2,SliceAdjustment!FU69,Slice_ESP!FU43) -> -2376.79922 | FV13: =IF(StudyType<2,SliceAdjustment!FV69,Slice_ESP!FV43) -> -1991.944406 | FW13: =IF(StudyType<2,SliceAdjustment!FW69,Slice_ESP!FW43) -> -1605.545798 | FX13: =IF(StudyType<2,SliceAdjustment!FX69,Slice_ESP!FX43) -> -1725.789647 | FY13: =IF(StudyType<2,SliceAdjustment!FY69,Slice_ESP!FY43) -> -1653.677734 | FZ13: =SUMPRODUCT(FN13:FY13,DB_Inputs!FN$8:FY$8)/DB_Inputs!FZ$8 -> -1717.164763 | GB13: =IF(StudyType<2,SliceAdjustment!GB69,Slice_ESP!GB43) -> -1464.890766 | GC13: =IF(StudyType<2,SliceAdjustment!GC69,Slice_ESP!GC43) -> -1959.313038 | GD13: =IF(StudyType<2,SliceAdjustment!GD69,Slice_ESP!GD43) -> -1932.803239 | GE13: =IF(StudyType<2,SliceAdjustment!GE69,Slice_ESP!GE43) -> -1535.653806 | GF13: =IF(StudyType<2,SliceAdjustment!GF69,Slice_ESP!GF43) -> -1365.325311 | GG13: =IF(StudyType<2,SliceAdjustment!GG69,Slice_ESP!GG43) -> -1508.787186 | GH13: =IF(StudyType<2,SliceAdjustment!GH69,Slice_ESP!GH43) -> -1509.621227 | GI13: =IF(StudyType<2,SliceAdjustment!GI69,Slice_ESP!GI43) -> -2295.006484 | GJ13: =IF(StudyType<2,SliceAdjustment!GJ69,Slice_ESP!GJ43) -> -2010.389234 | GK13: =IF(StudyType<2,SliceAdjustment!GK69,Slice_ESP!GK43) -> -1582.531332 | GL13: =IF(StudyType<2,SliceAdjustment!GL69,Slice_ESP!GL43) -> -1834.8281 | GM13: =IF(StudyType<2,SliceAdjustment!GM69,Slice_ESP!GM43) -> -1589.939074 | GN13: =SUMPRODUCT(GB13:GM13,DB_Inputs!GB$8:GM$8)/DB_Inputs!GN$8 -> -1715.172978 | GP13: =IF(StudyType<2,SliceAdjustment!GP69,Slice_ESP!GP43) ->  | GQ13: =IF(StudyType<2,SliceAdjustment!GQ69,Slice_ESP!GQ43) ->  | GR13: =IF(StudyType<2,SliceAdjustment!GR69,Slice_ESP!GR43) ->  | GS13: =IF(StudyType<2,SliceAdjustment!GS69,Slice_ESP!GS43) ->  | GT13: =IF(StudyType<2,SliceAdjustment!GT69,Slice_ESP!GT43) ->  | GU13: =IF(StudyType<2,SliceAdjustment!GU69,Slice_ESP!GU43) ->  | GV13: =IF(StudyType<2,SliceAdjustment!GV69,Slice_ESP!GV43) ->  | GW13: =IF(StudyType<2,SliceAdjustment!GW69,Slice_ESP!GW43) ->  | GX13: =IF(StudyType<2,SliceAdjustment!GX69,Slice_ESP!GX43) ->  | GY13: =IF(StudyType<2,SliceAdjustment!GY69,Slice_ESP!GY43) ->  | GZ13: =IF(StudyType<2,SliceAdjustment!GZ69,Slice_ESP!GZ43) ->  | HA13: =IF(StudyType<2,SliceAdjustment!HA69,Slice_ESP!HA43) ->  | HB13: =SUMPRODUCT(GP13:HA13,DB_Inputs!GP$8:HA$8)/DB_Inputs!HB$8 -> 
A14: Slice Change LLH | B14: =IF(DB_Inputs!B$18=0,0,IF(StudyType<2,SliceAdjustment!B70,Slice_ESP!B44)) -> 10.93718736 | C14: =IF(DB_Inputs!C$18=0,0,IF(StudyType<2,SliceAdjustment!C70,Slice_ESP!C44)) -> 11.41920353 | D14: =IF(DB_Inputs!D$18=0,0,IF(StudyType<2,SliceAdjustment!D70,Slice_ESP!D44)) -> 108.5019294 | E14: =IF(DB_Inputs!E$18=0,0,IF(StudyType<2,SliceAdjustment!E70,Slice_ESP!E44)) -> 144.4904404 | F14: =IF(DB_Inputs!F$18=0,0,IF(StudyType<2,SliceAdjustment!F70,Slice_ESP!F44)) -> 79.66926713 | G14: =IF(DB_Inputs!G$18=0,0,IF(StudyType<2,SliceAdjustment!G70,Slice_ESP!G44)) -> 31.93046535 | H14: =IF(DB_Inputs!H$18=0,0,IF(StudyType<2,SliceAdjustment!H70,Slice_ESP!H44)) -> -278.7283345 | I14: =IF(DB_Inputs!I$18=0,0,IF(StudyType<2,SliceAdjustment!I70,Slice_ESP!I44)) -> 512.3578711 | J14: =IF(DB_Inputs!J$18=0,0,IF(StudyType<2,SliceAdjustment!J70,Slice_ESP!J44)) -> 882.9251926 | K14: =IF(DB_Inputs!K$18=0,0,IF(StudyType<2,SliceAdjustment!K70,Slice_ESP!K44)) -> 90.15852725 | L14: =IF(DB_Inputs!L$18=0,0,IF(StudyType<2,SliceAdjustment!L70,Slice_ESP!L44)) -> 6.334466253 | M14: =IF(DB_Inputs!M$18=0,0,IF(StudyType<2,SliceAdjustment!M70,Slice_ESP!M44)) -> 10.15481103 | N14: =SUMPRODUCT(B14:M14,DB_Inputs!B$13:M$13)/DB_Inputs!N$13 -> 131.6040606 | P14: =IF(DB_Inputs!P$18=0,0,IF(StudyType<2,SliceAdjustment!P70,Slice_ESP!P44)) -> 9.036446873 | Q14: =IF(DB_Inputs!Q$18=0,0,IF(StudyType<2,SliceAdjustment!Q70,Slice_ESP!Q44)) -> 68.94077349 | R14: =IF(DB_Inputs!R$18=0,0,IF(StudyType<2,SliceAdjustment!R70,Slice_ESP!R44)) -> 222.0621467 | S14: =IF(DB_Inputs!S$18=0,0,IF(StudyType<2,SliceAdjustment!S70,Slice_ESP!S44)) -> 584.2677316 | T14: =IF(DB_Inputs!T$18=0,0,IF(StudyType<2,SliceAdjustment!T70,Slice_ESP!T44)) -> 486.3866282 | U14: =IF(DB_Inputs!U$18=0,0,IF(StudyType<2,SliceAdjustment!U70,Slice_ESP!U44)) -> 631.9813248 | V14: =IF(DB_Inputs!V$18=0,0,IF(StudyType<2,SliceAdjustment!V70,Slice_ESP!V44)) -> 1549.76648 | W14: =IF(DB_Inputs!W$18=0,0,IF(StudyType<2,SliceAdjustment!W70,Slice_ESP!W44)) -> 1285.894964 | X14: =IF(DB_Inputs!X$18=0,0,IF(StudyType<2,SliceAdjustment!X70,Slice_ESP!X44)) -> 786.0955749 | Y14: =IF(DB_Inputs!Y$18=0,0,IF(StudyType<2,SliceAdjustment!Y70,Slice_ESP!Y44)) -> 1190.468562 | Z14: =IF(DB_Inputs!Z$18=0,0,IF(StudyType<2,SliceAdjustment!Z70,Slice_ESP!Z44)) -> 196.0196936 | AA14: =IF(DB_Inputs!AA$18=0,0,IF(StudyType<2,SliceAdjustment!AA70,Slice_ESP!AA44)) -> 97.6180109 | AB14: =SUMPRODUCT(P14:AA14,DB_Inputs!P$13:AA$13)/DB_Inputs!AB$13 -> 589.5531244 | AD14: =IF(StudyType<2,SliceAdjustment!AD70,Slice_ESP!AD44) -> -965.5142429 | AE14: =IF(StudyType<2,SliceAdjustment!AE70,Slice_ESP!AE44) -> -1301.333901 | AF14: =IF(StudyType<2,SliceAdjustment!AF70,Slice_ESP!AF44) -> -1198.986351 | AG14: =IF(StudyType<2,SliceAdjustment!AG70,Slice_ESP!AG44) -> -1084.700791 | AH14: =IF(StudyType<2,SliceAdjustment!AH70,Slice_ESP!AH44) -> -965.4635571 | AI14: =IF(StudyType<2,SliceAdjustment!AI70,Slice_ESP!AI44) -> -1013.24947 | AJ14: =IF(StudyType<2,SliceAdjustment!AJ70,Slice_ESP!AJ44) -> -1036.28994 | AK14: =IF(StudyType<2,SliceAdjustment!AK70,Slice_ESP!AK44) -> -1470.529881 | AL14: =IF(StudyType<2,SliceAdjustment!AL70,Slice_ESP!AL44) -> -1337.683804 | AM14: =IF(StudyType<2,SliceAdjustment!AM70,Slice_ESP!AM44) -> -985.7847594 | AN14: =IF(StudyType<2,SliceAdjustment!AN70,Slice_ESP!AN44) -> -1055.691836 | AO14: =IF(StudyType<2,SliceAdjustment!AO70,Slice_ESP!AO44) -> -1010.897402 | AP14: =SUMPRODUCT(AD14:AO14,DB_Inputs!AD$9:AO$9)/DB_Inputs!AP$9 -> -1121.616538 | AR14: =IF(StudyType<2,SliceAdjustment!AR70,Slice_ESP!AR44) -> -973.2704899 | AS14: =IF(StudyType<2,SliceAdjustment!AS70,Slice_ESP!AS44) -> -1228.740443 | AT14: =IF(StudyType<2,SliceAdjustment!AT70,Slice_ESP!AT44) -> -1257.056048 | AU14: =IF(StudyType<2,SliceAdjustment!AU70,Slice_ESP!AU44) -> -1029.587331 | AV14: =IF(StudyType<2,SliceAdjustment!AV70,Slice_ESP!AV44) -> -950.8056022 | AW14: =IF(StudyType<2,SliceAdjustment!AW70,Slice_ESP!AW44) -> -1049.213864 | AX14: =IF(StudyType<2,SliceAdjustment!AX70,Slice_ESP!AX44) -> -1035.518756 | AY14: =IF(StudyType<2,SliceAdjustment!AY70,Slice_ESP!AY44) -> -1536.846072 | AZ14: =IF(StudyType<2,SliceAdjustment!AZ70,Slice_ESP!AZ44) -> -1315.597118 | BA14: =IF(StudyType<2,SliceAdjustment!BA70,Slice_ESP!BA44) -> -1121.357466 | BB14: =IF(StudyType<2,SliceAdjustment!BB70,Slice_ESP!BB44) -> -1042.300826 | BC14: =IF(StudyType<2,SliceAdjustment!BC70,Slice_ESP!BC44) -> -1011.389307 | BD14: =SUMPRODUCT(AR14:BC14,DB_Inputs!AR$9:BC$9)/DB_Inputs!BD$9 -> -1133.345802 | BF14: =IF(StudyType<2,SliceAdjustment!BF70,Slice_ESP!BF44) -> -913.9610305 | BG14: =IF(StudyType<2,SliceAdjustment!BG70,Slice_ESP!BG44) -> -1299.905417 | BH14: =IF(StudyType<2,SliceAdjustment!BH70,Slice_ESP!BH44) -> -1265.084145 | BI14: =IF(StudyType<2,SliceAdjustment!BI70,Slice_ESP!BI44) -> -1019.379812 | BJ14: =IF(StudyType<2,SliceAdjustment!BJ70,Slice_ESP!BJ44) -> -947.6475544 | BK14: =IF(StudyType<2,SliceAdjustment!BK70,Slice_ESP!BK44) -> -1064.626743 | BL14: =IF(StudyType<2,SliceAdjustment!BL70,Slice_ESP!BL44) -> -1036.170094 | BM14: =IF(StudyType<2,SliceAdjustment!BM70,Slice_ESP!BM44) -> -1453.815707 | BN14: =IF(StudyType<2,SliceAdjustment!BN70,Slice_ESP!BN44) -> -1323.691208 | BO14: =IF(StudyType<2,SliceAdjustment!BO70,Slice_ESP!BO44) -> -933.4423341 | BP14: =IF(StudyType<2,SliceAdjustment!BP70,Slice_ESP!BP44) -> -1095.682601 | BQ14: =IF(StudyType<2,SliceAdjustment!BQ70,Slice_ESP!BQ44) -> -1015.045735 | BR14: =SUMPRODUCT(BF14:BQ14,DB_Inputs!BF$9:BQ$9)/DB_Inputs!BR$9 -> -1115.37597 | BT14: =IF(StudyType<2,SliceAdjustment!BT70,Slice_ESP!BT44) -> -918.3112801 | BU14: =IF(StudyType<2,SliceAdjustment!BU70,Slice_ESP!BU44) -> -1290.246872 | BV14: =IF(StudyType<2,SliceAdjustment!BV70,Slice_ESP!BV44) -> -1261.574726 | BW14: =IF(StudyType<2,SliceAdjustment!BW70,Slice_ESP!BW44) -> -1027.881875 | BX14: =IF(StudyType<2,SliceAdjustment!BX70,Slice_ESP!BX44) -> -948.0922909 | BY14: =IF(StudyType<2,SliceAdjustment!BY70,Slice_ESP!BY44) -> -1045.675569 | BZ14: =IF(StudyType<2,SliceAdjustment!BZ70,Slice_ESP!BZ44) -> -975.2289071 | CA14: =IF(StudyType<2,SliceAdjustment!CA70,Slice_ESP!CA44) -> -1602.407384 | CB14: =IF(StudyType<2,SliceAdjustment!CB70,Slice_ESP!CB44) -> -1310.939485 | CC14: =IF(StudyType<2,SliceAdjustment!CC70,Slice_ESP!CC44) -> -915.406775 | CD14: =IF(StudyType<2,SliceAdjustment!CD70,Slice_ESP!CD44) -> -1140.865091 | CE14: =IF(StudyType<2,SliceAdjustment!CE70,Slice_ESP!CE44) -> -1011.708524 | CF14: =SUMPRODUCT(BT14:CE14,DB_Inputs!BT$9:CE$9)/DB_Inputs!CF$9 -> -1120.531171 | CH14: =IF(StudyType<2,SliceAdjustment!CH70,Slice_ESP!CH44) -> -929.5968558 | CI14: =IF(StudyType<2,SliceAdjustment!CI70,Slice_ESP!CI44) -> -1293.913225 | CJ14: =IF(StudyType<2,SliceAdjustment!CJ70,Slice_ESP!CJ44) -> -1210.748641 | CK14: =IF(StudyType<2,SliceAdjustment!CK70,Slice_ESP!CK44) -> -1067.119381 | CL14: =IF(StudyType<2,SliceAdjustment!CL70,Slice_ESP!CL44) -> -956.6194766 | CM14: =IF(StudyType<2,SliceAdjustment!CM70,Slice_ESP!CM44) -> -1058.738709 | CN14: =IF(StudyType<2,SliceAdjustment!CN70,Slice_ESP!CN44) -> -1026.272266 | CO14: =IF(StudyType<2,SliceAdjustment!CO70,Slice_ESP!CO44) -> -1523.81721 | CP14: =IF(StudyType<2,SliceAdjustment!CP70,Slice_ESP!CP44) -> -1255.584531 | CQ14: =IF(StudyType<2,SliceAdjustment!CQ70,Slice_ESP!CQ44) -> -978.8537893 | CR14: =IF(StudyType<2,SliceAdjustment!CR70,Slice_ESP!CR44) -> -1173.667878 | CS14: =IF(StudyType<2,SliceAdjustment!CS70,Slice_ESP!CS44) -> -974.9462893 | CT14: =SUMPRODUCT(CH14:CS14,DB_Inputs!CH$9:CS$9)/DB_Inputs!CT$9 -> -1122.042811 | CV14: =IF(StudyType<2,SliceAdjustment!CV70,Slice_ESP!CV44) -> -977.7068901 | CW14: =IF(StudyType<2,SliceAdjustment!CW70,Slice_ESP!CW44) -> -1293.528061 | CX14: =IF(StudyType<2,SliceAdjustment!CX70,Slice_ESP!CX44) -> -1194.453969 | CY14: =IF(StudyType<2,SliceAdjustment!CY70,Slice_ESP!CY44) -> -1079.872079 | CZ14: =IF(StudyType<2,SliceAdjustment!CZ70,Slice_ESP!CZ44) -> -950.0339514 | DA14: =IF(StudyType<2,SliceAdjustment!DA70,Slice_ESP!DA44) -> -1004.324579 | DB14: =IF(StudyType<2,SliceAdjustment!DB70,Slice_ESP!DB44) -> -1053.493711 | DC14: =IF(StudyType<2,SliceAdjustment!DC70,Slice_ESP!DC44) -> -1638.434978 | DD14: =IF(StudyType<2,SliceAdjustment!DD70,Slice_ESP!DD44) -> -1244.986377 | DE14: =IF(StudyType<2,SliceAdjustment!DE70,Slice_ESP!DE44) -> -991.1274782 | DF14: =IF(StudyType<2,SliceAdjustment!DF70,Slice_ESP!DF44) -> -1038.90903 | DG14: =IF(StudyType<2,SliceAdjustment!DG70,Slice_ESP!DG44) -> -1008.705352 | DH14: =SUMPRODUCT(CV14:DG14,DB_Inputs!CV$9:DG$9)/DB_Inputs!DH$9 -> -1125.801265 | DJ14: =IF(StudyType<2,SliceAdjustment!DJ70,Slice_ESP!DJ44) -> -974.2296641 | DK14: =IF(StudyType<2,SliceAdjustment!DK70,Slice_ESP!DK44) -> -1227.315772 | DL14: =IF(StudyType<2,SliceAdjustment!DL70,Slice_ESP!DL44) -> -1251.828171 | DM14: =IF(StudyType<2,SliceAdjustment!DM70,Slice_ESP!DM44) -> -1067.887906 | DN14: =IF(StudyType<2,SliceAdjustment!DN70,Slice_ESP!DN44) -> -966.7006559 | DO14: =IF(StudyType<2,SliceAdjustment!DO70,Slice_ESP!DO44) -> -1024.624588 | DP14: =IF(StudyType<2,SliceAdjustment!DP70,Slice_ESP!DP44) -> -1027.898244 | DQ14: =IF(StudyType<2,SliceAdjustment!DQ70,Slice_ESP!DQ44) -> -1453.80774 | DR14: =IF(StudyType<2,SliceAdjustment!DR70,Slice_ESP!DR44) -> -1331.782586 | DS14: =IF(StudyType<2,SliceAdjustment!DS70,Slice_ESP!DS44) -> -982.870847 | DT14: =IF(StudyType<2,SliceAdjustment!DT70,Slice_ESP!DT44) -> -1046.215805 | DU14: =IF(StudyType<2,SliceAdjustment!DU70,Slice_ESP!DU44) -> -1018.75551 | DV14: =SUMPRODUCT(DJ14:DU14,DB_Inputs!DJ$9:DU$9)/DB_Inputs!DV$9 -> -1117.694645 | DX14: =IF(StudyType<2,SliceAdjustment!DX70,Slice_ESP!DX44) -> -967.554064 | DY14: =IF(StudyType<2,SliceAdjustment!DY70,Slice_ESP!DY44) -> -1272.519876 | DZ14: =IF(StudyType<2,SliceAdjustment!DZ70,Slice_ESP!DZ44) -> -1246.370155 | EA14: =IF(StudyType<2,SliceAdjustment!EA70,Slice_ESP!EA44) -> -1025.251892 | EB14: =IF(StudyType<2,SliceAdjustment!EB70,Slice_ESP!EB44) -> -951.574053 | EC14: =IF(StudyType<2,SliceAdjustment!EC70,Slice_ESP!EC44) -> -1056.198078 | ED14: =IF(StudyType<2,SliceAdjustment!ED70,Slice_ESP!ED44) -> -1029.455982 | EE14: =IF(StudyType<2,SliceAdjustment!EE70,Slice_ESP!EE44) -> -1557.190476 | EF14: =IF(StudyType<2,SliceAdjustment!EF70,Slice_ESP!EF44) -> -1312.431303 | EG14: =IF(StudyType<2,SliceAdjustment!EG70,Slice_ESP!EG44) -> -960.0298181 | EH14: =IF(StudyType<2,SliceAdjustment!EH70,Slice_ESP!EH44) -> -1044.454145 | EI14: =IF(StudyType<2,SliceAdjustment!EI70,Slice_ESP!EI44) -> -1008.031094 | EJ14: =SUMPRODUCT(DX14:EI14,DB_Inputs!DX$9:EI$9)/DB_Inputs!EJ$9 -> -1123.282486 | EL14: =IF(StudyType<2,SliceAdjustment!EL70,Slice_ESP!EL44) -> -916.0823798 | EM14: =IF(StudyType<2,SliceAdjustment!EM70,Slice_ESP!EM44) -> -1296.871512 | EN14: =IF(StudyType<2,SliceAdjustment!EN70,Slice_ESP!EN44) -> -1253.919329 | EO14: =IF(StudyType<2,SliceAdjustment!EO70,Slice_ESP!EO44) -> -1030.735978 | EP14: =IF(StudyType<2,SliceAdjustment!EP70,Slice_ESP!EP44) -> -959.5432822 | EQ14: =IF(StudyType<2,SliceAdjustment!EQ70,Slice_ESP!EQ44) -> -1066.527037 | ER14: =IF(StudyType<2,SliceAdjustment!ER70,Slice_ESP!ER44) -> -974.5488417 | ES14: =IF(StudyType<2,SliceAdjustment!ES70,Slice_ESP!ES44) -> -1534.718821 | ET14: =IF(StudyType<2,SliceAdjustment!ET70,Slice_ESP!ET44) -> -1329.836232 | EU14: =IF(StudyType<2,SliceAdjustment!EU70,Slice_ESP!EU44) -> -932.7713181 | EV14: =IF(StudyType<2,SliceAdjustment!EV70,Slice_ESP!EV44) -> -1104.809854 | EW14: =IF(StudyType<2,SliceAdjustment!EW70,Slice_ESP!EW44) -> -1008.526988 | EX14: =SUMPRODUCT(EL14:EW14,DB_Inputs!EL$9:EW$9)/DB_Inputs!EX$9 -> -1116.742861 | EZ14: =IF(StudyType<2,SliceAdjustment!EZ70,Slice_ESP!EZ44) -> -923.3413895 | FA14: =IF(StudyType<2,SliceAdjustment!FA70,Slice_ESP!FA44) -> -1287.548518 | FB14: =IF(StudyType<2,SliceAdjustment!FB70,Slice_ESP!FB44) -> -1193.904483 | FC14: =IF(StudyType<2,SliceAdjustment!FC70,Slice_ESP!FC44) -> -1073.721982 | FD14: =IF(StudyType<2,SliceAdjustment!FD70,Slice_ESP!FD44) -> -944.0968236 | FE14: =IF(StudyType<2,SliceAdjustment!FE70,Slice_ESP!FE44) -> -1044.069817 | FF14: =IF(StudyType<2,SliceAdjustment!FF70,Slice_ESP!FF44) -> -977.2069167 | FG14: =IF(StudyType<2,SliceAdjustment!FG70,Slice_ESP!FG44) -> -1609.354106 | FH14: =IF(StudyType<2,SliceAdjustment!FH70,Slice_ESP!FH44) -> -1306.00429 | FI14: =IF(StudyType<2,SliceAdjustment!FI70,Slice_ESP!FI44) -> -1066.235313 | FJ14: =IF(StudyType<2,SliceAdjustment!FJ70,Slice_ESP!FJ44) -> -1091.083343 | FK14: =IF(StudyType<2,SliceAdjustment!FK70,Slice_ESP!FK44) -> -961.1431599 | FL14: =SUMPRODUCT(EZ14:FK14,DB_Inputs!EZ$9:FK$9)/DB_Inputs!FL$9 -> -1124.067111 | FN14: =IF(StudyType<2,SliceAdjustment!FN70,Slice_ESP!FN44) -> -963.0194762 | FO14: =IF(StudyType<2,SliceAdjustment!FO70,Slice_ESP!FO44) -> -1296.978116 | FP14: =IF(StudyType<2,SliceAdjustment!FP70,Slice_ESP!FP44) -> -1203.859026 | FQ14: =IF(StudyType<2,SliceAdjustment!FQ70,Slice_ESP!FQ44) -> -1064.525769 | FR14: =IF(StudyType<2,SliceAdjustment!FR70,Slice_ESP!FR44) -> -943.1406755 | FS14: =IF(StudyType<2,SliceAdjustment!FS70,Slice_ESP!FS44) -> -1008.656435 | FT14: =IF(StudyType<2,SliceAdjustment!FT70,Slice_ESP!FT44) -> -1036.650225 | FU14: =IF(StudyType<2,SliceAdjustment!FU70,Slice_ESP!FU44) -> -1526.565293 | FV14: =IF(StudyType<2,SliceAdjustment!FV70,Slice_ESP!FV44) -> -1259.613442 | FW14: =IF(StudyType<2,SliceAdjustment!FW70,Slice_ESP!FW44) -> -981.1087637 | FX14: =IF(StudyType<2,SliceAdjustment!FX70,Slice_ESP!FX44) -> -1095.673281 | FY14: =IF(StudyType<2,SliceAdjustment!FY70,Slice_ESP!FY44) -> -966.5673898 | FZ14: =SUMPRODUCT(FN14:FY14,DB_Inputs!FN$9:FY$9)/DB_Inputs!FZ$9 -> -1114.576649 | GB14: =IF(StudyType<2,SliceAdjustment!GB70,Slice_ESP!GB44) -> -969.4835891 | GC14: =IF(StudyType<2,SliceAdjustment!GC70,Slice_ESP!GC44) -> -1291.509697 | GD14: =IF(StudyType<2,SliceAdjustment!GD70,Slice_ESP!GD44) -> -1208.924513 | GE14: =IF(StudyType<2,SliceAdjustment!GE70,Slice_ESP!GE44) -> -1078.690481 | GF14: =IF(StudyType<2,SliceAdjustment!GF70,Slice_ESP!GF44) -> -945.3597207 | GG14: =IF(StudyType<2,SliceAdjustment!GG70,Slice_ESP!GG44) -> -999.2247597 | GH14: =IF(StudyType<2,SliceAdjustment!GH70,Slice_ESP!GH44) -> -1025.067034 | GI14: =IF(StudyType<2,SliceAdjustment!GI70,Slice_ESP!GI44) -> -1604.809745 | GJ14: =IF(StudyType<2,SliceAdjustment!GJ70,Slice_ESP!GJ44) -> -1245.230385 | GK14: =IF(StudyType<2,SliceAdjustment!GK70,Slice_ESP!GK44) -> -964.4673908 | GL14: =IF(StudyType<2,SliceAdjustment!GL70,Slice_ESP!GL44) -> -1081.293872 | GM14: =IF(StudyType<2,SliceAdjustment!GM70,Slice_ESP!GM44) -> -1014.314102 | GN14: =SUMPRODUCT(GB14:GM14,DB_Inputs!GB$9:GM$9)/DB_Inputs!GN$9 -> -1122.090957 | GP14: =IF(StudyType<2,SliceAdjustment!GP70,Slice_ESP!GP44) ->  | GQ14: =IF(StudyType<2,SliceAdjustment!GQ70,Slice_ESP!GQ44) ->  | GR14: =IF(StudyType<2,SliceAdjustment!GR70,Slice_ESP!GR44) ->  | GS14: =IF(StudyType<2,SliceAdjustment!GS70,Slice_ESP!GS44) ->  | GT14: =IF(StudyType<2,SliceAdjustment!GT70,Slice_ESP!GT44) ->  | GU14: =IF(StudyType<2,SliceAdjustment!GU70,Slice_ESP!GU44) ->  | GV14: =IF(StudyType<2,SliceAdjustment!GV70,Slice_ESP!GV44) ->  | GW14: =IF(StudyType<2,SliceAdjustment!GW70,Slice_ESP!GW44) ->  | GX14: =IF(StudyType<2,SliceAdjustment!GX70,Slice_ESP!GX44) ->  | GY14: =IF(StudyType<2,SliceAdjustment!GY70,Slice_ESP!GY44) ->  | GZ14: =IF(StudyType<2,SliceAdjustment!GZ70,Slice_ESP!GZ44) ->  | HA14: =IF(StudyType<2,SliceAdjustment!HA70,Slice_ESP!HA44) ->  | HB14: =SUMPRODUCT(GP14:HA14,DB_Inputs!GP$9:HA$9)/DB_Inputs!HB$9 -> 
A15: Slice Change Flat | B15: =IF(DB_Inputs!B$18=0,0,IF(StudyType<2,SliceAdjustment!B71,Slice_ESP!B45)) -> -26.32083199 | C15: =IF(DB_Inputs!C$18=0,0,IF(StudyType<2,SliceAdjustment!C71,Slice_ESP!C45)) -> -49.28236654 | D15: =IF(DB_Inputs!D$18=0,0,IF(StudyType<2,SliceAdjustment!D71,Slice_ESP!D45)) -> 53.66385054 | E15: =IF(DB_Inputs!E$18=0,0,IF(StudyType<2,SliceAdjustment!E71,Slice_ESP!E45)) -> 164.1648978 | F15: =IF(DB_Inputs!F$18=0,0,IF(StudyType<2,SliceAdjustment!F71,Slice_ESP!F45)) -> 80.46356912 | G15: =IF(DB_Inputs!G$18=0,0,IF(StudyType<2,SliceAdjustment!G71,Slice_ESP!G45)) -> 13.58494626 | H15: =IF(DB_Inputs!H$18=0,0,IF(StudyType<2,SliceAdjustment!H71,Slice_ESP!H45)) -> -402.3856782 | I15: =IF(DB_Inputs!I$18=0,0,IF(StudyType<2,SliceAdjustment!I71,Slice_ESP!I45)) -> 442.71298 | J15: =IF(DB_Inputs!J$18=0,0,IF(StudyType<2,SliceAdjustment!J71,Slice_ESP!J45)) -> 851.8044007 | K15: =IF(DB_Inputs!K$18=0,0,IF(StudyType<2,SliceAdjustment!K71,Slice_ESP!K45)) -> 67.7919718 | L15: =IF(DB_Inputs!L$18=0,0,IF(StudyType<2,SliceAdjustment!L71,Slice_ESP!L45)) -> -20.6315611 | M15: =IF(DB_Inputs!M$18=0,0,IF(StudyType<2,SliceAdjustment!M71,Slice_ESP!M45)) -> -24.0216147 | N15: =SUMPRODUCT(B15:M15,DB_Inputs!B$14:M$14)/DB_Inputs!N$14 -> 96.10344262 | P15: =IF(DB_Inputs!P$18=0,0,IF(StudyType<2,SliceAdjustment!P71,Slice_ESP!P45)) -> -33.02687611 | Q15: =IF(DB_Inputs!Q$18=0,0,IF(StudyType<2,SliceAdjustment!Q71,Slice_ESP!Q45)) -> -8.019118305 | R15: =IF(DB_Inputs!R$18=0,0,IF(StudyType<2,SliceAdjustment!R71,Slice_ESP!R45)) -> 236.1557642 | S15: =IF(DB_Inputs!S$18=0,0,IF(StudyType<2,SliceAdjustment!S71,Slice_ESP!S45)) -> 846.1977259 | T15: =IF(DB_Inputs!T$18=0,0,IF(StudyType<2,SliceAdjustment!T71,Slice_ESP!T45)) -> 639.209212 | U15: =IF(DB_Inputs!U$18=0,0,IF(StudyType<2,SliceAdjustment!U71,Slice_ESP!U45)) -> 745.5254133 | V15: =IF(DB_Inputs!V$18=0,0,IF(StudyType<2,SliceAdjustment!V71,Slice_ESP!V45)) -> 1413.525128 | W15: =IF(DB_Inputs!W$18=0,0,IF(StudyType<2,SliceAdjustment!W71,Slice_ESP!W45)) -> 826.5764713 | X15: =IF(DB_Inputs!X$18=0,0,IF(StudyType<2,SliceAdjustment!X71,Slice_ESP!X45)) -> 745.6726359 | Y15: =IF(DB_Inputs!Y$18=0,0,IF(StudyType<2,SliceAdjustment!Y71,Slice_ESP!Y45)) -> 1069.548251 | Z15: =IF(DB_Inputs!Z$18=0,0,IF(StudyType<2,SliceAdjustment!Z71,Slice_ESP!Z45)) -> 286.709845 | AA15: =IF(DB_Inputs!AA$18=0,0,IF(StudyType<2,SliceAdjustment!AA71,Slice_ESP!AA45)) -> 118.7126105 | AB15: =SUMPRODUCT(P15:AA15,DB_Inputs!P$14:AA$14)/DB_Inputs!AB$14 -> 573.346527 | AD15: =IF(StudyType<2,SliceAdjustment!AD71,Slice_ESP!AD45) -> -1259.23324 | AE15: =IF(StudyType<2,SliceAdjustment!AE71,Slice_ESP!AE45) -> -1670.066071 | AF15: =IF(StudyType<2,SliceAdjustment!AF71,Slice_ESP!AF45) -> -1586.062947 | AG15: =IF(StudyType<2,SliceAdjustment!AG71,Slice_ESP!AG45) -> -1344.03672 | AH15: =IF(StudyType<2,SliceAdjustment!AH71,Slice_ESP!AH45) -> -1198.412629 | AI15: =IF(StudyType<2,SliceAdjustment!AI71,Slice_ESP!AI45) -> -1278.483812 | AJ15: =IF(StudyType<2,SliceAdjustment!AJ71,Slice_ESP!AJ45) -> -1317.62316 | AK15: =IF(StudyType<2,SliceAdjustment!AK71,Slice_ESP!AK45) -> -2016.798807 | AL15: =IF(StudyType<2,SliceAdjustment!AL71,Slice_ESP!AL45) -> -1676.415125 | AM15: =IF(StudyType<2,SliceAdjustment!AM71,Slice_ESP!AM45) -> -1334.899426 | AN15: =IF(StudyType<2,SliceAdjustment!AN71,Slice_ESP!AN45) -> -1476.004435 | AO15: =IF(StudyType<2,SliceAdjustment!AO71,Slice_ESP!AO45) -> -1328.425555 | AP15: =SUMPRODUCT(AD15:AO15,DB_Inputs!AD$10:AO$10)/DB_Inputs!AP$10 -> -1458.216613 | AR15: =IF(StudyType<2,SliceAdjustment!AR71,Slice_ESP!AR45) -> -1261.278234 | AS15: =IF(StudyType<2,SliceAdjustment!AS71,Slice_ESP!AS45) -> -1660.834438 | AT15: =IF(StudyType<2,SliceAdjustment!AT71,Slice_ESP!AT45) -> -1587.218043 | AU15: =IF(StudyType<2,SliceAdjustment!AU71,Slice_ESP!AU45) -> -1335.000682 | AV15: =IF(StudyType<2,SliceAdjustment!AV71,Slice_ESP!AV45) -> -1190.705797 | AW15: =IF(StudyType<2,SliceAdjustment!AW71,Slice_ESP!AW45) -> -1282.672168 | AX15: =IF(StudyType<2,SliceAdjustment!AX71,Slice_ESP!AX45) -> -1315.785805 | AY15: =IF(StudyType<2,SliceAdjustment!AY71,Slice_ESP!AY45) -> -1999.508785 | AZ15: =IF(StudyType<2,SliceAdjustment!AZ71,Slice_ESP!AZ45) -> -1672.834081 | BA15: =IF(StudyType<2,SliceAdjustment!BA71,Slice_ESP!BA45) -> -1469.97201 | BB15: =IF(StudyType<2,SliceAdjustment!BB71,Slice_ESP!BB45) -> -1463.333391 | BC15: =IF(StudyType<2,SliceAdjustment!BC71,Slice_ESP!BC45) -> -1332.229371 | BD15: =SUMPRODUCT(AR15:BC15,DB_Inputs!AR$10:BC$10)/DB_Inputs!BD$10 -> -1466.231541 | BF15: =IF(StudyType<2,SliceAdjustment!BF71,Slice_ESP!BF45) -> -1255.646243 | BG15: =IF(StudyType<2,SliceAdjustment!BG71,Slice_ESP!BG45) -> -1669.379862 | BH15: =IF(StudyType<2,SliceAdjustment!BH71,Slice_ESP!BH45) -> -1593.1377 | BI15: =IF(StudyType<2,SliceAdjustment!BI71,Slice_ESP!BI45) -> -1326.890882 | BJ15: =IF(StudyType<2,SliceAdjustment!BJ71,Slice_ESP!BJ45) -> -1186.525285 | BK15: =IF(StudyType<2,SliceAdjustment!BK71,Slice_ESP!BK45) -> -1276.671332 | BL15: =IF(StudyType<2,SliceAdjustment!BL71,Slice_ESP!BL45) -> -1318.746184 | BM15: =IF(StudyType<2,SliceAdjustment!BM71,Slice_ESP!BM45) -> -2000.074816 | BN15: =IF(StudyType<2,SliceAdjustment!BN71,Slice_ESP!BN45) -> -1663.748782 | BO15: =IF(StudyType<2,SliceAdjustment!BO71,Slice_ESP!BO45) -> -1329.104175 | BP15: =IF(StudyType<2,SliceAdjustment!BP71,Slice_ESP!BP45) -> -1461.193117 | BQ15: =IF(StudyType<2,SliceAdjustment!BQ71,Slice_ESP!BQ45) -> -1333.169433 | BR15: =SUMPRODUCT(BF15:BQ15,DB_Inputs!BF$10:BQ$10)/DB_Inputs!BR$10 -> -1452.91689 | BT15: =IF(StudyType<2,SliceAdjustment!BT71,Slice_ESP!BT45) -> -1254.547485 | BU15: =IF(StudyType<2,SliceAdjustment!BU71,Slice_ESP!BU45) -> -1660.346264 | BV15: =IF(StudyType<2,SliceAdjustment!BV71,Slice_ESP!BV45) -> -1592.517998 | BW15: =IF(StudyType<2,SliceAdjustment!BW71,Slice_ESP!BW45) -> -1332.78964 | BX15: =IF(StudyType<2,SliceAdjustment!BX71,Slice_ESP!BX45) -> -1188.681804 | BY15: =IF(StudyType<2,SliceAdjustment!BY71,Slice_ESP!BY45) -> -1279.22736 | BZ15: =IF(StudyType<2,SliceAdjustment!BZ71,Slice_ESP!BZ45) -> -1307.384894 | CA15: =IF(StudyType<2,SliceAdjustment!CA71,Slice_ESP!CA45) -> -1989.343113 | CB15: =IF(StudyType<2,SliceAdjustment!CB71,Slice_ESP!CB45) -> -1668.9072 | CC15: =IF(StudyType<2,SliceAdjustment!CC71,Slice_ESP!CC45) -> -1309.713651 | CD15: =IF(StudyType<2,SliceAdjustment!CD71,Slice_ESP!CD45) -> -1507.507822 | CE15: =IF(StudyType<2,SliceAdjustment!CE71,Slice_ESP!CE45) -> -1332.843703 | CF15: =SUMPRODUCT(BT15:CE15,DB_Inputs!BT$10:CE$10)/DB_Inputs!CF$10 -> -1453.749292 | CH15: =IF(StudyType<2,SliceAdjustment!CH71,Slice_ESP!CH45) -> -1270.831791 | CI15: =IF(StudyType<2,SliceAdjustment!CI71,Slice_ESP!CI45) -> -1662.90908 | CJ15: =IF(StudyType<2,SliceAdjustment!CJ71,Slice_ESP!CJ45) -> -1597.919659 | CK15: =IF(StudyType<2,SliceAdjustment!CK71,Slice_ESP!CK45) -> -1325.212635 | CL15: =IF(StudyType<2,SliceAdjustment!CL71,Slice_ESP!CL45) -> -1189.322952 | CM15: =IF(StudyType<2,SliceAdjustment!CM71,Slice_ESP!CM45) -> -1324.099834 | CN15: =IF(StudyType<2,SliceAdjustment!CN71,Slice_ESP!CN45) -> -1308.550008 | CO15: =IF(StudyType<2,SliceAdjustment!CO71,Slice_ESP!CO45) -> -1998.188838 | CP15: =IF(StudyType<2,SliceAdjustment!CP71,Slice_ESP!CP45) -> -1662.99494 | CQ15: =IF(StudyType<2,SliceAdjustment!CQ71,Slice_ESP!CQ45) -> -1327.619415 | CR15: =IF(StudyType<2,SliceAdjustment!CR71,Slice_ESP!CR45) -> -1539.255658 | CS15: =IF(StudyType<2,SliceAdjustment!CS71,Slice_ESP!CS45) -> -1341.592482 | CT15: =SUMPRODUCT(CH15:CS15,DB_Inputs!CH$10:CS$10)/DB_Inputs!CT$10 -> -1463.559674 | CV15: =IF(StudyType<2,SliceAdjustment!CV71,Slice_ESP!CV45) -> -1265.70843 | CW15: =IF(StudyType<2,SliceAdjustment!CW71,Slice_ESP!CW45) -> -1663.55117 | CX15: =IF(StudyType<2,SliceAdjustment!CX71,Slice_ESP!CX45) -> -1584.205373 | CY15: =IF(StudyType<2,SliceAdjustment!CY71,Slice_ESP!CY45) -> -1335.290201 | CZ15: =IF(StudyType<2,SliceAdjustment!CZ71,Slice_ESP!CZ45) -> -1191.204243 | DA15: =IF(StudyType<2,SliceAdjustment!DA71,Slice_ESP!DA45) -> -1290.051059 | DB15: =IF(StudyType<2,SliceAdjustment!DB71,Slice_ESP!DB45) -> -1334.008722 | DC15: =IF(StudyType<2,SliceAdjustment!DC71,Slice_ESP!DC45) -> -2025.813236 | DD15: =IF(StudyType<2,SliceAdjustment!DD71,Slice_ESP!DD45) -> -1669.447469 | DE15: =IF(StudyType<2,SliceAdjustment!DE71,Slice_ESP!DE45) -> -1340.757394 | DF15: =IF(StudyType<2,SliceAdjustment!DF71,Slice_ESP!DF45) -> -1459.781128 | DG15: =IF(StudyType<2,SliceAdjustment!DG71,Slice_ESP!DG45) -> -1329.404432 | DH15: =SUMPRODUCT(CV15:DG15,DB_Inputs!CV$10:DG$10)/DB_Inputs!DH$10 -> -1459.209443 | DJ15: =IF(StudyType<2,SliceAdjustment!DJ71,Slice_ESP!DJ45) -> -1268.166223 | DK15: =IF(StudyType<2,SliceAdjustment!DK71,Slice_ESP!DK45) -> -1658.20627 | DL15: =IF(StudyType<2,SliceAdjustment!DL71,Slice_ESP!DL45) -> -1580.005829 | DM15: =IF(StudyType<2,SliceAdjustment!DM71,Slice_ESP!DM45) -> -1327.397334 | DN15: =IF(StudyType<2,SliceAdjustment!DN71,Slice_ESP!DN45) -> -1207.047741 | DO15: =IF(StudyType<2,SliceAdjustment!DO71,Slice_ESP!DO45) -> -1290.251971 | DP15: =IF(StudyType<2,SliceAdjustment!DP71,Slice_ESP!DP45) -> -1309.966315 | DQ15: =IF(StudyType<2,SliceAdjustment!DQ71,Slice_ESP!DQ45) -> -2000.302985 | DR15: =IF(StudyType<2,SliceAdjustment!DR71,Slice_ESP!DR45) -> -1670.579232 | DS15: =IF(StudyType<2,SliceAdjustment!DS71,Slice_ESP!DS45) -> -1332.00818 | DT15: =IF(StudyType<2,SliceAdjustment!DT71,Slice_ESP!DT45) -> -1466.018355 | DU15: =IF(StudyType<2,SliceAdjustment!DU71,Slice_ESP!DU45) -> -1336.294532 | DV15: =SUMPRODUCT(DJ15:DU15,DB_Inputs!DJ$10:DU$10)/DB_Inputs!DV$10 -> -1455.486947 | DX15: =IF(StudyType<2,SliceAdjustment!DX71,Slice_ESP!DX45) -> -1256.02716 | DY15: =IF(StudyType<2,SliceAdjustment!DY71,Slice_ESP!DY45) -> -1704.536348 | DZ15: =IF(StudyType<2,SliceAdjustment!DZ71,Slice_ESP!DZ45) -> -1577.401084 | EA15: =IF(StudyType<2,SliceAdjustment!EA71,Slice_ESP!EA45) -> -1331.657216 | EB15: =IF(StudyType<2,SliceAdjustment!EB71,Slice_ESP!EB45) -> -1193.19571 | EC15: =IF(StudyType<2,SliceAdjustment!EC71,Slice_ESP!EC45) -> -1290.0644 | ED15: =IF(StudyType<2,SliceAdjustment!ED71,Slice_ESP!ED45) -> -1310.824042 | EE15: =IF(StudyType<2,SliceAdjustment!EE71,Slice_ESP!EE45) -> -2019.843355 | EF15: =IF(StudyType<2,SliceAdjustment!EF71,Slice_ESP!EF45) -> -1670.656681 | EG15: =IF(StudyType<2,SliceAdjustment!EG71,Slice_ESP!EG45) -> -1308.623868 | EH15: =IF(StudyType<2,SliceAdjustment!EH71,Slice_ESP!EH45) -> -1465.194861 | EI15: =IF(StudyType<2,SliceAdjustment!EI71,Slice_ESP!EI45) -> -1329.112061 | EJ15: =SUMPRODUCT(DX15:EI15,DB_Inputs!DX$10:EI$10)/DB_Inputs!EJ$10 -> -1456.421353 | EL15: =IF(StudyType<2,SliceAdjustment!EL71,Slice_ESP!EL45) -> -1257.76651 | EM15: =IF(StudyType<2,SliceAdjustment!EM71,Slice_ESP!EM45) -> -1666.273199 | EN15: =IF(StudyType<2,SliceAdjustment!EN71,Slice_ESP!EN45) -> -1582.413243 | EO15: =IF(StudyType<2,SliceAdjustment!EO71,Slice_ESP!EO45) -> -1340.705793 | EP15: =IF(StudyType<2,SliceAdjustment!EP71,Slice_ESP!EP45) -> -1192.899904 | EQ15: =IF(StudyType<2,SliceAdjustment!EQ71,Slice_ESP!EQ45) -> -1279.58284 | ER15: =IF(StudyType<2,SliceAdjustment!ER71,Slice_ESP!ER45) -> -1308.751993 | ES15: =IF(StudyType<2,SliceAdjustment!ES71,Slice_ESP!ES45) -> -2009.267006 | ET15: =IF(StudyType<2,SliceAdjustment!ET71,Slice_ESP!ET45) -> -1668.995044 | EU15: =IF(StudyType<2,SliceAdjustment!EU71,Slice_ESP!EU45) -> -1328.689517 | EV15: =IF(StudyType<2,SliceAdjustment!EV71,Slice_ESP!EV45) -> -1470.006929 | EW15: =IF(StudyType<2,SliceAdjustment!EW71,Slice_ESP!EW45) -> -1326.357824 | EX15: =SUMPRODUCT(EL15:EW15,DB_Inputs!EL$10:EW$10)/DB_Inputs!EX$10 -> -1453.66923 | EZ15: =IF(StudyType<2,SliceAdjustment!EZ71,Slice_ESP!EZ45) -> -1259.354822 | FA15: =IF(StudyType<2,SliceAdjustment!FA71,Slice_ESP!FA45) -> -1657.691378 | FB15: =IF(StudyType<2,SliceAdjustment!FB71,Slice_ESP!FB45) -> -1583.34469 | FC15: =IF(StudyType<2,SliceAdjustment!FC71,Slice_ESP!FC45) -> -1328.742805 | FD15: =IF(StudyType<2,SliceAdjustment!FD71,Slice_ESP!FD45) -> -1184.469985 | FE15: =IF(StudyType<2,SliceAdjustment!FE71,Slice_ESP!FE45) -> -1277.684647 | FF15: =IF(StudyType<2,SliceAdjustment!FF71,Slice_ESP!FF45) -> -1309.337892 | FG15: =IF(StudyType<2,SliceAdjustment!FG71,Slice_ESP!FG45) -> -1996.462783 | FH15: =IF(StudyType<2,SliceAdjustment!FH71,Slice_ESP!FH45) -> -1665.420708 | FI15: =IF(StudyType<2,SliceAdjustment!FI71,Slice_ESP!FI45) -> -1463.417277 | FJ15: =IF(StudyType<2,SliceAdjustment!FJ71,Slice_ESP!FJ45) -> -1457.44855 | FK15: =IF(StudyType<2,SliceAdjustment!FK71,Slice_ESP!FK45) -> -1330.412466 | FL15: =SUMPRODUCT(EZ15:FK15,DB_Inputs!EZ$10:FK$10)/DB_Inputs!FL$10 -> -1461.443806 | FN15: =IF(StudyType<2,SliceAdjustment!FN71,Slice_ESP!FN45) -> -1256.566466 | FO15: =IF(StudyType<2,SliceAdjustment!FO71,Slice_ESP!FO45) -> -1666.638647 | FP15: =IF(StudyType<2,SliceAdjustment!FP71,Slice_ESP!FP45) -> -1591.599122 | FQ15: =IF(StudyType<2,SliceAdjustment!FQ71,Slice_ESP!FQ45) -> -1323.658382 | FR15: =IF(StudyType<2,SliceAdjustment!FR71,Slice_ESP!FR45) -> -1183.369372 | FS15: =IF(StudyType<2,SliceAdjustment!FS71,Slice_ESP!FS45) -> -1274.606558 | FT15: =IF(StudyType<2,SliceAdjustment!FT71,Slice_ESP!FT45) -> -1318.982094 | FU15: =IF(StudyType<2,SliceAdjustment!FU71,Slice_ESP!FU45) -> -2001.964908 | FV15: =IF(StudyType<2,SliceAdjustment!FV71,Slice_ESP!FV45) -> -1666.463978 | FW15: =IF(StudyType<2,SliceAdjustment!FW71,Slice_ESP!FW45) -> -1330.256353 | FX15: =IF(StudyType<2,SliceAdjustment!FX71,Slice_ESP!FX45) -> -1461.5473 | FY15: =IF(StudyType<2,SliceAdjustment!FY71,Slice_ESP!FY45) -> -1333.02624 | FZ15: =SUMPRODUCT(FN15:FY15,DB_Inputs!FN$10:FY$10)/DB_Inputs!FZ$10 -> -1452.46624 | GB15: =IF(StudyType<2,SliceAdjustment!GB71,Slice_ESP!GB45) -> -1257.139369 | GC15: =IF(StudyType<2,SliceAdjustment!GC71,Slice_ESP!GC45) -> -1661.996987 | GD15: =IF(StudyType<2,SliceAdjustment!GD71,Slice_ESP!GD45) -> -1598.106624 | GE15: =IF(StudyType<2,SliceAdjustment!GE71,Slice_ESP!GE45) -> -1334.196856 | GF15: =IF(StudyType<2,SliceAdjustment!GF71,Slice_ESP!GF45) -> -1185.340058 | GG15: =IF(StudyType<2,SliceAdjustment!GG71,Slice_ESP!GG45) -> -1284.524853 | GH15: =IF(StudyType<2,SliceAdjustment!GH71,Slice_ESP!GH45) -> -1305.031679 | GI15: =IF(StudyType<2,SliceAdjustment!GI71,Slice_ESP!GI45) -> -1990.726201 | GJ15: =IF(StudyType<2,SliceAdjustment!GJ71,Slice_ESP!GJ45) -> -1670.318634 | GK15: =IF(StudyType<2,SliceAdjustment!GK71,Slice_ESP!GK45) -> -1310.05153 | GL15: =IF(StudyType<2,SliceAdjustment!GL71,Slice_ESP!GL45) -> -1502.624839 | GM15: =IF(StudyType<2,SliceAdjustment!GM71,Slice_ESP!GM45) -> -1334.105753 | GN15: =SUMPRODUCT(GB15:GM15,DB_Inputs!GB$10:GM$10)/DB_Inputs!GN$10 -> -1454.650191 | GP15: =IF(StudyType<2,SliceAdjustment!GP71,Slice_ESP!GP45) ->  | GQ15: =IF(StudyType<2,SliceAdjustment!GQ71,Slice_ESP!GQ45) ->  | GR15: =IF(StudyType<2,SliceAdjustment!GR71,Slice_ESP!GR45) ->  | GS15: =IF(StudyType<2,SliceAdjustment!GS71,Slice_ESP!GS45) ->  | GT15: =IF(StudyType<2,SliceAdjustment!GT71,Slice_ESP!GT45) ->  | GU15: =IF(StudyType<2,SliceAdjustment!GU71,Slice_ESP!GU45) ->  | GV15: =IF(StudyType<2,SliceAdjustment!GV71,Slice_ESP!GV45) ->  | GW15: =IF(StudyType<2,SliceAdjustment!GW71,Slice_ESP!GW45) ->  | GX15: =IF(StudyType<2,SliceAdjustment!GX71,Slice_ESP!GX45) ->  | GY15: =IF(StudyType<2,SliceAdjustment!GY71,Slice_ESP!GY45) ->  | GZ15: =IF(StudyType<2,SliceAdjustment!GZ71,Slice_ESP!GZ45) ->  | HA15: =IF(StudyType<2,SliceAdjustment!HA71,Slice_ESP!HA45) ->  | HB15: =SUMPRODUCT(GP15:HA15,DB_Inputs!GP$10:HA$10)/DB_Inputs!HB$10 -> 
A17: PNW Load Shaping Change HLH | B17: =IF(DB_Inputs!B$18=0,0,(B138-B136)) -> 87.42066096 | C17: =IF(DB_Inputs!C$18=0,0,(C138-C136)) -> 86.44718169 | D17: =IF(DB_Inputs!D$18=0,0,(D138-D136)) -> 55.33678224 | E17: =IF(DB_Inputs!E$18=0,0,(E138-E136)) -> -17.42724646 | F17: =IF(DB_Inputs!F$18=0,0,(F138-F136)) -> -8.603244921 | G17: =IF(DB_Inputs!G$18=0,0,(G138-G136)) -> 15.70756724 | H17: =IF(DB_Inputs!H$18=0,0,(H138-H136)) -> 26.68008912 | I17: =IF(DB_Inputs!I$18=0,0,(I138-I136)) -> -47.91028349 | J17: =IF(DB_Inputs!J$18=0,0,(J138-J136)) -> -78.48916 | K17: =IF(DB_Inputs!K$18=0,0,(K138-K136)) -> -58.25811901 | L17: =IF(DB_Inputs!L$18=0,0,(L138-L136)) -> 14.94843604 | M17: =IF(DB_Inputs!M$18=0,0,(M138-M136)) -> -93.31201478 | N17: =SUMPRODUCT(B17:M17,DB_Inputs!B$8:M$8)/DB_Inputs!N$8 -> -1.077328585 | P17: =IF(DB_Inputs!P$18=0,0,(P138-P136)) -> -1.126279764 | Q17: =IF(DB_Inputs!Q$18=0,0,(Q138-Q136)) -> 121.5107424 | R17: =IF(DB_Inputs!R$18=0,0,(R138-R136)) -> -135.7123491 | S17: =IF(DB_Inputs!S$18=0,0,(S138-S136)) -> 204.5028223 | T17: =IF(DB_Inputs!T$18=0,0,(T138-T136)) -> -37.56848396 | U17: =IF(DB_Inputs!U$18=0,0,(U138-U136)) -> 114.2672144 | V17: =IF(DB_Inputs!V$18=0,0,(V138-V136)) -> 109.8401111 | W17: =IF(DB_Inputs!W$18=0,0,(W138-W136)) -> -78.13284639 | X17: =IF(DB_Inputs!X$18=0,0,(X138-X136)) -> 168.8171225 | Y17: =IF(DB_Inputs!Y$18=0,0,(Y138-Y136)) -> -8.025002828 | Z17: =IF(DB_Inputs!Z$18=0,0,(Z138-Z136)) -> 125.0896063 | AA17: =IF(DB_Inputs!AA$18=0,0,(AA138-AA136)) -> 71.02327523 | AB17: =SUMPRODUCT(P17:AA17,DB_Inputs!P$8:AA$8)/DB_Inputs!AB$8 -> 55.11098523 | AD17: =(AD138-AD136) ->  | AE17: =(AE138-AE136) ->  | AP17: =SUMPRODUCT(AD17:AO17,DB_Inputs!AD$8:AO$8)/DB_Inputs!AP$8 ->  | AR17: =(AR138-AR136) ->  | AS17: =(AS138-AS136) ->  | BD17: =SUMPRODUCT(AR17:BC17,DB_Inputs!AR$8:BC$8)/DB_Inputs!BD$8 ->  | BF17: =(BF138-BF136) ->  | BG17: =(BG138-BG136) ->  | BR17: =SUMPRODUCT(BF17:BQ17,DB_Inputs!BF$8:BQ$8)/DB_Inputs!BR$8 ->  | BT17: =(BT138-BT136) ->  | BU17: =(BU138-BU136) ->  | CF17: =SUMPRODUCT(BT17:CE17,DB_Inputs!BT$8:CE$8)/DB_Inputs!CF$8 ->  | CH17: =(CH138-CH136) ->  | CI17: =(CI138-CI136) ->  | CT17: =SUMPRODUCT(CH17:CS17,DB_Inputs!CH$8:CS$8)/DB_Inputs!CT$8 ->  | CV17: =(CV138-CV136) ->  | CW17: =(CW138-CW136) ->  | DH17: =SUMPRODUCT(CV17:DG17,DB_Inputs!CV$8:DG$8)/DB_Inputs!DH$8 ->  | DJ17: =(DJ138-DJ136) ->  | DK17: =(DK138-DK136) ->  | DV17: =SUMPRODUCT(DJ17:DU17,DB_Inputs!DJ$8:DU$8)/DB_Inputs!DV$8 ->  | DX17: =(DX138-DX136) ->  | DY17: =(DY138-DY136) ->  | EJ17: =SUMPRODUCT(DX17:EI17,DB_Inputs!DX$8:EI$8)/DB_Inputs!EJ$8 ->  | EL17: =(EL138-EL136) ->  | EM17: =(EM138-EM136) ->  | EX17: =SUMPRODUCT(EL17:EW17,DB_Inputs!EL$8:EW$8)/DB_Inputs!EX$8 ->  | EZ17: =(EZ138-EZ136) ->  | FA17: =(FA138-FA136) ->  | FL17: =SUMPRODUCT(EZ17:FK17,DB_Inputs!EZ$8:FK$8)/DB_Inputs!FL$8 ->  | FN17: =(FN138-FN136) ->  | FO17: =(FO138-FO136) ->  | FZ17: =SUMPRODUCT(FN17:FY17,DB_Inputs!FN$8:FY$8)/DB_Inputs!FZ$8 ->  | GB17: =(GB138-GB136) ->  | GC17: =(GC138-GC136) ->  | GN17: =SUMPRODUCT(GB17:GM17,DB_Inputs!GB$8:GM$8)/DB_Inputs!GN$8 ->  | GP17: =(GP138-GP136) ->  | GQ17: =(GQ138-GQ136) ->  | HB17: =SUMPRODUCT(GP17:HA17,DB_Inputs!GP$8:HA$8)/DB_Inputs!HB$8 -> 
A18: PNW Load Shaping Change LLH | B18: =IF(DB_Inputs!B$18=0,0,(B139-B137)) -> 69.90350503 | C18: =IF(DB_Inputs!C$18=0,0,(C139-C137)) -> 74.12753536 | D18: =IF(DB_Inputs!D$18=0,0,(D139-D137)) -> 45.71040085 | E18: =IF(DB_Inputs!E$18=0,0,(E139-E137)) -> -15.31282524 | F18: =IF(DB_Inputs!F$18=0,0,(F139-F137)) -> -6.804655587 | G18: =IF(DB_Inputs!G$18=0,0,(G139-G137)) -> 13.75243576 | H18: =IF(DB_Inputs!H$18=0,0,(H139-H137)) -> 22.49724891 | I18: =IF(DB_Inputs!I$18=0,0,(I139-I137)) -> -41.54090647 | J18: =IF(DB_Inputs!J$18=0,0,(J139-J137)) -> -65.83940407 | K18: =IF(DB_Inputs!K$18=0,0,(K139-K137)) -> -45.93008237 | L18: =IF(DB_Inputs!L$18=0,0,(L139-L137)) -> 12.59885236 | M18: =IF(DB_Inputs!M$18=0,0,(M139-M137)) -> -71.26479857 | N18: =SUMPRODUCT(B18:M18,DB_Inputs!B$9:M$9)/DB_Inputs!N$9 -> -0.6504215335 | P18: =IF(DB_Inputs!P$18=0,0,(P139-P137)) -> -1.572867954 | Q18: =IF(DB_Inputs!Q$18=0,0,(Q139-Q137)) -> 102.7564483 | R18: =IF(DB_Inputs!R$18=0,0,(R139-R137)) -> -109.1192956 | S18: =IF(DB_Inputs!S$18=0,0,(S139-S137)) -> 174.0885047 | T18: =IF(DB_Inputs!T$18=0,0,(T139-T137)) -> -31.25177567 | U18: =IF(DB_Inputs!U$18=0,0,(U139-U137)) -> 92.21765691 | V18: =IF(DB_Inputs!V$18=0,0,(V139-V137)) -> 91.15257194 | W18: =IF(DB_Inputs!W$18=0,0,(W139-W137)) -> -65.24183556 | X18: =IF(DB_Inputs!X$18=0,0,(X139-X137)) -> 128.7553946 | Y18: =IF(DB_Inputs!Y$18=0,0,(Y139-Y137)) -> -5.511154091 | Z18: =IF(DB_Inputs!Z$18=0,0,(Z139-Z137)) -> 97.56425859 | AA18: =IF(DB_Inputs!AA$18=0,0,(AA139-AA137)) -> 52.33315563 | AB18: =SUMPRODUCT(P18:AA18,DB_Inputs!P$9:AA$9)/DB_Inputs!AB$9 -> 43.38405819 | AD18: =(AD139-AD137) ->  | AE18: =(AE139-AE137) ->  | AP18: =SUMPRODUCT(AD18:AO18,DB_Inputs!AD$9:AO$9)/DB_Inputs!AP$9 ->  | AR18: =(AR139-AR137) ->  | AS18: =(AS139-AS137) ->  | BD18: =SUMPRODUCT(AR18:BC18,DB_Inputs!AR$9:BC$9)/DB_Inputs!BD$9 ->  | BF18: =(BF139-BF137) ->  | BG18: =(BG139-BG137) ->  | BR18: =SUMPRODUCT(BF18:BQ18,DB_Inputs!BF$9:BQ$9)/DB_Inputs!BR$9 ->  | BT18: =(BT139-BT137) ->  | BU18: =(BU139-BU137) ->  | CF18: =SUMPRODUCT(BT18:CE18,DB_Inputs!BT$9:CE$9)/DB_Inputs!CF$9 ->  | CH18: =(CH139-CH137) ->  | CI18: =(CI139-CI137) ->  | CT18: =SUMPRODUCT(CH18:CS18,DB_Inputs!CH$9:CS$9)/DB_Inputs!CT$9 ->  | CV18: =(CV139-CV137) ->  | CW18: =(CW139-CW137) ->  | DH18: =SUMPRODUCT(CV18:DG18,DB_Inputs!CV$9:DG$9)/DB_Inputs!DH$9 ->  | DJ18: =(DJ139-DJ137) ->  | DK18: =(DK139-DK137) ->  | DV18: =SUMPRODUCT(DJ18:DU18,DB_Inputs!DJ$9:DU$9)/DB_Inputs!DV$9 ->  | DX18: =(DX139-DX137) ->  | DY18: =(DY139-DY137) ->  | EJ18: =SUMPRODUCT(DX18:EI18,DB_Inputs!DX$9:EI$9)/DB_Inputs!EJ$9 ->  | EL18: =(EL139-EL137) ->  | EM18: =(EM139-EM137) ->  | EX18: =SUMPRODUCT(EL18:EW18,DB_Inputs!EL$9:EW$9)/DB_Inputs!EX$9 ->  | EZ18: =(EZ139-EZ137) ->  | FA18: =(FA139-FA137) ->  | FL18: =SUMPRODUCT(EZ18:FK18,DB_Inputs!EZ$9:FK$9)/DB_Inputs!FL$9 ->  | FN18: =(FN139-FN137) ->  | FO18: =(FO139-FO137) ->  | FZ18: =SUMPRODUCT(FN18:FY18,DB_Inputs!FN$9:FY$9)/DB_Inputs!FZ$9 ->  | GB18: =(GB139-GB137) ->  | GC18: =(GC139-GC137) ->  | GN18: =SUMPRODUCT(GB18:GM18,DB_Inputs!GB$9:GM$9)/DB_Inputs!GN$9 ->  | GP18: =(GP139-GP137) ->  | GQ18: =(GQ139-GQ137) ->  | HB18: =SUMPRODUCT(GP18:HA18,DB_Inputs!GP$9:HA$9)/DB_Inputs!HB$9 -> 
A19: PNW Load Shaping Change Flat | B19: =(B17*DB_Inputs!B8+FedRev!B18*DB_Inputs!B9)/DB_Inputs!B10 -> 79.69804383 | C19: =(C17*DB_Inputs!C8+FedRev!C18*DB_Inputs!C9)/DB_Inputs!C10 -> 80.9622906 | D19: =(D17*DB_Inputs!D8+FedRev!D18*DB_Inputs!D9)/DB_Inputs!D10 -> 50.88587471 | E19: =(E17*DB_Inputs!E8+FedRev!E18*DB_Inputs!E9)/DB_Inputs!E10 -> -16.49508227 | F19: =(F17*DB_Inputs!F8+FedRev!F18*DB_Inputs!F9)/DB_Inputs!F10 -> -7.83242092 | G19: =(G17*DB_Inputs!G8+FedRev!G18*DB_Inputs!G9)/DB_Inputs!G10 -> 14.8892013 | H19: =(H17*DB_Inputs!H8+FedRev!H18*DB_Inputs!H9)/DB_Inputs!H10 -> 24.82104903 | I19: =(I17*DB_Inputs!I8+FedRev!I18*DB_Inputs!I9)/DB_Inputs!I10 -> -45.10227857 | J19: =(J17*DB_Inputs!J8+FedRev!J18*DB_Inputs!J9)/DB_Inputs!J10 -> -73.14815194 | K19: =(K17*DB_Inputs!K8+FedRev!K18*DB_Inputs!K9)/DB_Inputs!K10 -> -52.55805906 | L19: =(L17*DB_Inputs!L8+FedRev!L18*DB_Inputs!L9)/DB_Inputs!L10 -> 13.96312675 | M19: =(M17*DB_Inputs!M8+FedRev!M18*DB_Inputs!M9)/DB_Inputs!M10 -> -83.02331388 | N19: =SUMPRODUCT(B19:M19,DB_Inputs!B$10:M$10)/DB_Inputs!N$10 -> -0.889021639 | P19: =(P17*DB_Inputs!P8+FedRev!P18*DB_Inputs!P9)/DB_Inputs!P10 -> -1.313558682 | Q19: =(Q17*DB_Inputs!Q8+FedRev!Q18*DB_Inputs!Q9)/DB_Inputs!Q10 -> 113.1610498 | R19: =(R17*DB_Inputs!R8+FedRev!R18*DB_Inputs!R9)/DB_Inputs!R10 -> -123.4166362 | S19: =(S17*DB_Inputs!S8+FedRev!S18*DB_Inputs!S9)/DB_Inputs!S10 -> 191.0943597 | T19: =(T17*DB_Inputs!T8+FedRev!T18*DB_Inputs!T9)/DB_Inputs!T10 -> -34.86132326 | U19: =(U17*DB_Inputs!U8+FedRev!U18*DB_Inputs!U9)/DB_Inputs!U10 -> 104.563035 | V19: =(V17*DB_Inputs!V8+FedRev!V18*DB_Inputs!V9)/DB_Inputs!V10 -> 101.9498168 | W19: =(W17*DB_Inputs!W8+FedRev!W18*DB_Inputs!W9)/DB_Inputs!W10 -> -72.44971258 | X19: =(X17*DB_Inputs!X8+FedRev!X18*DB_Inputs!X9)/DB_Inputs!X10 -> 151.0119101 | Y19: =(Y17*DB_Inputs!Y8+FedRev!Y18*DB_Inputs!Y9)/DB_Inputs!Y10 -> -6.916746933 | Z19: =(Z17*DB_Inputs!Z8+FedRev!Z18*DB_Inputs!Z9)/DB_Inputs!Z10 -> 113.5467185 | AA19: =(AA17*DB_Inputs!AA8+FedRev!AA18*DB_Inputs!AA9)/DB_Inputs!AA10 -> 62.30121942 | AB19: =SUMPRODUCT(P19:AA19,DB_Inputs!P$10:AA$10)/DB_Inputs!AB$10 -> 49.95970495 | AD19: =(AD17*DB_Inputs!AD8+FedRev!AD18*DB_Inputs!AD9)/DB_Inputs!AD10 ->  | AE19: =(AE17*DB_Inputs!AE8+FedRev!AE18*DB_Inputs!AE9)/DB_Inputs!AE10 ->  | AF19: =(AF17*DB_Inputs!AF8+FedRev!AF18*DB_Inputs!AF9)/DB_Inputs!AF10 ->  | AG19: =(AG17*DB_Inputs!AG8+FedRev!AG18*DB_Inputs!AG9)/DB_Inputs!AG10 ->  | AH19: =(AH17*DB_Inputs!AH8+FedRev!AH18*DB_Inputs!AH9)/DB_Inputs!AH10 ->  | AI19: =(AI17*DB_Inputs!AI8+FedRev!AI18*DB_Inputs!AI9)/DB_Inputs!AI10 ->  | AJ19: =(AJ17*DB_Inputs!AJ8+FedRev!AJ18*DB_Inputs!AJ9)/DB_Inputs!AJ10 ->  | AK19: =(AK17*DB_Inputs!AK8+FedRev!AK18*DB_Inputs!AK9)/DB_Inputs!AK10 ->  | AL19: =(AL17*DB_Inputs!AL8+FedRev!AL18*DB_Inputs!AL9)/DB_Inputs!AL10 ->  | AM19: =(AM17*DB_Inputs!AM8+FedRev!AM18*DB_Inputs!AM9)/DB_Inputs!AM10 ->  | AN19: =(AN17*DB_Inputs!AN8+FedRev!AN18*DB_Inputs!AN9)/DB_Inputs!AN10 ->  | AO19: =(AO17*DB_Inputs!AO8+FedRev!AO18*DB_Inputs!AO9)/DB_Inputs!AO10 ->  | AP19: =SUMPRODUCT(AD19:AO19,DB_Inputs!AD$10:AO$10)/DB_Inputs!AP$10 ->  | AR19: =(AR17*DB_Inputs!AR8+FedRev!AR18*DB_Inputs!AR9)/DB_Inputs!AR10 ->  | AS19: =(AS17*DB_Inputs!AS8+FedRev!AS18*DB_Inputs!AS9)/DB_Inputs!AS10 ->  | AT19: =(AT17*DB_Inputs!AT8+FedRev!AT18*DB_Inputs!AT9)/DB_Inputs!AT10 ->  | AU19: =(AU17*DB_Inputs!AU8+FedRev!AU18*DB_Inputs!AU9)/DB_Inputs!AU10 ->  | AV19: =(AV17*DB_Inputs!AV8+FedRev!AV18*DB_Inputs!AV9)/DB_Inputs!AV10 ->  | AW19: =(AW17*DB_Inputs!AW8+FedRev!AW18*DB_Inputs!AW9)/DB_Inputs!AW10 ->  | AX19: =(AX17*DB_Inputs!AX8+FedRev!AX18*DB_Inputs!AX9)/DB_Inputs!AX10 ->  | AY19: =(AY17*DB_Inputs!AY8+FedRev!AY18*DB_Inputs!AY9)/DB_Inputs!AY10 ->  | AZ19: =(AZ17*DB_Inputs!AZ8+FedRev!AZ18*DB_Inputs!AZ9)/DB_Inputs!AZ10 ->  | BA19: =(BA17*DB_Inputs!BA8+FedRev!BA18*DB_Inputs!BA9)/DB_Inputs!BA10 ->  | BB19: =(BB17*DB_Inputs!BB8+FedRev!BB18*DB_Inputs!BB9)/DB_Inputs!BB10 ->  | BC19: =(BC17*DB_Inputs!BC8+FedRev!BC18*DB_Inputs!BC9)/DB_Inputs!BC10 ->  | BD19: =SUMPRODUCT(AR19:BC19,DB_Inputs!AR$10:BC$10)/DB_Inputs!BD$10 ->  | BF19: =(BF17*DB_Inputs!BF8+FedRev!BF18*DB_Inputs!BF9)/DB_Inputs!BF10 ->  | BG19: =(BG17*DB_Inputs!BG8+FedRev!BG18*DB_Inputs!BG9)/DB_Inputs!BG10 ->  | BH19: =(BH17*DB_Inputs!BH8+FedRev!BH18*DB_Inputs!BH9)/DB_Inputs!BH10 ->  | BI19: =(BI17*DB_Inputs!BI8+FedRev!BI18*DB_Inputs!BI9)/DB_Inputs!BI10 ->  | BJ19: =(BJ17*DB_Inputs!BJ8+FedRev!BJ18*DB_Inputs!BJ9)/DB_Inputs!BJ10 ->  | BK19: =(BK17*DB_Inputs!BK8+FedRev!BK18*DB_Inputs!BK9)/DB_Inputs!BK10 ->  | BL19: =(BL17*DB_Inputs!BL8+FedRev!BL18*DB_Inputs!BL9)/DB_Inputs!BL10 ->  | BM19: =(BM17*DB_Inputs!BM8+FedRev!BM18*DB_Inputs!BM9)/DB_Inputs!BM10 ->  | BN19: =(BN17*DB_Inputs!BN8+FedRev!BN18*DB_Inputs!BN9)/DB_Inputs!BN10 ->  | BO19: =(BO17*DB_Inputs!BO8+FedRev!BO18*DB_Inputs!BO9)/DB_Inputs!BO10 ->  | BP19: =(BP17*DB_Inputs!BP8+FedRev!BP18*DB_Inputs!BP9)/DB_Inputs!BP10 ->  | BQ19: =(BQ17*DB_Inputs!BQ8+FedRev!BQ18*DB_Inputs!BQ9)/DB_Inputs!BQ10 ->  | BR19: =SUMPRODUCT(BF19:BQ19,DB_Inputs!BF$10:BQ$10)/DB_Inputs!BR$10 ->  | BT19: =(BT17*DB_Inputs!BT8+FedRev!BT18*DB_Inputs!BT9)/DB_Inputs!BT10 ->  | BU19: =(BU17*DB_Inputs!BU8+FedRev!BU18*DB_Inputs!BU9)/DB_Inputs!BU10 ->  | BV19: =(BV17*DB_Inputs!BV8+FedRev!BV18*DB_Inputs!BV9)/DB_Inputs!BV10 ->  | BW19: =(BW17*DB_Inputs!BW8+FedRev!BW18*DB_Inputs!BW9)/DB_Inputs!BW10 ->  | BX19: =(BX17*DB_Inputs!BX8+FedRev!BX18*DB_Inputs!BX9)/DB_Inputs!BX10 ->  | BY19: =(BY17*DB_Inputs!BY8+FedRev!BY18*DB_Inputs!BY9)/DB_Inputs!BY10 ->  | BZ19: =(BZ17*DB_Inputs!BZ8+FedRev!BZ18*DB_Inputs!BZ9)/DB_Inputs!BZ10 ->  | CA19: =(CA17*DB_Inputs!CA8+FedRev!CA18*DB_Inputs!CA9)/DB_Inputs!CA10 ->  | CB19: =(CB17*DB_Inputs!CB8+FedRev!CB18*DB_Inputs!CB9)/DB_Inputs!CB10 ->  | CC19: =(CC17*DB_Inputs!CC8+FedRev!CC18*DB_Inputs!CC9)/DB_Inputs!CC10 ->  | CD19: =(CD17*DB_Inputs!CD8+FedRev!CD18*DB_Inputs!CD9)/DB_Inputs!CD10 ->  | CE19: =(CE17*DB_Inputs!CE8+FedRev!CE18*DB_Inputs!CE9)/DB_Inputs!CE10 ->  | CF19: =SUMPRODUCT(BT19:CE19,DB_Inputs!BT$10:CE$10)/DB_Inputs!CF$10 ->  | CH19: =(CH17*DB_Inputs!CH8+FedRev!CH18*DB_Inputs!CH9)/DB_Inputs!CH10 ->  | CI19: =(CI17*DB_Inputs!CI8+FedRev!CI18*DB_Inputs!CI9)/DB_Inputs!CI10 ->  | CJ19: =(CJ17*DB_Inputs!CJ8+FedRev!CJ18*DB_Inputs!CJ9)/DB_Inputs!CJ10 ->  | CK19: =(CK17*DB_Inputs!CK8+FedRev!CK18*DB_Inputs!CK9)/DB_Inputs!CK10 ->  | CL19: =(CL17*DB_Inputs!CL8+FedRev!CL18*DB_Inputs!CL9)/DB_Inputs!CL10 ->  | CM19: =(CM17*DB_Inputs!CM8+FedRev!CM18*DB_Inputs!CM9)/DB_Inputs!CM10 ->  | CN19: =(CN17*DB_Inputs!CN8+FedRev!CN18*DB_Inputs!CN9)/DB_Inputs!CN10 ->  | CO19: =(CO17*DB_Inputs!CO8+FedRev!CO18*DB_Inputs!CO9)/DB_Inputs!CO10 ->  | CP19: =(CP17*DB_Inputs!CP8+FedRev!CP18*DB_Inputs!CP9)/DB_Inputs!CP10 ->  | CQ19: =(CQ17*DB_Inputs!CQ8+FedRev!CQ18*DB_Inputs!CQ9)/DB_Inputs!CQ10 ->  | CR19: =(CR17*DB_Inputs!CR8+FedRev!CR18*DB_Inputs!CR9)/DB_Inputs!CR10 ->  | CS19: =(CS17*DB_Inputs!CS8+FedRev!CS18*DB_Inputs!CS9)/DB_Inputs!CS10 ->  | CT19: =SUMPRODUCT(CH19:CS19,DB_Inputs!CH$10:CS$10)/DB_Inputs!CT$10 ->  | CV19: =(CV17*DB_Inputs!CV8+FedRev!CV18*DB_Inputs!CV9)/DB_Inputs!CV10 ->  | CW19: =(CW17*DB_Inputs!CW8+FedRev!CW18*DB_Inputs!CW9)/DB_Inputs!CW10 ->  | CX19: =(CX17*DB_Inputs!CX8+FedRev!CX18*DB_Inputs!CX9)/DB_Inputs!CX10 ->  | CY19: =(CY17*DB_Inputs!CY8+FedRev!CY18*DB_Inputs!CY9)/DB_Inputs!CY10 ->  | CZ19: =(CZ17*DB_Inputs!CZ8+FedRev!CZ18*DB_Inputs!CZ9)/DB_Inputs!CZ10 ->  | DA19: =(DA17*DB_Inputs!DA8+FedRev!DA18*DB_Inputs!DA9)/DB_Inputs!DA10 ->  | DB19: =(DB17*DB_Inputs!DB8+FedRev!DB18*DB_Inputs!DB9)/DB_Inputs!DB10 ->  | DC19: =(DC17*DB_Inputs!DC8+FedRev!DC18*DB_Inputs!DC9)/DB_Inputs!DC10 ->  | DD19: =(DD17*DB_Inputs!DD8+FedRev!DD18*DB_Inputs!DD9)/DB_Inputs!DD10 ->  | DE19: =(DE17*DB_Inputs!DE8+FedRev!DE18*DB_Inputs!DE9)/DB_Inputs!DE10 ->  | DF19: =(DF17*DB_Inputs!DF8+FedRev!DF18*DB_Inputs!DF9)/DB_Inputs!DF10 ->  | DG19: =(DG17*DB_Inputs!DG8+FedRev!DG18*DB_Inputs!DG9)/DB_Inputs!DG10 ->  | DH19: =SUMPRODUCT(CV19:DG19,DB_Inputs!CV$10:DG$10)/DB_Inputs!DH$10 ->  | DJ19: =(DJ17*DB_Inputs!DJ8+FedRev!DJ18*DB_Inputs!DJ9)/DB_Inputs!DJ10 ->  | DK19: =(DK17*DB_Inputs!DK8+FedRev!DK18*DB_Inputs!DK9)/DB_Inputs!DK10 ->  | DL19: =(DL17*DB_Inputs!DL8+FedRev!DL18*DB_Inputs!DL9)/DB_Inputs!DL10 ->  | DM19: =(DM17*DB_Inputs!DM8+FedRev!DM18*DB_Inputs!DM9)/DB_Inputs!DM10 ->  | DN19: =(DN17*DB_Inputs!DN8+FedRev!DN18*DB_Inputs!DN9)/DB_Inputs!DN10 ->  | DO19: =(DO17*DB_Inputs!DO8+FedRev!DO18*DB_Inputs!DO9)/DB_Inputs!DO10 ->  | DP19: =(DP17*DB_Inputs!DP8+FedRev!DP18*DB_Inputs!DP9)/DB_Inputs!DP10 ->  | DQ19: =(DQ17*DB_Inputs!DQ8+FedRev!DQ18*DB_Inputs!DQ9)/DB_Inputs!DQ10 ->  | DR19: =(DR17*DB_Inputs!DR8+FedRev!DR18*DB_Inputs!DR9)/DB_Inputs!DR10 ->  | DS19: =(DS17*DB_Inputs!DS8+FedRev!DS18*DB_Inputs!DS9)/DB_Inputs!DS10 ->  | DT19: =(DT17*DB_Inputs!DT8+FedRev!DT18*DB_Inputs!DT9)/DB_Inputs!DT10 ->  | DU19: =(DU17*DB_Inputs!DU8+FedRev!DU18*DB_Inputs!DU9)/DB_Inputs!DU10 ->  | DV19: =SUMPRODUCT(DJ19:DU19,DB_Inputs!DJ$10:DU$10)/DB_Inputs!DV$10 ->  | DX19: =(DX17*DB_Inputs!DX8+FedRev!DX18*DB_Inputs!DX9)/DB_Inputs!DX10 ->  | DY19: =(DY17*DB_Inputs!DY8+FedRev!DY18*DB_Inputs!DY9)/DB_Inputs!DY10 ->  | DZ19: =(DZ17*DB_Inputs!DZ8+FedRev!DZ18*DB_Inputs!DZ9)/DB_Inputs!DZ10 ->  | EA19: =(EA17*DB_Inputs!EA8+FedRev!EA18*DB_Inputs!EA9)/DB_Inputs!EA10 ->  | EB19: =(EB17*DB_Inputs!EB8+FedRev!EB18*DB_Inputs!EB9)/DB_Inputs!EB10 ->  | EC19: =(EC17*DB_Inputs!EC8+FedRev!EC18*DB_Inputs!EC9)/DB_Inputs!EC10 ->  | ED19: =(ED17*DB_Inputs!ED8+FedRev!ED18*DB_Inputs!ED9)/DB_Inputs!ED10 ->  | EE19: =(EE17*DB_Inputs!EE8+FedRev!EE18*DB_Inputs!EE9)/DB_Inputs!EE10 ->  | EF19: =(EF17*DB_Inputs!EF8+FedRev!EF18*DB_Inputs!EF9)/DB_Inputs!EF10 ->  | EG19: =(EG17*DB_Inputs!EG8+FedRev!EG18*DB_Inputs!EG9)/DB_Inputs!EG10 ->  | EH19: =(EH17*DB_Inputs!EH8+FedRev!EH18*DB_Inputs!EH9)/DB_Inputs!EH10 ->  | EI19: =(EI17*DB_Inputs!EI8+FedRev!EI18*DB_Inputs!EI9)/DB_Inputs!EI10 ->  | EJ19: =SUMPRODUCT(DX19:EI19,DB_Inputs!DX$10:EI$10)/DB_Inputs!EJ$10 ->  | EL19: =(EL17*DB_Inputs!EL8+FedRev!EL18*DB_Inputs!EL9)/DB_Inputs!EL10 ->  | EM19: =(EM17*DB_Inputs!EM8+FedRev!EM18*DB_Inputs!EM9)/DB_Inputs!EM10 ->  | EN19: =(EN17*DB_Inputs!EN8+FedRev!EN18*DB_Inputs!EN9)/DB_Inputs!EN10 ->  | EO19: =(EO17*DB_Inputs!EO8+FedRev!EO18*DB_Inputs!EO9)/DB_Inputs!EO10 ->  | EP19: =(EP17*DB_Inputs!EP8+FedRev!EP18*DB_Inputs!EP9)/DB_Inputs!EP10 ->  | EQ19: =(EQ17*DB_Inputs!EQ8+FedRev!EQ18*DB_Inputs!EQ9)/DB_Inputs!EQ10 ->  | ER19: =(ER17*DB_Inputs!ER8+FedRev!ER18*DB_Inputs!ER9)/DB_Inputs!ER10 ->  | ES19: =(ES17*DB_Inputs!ES8+FedRev!ES18*DB_Inputs!ES9)/DB_Inputs!ES10 ->  | ET19: =(ET17*DB_Inputs!ET8+FedRev!ET18*DB_Inputs!ET9)/DB_Inputs!ET10 ->  | EU19: =(EU17*DB_Inputs!EU8+FedRev!EU18*DB_Inputs!EU9)/DB_Inputs!EU10 ->  | EV19: =(EV17*DB_Inputs!EV8+FedRev!EV18*DB_Inputs!EV9)/DB_Inputs!EV10 ->  | EW19: =(EW17*DB_Inputs!EW8+FedRev!EW18*DB_Inputs!EW9)/DB_Inputs!EW10 ->  | EX19: =SUMPRODUCT(EL19:EW19,DB_Inputs!EL$10:EW$10)/DB_Inputs!EX$10 ->  | EZ19: =(EZ17*DB_Inputs!EZ8+FedRev!EZ18*DB_Inputs!EZ9)/DB_Inputs!EZ10 ->  | FA19: =(FA17*DB_Inputs!FA8+FedRev!FA18*DB_Inputs!FA9)/DB_Inputs!FA10 ->  | FB19: =(FB17*DB_Inputs!FB8+FedRev!FB18*DB_Inputs!FB9)/DB_Inputs!FB10 ->  | FC19: =(FC17*DB_Inputs!FC8+FedRev!FC18*DB_Inputs!FC9)/DB_Inputs!FC10 ->  | FD19: =(FD17*DB_Inputs!FD8+FedRev!FD18*DB_Inputs!FD9)/DB_Inputs!FD10 ->  | FE19: =(FE17*DB_Inputs!FE8+FedRev!FE18*DB_Inputs!FE9)/DB_Inputs!FE10 ->  | FF19: =(FF17*DB_Inputs!FF8+FedRev!FF18*DB_Inputs!FF9)/DB_Inputs!FF10 ->  | FG19: =(FG17*DB_Inputs!FG8+FedRev!FG18*DB_Inputs!FG9)/DB_Inputs!FG10 ->  | FH19: =(FH17*DB_Inputs!FH8+FedRev!FH18*DB_Inputs!FH9)/DB_Inputs!FH10 ->  | FI19: =(FI17*DB_Inputs!FI8+FedRev!FI18*DB_Inputs!FI9)/DB_Inputs!FI10 ->  | FJ19: =(FJ17*DB_Inputs!FJ8+FedRev!FJ18*DB_Inputs!FJ9)/DB_Inputs!FJ10 ->  | FK19: =(FK17*DB_Inputs!FK8+FedRev!FK18*DB_Inputs!FK9)/DB_Inputs!FK10 ->  | FL19: =SUMPRODUCT(EZ19:FK19,DB_Inputs!EZ$10:FK$10)/DB_Inputs!FL$10 ->  | FN19: =(FN17*DB_Inputs!FN8+FedRev!FN18*DB_Inputs!FN9)/DB_Inputs!FN10 ->  | FO19: =(FO17*DB_Inputs!FO8+FedRev!FO18*DB_Inputs!FO9)/DB_Inputs!FO10 ->  | FP19: =(FP17*DB_Inputs!FP8+FedRev!FP18*DB_Inputs!FP9)/DB_Inputs!FP10 ->  | FQ19: =(FQ17*DB_Inputs!FQ8+FedRev!FQ18*DB_Inputs!FQ9)/DB_Inputs!FQ10 ->  | FR19: =(FR17*DB_Inputs!FR8+FedRev!FR18*DB_Inputs!FR9)/DB_Inputs!FR10 ->  | FS19: =(FS17*DB_Inputs!FS8+FedRev!FS18*DB_Inputs!FS9)/DB_Inputs!FS10 ->  | FT19: =(FT17*DB_Inputs!FT8+FedRev!FT18*DB_Inputs!FT9)/DB_Inputs!FT10 ->  | FU19: =(FU17*DB_Inputs!FU8+FedRev!FU18*DB_Inputs!FU9)/DB_Inputs!FU10 ->  | FV19: =(FV17*DB_Inputs!FV8+FedRev!FV18*DB_Inputs!FV9)/DB_Inputs!FV10 ->  | FW19: =(FW17*DB_Inputs!FW8+FedRev!FW18*DB_Inputs!FW9)/DB_Inputs!FW10 ->  | FX19: =(FX17*DB_Inputs!FX8+FedRev!FX18*DB_Inputs!FX9)/DB_Inputs!FX10 ->  | FY19: =(FY17*DB_Inputs!FY8+FedRev!FY18*DB_Inputs!FY9)/DB_Inputs!FY10 ->  | FZ19: =SUMPRODUCT(FN19:FY19,DB_Inputs!FN$10:FY$10)/DB_Inputs!FZ$10 ->  | GB19: =(GB17*DB_Inputs!GB8+FedRev!GB18*DB_Inputs!GB9)/DB_Inputs!GB10 ->  | GC19: =(GC17*DB_Inputs!GC8+FedRev!GC18*DB_Inputs!GC9)/DB_Inputs!GC10 ->  | GD19: =(GD17*DB_Inputs!GD8+FedRev!GD18*DB_Inputs!GD9)/DB_Inputs!GD10 ->  | GE19: =(GE17*DB_Inputs!GE8+FedRev!GE18*DB_Inputs!GE9)/DB_Inputs!GE10 ->  | GF19: =(GF17*DB_Inputs!GF8+FedRev!GF18*DB_Inputs!GF9)/DB_Inputs!GF10 ->  | GG19: =(GG17*DB_Inputs!GG8+FedRev!GG18*DB_Inputs!GG9)/DB_Inputs!GG10 ->  | GH19: =(GH17*DB_Inputs!GH8+FedRev!GH18*DB_Inputs!GH9)/DB_Inputs!GH10 ->  | GI19: =(GI17*DB_Inputs!GI8+FedRev!GI18*DB_Inputs!GI9)/DB_Inputs!GI10 ->  | GJ19: =(GJ17*DB_Inputs!GJ8+FedRev!GJ18*DB_Inputs!GJ9)/DB_Inputs!GJ10 ->  | GK19: =(GK17*DB_Inputs!GK8+FedRev!GK18*DB_Inputs!GK9)/DB_Inputs!GK10 ->  | GL19: =(GL17*DB_Inputs!GL8+FedRev!GL18*DB_Inputs!GL9)/DB_Inputs!GL10 ->  | GM19: =(GM17*DB_Inputs!GM8+FedRev!GM18*DB_Inputs!GM9)/DB_Inputs!GM10 ->  | GN19: =SUMPRODUCT(GB19:GM19,DB_Inputs!GB$10:GM$10)/DB_Inputs!GN$10 ->  | GP19: =(GP17*DB_Inputs!GP8+FedRev!GP18*DB_Inputs!GP9)/DB_Inputs!GP10 ->  | GQ19: =(GQ17*DB_Inputs!GQ8+FedRev!GQ18*DB_Inputs!GQ9)/DB_Inputs!GQ10 ->  | GR19: =(GR17*DB_Inputs!GR8+FedRev!GR18*DB_Inputs!GR9)/DB_Inputs!GR10 ->  | GS19: =(GS17*DB_Inputs!GS8+FedRev!GS18*DB_Inputs!GS9)/DB_Inputs!GS10 ->  | GT19: =(GT17*DB_Inputs!GT8+FedRev!GT18*DB_Inputs!GT9)/DB_Inputs!GT10 ->  | GU19: =(GU17*DB_Inputs!GU8+FedRev!GU18*DB_Inputs!GU9)/DB_Inputs!GU10 ->  | GV19: =(GV17*DB_Inputs!GV8+FedRev!GV18*DB_Inputs!GV9)/DB_Inputs!GV10 ->  | GW19: =(GW17*DB_Inputs!GW8+FedRev!GW18*DB_Inputs!GW9)/DB_Inputs!GW10 ->  | GX19: =(GX17*DB_Inputs!GX8+FedRev!GX18*DB_Inputs!GX9)/DB_Inputs!GX10 ->  | GY19: =(GY17*DB_Inputs!GY8+FedRev!GY18*DB_Inputs!GY9)/DB_Inputs!GY10 ->  | GZ19: =(GZ17*DB_Inputs!GZ8+FedRev!GZ18*DB_Inputs!GZ9)/DB_Inputs!GZ10 ->  | HA19: =(HA17*DB_Inputs!HA8+FedRev!HA18*DB_Inputs!HA9)/DB_Inputs!HA10 ->  | HB19: =SUMPRODUCT(GP19:HA19,DB_Inputs!GP$10:HA$10)/DB_Inputs!HB$10 -> 
A21: Firm Obligations This Iter. HLH | B21: =SUM(B9,B13,B17) -> 7730.899035 | C21: =SUM(C9,C13,C17) -> 9249.814305 | D21: 10062.32288 | E21: 9472.693978 | F21: 9063.521936 | G21: 8357.201318 | H21: 7589.218786 | I21: 8792.763456 | J21: 8720.673604 | K21: 8507.921115 | L21: 8294.046272 | M21: 8057.1508 | N21: =SUMPRODUCT(B21:M21,DB_Inputs!B$12:M$12)/DB_Inputs!N$12 -> 8654.753398 | P21: =SUM(P9,P13,P17) -> 7407.775185 | Q21: =SUM(Q9,Q13,Q17) -> 9273.157811 | R21: 10083.60443 | S21: 10562.21749 | T21: 9704.223291 | U21: 9435.832523 | V21: 9268.846559 | W21: 8562.631448 | X21: 8751.666407 | Y21: 9226.921897 | Z21: 8736.601829 | AA21: 8356.179858 | AB21: =SUMPRODUCT(P21:AA21,DB_Inputs!P$12:AA$12)/DB_Inputs!AB$12 -> 9105.948759 | AD21: =SUM(AD9,AD13,AD17) ->  | AE21: =SUM(AE9,AE13,AE17) ->  | AP21: =SUMPRODUCT(AD21:AO21,DB_Inputs!AD$8:AO$8)/DB_Inputs!AP$8 ->  | AR21: =SUM(AR9,AR13,AR17) ->  | AS21: =SUM(AS9,AS13,AS17) ->  | BD21: =SUMPRODUCT(AR21:BC21,DB_Inputs!AR$8:BC$8)/DB_Inputs!BD$8 ->  | BF21: =SUM(BF9,BF13,BF17) ->  | BG21: =SUM(BG9,BG13,BG17) ->  | BR21: =SUMPRODUCT(BF21:BQ21,DB_Inputs!BF$8:BQ$8)/DB_Inputs!BR$8 ->  | BT21: =SUM(BT9,BT13,BT17) ->  | BU21: =SUM(BU9,BU13,BU17) ->  | CF21: =SUMPRODUCT(BT21:CE21,DB_Inputs!BT$8:CE$8)/DB_Inputs!CF$8 ->  | CH21: =SUM(CH9,CH13,CH17) ->  | CI21: =SUM(CI9,CI13,CI17) ->  | CT21: =SUMPRODUCT(CH21:CS21,DB_Inputs!CH$8:CS$8)/DB_Inputs!CT$8 ->  | CV21: =SUM(CV9,CV13,CV17) ->  | CW21: =SUM(CW9,CW13,CW17) ->  | DH21: =SUMPRODUCT(CV21:DG21,DB_Inputs!CV$8:DG$8)/DB_Inputs!DH$8 ->  | DJ21: =SUM(DJ9,DJ13,DJ17) ->  | DK21: =SUM(DK9,DK13,DK17) ->  | DV21: =SUMPRODUCT(DJ21:DU21,DB_Inputs!DJ$8:DU$8)/DB_Inputs!DV$8 ->  | DX21: =SUM(DX9,DX13,DX17) ->  | DY21: =SUM(DY9,DY13,DY17) ->  | EJ21: =SUMPRODUCT(DX21:EI21,DB_Inputs!DX$8:EI$8)/DB_Inputs!EJ$8 ->  | EL21: =SUM(EL9,EL13,EL17) ->  | EM21: =SUM(EM9,EM13,EM17) ->  | EX21: =SUMPRODUCT(EL21:EW21,DB_Inputs!EL$8:EW$8)/DB_Inputs!EX$8 ->  | EZ21: =SUM(EZ9,EZ13,EZ17) ->  | FA21: =SUM(FA9,FA13,FA17) ->  | FL21: =SUMPRODUCT(EZ21:FK21,DB_Inputs!EZ$8:FK$8)/DB_Inputs!FL$8 ->  | FN21: =SUM(FN9,FN13,FN17) ->  | FO21: =SUM(FO9,FO13,FO17) ->  | FZ21: =SUMPRODUCT(FN21:FY21,DB_Inputs!FN$8:FY$8)/DB_Inputs!FZ$8 ->  | GB21: =SUM(GB9,GB13,GB17) ->  | GC21: =SUM(GC9,GC13,GC17) ->  | GN21: =SUMPRODUCT(GB21:GM21,DB_Inputs!GB$8:GM$8)/DB_Inputs!GN$8 ->  | GP21: =SUM(GP9,GP13,GP17) ->  | GQ21: =SUM(GQ9,GQ13,GQ17) ->  | HB21: =SUMPRODUCT(GP21:HA21,DB_Inputs!GP$8:HA$8)/DB_Inputs!HB$8 -> 
A22: Firm Obligations This Iter. LLH | B22: =SUM(B10,B14,B18) -> 5879.34801 | C22: =SUM(C10,C14,C18) -> 7364.729357 | D22: 7818.248813 | E22: 7691.724384 | F22: 7296.023606 | G22: 6890.244445 | H22: 5898.238289 | I22: 6903.82794 | J22: 7050.054867 | K22: 6381.105189 | L22: 6536.819056 | M22: 5996.640905 | N22: =SUMPRODUCT(B22:M22,DB_Inputs!B$13:M$13)/DB_Inputs!N$13 -> 6804.750479 | P22: =SUM(P10,P14,P18) -> 5789.009732 | Q22: =SUM(Q10,Q14,Q18) -> 7314.304137 | R22: 7650.214217 | S22: 8231.120687 | T22: 7585.293846 | U22: 7189.22574 | V22: 7673.669052 | W22: 7304.553128 | X22: 6481.01972 | Y22: 7353.06503 | Z22: 6533.929305 | AA22: 5961.635393 | AB22: =SUMPRODUCT(P22:AA22,DB_Inputs!P$13:AA$13)/DB_Inputs!AB$13 -> 7088.643783 | AD22: =SUM(AD10,AD14,AD18) ->  | AE22: =SUM(AE10,AE14,AE18) ->  | AP22: =SUMPRODUCT(AD22:AO22,DB_Inputs!AD$9:AO$9)/DB_Inputs!AP$9 ->  | AR22: =SUM(AR10,AR14,AR18) ->  | AS22: =SUM(AS10,AS14,AS18) ->  | BD22: =SUMPRODUCT(AR22:BC22,DB_Inputs!AR$9:BC$9)/DB_Inputs!BD$9 ->  | BF22: =SUM(BF10,BF14,BF18) ->  | BG22: =SUM(BG10,BG14,BG18) ->  | BR22: =SUMPRODUCT(BF22:BQ22,DB_Inputs!BF$9:BQ$9)/DB_Inputs!BR$9 ->  | BT22: =SUM(BT10,BT14,BT18) ->  | BU22: =SUM(BU10,BU14,BU18) ->  | CF22: =SUMPRODUCT(BT22:CE22,DB_Inputs!BT$9:CE$9)/DB_Inputs!CF$9 ->  | CH22: =SUM(CH10,CH14,CH18) ->  | CI22: =SUM(CI10,CI14,CI18) ->  | CT22: =SUMPRODUCT(CH22:CS22,DB_Inputs!CH$9:CS$9)/DB_Inputs!CT$9 ->  | CV22: =SUM(CV10,CV14,CV18) ->  | CW22: =SUM(CW10,CW14,CW18) ->  | DH22: =SUMPRODUCT(CV22:DG22,DB_Inputs!CV$9:DG$9)/DB_Inputs!DH$9 ->  | DJ22: =SUM(DJ10,DJ14,DJ18) ->  | DK22: =SUM(DK10,DK14,DK18) ->  | DV22: =SUMPRODUCT(DJ22:DU22,DB_Inputs!DJ$9:DU$9)/DB_Inputs!DV$9 ->  | DX22: =SUM(DX10,DX14,DX18) ->  | DY22: =SUM(DY10,DY14,DY18) ->  | EJ22: =SUMPRODUCT(DX22:EI22,DB_Inputs!DX$9:EI$9)/DB_Inputs!EJ$9 ->  | EL22: =SUM(EL10,EL14,EL18) ->  | EM22: =SUM(EM10,EM14,EM18) ->  | EX22: =SUMPRODUCT(EL22:EW22,DB_Inputs!EL$9:EW$9)/DB_Inputs!EX$9 ->  | EZ22: =SUM(EZ10,EZ14,EZ18) ->  | FA22: =SUM(FA10,FA14,FA18) ->  | FL22: =SUMPRODUCT(EZ22:FK22,DB_Inputs!EZ$9:FK$9)/DB_Inputs!FL$9 ->  | FN22: =SUM(FN10,FN14,FN18) ->  | FO22: =SUM(FO10,FO14,FO18) ->  | FZ22: =SUMPRODUCT(FN22:FY22,DB_Inputs!FN$9:FY$9)/DB_Inputs!FZ$9 ->  | GB22: =SUM(GB10,GB14,GB18) ->  | GC22: =SUM(GC10,GC14,GC18) ->  | GN22: =SUMPRODUCT(GB22:GM22,DB_Inputs!GB$9:GM$9)/DB_Inputs!GN$9 ->  | GP22: =SUM(GP10,GP14,GP18) ->  | GQ22: =SUM(GQ10,GQ14,GQ18) ->  | HB22: =SUMPRODUCT(GP22:HA22,DB_Inputs!GP$9:HA$9)/DB_Inputs!HB$9 -> 
A23: Firm Obligations This Iter Flat | B23: =SUM(B11,B15,B19) -> 6914.623852 | C23: =SUM(C11,C15,C19) -> 8410.546249 | D23: 9024.74025 | E23: 8687.53534 | F23: 8306.022651 | G23: 7743.172263 | H23: 6837.671899 | I23: 7960.006938 | J23: 8015.301248 | K23: 7524.554612 | L23: 7557.144536 | M23: 7095.579516 | N23: =SUMPRODUCT(B23:M23,DB_Inputs!B$14:M$14)/DB_Inputs!N$14 -> 7838.724713 | P23: =SUM(P11,P15,P19) -> 6728.938059 | Q23: =SUM(Q11,Q15,Q19) -> 8401.046813 | R23: 8958.488523 | S23: 9534.529653 | T23: 8796.110672 | U23: 8447.083643 | V23: 8595.327167 | W23: 8007.99477 | X23: 7742.490102 | Y23: 8400.812955 | Z23: 7812.900448 | AA23: 7238.725774 | AB23: =SUMPRODUCT(P23:AA23,DB_Inputs!P$14:AA$14)/DB_Inputs!AB$14 -> 8219.8084 | AD23: =SUM(AD11,AD15,AD19) ->  | AE23: =SUM(AE11,AE15,AE19) ->  | AP23: =SUMPRODUCT(AD23:AO23,DB_Inputs!AD$10:AO$10)/DB_Inputs!AP$10 ->  | AR23: =SUM(AR11,AR15,AR19) ->  | AS23: =SUM(AS11,AS15,AS19) ->  | BD23: =SUMPRODUCT(AR23:BC23,DB_Inputs!AR$10:BC$10)/DB_Inputs!BD$10 ->  | BF23: =SUM(BF11,BF15,BF19) ->  | BG23: =SUM(BG11,BG15,BG19) ->  | BR23: =SUMPRODUCT(BF23:BQ23,DB_Inputs!BF$10:BQ$10)/DB_Inputs!BR$10 ->  | BT23: =SUM(BT11,BT15,BT19) ->  | BU23: =SUM(BU11,BU15,BU19) ->  | CF23: =SUMPRODUCT(BT23:CE23,DB_Inputs!BT$10:CE$10)/DB_Inputs!CF$10 ->  | CH23: =SUM(CH11,CH15,CH19) ->  | CI23: =SUM(CI11,CI15,CI19) ->  | CT23: =SUMPRODUCT(CH23:CS23,DB_Inputs!CH$10:CS$10)/DB_Inputs!CT$10 ->  | CV23: =SUM(CV11,CV15,CV19) ->  | CW23: =SUM(CW11,CW15,CW19) ->  | DH23: =SUMPRODUCT(CV23:DG23,DB_Inputs!CV$10:DG$10)/DB_Inputs!DH$10 ->  | DJ23: =SUM(DJ11,DJ15,DJ19) ->  | DK23: =SUM(DK11,DK15,DK19) ->  | DV23: =SUMPRODUCT(DJ23:DU23,DB_Inputs!DJ$10:DU$10)/DB_Inputs!DV$10 ->  | DX23: =SUM(DX11,DX15,DX19) ->  | DY23: =SUM(DY11,DY15,DY19) ->  | EJ23: =SUMPRODUCT(DX23:EI23,DB_Inputs!DX$10:EI$10)/DB_Inputs!EJ$10 ->  | EL23: =SUM(EL11,EL15,EL19) ->  | EM23: =SUM(EM11,EM15,EM19) ->  | EX23: =SUMPRODUCT(EL23:EW23,DB_Inputs!EL$10:EW$10)/DB_Inputs!EX$10 ->  | EZ23: =SUM(EZ11,EZ15,EZ19) ->  | FA23: =SUM(FA11,FA15,FA19) ->  | FL23: =SUMPRODUCT(EZ23:FK23,DB_Inputs!EZ$10:FK$10)/DB_Inputs!FL$10 ->  | FN23: =SUM(FN11,FN15,FN19) ->  | FO23: =SUM(FO11,FO15,FO19) ->  | FZ23: =SUMPRODUCT(FN23:FY23,DB_Inputs!FN$10:FY$10)/DB_Inputs!FZ$10 ->  | GB23: =SUM(GB11,GB15,GB19) ->  | GC23: =SUM(GC11,GC15,GC19) ->  | GN23: =SUMPRODUCT(GB23:GM23,DB_Inputs!GB$10:GM$10)/DB_Inputs!GN$10 ->  | GP23: =SUM(GP11,GP15,GP19) ->  | GQ23: =SUM(GQ11,GQ15,GQ19) ->  | HB23: =SUMPRODUCT(GP23:HA23,DB_Inputs!GP$10:HA$10)/DB_Inputs!HB$10 -> 
A24: RESOURCES
A25: Static Non-Hydro Resources HLH | B25: =IF(DB_Inputs!B$18=0,0,IF(StudyType<2, SUM(LT_Resources!B6,LT_Resources!B11,LT_Resources!B13:B14,LT_Resources!B18,LT_Resources!B23,LT_Resources!B28:B29),SUM(Resources_ESP!B9,Resources_ESP!B11,Resources_ESP!B14:B29))) -> 402.4973558 | C25: =IF(DB_Inputs!C$18=0,0,IF(StudyType<2, SUM(LT_Resources!C6,LT_Resources!C11,LT_Resources!C13:C14,LT_Resources!C18,LT_Resources!C23,LT_Resources!C28:C29),SUM(Resources_ESP!C9,Resources_ESP!C11,Resources_ESP!C14:C29))) -> 397.730575 | D25: =IF(DB_Inputs!D$18=0,0,IF(StudyType<2, SUM(LT_Resources!D6,LT_Resources!D11,LT_Resources!D13:D14,LT_Resources!D18,LT_Resources!D23,LT_Resources!D28:D29),SUM(Resources_ESP!D9,Resources_ESP!D11,Resources_ESP!D14:D29))) -> 390.07315 | E25: =IF(DB_Inputs!E$18=0,0,IF(StudyType<2, SUM(LT_Resources!E6,LT_Resources!E11,LT_Resources!E13:E14,LT_Resources!E18,LT_Resources!E23,LT_Resources!E28:E29),SUM(Resources_ESP!E9,Resources_ESP!E11,Resources_ESP!E14:E29))) -> 394.4140865 | F25: =IF(DB_Inputs!F$18=0,0,IF(StudyType<2, SUM(LT_Resources!F6,LT_Resources!F11,LT_Resources!F13:F14,LT_Resources!F18,LT_Resources!F23,LT_Resources!F28:F29),SUM(Resources_ESP!F9,Resources_ESP!F11,Resources_ESP!F14:F29))) -> 391.1886198 | G25: =IF(DB_Inputs!G$18=0,0,IF(StudyType<2, SUM(LT_Resources!G6,LT_Resources!G11,LT_Resources!G13:G14,LT_Resources!G18,LT_Resources!G23,LT_Resources!G28:G29),SUM(Resources_ESP!G9,Resources_ESP!G11,Resources_ESP!G14:G29))) -> 411.3423609 | H25: =IF(DB_Inputs!H$18=0,0,IF(StudyType<2, SUM(LT_Resources!H6,LT_Resources!H11,LT_Resources!H13:H14,LT_Resources!H18,LT_Resources!H23,LT_Resources!H28:H29),SUM(Resources_ESP!H9,Resources_ESP!H11,Resources_ESP!H14:H29))) -> 427.13535 | I25: =IF(DB_Inputs!I$18=0,0,IF(StudyType<2, SUM(LT_Resources!I6,LT_Resources!I11,LT_Resources!I13:I14,LT_Resources!I18,LT_Resources!I23,LT_Resources!I28:I29),SUM(Resources_ESP!I9,Resources_ESP!I11,Resources_ESP!I14:I29))) -> 419.631851 | J25: =IF(DB_Inputs!J$18=0,0,IF(StudyType<2, SUM(LT_Resources!J6,LT_Resources!J11,LT_Resources!J13:J14,LT_Resources!J18,LT_Resources!J23,LT_Resources!J28:J29),SUM(Resources_ESP!J9,Resources_ESP!J11,Resources_ESP!J14:J29))) -> 429.6917068 | K25: =IF(DB_Inputs!K$18=0,0,IF(StudyType<2, SUM(LT_Resources!K6,LT_Resources!K11,LT_Resources!K13:K14,LT_Resources!K18,LT_Resources!K23,LT_Resources!K28:K29),SUM(Resources_ESP!K9,Resources_ESP!K11,Resources_ESP!K14:K29))) -> 420.2079 | L25: =IF(DB_Inputs!L$18=0,0,IF(StudyType<2, SUM(LT_Resources!L6,LT_Resources!L11,LT_Resources!L13:L14,LT_Resources!L18,LT_Resources!L23,LT_Resources!L28:L29),SUM(Resources_ESP!L9,Resources_ESP!L11,Resources_ESP!L14:L29))) -> 417.3075231 | M25: =IF(DB_Inputs!M$18=0,0,IF(StudyType<2, SUM(LT_Resources!M6,LT_Resources!M11,LT_Resources!M13:M14,LT_Resources!M18,LT_Resources!M23,LT_Resources!M28:M29),SUM(Resources_ESP!M9,Resources_ESP!M11,Resources_ESP!M14:M29))) -> 410.0957032 | N25: =SUMPRODUCT(B25:M25,DB_Inputs!B$12:M$12)/DB_Inputs!N$12 -> 409.4286111 | P25: =IF(DB_Inputs!P$18=0,0,IF(StudyType<2, SUM(LT_Resources!P6,LT_Resources!P11,LT_Resources!P13:P14,LT_Resources!P18,LT_Resources!P23,LT_Resources!P28:P29),SUM(Resources_ESP!P9,Resources_ESP!P11,Resources_ESP!P14:P29))) -> 451.8145833 | Q25: =IF(DB_Inputs!Q$18=0,0,IF(StudyType<2, SUM(LT_Resources!Q6,LT_Resources!Q11,LT_Resources!Q13:Q14,LT_Resources!Q18,LT_Resources!Q23,LT_Resources!Q28:Q29),SUM(Resources_ESP!Q9,Resources_ESP!Q11,Resources_ESP!Q14:Q29))) -> 449.4148 | R25: =IF(DB_Inputs!R$18=0,0,IF(StudyType<2, SUM(LT_Resources!R6,LT_Resources!R11,LT_Resources!R13:R14,LT_Resources!R18,LT_Resources!R23,LT_Resources!R28:R29),SUM(Resources_ESP!R9,Resources_ESP!R11,Resources_ESP!R14:R29))) -> 441.71315 | S25: =IF(DB_Inputs!S$18=0,0,IF(StudyType<2, SUM(LT_Resources!S6,LT_Resources!S11,LT_Resources!S13:S14,LT_Resources!S18,LT_Resources!S23,LT_Resources!S28:S29),SUM(Resources_ESP!S9,Resources_ESP!S11,Resources_ESP!S14:S29))) -> 446.8059135 | T25: =IF(DB_Inputs!T$18=0,0,IF(StudyType<2, SUM(LT_Resources!T6,LT_Resources!T11,LT_Resources!T13:T14,LT_Resources!T18,LT_Resources!T23,LT_Resources!T28:T29),SUM(Resources_ESP!T9,Resources_ESP!T11,Resources_ESP!T14:T29))) -> 437.6000781 | U25: =IF(DB_Inputs!U$18=0,0,IF(StudyType<2, SUM(LT_Resources!U6,LT_Resources!U11,LT_Resources!U13:U14,LT_Resources!U18,LT_Resources!U23,LT_Resources!U28:U29),SUM(Resources_ESP!U9,Resources_ESP!U11,Resources_ESP!U14:U29))) -> 435.7209135 | V25: =IF(DB_Inputs!V$18=0,0,IF(StudyType<2, SUM(LT_Resources!V6,LT_Resources!V11,LT_Resources!V13:V14,LT_Resources!V18,LT_Resources!V23,LT_Resources!V28:V29),SUM(Resources_ESP!V9,Resources_ESP!V11,Resources_ESP!V14:V29))) -> 442.3032211 | W25: =IF(DB_Inputs!W$18=0,0,IF(StudyType<2, SUM(LT_Resources!W6,LT_Resources!W11,LT_Resources!W13:W14,LT_Resources!W18,LT_Resources!W23,LT_Resources!W28:W29),SUM(Resources_ESP!W9,Resources_ESP!W11,Resources_ESP!W14:W29))) -> 439.7760818 | X25: =IF(DB_Inputs!X$18=0,0,IF(StudyType<2, SUM(LT_Resources!X6,LT_Resources!X11,LT_Resources!X13:X14,LT_Resources!X18,LT_Resources!X23,LT_Resources!X28:X29),SUM(Resources_ESP!X9,Resources_ESP!X11,Resources_ESP!X14:X29))) -> 442.784375 | Y25: =IF(DB_Inputs!Y$18=0,0,IF(StudyType<2, SUM(LT_Resources!Y6,LT_Resources!Y11,LT_Resources!Y13:Y14,LT_Resources!Y18,LT_Resources!Y23,LT_Resources!Y28:Y29),SUM(Resources_ESP!Y9,Resources_ESP!Y11,Resources_ESP!Y14:Y29))) -> 440.2936539 | Z25: =IF(DB_Inputs!Z$18=0,0,IF(StudyType<2, SUM(LT_Resources!Z6,LT_Resources!Z11,LT_Resources!Z13:Z14,LT_Resources!Z18,LT_Resources!Z23,LT_Resources!Z28:Z29),SUM(Resources_ESP!Z9,Resources_ESP!Z11,Resources_ESP!Z14:Z29))) -> 432.5922454 | AA25: =IF(DB_Inputs!AA$18=0,0,IF(StudyType<2, SUM(LT_Resources!AA6,LT_Resources!AA11,LT_Resources!AA13:AA14,LT_Resources!AA18,LT_Resources!AA23,LT_Resources!AA28:AA29),SUM(Resources_ESP!AA9,Resources_ESP!AA11,Resources_ESP!AA14:AA29))) -> 436.6998698 | AB25: =SUMPRODUCT(P25:AA25,DB_Inputs!P$12:AA$12)/DB_Inputs!AB$12 -> 441.4898555 | AD25: =IF(StudyType<2,SUM(LT_Resources!AD6,LT_Resources!AD11,LT_Resources!AD13:AD14,LT_Resources!AD18,LT_Resources!AD23,LT_Resources!AD28:AD29),SUM(Resources_ESP!AD9,Resources_ESP!AD11,Resources_ESP!AD14:AD29)) -> 380.944213 | AE25: =IF(StudyType<2,SUM(LT_Resources!AE6,LT_Resources!AE11,LT_Resources!AE13:AE14,LT_Resources!AE18,LT_Resources!AE23,LT_Resources!AE28:AE29),SUM(Resources_ESP!AE9,Resources_ESP!AE11,Resources_ESP!AE14:AE29)) -> 381.610575 | AF25: =IF(StudyType<2,SUM(LT_Resources!AF6,LT_Resources!AF11,LT_Resources!AF13:AF14,LT_Resources!AF18,LT_Resources!AF23,LT_Resources!AF28:AF29),SUM(Resources_ESP!AF9,Resources_ESP!AF11,Resources_ESP!AF14:AF29)) -> 380.63315 | AG25: =IF(StudyType<2,SUM(LT_Resources!AG6,LT_Resources!AG11,LT_Resources!AG13:AG14,LT_Resources!AG18,LT_Resources!AG23,LT_Resources!AG28:AG29),SUM(Resources_ESP!AG9,Resources_ESP!AG11,Resources_ESP!AG14:AG29)) -> 376.0511058 | AH25: =IF(StudyType<2,SUM(LT_Resources!AH6,LT_Resources!AH11,LT_Resources!AH13:AH14,LT_Resources!AH18,LT_Resources!AH23,LT_Resources!AH28:AH29),SUM(Resources_ESP!AH9,Resources_ESP!AH11,Resources_ESP!AH14:AH29)) -> 379.5687 | AI25: =IF(StudyType<2,SUM(LT_Resources!AI6,LT_Resources!AI11,LT_Resources!AI13:AI14,LT_Resources!AI18,LT_Resources!AI23,LT_Resources!AI28:AI29),SUM(Resources_ESP!AI9,Resources_ESP!AI11,Resources_ESP!AI14:AI29)) -> 383.540625 | AJ25: =IF(StudyType<2,SUM(LT_Resources!AJ6,LT_Resources!AJ11,LT_Resources!AJ13:AJ14,LT_Resources!AJ18,LT_Resources!AJ23,LT_Resources!AJ28:AJ29),SUM(Resources_ESP!AJ9,Resources_ESP!AJ11,Resources_ESP!AJ14:AJ29)) -> 390.6160577 | AK25: =IF(StudyType<2,SUM(LT_Resources!AK6,LT_Resources!AK11,LT_Resources!AK13:AK14,LT_Resources!AK18,LT_Resources!AK23,LT_Resources!AK28:AK29),SUM(Resources_ESP!AK9,Resources_ESP!AK11,Resources_ESP!AK14:AK29)) -> 388.9375 | AL25: =IF(StudyType<2,SUM(LT_Resources!AL6,LT_Resources!AL11,LT_Resources!AL13:AL14,LT_Resources!AL18,LT_Resources!AL23,LT_Resources!AL28:AL29),SUM(Resources_ESP!AL9,Resources_ESP!AL11,Resources_ESP!AL14:AL29)) -> 390.15625 | AM25: =IF(StudyType<2,SUM(LT_Resources!AM6,LT_Resources!AM11,LT_Resources!AM13:AM14,LT_Resources!AM18,LT_Resources!AM23,LT_Resources!AM28:AM29),SUM(Resources_ESP!AM9,Resources_ESP!AM11,Resources_ESP!AM14:AM29)) -> 388.6009615 | AN25: =IF(StudyType<2,SUM(LT_Resources!AN6,LT_Resources!AN11,LT_Resources!AN13:AN14,LT_Resources!AN18,LT_Resources!AN23,LT_Resources!AN28:AN29),SUM(Resources_ESP!AN9,Resources_ESP!AN11,Resources_ESP!AN14:AN29)) -> 381.4375 | AO25: =IF(StudyType<2,SUM(LT_Resources!AO6,LT_Resources!AO11,LT_Resources!AO13:AO14,LT_Resources!AO18,LT_Resources!AO23,LT_Resources!AO28:AO29),SUM(Resources_ESP!AO9,Resources_ESP!AO11,Resources_ESP!AO14:AO29)) -> 384.305 | AP25: =SUMPRODUCT(AD25:AO25,DB_Inputs!AD$8:AO$8)/DB_Inputs!AP$8 -> 383.8712074 | AR25: =IF(StudyType<2,SUM(LT_Resources!AR6,LT_Resources!AR11,LT_Resources!AR13:AR14,LT_Resources!AR18,LT_Resources!AR23,LT_Resources!AR28:AR29),SUM(Resources_ESP!AR9,Resources_ESP!AR11,Resources_ESP!AR14:AR29)) -> 481.1921296 | AS25: =IF(StudyType<2,SUM(LT_Resources!AS6,LT_Resources!AS11,LT_Resources!AS13:AS14,LT_Resources!AS18,LT_Resources!AS23,LT_Resources!AS28:AS29),SUM(Resources_ESP!AS9,Resources_ESP!AS11,Resources_ESP!AS14:AS29)) -> 483.8020833 | AT25: =IF(StudyType<2,SUM(LT_Resources!AT6,LT_Resources!AT11,LT_Resources!AT13:AT14,LT_Resources!AT18,LT_Resources!AT23,LT_Resources!AT28:AT29),SUM(Resources_ESP!AT9,Resources_ESP!AT11,Resources_ESP!AT14:AT29)) -> 482.3028846 | AU25: =IF(StudyType<2,SUM(LT_Resources!AU6,LT_Resources!AU11,LT_Resources!AU13:AU14,LT_Resources!AU18,LT_Resources!AU23,LT_Resources!AU28:AU29),SUM(Resources_ESP!AU9,Resources_ESP!AU11,Resources_ESP!AU14:AU29)) -> 478.5225 | AV25: =IF(StudyType<2,SUM(LT_Resources!AV6,LT_Resources!AV11,LT_Resources!AV13:AV14,LT_Resources!AV18,LT_Resources!AV23,LT_Resources!AV28:AV29),SUM(Resources_ESP!AV9,Resources_ESP!AV11,Resources_ESP!AV14:AV29)) -> 482.6901042 | AW25: =IF(StudyType<2,SUM(LT_Resources!AW6,LT_Resources!AW11,LT_Resources!AW13:AW14,LT_Resources!AW18,LT_Resources!AW23,LT_Resources!AW28:AW29),SUM(Resources_ESP!AW9,Resources_ESP!AW11,Resources_ESP!AW14:AW29)) -> 483.4768519 | AX25: =IF(StudyType<2,SUM(LT_Resources!AX6,LT_Resources!AX11,LT_Resources!AX13:AX14,LT_Resources!AX18,LT_Resources!AX23,LT_Resources!AX28:AX29),SUM(Resources_ESP!AX9,Resources_ESP!AX11,Resources_ESP!AX14:AX29)) -> 490.4711538 | AY25: =IF(StudyType<2,SUM(LT_Resources!AY6,LT_Resources!AY11,LT_Resources!AY13:AY14,LT_Resources!AY18,LT_Resources!AY23,LT_Resources!AY28:AY29),SUM(Resources_ESP!AY9,Resources_ESP!AY11,Resources_ESP!AY14:AY29)) -> 489.79 | AZ25: =IF(StudyType<2,SUM(LT_Resources!AZ6,LT_Resources!AZ11,LT_Resources!AZ13:AZ14,LT_Resources!AZ18,LT_Resources!AZ23,LT_Resources!AZ28:AZ29),SUM(Resources_ESP!AZ9,Resources_ESP!AZ11,Resources_ESP!AZ14:AZ29)) -> 488.7091346 | BA25: =IF(StudyType<2,SUM(LT_Resources!BA6,LT_Resources!BA11,LT_Resources!BA13:BA14,LT_Resources!BA18,LT_Resources!BA23,LT_Resources!BA28:BA29),SUM(Resources_ESP!BA9,Resources_ESP!BA11,Resources_ESP!BA14:BA29)) -> 363.2548077 | BB25: =IF(StudyType<2,SUM(LT_Resources!BB6,LT_Resources!BB11,LT_Resources!BB13:BB14,LT_Resources!BB18,LT_Resources!BB23,LT_Resources!BB28:BB29),SUM(Resources_ESP!BB9,Resources_ESP!BB11,Resources_ESP!BB14:BB29)) -> 357.8389423 | BC25: =IF(StudyType<2,SUM(LT_Resources!BC6,LT_Resources!BC11,LT_Resources!BC13:BC14,LT_Resources!BC18,LT_Resources!BC23,LT_Resources!BC28:BC29),SUM(Resources_ESP!BC9,Resources_ESP!BC11,Resources_ESP!BC14:BC29)) -> 359.8575 | BD25: =SUMPRODUCT(AR25:BC25,DB_Inputs!AR$8:BC$8)/DB_Inputs!BD$8 -> 453.3978013 | BF25: =IF(StudyType<2,SUM(LT_Resources!BF6,LT_Resources!BF11,LT_Resources!BF13:BF14,LT_Resources!BF18,LT_Resources!BF23,LT_Resources!BF28:BF29),SUM(Resources_ESP!BF9,Resources_ESP!BF11,Resources_ESP!BF14:BF29)) -> 251.3629808 | BG25: =IF(StudyType<2,SUM(LT_Resources!BG6,LT_Resources!BG11,LT_Resources!BG13:BG14,LT_Resources!BG18,LT_Resources!BG23,LT_Resources!BG28:BG29),SUM(Resources_ESP!BG9,Resources_ESP!BG11,Resources_ESP!BG14:BG29)) -> 253.2075 | BH25: =IF(StudyType<2,SUM(LT_Resources!BH6,LT_Resources!BH11,LT_Resources!BH13:BH14,LT_Resources!BH18,LT_Resources!BH23,LT_Resources!BH28:BH29),SUM(Resources_ESP!BH9,Resources_ESP!BH11,Resources_ESP!BH14:BH29)) -> 252.1490385 | BI25: =IF(StudyType<2,SUM(LT_Resources!BI6,LT_Resources!BI11,LT_Resources!BI13:BI14,LT_Resources!BI18,LT_Resources!BI23,LT_Resources!BI28:BI29),SUM(Resources_ESP!BI9,Resources_ESP!BI11,Resources_ESP!BI14:BI29)) -> 248.37 | BJ25: =IF(StudyType<2,SUM(LT_Resources!BJ6,LT_Resources!BJ11,LT_Resources!BJ13:BJ14,LT_Resources!BJ18,LT_Resources!BJ23,LT_Resources!BJ28:BJ29),SUM(Resources_ESP!BJ9,Resources_ESP!BJ11,Resources_ESP!BJ14:BJ29)) -> 252.5364583 | BK25: =IF(StudyType<2,SUM(LT_Resources!BK6,LT_Resources!BK11,LT_Resources!BK13:BK14,LT_Resources!BK18,LT_Resources!BK23,LT_Resources!BK28:BK29),SUM(Resources_ESP!BK9,Resources_ESP!BK11,Resources_ESP!BK14:BK29)) -> 253.3240741 | BL25: =IF(StudyType<2,SUM(LT_Resources!BL6,LT_Resources!BL11,LT_Resources!BL13:BL14,LT_Resources!BL18,LT_Resources!BL23,LT_Resources!BL28:BL29),SUM(Resources_ESP!BL9,Resources_ESP!BL11,Resources_ESP!BL14:BL29)) -> 260.3173077 | BM25: =IF(StudyType<2,SUM(LT_Resources!BM6,LT_Resources!BM11,LT_Resources!BM13:BM14,LT_Resources!BM18,LT_Resources!BM23,LT_Resources!BM28:BM29),SUM(Resources_ESP!BM9,Resources_ESP!BM11,Resources_ESP!BM14:BM29)) -> 259.6375 | BN25: =IF(StudyType<2,SUM(LT_Resources!BN6,LT_Resources!BN11,LT_Resources!BN13:BN14,LT_Resources!BN18,LT_Resources!BN23,LT_Resources!BN28:BN29),SUM(Resources_ESP!BN9,Resources_ESP!BN11,Resources_ESP!BN14:BN29)) -> 258.5552885 | BO25: =IF(StudyType<2,SUM(LT_Resources!BO6,LT_Resources!BO11,LT_Resources!BO13:BO14,LT_Resources!BO18,LT_Resources!BO23,LT_Resources!BO28:BO29),SUM(Resources_ESP!BO9,Resources_ESP!BO11,Resources_ESP!BO14:BO29)) -> 258.72 | BP25: =IF(StudyType<2,SUM(LT_Resources!BP6,LT_Resources!BP11,LT_Resources!BP13:BP14,LT_Resources!BP18,LT_Resources!BP23,LT_Resources!BP28:BP29),SUM(Resources_ESP!BP9,Resources_ESP!BP11,Resources_ESP!BP14:BP29)) -> 252.3148148 | BQ25: =IF(StudyType<2,SUM(LT_Resources!BQ6,LT_Resources!BQ11,LT_Resources!BQ13:BQ14,LT_Resources!BQ18,LT_Resources!BQ23,LT_Resources!BQ28:BQ29),SUM(Resources_ESP!BQ9,Resources_ESP!BQ11,Resources_ESP!BQ14:BQ29)) -> 254.705 | BR25: =SUMPRODUCT(BF25:BQ25,DB_Inputs!BF$8:BQ$8)/DB_Inputs!BR$8 -> 254.5964984 | BT25: =IF(StudyType<2,SUM(LT_Resources!BT6,LT_Resources!BT11,LT_Resources!BT13:BT14,LT_Resources!BT18,LT_Resources!BT23,LT_Resources!BT28:BT29),SUM(Resources_ESP!BT9,Resources_ESP!BT11,Resources_ESP!BT14:BT29)) -> 379.7836538 | BU25: =IF(StudyType<2,SUM(LT_Resources!BU6,LT_Resources!BU11,LT_Resources!BU13:BU14,LT_Resources!BU18,LT_Resources!BU23,LT_Resources!BU28:BU29),SUM(Resources_ESP!BU9,Resources_ESP!BU11,Resources_ESP!BU14:BU29)) -> 381.6275 | BV25: =IF(StudyType<2,SUM(LT_Resources!BV6,LT_Resources!BV11,LT_Resources!BV13:BV14,LT_Resources!BV18,LT_Resources!BV23,LT_Resources!BV28:BV29),SUM(Resources_ESP!BV9,Resources_ESP!BV11,Resources_ESP!BV14:BV29)) -> 380.5697115 | BW25: =IF(StudyType<2,SUM(LT_Resources!BW6,LT_Resources!BW11,LT_Resources!BW13:BW14,LT_Resources!BW18,LT_Resources!BW23,LT_Resources!BW28:BW29),SUM(Resources_ESP!BW9,Resources_ESP!BW11,Resources_ESP!BW14:BW29)) -> 376.79 | BX25: =IF(StudyType<2,SUM(LT_Resources!BX6,LT_Resources!BX11,LT_Resources!BX13:BX14,LT_Resources!BX18,LT_Resources!BX23,LT_Resources!BX28:BX29),SUM(Resources_ESP!BX9,Resources_ESP!BX11,Resources_ESP!BX14:BX29)) -> 380.9583333 | BY25: =IF(StudyType<2,SUM(LT_Resources!BY6,LT_Resources!BY11,LT_Resources!BY13:BY14,LT_Resources!BY18,LT_Resources!BY23,LT_Resources!BY28:BY29),SUM(Resources_ESP!BY9,Resources_ESP!BY11,Resources_ESP!BY14:BY29)) -> 381.7453704 | BZ25: =IF(StudyType<2,SUM(LT_Resources!BZ6,LT_Resources!BZ11,LT_Resources!BZ13:BZ14,LT_Resources!BZ18,LT_Resources!BZ23,LT_Resources!BZ28:BZ29),SUM(Resources_ESP!BZ9,Resources_ESP!BZ11,Resources_ESP!BZ14:BZ29)) -> 389.4475 | CA25: =IF(StudyType<2,SUM(LT_Resources!CA6,LT_Resources!CA11,LT_Resources!CA13:CA14,LT_Resources!CA18,LT_Resources!CA23,LT_Resources!CA28:CA29),SUM(Resources_ESP!CA9,Resources_ESP!CA11,Resources_ESP!CA14:CA29)) -> 387.4038462 | CB25: =IF(StudyType<2,SUM(LT_Resources!CB6,LT_Resources!CB11,LT_Resources!CB13:CB14,LT_Resources!CB18,LT_Resources!CB23,LT_Resources!CB28:CB29),SUM(Resources_ESP!CB9,Resources_ESP!CB11,Resources_ESP!CB14:CB29)) -> 386.9759615 | CC25: =IF(StudyType<2,SUM(LT_Resources!CC6,LT_Resources!CC11,LT_Resources!CC13:CC14,LT_Resources!CC18,LT_Resources!CC23,LT_Resources!CC28:CC29),SUM(Resources_ESP!CC9,Resources_ESP!CC11,Resources_ESP!CC14:CC29)) -> 387.14 | CD25: =IF(StudyType<2,SUM(LT_Resources!CD6,LT_Resources!CD11,LT_Resources!CD13:CD14,LT_Resources!CD18,LT_Resources!CD23,LT_Resources!CD28:CD29),SUM(Resources_ESP!CD9,Resources_ESP!CD11,Resources_ESP!CD14:CD29)) -> 380.7361111 | CE25: =IF(StudyType<2,SUM(LT_Resources!CE6,LT_Resources!CE11,LT_Resources!CE13:CE14,LT_Resources!CE18,LT_Resources!CE23,LT_Resources!CE28:CE29),SUM(Resources_ESP!CE9,Resources_ESP!CE11,Resources_ESP!CE14:CE29)) -> 383.125 | CF25: =SUMPRODUCT(BT25:CE25,DB_Inputs!BT$8:CE$8)/DB_Inputs!CF$8 -> 383.0173046 | CH25: =IF(StudyType<2,SUM(LT_Resources!CH6,LT_Resources!CH11,LT_Resources!CH13:CH14,LT_Resources!CH18,LT_Resources!CH23,LT_Resources!CH28:CH29),SUM(Resources_ESP!CH9,Resources_ESP!CH11,Resources_ESP!CH14:CH29)) -> 251.3629808 | CI25: =IF(StudyType<2,SUM(LT_Resources!CI6,LT_Resources!CI11,LT_Resources!CI13:CI14,LT_Resources!CI18,LT_Resources!CI23,LT_Resources!CI28:CI29),SUM(Resources_ESP!CI9,Resources_ESP!CI11,Resources_ESP!CI14:CI29)) -> 253.2075 | CJ25: =IF(StudyType<2,SUM(LT_Resources!CJ6,LT_Resources!CJ11,LT_Resources!CJ13:CJ14,LT_Resources!CJ18,LT_Resources!CJ23,LT_Resources!CJ28:CJ29),SUM(Resources_ESP!CJ9,Resources_ESP!CJ11,Resources_ESP!CJ14:CJ29)) -> 252.53 | CK25: =IF(StudyType<2,SUM(LT_Resources!CK6,LT_Resources!CK11,LT_Resources!CK13:CK14,LT_Resources!CK18,LT_Resources!CK23,LT_Resources!CK28:CK29),SUM(Resources_ESP!CK9,Resources_ESP!CK11,Resources_ESP!CK14:CK29)) -> 248.1490385 | CL25: =IF(StudyType<2,SUM(LT_Resources!CL6,LT_Resources!CL11,LT_Resources!CL13:CL14,LT_Resources!CL18,LT_Resources!CL23,LT_Resources!CL28:CL29),SUM(Resources_ESP!CL9,Resources_ESP!CL11,Resources_ESP!CL14:CL29)) -> 252.465 | CM25: =IF(StudyType<2,SUM(LT_Resources!CM6,LT_Resources!CM11,LT_Resources!CM13:CM14,LT_Resources!CM18,LT_Resources!CM23,LT_Resources!CM28:CM29),SUM(Resources_ESP!CM9,Resources_ESP!CM11,Resources_ESP!CM14:CM29)) -> 253.7355769 | CN25: =IF(StudyType<2,SUM(LT_Resources!CN6,LT_Resources!CN11,LT_Resources!CN13:CN14,LT_Resources!CN18,LT_Resources!CN23,LT_Resources!CN28:CN29),SUM(Resources_ESP!CN9,Resources_ESP!CN11,Resources_ESP!CN14:CN29)) -> 260.3173077 | CO25: =IF(StudyType<2,SUM(LT_Resources!CO6,LT_Resources!CO11,LT_Resources!CO13:CO14,LT_Resources!CO18,LT_Resources!CO23,LT_Resources!CO28:CO29),SUM(Resources_ESP!CO9,Resources_ESP!CO11,Resources_ESP!CO14:CO29)) -> 258.9831731 | CP25: =IF(StudyType<2,SUM(LT_Resources!CP6,LT_Resources!CP11,LT_Resources!CP13:CP14,LT_Resources!CP18,LT_Resources!CP23,LT_Resources!CP28:CP29),SUM(Resources_ESP!CP9,Resources_ESP!CP11,Resources_ESP!CP14:CP29)) -> 259.1925 | CQ25: =IF(StudyType<2,SUM(LT_Resources!CQ6,LT_Resources!CQ11,LT_Resources!CQ13:CQ14,LT_Resources!CQ18,LT_Resources!CQ23,LT_Resources!CQ28:CQ29),SUM(Resources_ESP!CQ9,Resources_ESP!CQ11,Resources_ESP!CQ14:CQ29)) -> 258.1009615 | CR25: =IF(StudyType<2,SUM(LT_Resources!CR6,LT_Resources!CR11,LT_Resources!CR13:CR14,LT_Resources!CR18,LT_Resources!CR23,LT_Resources!CR28:CR29),SUM(Resources_ESP!CR9,Resources_ESP!CR11,Resources_ESP!CR14:CR29)) -> 252.3148148 | CS25: =IF(StudyType<2,SUM(LT_Resources!CS6,LT_Resources!CS11,LT_Resources!CS13:CS14,LT_Resources!CS18,LT_Resources!CS23,LT_Resources!CS28:CS29),SUM(Resources_ESP!CS9,Resources_ESP!CS11,Resources_ESP!CS14:CS29)) -> 260.0416667 | CT25: =SUMPRODUCT(CH25:CS25,DB_Inputs!CH$8:CS$8)/DB_Inputs!CT$8 -> 255.0008143 | CV25: =IF(StudyType<2,SUM(LT_Resources!CV6,LT_Resources!CV11,LT_Resources!CV13:CV14,LT_Resources!CV18,LT_Resources!CV23,LT_Resources!CV28:CV29),SUM(Resources_ESP!CV9,Resources_ESP!CV11,Resources_ESP!CV14:CV29)) -> 388.6041667 | CW25: =IF(StudyType<2,SUM(LT_Resources!CW6,LT_Resources!CW11,LT_Resources!CW13:CW14,LT_Resources!CW18,LT_Resources!CW23,LT_Resources!CW28:CW29),SUM(Resources_ESP!CW9,Resources_ESP!CW11,Resources_ESP!CW14:CW29)) -> 395.0675 | CX25: =IF(StudyType<2,SUM(LT_Resources!CX6,LT_Resources!CX11,LT_Resources!CX13:CX14,LT_Resources!CX18,LT_Resources!CX23,LT_Resources!CX28:CX29),SUM(Resources_ESP!CX9,Resources_ESP!CX11,Resources_ESP!CX14:CX29)) -> 394.39 | CY25: =IF(StudyType<2,SUM(LT_Resources!CY6,LT_Resources!CY11,LT_Resources!CY13:CY14,LT_Resources!CY18,LT_Resources!CY23,LT_Resources!CY28:CY29),SUM(Resources_ESP!CY9,Resources_ESP!CY11,Resources_ESP!CY14:CY29)) -> 390.0096154 | CZ25: =IF(StudyType<2,SUM(LT_Resources!CZ6,LT_Resources!CZ11,LT_Resources!CZ13:CZ14,LT_Resources!CZ18,LT_Resources!CZ23,LT_Resources!CZ28:CZ29),SUM(Resources_ESP!CZ9,Resources_ESP!CZ11,Resources_ESP!CZ14:CZ29)) -> 399.2317708 | DA25: =IF(StudyType<2,SUM(LT_Resources!DA6,LT_Resources!DA11,LT_Resources!DA13:DA14,LT_Resources!DA18,LT_Resources!DA23,LT_Resources!DA28:DA29),SUM(Resources_ESP!DA9,Resources_ESP!DA11,Resources_ESP!DA14:DA29)) -> 395.5961538 | DB25: =IF(StudyType<2,SUM(LT_Resources!DB6,LT_Resources!DB11,LT_Resources!DB13:DB14,LT_Resources!DB18,LT_Resources!DB23,LT_Resources!DB28:DB29),SUM(Resources_ESP!DB9,Resources_ESP!DB11,Resources_ESP!DB14:DB29)) -> 402.1778846 | DC25: =IF(StudyType<2,SUM(LT_Resources!DC6,LT_Resources!DC11,LT_Resources!DC13:DC14,LT_Resources!DC18,LT_Resources!DC23,LT_Resources!DC28:DC29),SUM(Resources_ESP!DC9,Resources_ESP!DC11,Resources_ESP!DC14:DC29)) -> 400.84375 | DD25: =IF(StudyType<2,SUM(LT_Resources!DD6,LT_Resources!DD11,LT_Resources!DD13:DD14,LT_Resources!DD18,LT_Resources!DD23,LT_Resources!DD28:DD29),SUM(Resources_ESP!DD9,Resources_ESP!DD11,Resources_ESP!DD14:DD29)) -> 401.0525 | DE25: =IF(StudyType<2,SUM(LT_Resources!DE6,LT_Resources!DE11,LT_Resources!DE13:DE14,LT_Resources!DE18,LT_Resources!DE23,LT_Resources!DE28:DE29),SUM(Resources_ESP!DE9,Resources_ESP!DE11,Resources_ESP!DE14:DE29)) -> 399.9615385 | DF25: =IF(StudyType<2,SUM(LT_Resources!DF6,LT_Resources!DF11,LT_Resources!DF13:DF14,LT_Resources!DF18,LT_Resources!DF23,LT_Resources!DF28:DF29),SUM(Resources_ESP!DF9,Resources_ESP!DF11,Resources_ESP!DF14:DF29)) -> 399.0096154 | DG25: =IF(StudyType<2,SUM(LT_Resources!DG6,LT_Resources!DG11,LT_Resources!DG13:DG14,LT_Resources!DG18,LT_Resources!DG23,LT_Resources!DG28:DG29),SUM(Resources_ESP!DG9,Resources_ESP!DG11,Resources_ESP!DG14:DG29)) -> 392.925 | DH25: =SUMPRODUCT(CV25:DG25,DB_Inputs!CV$8:DG$8)/DB_Inputs!DH$8 -> 396.5384772 | DJ25: =IF(StudyType<2,SUM(LT_Resources!DJ6,LT_Resources!DJ11,LT_Resources!DJ13:DJ14,LT_Resources!DJ18,LT_Resources!DJ23,LT_Resources!DJ28:DJ29),SUM(Resources_ESP!DJ9,Resources_ESP!DJ11,Resources_ESP!DJ14:DJ29)) -> 246.7430556 | DK25: =IF(StudyType<2,SUM(LT_Resources!DK6,LT_Resources!DK11,LT_Resources!DK13:DK14,LT_Resources!DK18,LT_Resources!DK23,LT_Resources!DK28:DK29),SUM(Resources_ESP!DK9,Resources_ESP!DK11,Resources_ESP!DK14:DK29)) -> 262.2734375 | DL25: =IF(StudyType<2,SUM(LT_Resources!DL6,LT_Resources!DL11,LT_Resources!DL13:DL14,LT_Resources!DL18,LT_Resources!DL23,LT_Resources!DL28:DL29),SUM(Resources_ESP!DL9,Resources_ESP!DL11,Resources_ESP!DL14:DL29)) -> 244.1875 | DM25: =IF(StudyType<2,SUM(LT_Resources!DM6,LT_Resources!DM11,LT_Resources!DM13:DM14,LT_Resources!DM18,LT_Resources!DM23,LT_Resources!DM28:DM29),SUM(Resources_ESP!DM9,Resources_ESP!DM11,Resources_ESP!DM14:DM29)) -> 248.1490385 | DN25: =IF(StudyType<2,SUM(LT_Resources!DN6,LT_Resources!DN11,LT_Resources!DN13:DN14,LT_Resources!DN18,LT_Resources!DN23,LT_Resources!DN28:DN29),SUM(Resources_ESP!DN9,Resources_ESP!DN11,Resources_ESP!DN14:DN29)) -> 257.3697917 | DO25: =IF(StudyType<2,SUM(LT_Resources!DO6,LT_Resources!DO11,LT_Resources!DO13:DO14,LT_Resources!DO18,LT_Resources!DO23,LT_Resources!DO28:DO29),SUM(Resources_ESP!DO9,Resources_ESP!DO11,Resources_ESP!DO14:DO29)) -> 253.7355769 | DP25: =IF(StudyType<2,SUM(LT_Resources!DP6,LT_Resources!DP11,LT_Resources!DP13:DP14,LT_Resources!DP18,LT_Resources!DP23,LT_Resources!DP28:DP29),SUM(Resources_ESP!DP9,Resources_ESP!DP11,Resources_ESP!DP14:DP29)) -> 260.3173077 | DQ25: =IF(StudyType<2,SUM(LT_Resources!DQ6,LT_Resources!DQ11,LT_Resources!DQ13:DQ14,LT_Resources!DQ18,LT_Resources!DQ23,LT_Resources!DQ28:DQ29),SUM(Resources_ESP!DQ9,Resources_ESP!DQ11,Resources_ESP!DQ14:DQ29)) -> 267.9175 | DR25: =IF(StudyType<2,SUM(LT_Resources!DR6,LT_Resources!DR11,LT_Resources!DR13:DR14,LT_Resources!DR18,LT_Resources!DR23,LT_Resources!DR28:DR29),SUM(Resources_ESP!DR9,Resources_ESP!DR11,Resources_ESP!DR14:DR29)) -> 250.59375 | DS25: =IF(StudyType<2,SUM(LT_Resources!DS6,LT_Resources!DS11,LT_Resources!DS13:DS14,LT_Resources!DS18,LT_Resources!DS23,LT_Resources!DS28:DS29),SUM(Resources_ESP!DS9,Resources_ESP!DS11,Resources_ESP!DS14:DS29)) -> 258.1009615 | DT25: =IF(StudyType<2,SUM(LT_Resources!DT6,LT_Resources!DT11,LT_Resources!DT13:DT14,LT_Resources!DT18,LT_Resources!DT23,LT_Resources!DT28:DT29),SUM(Resources_ESP!DT9,Resources_ESP!DT11,Resources_ESP!DT14:DT29)) -> 257.1490385 | DU25: =IF(StudyType<2,SUM(LT_Resources!DU6,LT_Resources!DU11,LT_Resources!DU13:DU14,LT_Resources!DU18,LT_Resources!DU23,LT_Resources!DU28:DU29),SUM(Resources_ESP!DU9,Resources_ESP!DU11,Resources_ESP!DU14:DU29)) -> 254.345 | DV25: =SUMPRODUCT(DJ25:DU25,DB_Inputs!DJ$8:DU$8)/DB_Inputs!DV$8 -> 254.9450326 | DX25: =IF(StudyType<2,SUM(LT_Resources!DX6,LT_Resources!DX11,LT_Resources!DX13:DX14,LT_Resources!DX18,LT_Resources!DX23,LT_Resources!DX28:DX29),SUM(Resources_ESP!DX9,Resources_ESP!DX11,Resources_ESP!DX14:DX29)) -> 385.2847222 | DY25: =IF(StudyType<2,SUM(LT_Resources!DY6,LT_Resources!DY11,LT_Resources!DY13:DY14,LT_Resources!DY18,LT_Resources!DY23,LT_Resources!DY28:DY29),SUM(Resources_ESP!DY9,Resources_ESP!DY11,Resources_ESP!DY14:DY29)) -> 407.0807292 | DZ25: =IF(StudyType<2,SUM(LT_Resources!DZ6,LT_Resources!DZ11,LT_Resources!DZ13:DZ14,LT_Resources!DZ18,LT_Resources!DZ23,LT_Resources!DZ28:DZ29),SUM(Resources_ESP!DZ9,Resources_ESP!DZ11,Resources_ESP!DZ14:DZ29)) -> 388.8629808 | EA25: =IF(StudyType<2,SUM(LT_Resources!EA6,LT_Resources!EA11,LT_Resources!EA13:EA14,LT_Resources!EA18,LT_Resources!EA23,LT_Resources!EA28:EA29),SUM(Resources_ESP!EA9,Resources_ESP!EA11,Resources_ESP!EA14:EA29)) -> 399.7475 | EB25: =IF(StudyType<2,SUM(LT_Resources!EB6,LT_Resources!EB11,LT_Resources!EB13:EB14,LT_Resources!EB18,LT_Resources!EB23,LT_Resources!EB28:EB29),SUM(Resources_ESP!EB9,Resources_ESP!EB11,Resources_ESP!EB14:EB29)) -> 402.1770833 | EC25: =IF(StudyType<2,SUM(LT_Resources!EC6,LT_Resources!EC11,LT_Resources!EC13:EC14,LT_Resources!EC18,LT_Resources!EC23,LT_Resources!EC28:EC29),SUM(Resources_ESP!EC9,Resources_ESP!EC11,Resources_ESP!EC14:EC29)) -> 388.7546296 | ED25: =IF(StudyType<2,SUM(LT_Resources!ED6,LT_Resources!ED11,LT_Resources!ED13:ED14,LT_Resources!ED18,LT_Resources!ED23,LT_Resources!ED28:ED29),SUM(Resources_ESP!ED9,Resources_ESP!ED11,Resources_ESP!ED14:ED29)) -> 403.4134615 | EE25: =IF(StudyType<2,SUM(LT_Resources!EE6,LT_Resources!EE11,LT_Resources!EE13:EE14,LT_Resources!EE18,LT_Resources!EE23,LT_Resources!EE28:EE29),SUM(Resources_ESP!EE9,Resources_ESP!EE11,Resources_ESP!EE14:EE29)) -> 407.735 | EF25: =IF(StudyType<2,SUM(LT_Resources!EF6,LT_Resources!EF11,LT_Resources!EF13:EF14,LT_Resources!EF18,LT_Resources!EF23,LT_Resources!EF28:EF29),SUM(Resources_ESP!EF9,Resources_ESP!EF11,Resources_ESP!EF14:EF29)) -> 396.8461538 | EG25: =IF(StudyType<2,SUM(LT_Resources!EG6,LT_Resources!EG11,LT_Resources!EG13:EG14,LT_Resources!EG18,LT_Resources!EG23,LT_Resources!EG28:EG29),SUM(Resources_ESP!EG9,Resources_ESP!EG11,Resources_ESP!EG14:EG29)) -> 399.6225962 | EH25: =IF(StudyType<2,SUM(LT_Resources!EH6,LT_Resources!EH11,LT_Resources!EH13:EH14,LT_Resources!EH18,LT_Resources!EH23,LT_Resources!EH28:EH29),SUM(Resources_ESP!EH9,Resources_ESP!EH11,Resources_ESP!EH14:EH29)) -> 398.6706731 | EI25: =IF(StudyType<2,SUM(LT_Resources!EI6,LT_Resources!EI11,LT_Resources!EI13:EI14,LT_Resources!EI18,LT_Resources!EI23,LT_Resources!EI28:EI29),SUM(Resources_ESP!EI9,Resources_ESP!EI11,Resources_ESP!EI14:EI29)) -> 397.4425 | EJ25: =SUMPRODUCT(DX25:EI25,DB_Inputs!DX$8:EI$8)/DB_Inputs!EJ$8 -> 397.775855 | EL25: =IF(StudyType<2,SUM(LT_Resources!EL6,LT_Resources!EL11,LT_Resources!EL13:EL14,LT_Resources!EL18,LT_Resources!EL23,LT_Resources!EL28:EL29),SUM(Resources_ESP!EL9,Resources_ESP!EL11,Resources_ESP!EL14:EL29)) -> 242.8413462 | EM25: =IF(StudyType<2,SUM(LT_Resources!EM6,LT_Resources!EM11,LT_Resources!EM13:EM14,LT_Resources!EM18,LT_Resources!EM23,LT_Resources!EM28:EM29),SUM(Resources_ESP!EM9,Resources_ESP!EM11,Resources_ESP!EM14:EM29)) -> 244.49 | EN25: =IF(StudyType<2,SUM(LT_Resources!EN6,LT_Resources!EN11,LT_Resources!EN13:EN14,LT_Resources!EN18,LT_Resources!EN23,LT_Resources!EN28:EN29),SUM(Resources_ESP!EN9,Resources_ESP!EN11,Resources_ESP!EN14:EN29)) -> 236.8197115 | EO25: =IF(StudyType<2,SUM(LT_Resources!EO6,LT_Resources!EO11,LT_Resources!EO13:EO14,LT_Resources!EO18,LT_Resources!EO23,LT_Resources!EO28:EO29),SUM(Resources_ESP!EO9,Resources_ESP!EO11,Resources_ESP!EO14:EO29)) -> 251.5275 | EP25: =IF(StudyType<2,SUM(LT_Resources!EP6,LT_Resources!EP11,LT_Resources!EP13:EP14,LT_Resources!EP18,LT_Resources!EP23,LT_Resources!EP28:EP29),SUM(Resources_ESP!EP9,Resources_ESP!EP11,Resources_ESP!EP14:EP29)) -> 241.035 | EQ25: =IF(StudyType<2,SUM(LT_Resources!EQ6,LT_Resources!EQ11,LT_Resources!EQ13:EQ14,LT_Resources!EQ18,LT_Resources!EQ23,LT_Resources!EQ28:EQ29),SUM(Resources_ESP!EQ9,Resources_ESP!EQ11,Resources_ESP!EQ14:EQ29)) -> 235.4236111 | ER25: =IF(StudyType<2,SUM(LT_Resources!ER6,LT_Resources!ER11,LT_Resources!ER13:ER14,LT_Resources!ER18,LT_Resources!ER23,LT_Resources!ER28:ER29),SUM(Resources_ESP!ER9,Resources_ESP!ER11,Resources_ESP!ER14:ER29)) -> 251.385 | ES25: =IF(StudyType<2,SUM(LT_Resources!ES6,LT_Resources!ES11,LT_Resources!ES13:ES14,LT_Resources!ES18,LT_Resources!ES23,LT_Resources!ES28:ES29),SUM(Resources_ESP!ES9,Resources_ESP!ES11,Resources_ESP!ES14:ES29)) -> 239.6802885 | ET25: =IF(StudyType<2,SUM(LT_Resources!ET6,LT_Resources!ET11,LT_Resources!ET13:ET14,LT_Resources!ET18,LT_Resources!ET23,LT_Resources!ET28:ET29),SUM(Resources_ESP!ET9,Resources_ESP!ET11,Resources_ESP!ET14:ET29)) -> 237.9086538 | EU25: =IF(StudyType<2,SUM(LT_Resources!EU6,LT_Resources!EU11,LT_Resources!EU13:EU14,LT_Resources!EU18,LT_Resources!EU23,LT_Resources!EU28:EU29),SUM(Resources_ESP!EU9,Resources_ESP!EU11,Resources_ESP!EU14:EU29)) -> 249.2725 | EV25: =IF(StudyType<2,SUM(LT_Resources!EV6,LT_Resources!EV11,LT_Resources!EV13:EV14,LT_Resources!EV18,LT_Resources!EV23,LT_Resources!EV28:EV29),SUM(Resources_ESP!EV9,Resources_ESP!EV11,Resources_ESP!EV14:EV29)) -> 237.7453704 | EW25: =IF(StudyType<2,SUM(LT_Resources!EW6,LT_Resources!EW11,LT_Resources!EW13:EW14,LT_Resources!EW18,LT_Resources!EW23,LT_Resources!EW28:EW29),SUM(Resources_ESP!EW9,Resources_ESP!EW11,Resources_ESP!EW14:EW29)) -> 242.27 | EX25: =SUMPRODUCT(EL25:EW25,DB_Inputs!EL$8:EW$8)/DB_Inputs!EX$8 -> 242.414164 | EZ25: =IF(StudyType<2,SUM(LT_Resources!EZ6,LT_Resources!EZ11,LT_Resources!EZ13:EZ14,LT_Resources!EZ18,LT_Resources!EZ23,LT_Resources!EZ28:EZ29),SUM(Resources_ESP!EZ9,Resources_ESP!EZ11,Resources_ESP!EZ14:EZ29)) -> 396.71875 | FA25: =IF(StudyType<2,SUM(LT_Resources!FA6,LT_Resources!FA11,LT_Resources!FA13:FA14,LT_Resources!FA18,LT_Resources!FA23,LT_Resources!FA28:FA29),SUM(Resources_ESP!FA9,Resources_ESP!FA11,Resources_ESP!FA14:FA29)) -> 399.765 | FB25: =IF(StudyType<2,SUM(LT_Resources!FB6,LT_Resources!FB11,LT_Resources!FB13:FB14,LT_Resources!FB18,LT_Resources!FB23,LT_Resources!FB28:FB29),SUM(Resources_ESP!FB9,Resources_ESP!FB11,Resources_ESP!FB14:FB29)) -> 400.1425 | FC25: =IF(StudyType<2,SUM(LT_Resources!FC6,LT_Resources!FC11,LT_Resources!FC13:FC14,LT_Resources!FC18,LT_Resources!FC23,LT_Resources!FC28:FC29),SUM(Resources_ESP!FC9,Resources_ESP!FC11,Resources_ESP!FC14:FC29)) -> 398.4975962 | FD25: =IF(StudyType<2,SUM(LT_Resources!FD6,LT_Resources!FD11,LT_Resources!FD13:FD14,LT_Resources!FD18,LT_Resources!FD23,LT_Resources!FD28:FD29),SUM(Resources_ESP!FD9,Resources_ESP!FD11,Resources_ESP!FD14:FD29)) -> 404.8697917 | FE25: =IF(StudyType<2,SUM(LT_Resources!FE6,LT_Resources!FE11,LT_Resources!FE13:FE14,LT_Resources!FE18,LT_Resources!FE23,LT_Resources!FE28:FE29),SUM(Resources_ESP!FE9,Resources_ESP!FE11,Resources_ESP!FE14:FE29)) -> 390.6990741 | FF25: =IF(StudyType<2,SUM(LT_Resources!FF6,LT_Resources!FF11,LT_Resources!FF13:FF14,LT_Resources!FF18,LT_Resources!FF23,LT_Resources!FF28:FF29),SUM(Resources_ESP!FF9,Resources_ESP!FF11,Resources_ESP!FF14:FF29)) -> 406.66 | FG25: =IF(StudyType<2,SUM(LT_Resources!FG6,LT_Resources!FG11,LT_Resources!FG13:FG14,LT_Resources!FG18,LT_Resources!FG23,LT_Resources!FG28:FG29),SUM(Resources_ESP!FG9,Resources_ESP!FG11,Resources_ESP!FG14:FG29)) -> 394.9543269 | FH25: =IF(StudyType<2,SUM(LT_Resources!FH6,LT_Resources!FH11,LT_Resources!FH13:FH14,LT_Resources!FH18,LT_Resources!FH23,LT_Resources!FH28:FH29),SUM(Resources_ESP!FH9,Resources_ESP!FH11,Resources_ESP!FH14:FH29)) -> 393.1826923 | FI25: =IF(StudyType<2,SUM(LT_Resources!FI6,LT_Resources!FI11,LT_Resources!FI13:FI14,LT_Resources!FI18,LT_Resources!FI23,LT_Resources!FI28:FI29),SUM(Resources_ESP!FI9,Resources_ESP!FI11,Resources_ESP!FI14:FI29)) -> 404.5475 | FJ25: =IF(StudyType<2,SUM(LT_Resources!FJ6,LT_Resources!FJ11,LT_Resources!FJ13:FJ14,LT_Resources!FJ18,LT_Resources!FJ23,LT_Resources!FJ28:FJ29),SUM(Resources_ESP!FJ9,Resources_ESP!FJ11,Resources_ESP!FJ14:FJ29)) -> 393.0208333 | FK25: =IF(StudyType<2,SUM(LT_Resources!FK6,LT_Resources!FK11,LT_Resources!FK13:FK14,LT_Resources!FK18,LT_Resources!FK23,LT_Resources!FK28:FK29),SUM(Resources_ESP!FK9,Resources_ESP!FK11,Resources_ESP!FK14:FK29)) -> 406.15625 | FL25: =SUMPRODUCT(EZ25:FK25,DB_Inputs!EZ$8:FK$8)/DB_Inputs!FL$8 -> 398.9219771 | FN25: =IF(StudyType<2,SUM(LT_Resources!FN6,LT_Resources!FN11,LT_Resources!FN13:FN14,LT_Resources!FN18,LT_Resources!FN23,LT_Resources!FN28:FN29),SUM(Resources_ESP!FN9,Resources_ESP!FN11,Resources_ESP!FN14:FN29)) -> 233.8217593 | FO25: =IF(StudyType<2,SUM(LT_Resources!FO6,LT_Resources!FO11,LT_Resources!FO13:FO14,LT_Resources!FO18,LT_Resources!FO23,LT_Resources!FO28:FO29),SUM(Resources_ESP!FO9,Resources_ESP!FO11,Resources_ESP!FO14:FO29)) -> 244.49 | FP25: =IF(StudyType<2,SUM(LT_Resources!FP6,LT_Resources!FP11,LT_Resources!FP13:FP14,LT_Resources!FP18,LT_Resources!FP23,LT_Resources!FP28:FP29),SUM(Resources_ESP!FP9,Resources_ESP!FP11,Resources_ESP!FP14:FP29)) -> 244.8675 | FQ25: =IF(StudyType<2,SUM(LT_Resources!FQ6,LT_Resources!FQ11,LT_Resources!FQ13:FQ14,LT_Resources!FQ18,LT_Resources!FQ23,LT_Resources!FQ28:FQ29),SUM(Resources_ESP!FQ9,Resources_ESP!FQ11,Resources_ESP!FQ14:FQ29)) -> 243.2235577 | FR25: =IF(StudyType<2,SUM(LT_Resources!FR6,LT_Resources!FR11,LT_Resources!FR13:FR14,LT_Resources!FR18,LT_Resources!FR23,LT_Resources!FR28:FR29),SUM(Resources_ESP!FR9,Resources_ESP!FR11,Resources_ESP!FR14:FR29)) -> 249.59375 | FS25: =IF(StudyType<2,SUM(LT_Resources!FS6,LT_Resources!FS11,LT_Resources!FS13:FS14,LT_Resources!FS18,LT_Resources!FS23,LT_Resources!FS28:FS29),SUM(Resources_ESP!FS9,Resources_ESP!FS11,Resources_ESP!FS14:FS29)) -> 243.1081731 | FT25: =IF(StudyType<2,SUM(LT_Resources!FT6,LT_Resources!FT11,LT_Resources!FT13:FT14,LT_Resources!FT18,LT_Resources!FT23,LT_Resources!FT28:FT29),SUM(Resources_ESP!FT9,Resources_ESP!FT11,Resources_ESP!FT14:FT29)) -> 243.0865385 | FU25: =IF(StudyType<2,SUM(LT_Resources!FU6,LT_Resources!FU11,LT_Resources!FU13:FU14,LT_Resources!FU18,LT_Resources!FU23,LT_Resources!FU28:FU29),SUM(Resources_ESP!FU9,Resources_ESP!FU11,Resources_ESP!FU14:FU29)) -> 239.6802885 | FV25: =IF(StudyType<2,SUM(LT_Resources!FV6,LT_Resources!FV11,LT_Resources!FV13:FV14,LT_Resources!FV18,LT_Resources!FV23,LT_Resources!FV28:FV29),SUM(Resources_ESP!FV9,Resources_ESP!FV11,Resources_ESP!FV14:FV29)) -> 246 | FW25: =IF(StudyType<2,SUM(LT_Resources!FW6,LT_Resources!FW11,LT_Resources!FW13:FW14,LT_Resources!FW18,LT_Resources!FW23,LT_Resources!FW28:FW29),SUM(Resources_ESP!FW9,Resources_ESP!FW11,Resources_ESP!FW14:FW29)) -> 241.0552885 | FX25: =IF(StudyType<2,SUM(LT_Resources!FX6,LT_Resources!FX11,LT_Resources!FX13:FX14,LT_Resources!FX18,LT_Resources!FX23,LT_Resources!FX28:FX29),SUM(Resources_ESP!FX9,Resources_ESP!FX11,Resources_ESP!FX14:FX29)) -> 237.7453704 | FY25: =IF(StudyType<2,SUM(LT_Resources!FY6,LT_Resources!FY11,LT_Resources!FY13:FY14,LT_Resources!FY18,LT_Resources!FY23,LT_Resources!FY28:FY29),SUM(Resources_ESP!FY9,Resources_ESP!FY11,Resources_ESP!FY14:FY29)) -> 250.8802083 | FZ25: =SUMPRODUCT(FN25:FY25,DB_Inputs!FN$8:FY$8)/DB_Inputs!FZ$8 -> 242.9694625 | GB25: =IF(StudyType<2,SUM(LT_Resources!GB6,LT_Resources!GB11,LT_Resources!GB13:GB14,LT_Resources!GB18,LT_Resources!GB23,LT_Resources!GB28:GB29),SUM(Resources_ESP!GB9,Resources_ESP!GB11,Resources_ESP!GB14:GB29)) -> 399.6458333 | GC25: =IF(StudyType<2,SUM(LT_Resources!GC6,LT_Resources!GC11,LT_Resources!GC13:GC14,LT_Resources!GC18,LT_Resources!GC23,LT_Resources!GC28:GC29),SUM(Resources_ESP!GC9,Resources_ESP!GC11,Resources_ESP!GC14:GC29)) -> 410.315 | GD25: =IF(StudyType<2,SUM(LT_Resources!GD6,LT_Resources!GD11,LT_Resources!GD13:GD14,LT_Resources!GD18,LT_Resources!GD23,LT_Resources!GD28:GD29),SUM(Resources_ESP!GD9,Resources_ESP!GD11,Resources_ESP!GD14:GD29)) -> 410.6925 | GE25: =IF(StudyType<2,SUM(LT_Resources!GE6,LT_Resources!GE11,LT_Resources!GE13:GE14,LT_Resources!GE18,LT_Resources!GE23,LT_Resources!GE28:GE29),SUM(Resources_ESP!GE9,Resources_ESP!GE11,Resources_ESP!GE14:GE29)) -> 409.0480769 | GF25: =IF(StudyType<2,SUM(LT_Resources!GF6,LT_Resources!GF11,LT_Resources!GF13:GF14,LT_Resources!GF18,LT_Resources!GF23,LT_Resources!GF28:GF29),SUM(Resources_ESP!GF9,Resources_ESP!GF11,Resources_ESP!GF14:GF29)) -> 413.7083333 | GG25: =IF(StudyType<2,SUM(LT_Resources!GG6,LT_Resources!GG11,LT_Resources!GG13:GG14,LT_Resources!GG18,LT_Resources!GG23,LT_Resources!GG28:GG29),SUM(Resources_ESP!GG9,Resources_ESP!GG11,Resources_ESP!GG14:GG29)) -> 408.9326923 | GH25: =IF(StudyType<2,SUM(LT_Resources!GH6,LT_Resources!GH11,LT_Resources!GH13:GH14,LT_Resources!GH18,LT_Resources!GH23,LT_Resources!GH28:GH29),SUM(Resources_ESP!GH9,Resources_ESP!GH11,Resources_ESP!GH14:GH29)) -> 408.9086538 | GI25: =IF(StudyType<2,SUM(LT_Resources!GI6,LT_Resources!GI11,LT_Resources!GI13:GI14,LT_Resources!GI18,LT_Resources!GI23,LT_Resources!GI28:GI29),SUM(Resources_ESP!GI9,Resources_ESP!GI11,Resources_ESP!GI14:GI29)) -> 408.6586538 | GJ25: =IF(StudyType<2,SUM(LT_Resources!GJ6,LT_Resources!GJ11,LT_Resources!GJ13:GJ14,LT_Resources!GJ18,LT_Resources!GJ23,LT_Resources!GJ28:GJ29),SUM(Resources_ESP!GJ9,Resources_ESP!GJ11,Resources_ESP!GJ14:GJ29)) -> 408.545 | GK25: =IF(StudyType<2,SUM(LT_Resources!GK6,LT_Resources!GK11,LT_Resources!GK13:GK14,LT_Resources!GK18,LT_Resources!GK23,LT_Resources!GK28:GK29),SUM(Resources_ESP!GK9,Resources_ESP!GK11,Resources_ESP!GK14:GK29)) -> 408.4567308 | GL25: =IF(StudyType<2,SUM(LT_Resources!GL6,LT_Resources!GL11,LT_Resources!GL13:GL14,LT_Resources!GL18,LT_Resources!GL23,LT_Resources!GL28:GL29),SUM(Resources_ESP!GL9,Resources_ESP!GL11,Resources_ESP!GL14:GL29)) -> 413.0192308 | GM25: =IF(StudyType<2,SUM(LT_Resources!GM6,LT_Resources!GM11,LT_Resources!GM13:GM14,LT_Resources!GM18,LT_Resources!GM23,LT_Resources!GM28:GM29),SUM(Resources_ESP!GM9,Resources_ESP!GM11,Resources_ESP!GM14:GM29)) -> 404.71 | GN25: =SUMPRODUCT(GB25:GM25,DB_Inputs!GB$8:GM$8)/DB_Inputs!GN$8 -> 408.6600163 | GP25: =IF(StudyType<2,SUM(LT_Resources!GP6,LT_Resources!GP11,LT_Resources!GP13:GP14,LT_Resources!GP18,LT_Resources!GP23,LT_Resources!GP28:GP29),SUM(Resources_ESP!GP9,Resources_ESP!GP11,Resources_ESP!GP14:GP29)) -> 0 | GQ25: =IF(StudyType<2,SUM(LT_Resources!GQ6,LT_Resources!GQ11,LT_Resources!GQ13:GQ14,LT_Resources!GQ18,LT_Resources!GQ23,LT_Resources!GQ28:GQ29),SUM(Resources_ESP!GQ9,Resources_ESP!GQ11,Resources_ESP!GQ14:GQ29)) -> 54.76375 | GR25: =IF(StudyType<2,SUM(LT_Resources!GR6,LT_Resources!GR11,LT_Resources!GR13:GR14,LT_Resources!GR18,LT_Resources!GR23,LT_Resources!GR28:GR29),SUM(Resources_ESP!GR9,Resources_ESP!GR11,Resources_ESP!GR14:GR29)) -> 0 | GS25: =IF(StudyType<2,SUM(LT_Resources!GS6,LT_Resources!GS11,LT_Resources!GS13:GS14,LT_Resources!GS18,LT_Resources!GS23,LT_Resources!GS28:GS29),SUM(Resources_ESP!GS9,Resources_ESP!GS11,Resources_ESP!GS14:GS29)) -> 0 | GT25: =IF(StudyType<2,SUM(LT_Resources!GT6,LT_Resources!GT11,LT_Resources!GT13:GT14,LT_Resources!GT18,LT_Resources!GT23,LT_Resources!GT28:GT29),SUM(Resources_ESP!GT9,Resources_ESP!GT11,Resources_ESP!GT14:GT29)) -> 0 | GU25: =IF(StudyType<2,SUM(LT_Resources!GU6,LT_Resources!GU11,LT_Resources!GU13:GU14,LT_Resources!GU18,LT_Resources!GU23,LT_Resources!GU28:GU29),SUM(Resources_ESP!GU9,Resources_ESP!GU11,Resources_ESP!GU14:GU29)) -> 0 | GV25: =IF(StudyType<2,SUM(LT_Resources!GV6,LT_Resources!GV11,LT_Resources!GV13:GV14,LT_Resources!GV18,LT_Resources!GV23,LT_Resources!GV28:GV29),SUM(Resources_ESP!GV9,Resources_ESP!GV11,Resources_ESP!GV14:GV29)) -> 0 | GW25: =IF(StudyType<2,SUM(LT_Resources!GW6,LT_Resources!GW11,LT_Resources!GW13:GW14,LT_Resources!GW18,LT_Resources!GW23,LT_Resources!GW28:GW29),SUM(Resources_ESP!GW9,Resources_ESP!GW11,Resources_ESP!GW14:GW29)) -> 0 | GX25: =IF(StudyType<2,SUM(LT_Resources!GX6,LT_Resources!GX11,LT_Resources!GX13:GX14,LT_Resources!GX18,LT_Resources!GX23,LT_Resources!GX28:GX29),SUM(Resources_ESP!GX9,Resources_ESP!GX11,Resources_ESP!GX14:GX29)) -> 0 | GY25: =IF(StudyType<2,SUM(LT_Resources!GY6,LT_Resources!GY11,LT_Resources!GY13:GY14,LT_Resources!GY18,LT_Resources!GY23,LT_Resources!GY28:GY29),SUM(Resources_ESP!GY9,Resources_ESP!GY11,Resources_ESP!GY14:GY29)) -> 0 | GZ25: =IF(StudyType<2,SUM(LT_Resources!GZ6,LT_Resources!GZ11,LT_Resources!GZ13:GZ14,LT_Resources!GZ18,LT_Resources!GZ23,LT_Resources!GZ28:GZ29),SUM(Resources_ESP!GZ9,Resources_ESP!GZ11,Resources_ESP!GZ14:GZ29)) -> 0 | HA25: =IF(StudyType<2,SUM(LT_Resources!HA6,LT_Resources!HA11,LT_Resources!HA13:HA14,LT_Resources!HA18,LT_Resources!HA23,LT_Resources!HA28:HA29),SUM(Resources_ESP!HA9,Resources_ESP!HA11,Resources_ESP!HA14:HA29)) -> 0 | HB25: =SUMPRODUCT(GP25:HA25,DB_Inputs!GP$8:HA$8)/DB_Inputs!HB$8 -> 4.267305195
A26: Static Non-Hydro Resources LLH | B26: =IF(DB_Inputs!B$18=0,0,IF(StudyType<2,SUM(LT_Resources!B36,LT_Resources!B41,LT_Resources!B43:B44,LT_Resources!B48,LT_Resources!B53,LT_Resources!B58:B59),SUM(Resources_ESP!B32,Resources_ESP!B34,Resources_ESP!B37:B52))) -> 139.2906707 | C26: =IF(DB_Inputs!C$18=0,0,IF(StudyType<2,SUM(LT_Resources!C36,LT_Resources!C41,LT_Resources!C43:C44,LT_Resources!C48,LT_Resources!C53,LT_Resources!C58:C59),SUM(Resources_ESP!C32,Resources_ESP!C34,Resources_ESP!C37:C52))) -> 154.0879128 | D26: =IF(DB_Inputs!D$18=0,0,IF(StudyType<2,SUM(LT_Resources!D36,LT_Resources!D41,LT_Resources!D43:D44,LT_Resources!D48,LT_Resources!D53,LT_Resources!D58:D59),SUM(Resources_ESP!D32,Resources_ESP!D34,Resources_ESP!D37:D52))) -> 142.2651745 | E26: =IF(DB_Inputs!E$18=0,0,IF(StudyType<2,SUM(LT_Resources!E36,LT_Resources!E41,LT_Resources!E43:E44,LT_Resources!E48,LT_Resources!E53,LT_Resources!E58:E59),SUM(Resources_ESP!E32,Resources_ESP!E34,Resources_ESP!E37:E52))) -> 137.3909147 | F26: =IF(DB_Inputs!F$18=0,0,IF(StudyType<2,SUM(LT_Resources!F36,LT_Resources!F41,LT_Resources!F43:F44,LT_Resources!F48,LT_Resources!F53,LT_Resources!F58:F59),SUM(Resources_ESP!F32,Resources_ESP!F34,Resources_ESP!F37:F52))) -> 121.3862847 | G26: =IF(DB_Inputs!G$18=0,0,IF(StudyType<2,SUM(LT_Resources!G36,LT_Resources!G41,LT_Resources!G43:G44,LT_Resources!G48,LT_Resources!G53,LT_Resources!G58:G59),SUM(Resources_ESP!G32,Resources_ESP!G34,Resources_ESP!G37:G52))) -> 142.5573312 | H26: =IF(DB_Inputs!H$18=0,0,IF(StudyType<2,SUM(LT_Resources!H36,LT_Resources!H41,LT_Resources!H43:H44,LT_Resources!H48,LT_Resources!H53,LT_Resources!H58:H59),SUM(Resources_ESP!H32,Resources_ESP!H34,Resources_ESP!H37:H52))) -> 105.1543125 | I26: =IF(DB_Inputs!I$18=0,0,IF(StudyType<2,SUM(LT_Resources!I36,LT_Resources!I41,LT_Resources!I43:I44,LT_Resources!I48,LT_Resources!I53,LT_Resources!I58:I59),SUM(Resources_ESP!I32,Resources_ESP!I34,Resources_ESP!I37:I52))) -> 120.6570123 | J26: =IF(DB_Inputs!J$18=0,0,IF(StudyType<2,SUM(LT_Resources!J36,LT_Resources!J41,LT_Resources!J43:J44,LT_Resources!J48,LT_Resources!J53,LT_Resources!J58:J59),SUM(Resources_ESP!J32,Resources_ESP!J34,Resources_ESP!J37:J52))) -> 122.218717 | K26: =IF(DB_Inputs!K$18=0,0,IF(StudyType<2,SUM(LT_Resources!K36,LT_Resources!K41,LT_Resources!K43:K44,LT_Resources!K48,LT_Resources!K53,LT_Resources!K58:K59),SUM(Resources_ESP!K32,Resources_ESP!K34,Resources_ESP!K37:K52))) -> 122.4463955 | L26: =IF(DB_Inputs!L$18=0,0,IF(StudyType<2,SUM(LT_Resources!L36,LT_Resources!L41,LT_Resources!L43:L44,LT_Resources!L48,LT_Resources!L53,LT_Resources!L58:L59),SUM(Resources_ESP!L32,Resources_ESP!L34,Resources_ESP!L37:L52))) -> 109.2163463 | M26: =IF(DB_Inputs!M$18=0,0,IF(StudyType<2,SUM(LT_Resources!M36,LT_Resources!M41,LT_Resources!M43:M44,LT_Resources!M48,LT_Resources!M53,LT_Resources!M58:M59),SUM(Resources_ESP!M32,Resources_ESP!M34,Resources_ESP!M37:M52))) -> 103.4806249 | N26: =SUMPRODUCT(B26:M26,DB_Inputs!B$13:M$13)/DB_Inputs!N$13 -> 126.7581522 | P26: =IF(DB_Inputs!P$18=0,0,IF(StudyType<2,SUM(LT_Resources!P36,LT_Resources!P41,LT_Resources!P43:P44,LT_Resources!P48,LT_Resources!P53,LT_Resources!P58:P59),SUM(Resources_ESP!P32,Resources_ESP!P34,Resources_ESP!P37:P52))) -> 191.661346 | Q26: =IF(DB_Inputs!Q$18=0,0,IF(StudyType<2,SUM(LT_Resources!Q36,LT_Resources!Q41,LT_Resources!Q43:Q44,LT_Resources!Q48,LT_Resources!Q53,LT_Resources!Q58:Q59),SUM(Resources_ESP!Q32,Resources_ESP!Q34,Resources_ESP!Q37:Q52))) -> 205.7742057 | R26: =IF(DB_Inputs!R$18=0,0,IF(StudyType<2,SUM(LT_Resources!R36,LT_Resources!R41,LT_Resources!R43:R44,LT_Resources!R48,LT_Resources!R53,LT_Resources!R58:R59),SUM(Resources_ESP!R32,Resources_ESP!R34,Resources_ESP!R37:R52))) -> 193.951221 | S26: =IF(DB_Inputs!S$18=0,0,IF(StudyType<2,SUM(LT_Resources!S36,LT_Resources!S41,LT_Resources!S43:S44,LT_Resources!S48,LT_Resources!S53,LT_Resources!S58:S59),SUM(Resources_ESP!S32,Resources_ESP!S34,Resources_ESP!S37:S52))) -> 189.0921342 | T26: =IF(DB_Inputs!T$18=0,0,IF(StudyType<2,SUM(LT_Resources!T36,LT_Resources!T41,LT_Resources!T43:T44,LT_Resources!T48,LT_Resources!T53,LT_Resources!T58:T59),SUM(Resources_ESP!T32,Resources_ESP!T34,Resources_ESP!T37:T52))) -> 169.6605903 | U26: =IF(DB_Inputs!U$18=0,0,IF(StudyType<2,SUM(LT_Resources!U36,LT_Resources!U41,LT_Resources!U43:U44,LT_Resources!U48,LT_Resources!U53,LT_Resources!U58:U59),SUM(Resources_ESP!U32,Resources_ESP!U34,Resources_ESP!U37:U52))) -> 169.3526912 | V26: =IF(DB_Inputs!V$18=0,0,IF(StudyType<2,SUM(LT_Resources!V36,LT_Resources!V41,LT_Resources!V43:V44,LT_Resources!V48,LT_Resources!V53,LT_Resources!V58:V59),SUM(Resources_ESP!V32,Resources_ESP!V34,Resources_ESP!V37:V52))) -> 126.432171 | W26: =IF(DB_Inputs!W$18=0,0,IF(StudyType<2,SUM(LT_Resources!W36,LT_Resources!W41,LT_Resources!W43:W44,LT_Resources!W48,LT_Resources!W53,LT_Resources!W58:W59),SUM(Resources_ESP!W32,Resources_ESP!W34,Resources_ESP!W37:W52))) -> 139.0411586 | X26: =IF(DB_Inputs!X$18=0,0,IF(StudyType<2,SUM(LT_Resources!X36,LT_Resources!X41,LT_Resources!X43:X44,LT_Resources!X48,LT_Resources!X53,LT_Resources!X58:X59),SUM(Resources_ESP!X32,Resources_ESP!X34,Resources_ESP!X37:X52))) -> 126.9421563 | Y26: =IF(DB_Inputs!Y$18=0,0,IF(StudyType<2,SUM(LT_Resources!Y36,LT_Resources!Y41,LT_Resources!Y43:Y44,LT_Resources!Y48,LT_Resources!Y53,LT_Resources!Y58:Y59),SUM(Resources_ESP!Y32,Resources_ESP!Y34,Resources_ESP!Y37:Y52))) -> 137.9773171 | Z26: =IF(DB_Inputs!Z$18=0,0,IF(StudyType<2,SUM(LT_Resources!Z36,LT_Resources!Z41,LT_Resources!Z43:Z44,LT_Resources!Z48,LT_Resources!Z53,LT_Resources!Z58:Z59),SUM(Resources_ESP!Z32,Resources_ESP!Z34,Resources_ESP!Z37:Z52))) -> 120.9631411 | AA26: =IF(DB_Inputs!AA$18=0,0,IF(StudyType<2,SUM(LT_Resources!AA36,LT_Resources!AA41,LT_Resources!AA43:AA44,LT_Resources!AA48,LT_Resources!AA53,LT_Resources!AA58:AA59),SUM(Resources_ESP!AA32,Resources_ESP!AA34,Resources_ESP!AA37:AA52))) -> 130.7038392 | AB26: =SUMPRODUCT(P26:AA26,DB_Inputs!P$13:AA$13)/DB_Inputs!AB$13 -> 158.6304054 | AD26: =IF(StudyType<2,SUM(LT_Resources!AD36,LT_Resources!AD41,LT_Resources!AD43:AD44,LT_Resources!AD48,LT_Resources!AD53,LT_Resources!AD58:AD59),SUM(Resources_ESP!AD32,Resources_ESP!AD34,Resources_ESP!AD37:AD52)) -> 119.0267308 | AE26: =IF(StudyType<2,SUM(LT_Resources!AE36,LT_Resources!AE41,LT_Resources!AE43:AE44,LT_Resources!AE48,LT_Resources!AE53,LT_Resources!AE58:AE59),SUM(Resources_ESP!AE32,Resources_ESP!AE34,Resources_ESP!AE37:AE52)) -> 136.1938318 | AF26: =IF(StudyType<2,SUM(LT_Resources!AF36,LT_Resources!AF41,LT_Resources!AF43:AF44,LT_Resources!AF48,LT_Resources!AF53,LT_Resources!AF58:AF59),SUM(Resources_ESP!AF32,Resources_ESP!AF34,Resources_ESP!AF37:AF52)) -> 129.1750581 | AG26: =IF(StudyType<2,SUM(LT_Resources!AG36,LT_Resources!AG41,LT_Resources!AG43:AG44,LT_Resources!AG48,LT_Resources!AG53,LT_Resources!AG58:AG59),SUM(Resources_ESP!AG32,Resources_ESP!AG34,Resources_ESP!AG37:AG52)) -> 123.5616463 | AH26: =IF(StudyType<2,SUM(LT_Resources!AH36,LT_Resources!AH41,LT_Resources!AH43:AH44,LT_Resources!AH48,LT_Resources!AH53,LT_Resources!AH58:AH59),SUM(Resources_ESP!AH32,Resources_ESP!AH34,Resources_ESP!AH37:AH52)) -> 114.6157432 | AI26: =IF(StudyType<2,SUM(LT_Resources!AI36,LT_Resources!AI41,LT_Resources!AI43:AI44,LT_Resources!AI48,LT_Resources!AI53,LT_Resources!AI58:AI59),SUM(Resources_ESP!AI32,Resources_ESP!AI34,Resources_ESP!AI37:AI52)) -> 117.6676758 | AJ26: =IF(StudyType<2,SUM(LT_Resources!AJ36,LT_Resources!AJ41,LT_Resources!AJ43:AJ44,LT_Resources!AJ48,LT_Resources!AJ53,LT_Resources!AJ58:AJ59),SUM(Resources_ESP!AJ32,Resources_ESP!AJ34,Resources_ESP!AJ37:AJ52)) -> 74.746875 | AK26: =IF(StudyType<2,SUM(LT_Resources!AK36,LT_Resources!AK41,LT_Resources!AK43:AK44,LT_Resources!AK48,LT_Resources!AK53,LT_Resources!AK58:AK59),SUM(Resources_ESP!AK32,Resources_ESP!AK34,Resources_ESP!AK37:AK52)) -> 85.75 | AL26: =IF(StudyType<2,SUM(LT_Resources!AL36,LT_Resources!AL41,LT_Resources!AL43:AL44,LT_Resources!AL48,LT_Resources!AL53,LT_Resources!AL58:AL59),SUM(Resources_ESP!AL32,Resources_ESP!AL34,Resources_ESP!AL37:AL52)) -> 76.36842105 | AM26: =IF(StudyType<2,SUM(LT_Resources!AM36,LT_Resources!AM41,LT_Resources!AM43:AM44,LT_Resources!AM48,LT_Resources!AM53,LT_Resources!AM58:AM59),SUM(Resources_ESP!AM32,Resources_ESP!AM34,Resources_ESP!AM37:AM52)) -> 86.28963415 | AN26: =IF(StudyType<2,SUM(LT_Resources!AN36,LT_Resources!AN41,LT_Resources!AN43:AN44,LT_Resources!AN48,LT_Resources!AN53,LT_Resources!AN58:AN59),SUM(Resources_ESP!AN32,Resources_ESP!AN34,Resources_ESP!AN37:AN52)) -> 68.5152439 | AO26: =IF(StudyType<2,SUM(LT_Resources!AO36,LT_Resources!AO41,LT_Resources!AO43:AO44,LT_Resources!AO48,LT_Resources!AO53,LT_Resources!AO58:AO59),SUM(Resources_ESP!AO32,Resources_ESP!AO34,Resources_ESP!AO37:AO52)) -> 80.271875 | AP26: =SUMPRODUCT(AD26:AO26,DB_Inputs!AD$9:AO$9)/DB_Inputs!AP$9 -> 101.1728838 | AR26: =IF(StudyType<2,SUM(LT_Resources!AR36,LT_Resources!AR41,LT_Resources!AR43:AR44,LT_Resources!AR48,LT_Resources!AR53,LT_Resources!AR58:AR59),SUM(Resources_ESP!AR32,Resources_ESP!AR34,Resources_ESP!AR37:AR52)) -> 218.7788462 | AS26: =IF(StudyType<2,SUM(LT_Resources!AS36,LT_Resources!AS41,LT_Resources!AS43:AS44,LT_Resources!AS48,LT_Resources!AS53,LT_Resources!AS58:AS59),SUM(Resources_ESP!AS32,Resources_ESP!AS34,Resources_ESP!AS37:AS52)) -> 235.7062315 | AT26: =IF(StudyType<2,SUM(LT_Resources!AT36,LT_Resources!AT41,LT_Resources!AT43:AT44,LT_Resources!AT48,LT_Resources!AT53,LT_Resources!AT58:AT59),SUM(Resources_ESP!AT32,Resources_ESP!AT34,Resources_ESP!AT37:AT52)) -> 232.0060976 | AU26: =IF(StudyType<2,SUM(LT_Resources!AU36,LT_Resources!AU41,LT_Resources!AU43:AU44,LT_Resources!AU48,LT_Resources!AU53,LT_Resources!AU58:AU59),SUM(Resources_ESP!AU32,Resources_ESP!AU34,Resources_ESP!AU37:AU52)) -> 225.880814 | AV26: =IF(StudyType<2,SUM(LT_Resources!AV36,LT_Resources!AV41,LT_Resources!AV43:AV44,LT_Resources!AV48,LT_Resources!AV53,LT_Resources!AV58:AV59),SUM(Resources_ESP!AV32,Resources_ESP!AV34,Resources_ESP!AV37:AV52)) -> 216.9201389 | AW26: =IF(StudyType<2,SUM(LT_Resources!AW36,LT_Resources!AW41,LT_Resources!AW43:AW44,LT_Resources!AW48,LT_Resources!AW53,LT_Resources!AW58:AW59),SUM(Resources_ESP!AW32,Resources_ESP!AW34,Resources_ESP!AW37:AW52)) -> 219.022508 | AX26: =IF(StudyType<2,SUM(LT_Resources!AX36,LT_Resources!AX41,LT_Resources!AX43:AX44,LT_Resources!AX48,LT_Resources!AX53,LT_Resources!AX58:AX59),SUM(Resources_ESP!AX32,Resources_ESP!AX34,Resources_ESP!AX37:AX52)) -> 174.7993421 | AY26: =IF(StudyType<2,SUM(LT_Resources!AY36,LT_Resources!AY41,LT_Resources!AY43:AY44,LT_Resources!AY48,LT_Resources!AY53,LT_Resources!AY58:AY59),SUM(Resources_ESP!AY32,Resources_ESP!AY34,Resources_ESP!AY37:AY52)) -> 185.502907 | AZ26: =IF(StudyType<2,SUM(LT_Resources!AZ36,LT_Resources!AZ41,LT_Resources!AZ43:AZ44,LT_Resources!AZ48,LT_Resources!AZ53,LT_Resources!AZ58:AZ59),SUM(Resources_ESP!AZ32,Resources_ESP!AZ34,Resources_ESP!AZ37:AZ52)) -> 175.0230263 | BA26: =IF(StudyType<2,SUM(LT_Resources!BA36,LT_Resources!BA41,LT_Resources!BA43:BA44,LT_Resources!BA48,LT_Resources!BA53,LT_Resources!BA58:BA59),SUM(Resources_ESP!BA32,Resources_ESP!BA34,Resources_ESP!BA37:BA52)) -> 136.2408537 | BB26: =IF(StudyType<2,SUM(LT_Resources!BB36,LT_Resources!BB41,LT_Resources!BB43:BB44,LT_Resources!BB48,LT_Resources!BB53,LT_Resources!BB58:BB59),SUM(Resources_ESP!BB32,Resources_ESP!BB34,Resources_ESP!BB37:BB52)) -> 119.0426829 | BC26: =IF(StudyType<2,SUM(LT_Resources!BC36,LT_Resources!BC41,LT_Resources!BC43:BC44,LT_Resources!BC48,LT_Resources!BC53,LT_Resources!BC58:BC59),SUM(Resources_ESP!BC32,Resources_ESP!BC34,Resources_ESP!BC37:BC52)) -> 130.925 | BD26: =SUMPRODUCT(AR26:BC26,DB_Inputs!AR$9:BC$9)/DB_Inputs!BD$9 -> 189.1554054 | BF26: =IF(StudyType<2,SUM(LT_Resources!BF36,LT_Resources!BF41,LT_Resources!BF43:BF44,LT_Resources!BF48,LT_Resources!BF53,LT_Resources!BF58:BF59),SUM(Resources_ESP!BF32,Resources_ESP!BF34,Resources_ESP!BF37:BF52)) -> 13.13719512 | BG26: =IF(StudyType<2,SUM(LT_Resources!BG36,LT_Resources!BG41,LT_Resources!BG43:BG44,LT_Resources!BG48,LT_Resources!BG53,LT_Resources!BG58:BG59),SUM(Resources_ESP!BG32,Resources_ESP!BG34,Resources_ESP!BG37:BG52)) -> 31.894081 | BH26: =IF(StudyType<2,SUM(LT_Resources!BH36,LT_Resources!BH41,LT_Resources!BH43:BH44,LT_Resources!BH48,LT_Resources!BH53,LT_Resources!BH58:BH59),SUM(Resources_ESP!BH32,Resources_ESP!BH34,Resources_ESP!BH37:BH52)) -> 26.85365854 | BI26: =IF(StudyType<2,SUM(LT_Resources!BI36,LT_Resources!BI41,LT_Resources!BI43:BI44,LT_Resources!BI48,LT_Resources!BI53,LT_Resources!BI58:BI59),SUM(Resources_ESP!BI32,Resources_ESP!BI34,Resources_ESP!BI37:BI52)) -> 20.72674419 | BJ26: =IF(StudyType<2,SUM(LT_Resources!BJ36,LT_Resources!BJ41,LT_Resources!BJ43:BJ44,LT_Resources!BJ48,LT_Resources!BJ53,LT_Resources!BJ58:BJ59),SUM(Resources_ESP!BJ32,Resources_ESP!BJ34,Resources_ESP!BJ37:BJ52)) -> 11.76736111 | BK26: =IF(StudyType<2,SUM(LT_Resources!BK36,LT_Resources!BK41,LT_Resources!BK43:BK44,LT_Resources!BK48,LT_Resources!BK53,LT_Resources!BK58:BK59),SUM(Resources_ESP!BK32,Resources_ESP!BK34,Resources_ESP!BK37:BK52)) -> 13.8681672 | BL26: =IF(StudyType<2,SUM(LT_Resources!BL36,LT_Resources!BL41,LT_Resources!BL43:BL44,LT_Resources!BL48,LT_Resources!BL53,LT_Resources!BL58:BL59),SUM(Resources_ESP!BL32,Resources_ESP!BL34,Resources_ESP!BL37:BL52)) -> 19.64802632 | BM26: =IF(StudyType<2,SUM(LT_Resources!BM36,LT_Resources!BM41,LT_Resources!BM43:BM44,LT_Resources!BM48,LT_Resources!BM53,LT_Resources!BM58:BM59),SUM(Resources_ESP!BM32,Resources_ESP!BM34,Resources_ESP!BM37:BM52)) -> 30.34883721 | BN26: =IF(StudyType<2,SUM(LT_Resources!BN36,LT_Resources!BN41,LT_Resources!BN43:BN44,LT_Resources!BN48,LT_Resources!BN53,LT_Resources!BN58:BN59),SUM(Resources_ESP!BN32,Resources_ESP!BN34,Resources_ESP!BN37:BN52)) -> 19.86842105 | BO26: =IF(StudyType<2,SUM(LT_Resources!BO36,LT_Resources!BO41,LT_Resources!BO43:BO44,LT_Resources!BO48,LT_Resources!BO53,LT_Resources!BO58:BO59),SUM(Resources_ESP!BO32,Resources_ESP!BO34,Resources_ESP!BO37:BO52)) -> 29.81104651 | BP26: =IF(StudyType<2,SUM(LT_Resources!BP36,LT_Resources!BP41,LT_Resources!BP43:BP44,LT_Resources!BP48,LT_Resources!BP53,LT_Resources!BP58:BP59),SUM(Resources_ESP!BP32,Resources_ESP!BP34,Resources_ESP!BP37:BP52)) -> 14.41346154 | BQ26: =IF(StudyType<2,SUM(LT_Resources!BQ36,LT_Resources!BQ41,LT_Resources!BQ43:BQ44,LT_Resources!BQ48,LT_Resources!BQ53,LT_Resources!BQ58:BQ59),SUM(Resources_ESP!BQ32,Resources_ESP!BQ34,Resources_ESP!BQ37:BQ52)) -> 25.771875 | BR26: =SUMPRODUCT(BF26:BQ26,DB_Inputs!BF$9:BQ$9)/DB_Inputs!BR$9 -> 21.73570686 | BT26: =IF(StudyType<2,SUM(LT_Resources!BT36,LT_Resources!BT41,LT_Resources!BT43:BT44,LT_Resources!BT48,LT_Resources!BT53,LT_Resources!BT58:BT59),SUM(Resources_ESP!BT32,Resources_ESP!BT34,Resources_ESP!BT37:BT52)) -> 141.5579268 | BU26: =IF(StudyType<2,SUM(LT_Resources!BU36,LT_Resources!BU41,LT_Resources!BU43:BU44,LT_Resources!BU48,LT_Resources!BU53,LT_Resources!BU58:BU59),SUM(Resources_ESP!BU32,Resources_ESP!BU34,Resources_ESP!BU37:BU52)) -> 160.3146417 | BV26: =IF(StudyType<2,SUM(LT_Resources!BV36,LT_Resources!BV41,LT_Resources!BV43:BV44,LT_Resources!BV48,LT_Resources!BV53,LT_Resources!BV58:BV59),SUM(Resources_ESP!BV32,Resources_ESP!BV34,Resources_ESP!BV37:BV52)) -> 155.2743902 | BW26: =IF(StudyType<2,SUM(LT_Resources!BW36,LT_Resources!BW41,LT_Resources!BW43:BW44,LT_Resources!BW48,LT_Resources!BW53,LT_Resources!BW58:BW59),SUM(Resources_ESP!BW32,Resources_ESP!BW34,Resources_ESP!BW37:BW52)) -> 149.1482558 | BX26: =IF(StudyType<2,SUM(LT_Resources!BX36,LT_Resources!BX41,LT_Resources!BX43:BX44,LT_Resources!BX48,LT_Resources!BX53,LT_Resources!BX58:BX59),SUM(Resources_ESP!BX32,Resources_ESP!BX34,Resources_ESP!BX37:BX52)) -> 140.1875 | BY26: =IF(StudyType<2,SUM(LT_Resources!BY36,LT_Resources!BY41,LT_Resources!BY43:BY44,LT_Resources!BY48,LT_Resources!BY53,LT_Resources!BY58:BY59),SUM(Resources_ESP!BY32,Resources_ESP!BY34,Resources_ESP!BY37:BY52)) -> 142.2893891 | BZ26: =IF(StudyType<2,SUM(LT_Resources!BZ36,LT_Resources!BZ41,LT_Resources!BZ43:BZ44,LT_Resources!BZ48,LT_Resources!BZ53,LT_Resources!BZ58:BZ59),SUM(Resources_ESP!BZ32,Resources_ESP!BZ34,Resources_ESP!BZ37:BZ52)) -> 147.26875 | CA26: =IF(StudyType<2,SUM(LT_Resources!CA36,LT_Resources!CA41,LT_Resources!CA43:CA44,LT_Resources!CA48,LT_Resources!CA53,LT_Resources!CA58:CA59),SUM(Resources_ESP!CA32,Resources_ESP!CA34,Resources_ESP!CA37:CA52)) -> 160.0731707 | CB26: =IF(StudyType<2,SUM(LT_Resources!CB36,LT_Resources!CB41,LT_Resources!CB43:CB44,LT_Resources!CB48,LT_Resources!CB53,LT_Resources!CB58:CB59),SUM(Resources_ESP!CB32,Resources_ESP!CB34,Resources_ESP!CB37:CB52)) -> 148.2894737 | CC26: =IF(StudyType<2,SUM(LT_Resources!CC36,LT_Resources!CC41,LT_Resources!CC43:CC44,LT_Resources!CC48,LT_Resources!CC53,LT_Resources!CC58:CC59),SUM(Resources_ESP!CC32,Resources_ESP!CC34,Resources_ESP!CC37:CC52)) -> 158.2325581 | CD26: =IF(StudyType<2,SUM(LT_Resources!CD36,LT_Resources!CD41,LT_Resources!CD43:CD44,LT_Resources!CD48,LT_Resources!CD53,LT_Resources!CD58:CD59),SUM(Resources_ESP!CD32,Resources_ESP!CD34,Resources_ESP!CD37:CD52)) -> 142.8333333 | CE26: =IF(StudyType<2,SUM(LT_Resources!CE36,LT_Resources!CE41,LT_Resources!CE43:CE44,LT_Resources!CE48,LT_Resources!CE53,LT_Resources!CE58:CE59),SUM(Resources_ESP!CE32,Resources_ESP!CE34,Resources_ESP!CE37:CE52)) -> 154.19375 | CF26: =SUMPRODUCT(BT26:CE26,DB_Inputs!BT$9:CE$9)/DB_Inputs!CF$9 -> 150.1567048 | CH26: =IF(StudyType<2,SUM(LT_Resources!CH36,LT_Resources!CH41,LT_Resources!CH43:CH44,LT_Resources!CH48,LT_Resources!CH53,LT_Resources!CH58:CH59),SUM(Resources_ESP!CH32,Resources_ESP!CH34,Resources_ESP!CH37:CH52)) -> 13.13719512 | CI26: =IF(StudyType<2,SUM(LT_Resources!CI36,LT_Resources!CI41,LT_Resources!CI43:CI44,LT_Resources!CI48,LT_Resources!CI53,LT_Resources!CI58:CI59),SUM(Resources_ESP!CI32,Resources_ESP!CI34,Resources_ESP!CI37:CI52)) -> 31.894081 | CJ26: =IF(StudyType<2,SUM(LT_Resources!CJ36,LT_Resources!CJ41,LT_Resources!CJ43:CJ44,LT_Resources!CJ48,LT_Resources!CJ53,LT_Resources!CJ58:CJ59),SUM(Resources_ESP!CJ32,Resources_ESP!CJ34,Resources_ESP!CJ37:CJ52)) -> 25.77325581 | CK26: =IF(StudyType<2,SUM(LT_Resources!CK36,LT_Resources!CK41,LT_Resources!CK43:CK44,LT_Resources!CK48,LT_Resources!CK53,LT_Resources!CK58:CK59),SUM(Resources_ESP!CK32,Resources_ESP!CK34,Resources_ESP!CK37:CK52)) -> 21.56097561 | CL26: =IF(StudyType<2,SUM(LT_Resources!CL36,LT_Resources!CL41,LT_Resources!CL43:CL44,LT_Resources!CL48,LT_Resources!CL53,LT_Resources!CL58:CL59),SUM(Resources_ESP!CL32,Resources_ESP!CL34,Resources_ESP!CL37:CL52)) -> 11.81418919 | CM26: =IF(StudyType<2,SUM(LT_Resources!CM36,LT_Resources!CM41,LT_Resources!CM43:CM44,LT_Resources!CM48,LT_Resources!CM53,LT_Resources!CM58:CM59),SUM(Resources_ESP!CM32,Resources_ESP!CM34,Resources_ESP!CM37:CM52)) -> 13.36697248 | CN26: =IF(StudyType<2,SUM(LT_Resources!CN36,LT_Resources!CN41,LT_Resources!CN43:CN44,LT_Resources!CN48,LT_Resources!CN53,LT_Resources!CN58:CN59),SUM(Resources_ESP!CN32,Resources_ESP!CN34,Resources_ESP!CN37:CN52)) -> 19.64802632 | CO26: =IF(StudyType<2,SUM(LT_Resources!CO36,LT_Resources!CO41,LT_Resources!CO43:CO44,LT_Resources!CO48,LT_Resources!CO53,LT_Resources!CO58:CO59),SUM(Resources_ESP!CO32,Resources_ESP!CO34,Resources_ESP!CO37:CO52)) -> 31.65243902 | CP26: =IF(StudyType<2,SUM(LT_Resources!CP36,LT_Resources!CP41,LT_Resources!CP43:CP44,LT_Resources!CP48,LT_Resources!CP53,LT_Resources!CP58:CP59),SUM(Resources_ESP!CP32,Resources_ESP!CP34,Resources_ESP!CP37:CP52)) -> 19.05625 | CQ26: =IF(StudyType<2,SUM(LT_Resources!CQ36,LT_Resources!CQ41,LT_Resources!CQ43:CQ44,LT_Resources!CQ48,LT_Resources!CQ53,LT_Resources!CQ58:CQ59),SUM(Resources_ESP!CQ32,Resources_ESP!CQ34,Resources_ESP!CQ37:CQ52)) -> 31.08841463 | CR26: =IF(StudyType<2,SUM(LT_Resources!CR36,LT_Resources!CR41,LT_Resources!CR43:CR44,LT_Resources!CR48,LT_Resources!CR53,LT_Resources!CR58:CR59),SUM(Resources_ESP!CR32,Resources_ESP!CR34,Resources_ESP!CR37:CR52)) -> 14.41346154 | CS26: =IF(StudyType<2,SUM(LT_Resources!CS36,LT_Resources!CS41,LT_Resources!CS43:CS44,LT_Resources!CS48,LT_Resources!CS53,LT_Resources!CS58:CS59),SUM(Resources_ESP!CS32,Resources_ESP!CS34,Resources_ESP!CS37:CS52)) -> 24.7172619 | CT26: =SUMPRODUCT(CH26:CS26,DB_Inputs!CH$9:CS$9)/DB_Inputs!CT$9 -> 21.64385331 | CV26: =IF(StudyType<2,SUM(LT_Resources!CV36,LT_Resources!CV41,LT_Resources!CV43:CV44,LT_Resources!CV48,LT_Resources!CV53,LT_Resources!CV58:CV59),SUM(Resources_ESP!CV32,Resources_ESP!CV34,Resources_ESP!CV37:CV52)) -> 155.4871795 | CW26: =IF(StudyType<2,SUM(LT_Resources!CW36,LT_Resources!CW41,LT_Resources!CW43:CW44,LT_Resources!CW48,LT_Resources!CW53,LT_Resources!CW58:CW59),SUM(Resources_ESP!CW32,Resources_ESP!CW34,Resources_ESP!CW37:CW52)) -> 173.7538941 | CX26: =IF(StudyType<2,SUM(LT_Resources!CX36,LT_Resources!CX41,LT_Resources!CX43:CX44,LT_Resources!CX48,LT_Resources!CX53,LT_Resources!CX58:CX59),SUM(Resources_ESP!CX32,Resources_ESP!CX34,Resources_ESP!CX37:CX52)) -> 167.6337209 | CY26: =IF(StudyType<2,SUM(LT_Resources!CY36,LT_Resources!CY41,LT_Resources!CY43:CY44,LT_Resources!CY48,LT_Resources!CY53,LT_Resources!CY58:CY59),SUM(Resources_ESP!CY32,Resources_ESP!CY34,Resources_ESP!CY37:CY52)) -> 163.4207317 | CZ26: =IF(StudyType<2,SUM(LT_Resources!CZ36,LT_Resources!CZ41,LT_Resources!CZ43:CZ44,LT_Resources!CZ48,LT_Resources!CZ53,LT_Resources!CZ58:CZ59),SUM(Resources_ESP!CZ32,Resources_ESP!CZ34,Resources_ESP!CZ37:CZ52)) -> 153.6284722 | DA26: =IF(StudyType<2,SUM(LT_Resources!DA36,LT_Resources!DA41,LT_Resources!DA43:DA44,LT_Resources!DA48,LT_Resources!DA53,LT_Resources!DA58:DA59),SUM(Resources_ESP!DA32,Resources_ESP!DA34,Resources_ESP!DA37:DA52)) -> 155.2293578 | DB26: =IF(StudyType<2,SUM(LT_Resources!DB36,LT_Resources!DB41,LT_Resources!DB43:DB44,LT_Resources!DB48,LT_Resources!DB53,LT_Resources!DB58:DB59),SUM(Resources_ESP!DB32,Resources_ESP!DB34,Resources_ESP!DB37:DB52)) -> 161.5098684 | DC26: =IF(StudyType<2,SUM(LT_Resources!DC36,LT_Resources!DC41,LT_Resources!DC43:DC44,LT_Resources!DC48,LT_Resources!DC53,LT_Resources!DC58:DC59),SUM(Resources_ESP!DC32,Resources_ESP!DC34,Resources_ESP!DC37:DC52)) -> 173.5121951 | DD26: =IF(StudyType<2,SUM(LT_Resources!DD36,LT_Resources!DD41,LT_Resources!DD43:DD44,LT_Resources!DD48,LT_Resources!DD53,LT_Resources!DD58:DD59),SUM(Resources_ESP!DD32,Resources_ESP!DD34,Resources_ESP!DD37:DD52)) -> 160.915625 | DE26: =IF(StudyType<2,SUM(LT_Resources!DE36,LT_Resources!DE41,LT_Resources!DE43:DE44,LT_Resources!DE48,LT_Resources!DE53,LT_Resources!DE58:DE59),SUM(Resources_ESP!DE32,Resources_ESP!DE34,Resources_ESP!DE37:DE52)) -> 172.9481707 | DF26: =IF(StudyType<2,SUM(LT_Resources!DF36,LT_Resources!DF41,LT_Resources!DF43:DF44,LT_Resources!DF48,LT_Resources!DF53,LT_Resources!DF58:DF59),SUM(Resources_ESP!DF32,Resources_ESP!DF34,Resources_ESP!DF37:DF52)) -> 155.75 | DG26: =IF(StudyType<2,SUM(LT_Resources!DG36,LT_Resources!DG41,LT_Resources!DG43:DG44,LT_Resources!DG48,LT_Resources!DG53,LT_Resources!DG58:DG59),SUM(Resources_ESP!DG32,Resources_ESP!DG34,Resources_ESP!DG37:DG52)) -> 167.63125 | DH26: =SUMPRODUCT(CV26:DG26,DB_Inputs!CV$9:DG$9)/DB_Inputs!DH$9 -> 163.5964137 | DJ26: =IF(StudyType<2,SUM(LT_Resources!DJ36,LT_Resources!DJ41,LT_Resources!DJ43:DJ44,LT_Resources!DJ48,LT_Resources!DJ53,LT_Resources!DJ58:DJ59),SUM(Resources_ESP!DJ32,Resources_ESP!DJ34,Resources_ESP!DJ37:DJ52)) -> 13.625 | DK26: =IF(StudyType<2,SUM(LT_Resources!DK36,LT_Resources!DK41,LT_Resources!DK43:DK44,LT_Resources!DK48,LT_Resources!DK53,LT_Resources!DK58:DK59),SUM(Resources_ESP!DK32,Resources_ESP!DK34,Resources_ESP!DK37:DK52)) -> 30.55192878 | DL26: =IF(StudyType<2,SUM(LT_Resources!DL36,LT_Resources!DL41,LT_Resources!DL43:DL44,LT_Resources!DL48,LT_Resources!DL53,LT_Resources!DL58:DL59),SUM(Resources_ESP!DL32,Resources_ESP!DL34,Resources_ESP!DL37:DL52)) -> 26.85365854 | DM26: =IF(StudyType<2,SUM(LT_Resources!DM36,LT_Resources!DM41,LT_Resources!DM43:DM44,LT_Resources!DM48,LT_Resources!DM53,LT_Resources!DM58:DM59),SUM(Resources_ESP!DM32,Resources_ESP!DM34,Resources_ESP!DM37:DM52)) -> 21.56097561 | DN26: =IF(StudyType<2,SUM(LT_Resources!DN36,LT_Resources!DN41,LT_Resources!DN43:DN44,LT_Resources!DN48,LT_Resources!DN53,LT_Resources!DN58:DN59),SUM(Resources_ESP!DN32,Resources_ESP!DN34,Resources_ESP!DN37:DN52)) -> 11.76736111 | DO26: =IF(StudyType<2,SUM(LT_Resources!DO36,LT_Resources!DO41,LT_Resources!DO43:DO44,LT_Resources!DO48,LT_Resources!DO53,LT_Resources!DO58:DO59),SUM(Resources_ESP!DO32,Resources_ESP!DO34,Resources_ESP!DO37:DO52)) -> 13.36697248 | DP26: =IF(StudyType<2,SUM(LT_Resources!DP36,LT_Resources!DP41,LT_Resources!DP43:DP44,LT_Resources!DP48,LT_Resources!DP53,LT_Resources!DP58:DP59),SUM(Resources_ESP!DP32,Resources_ESP!DP34,Resources_ESP!DP37:DP52)) -> 19.64802632 | DQ26: =IF(StudyType<2,SUM(LT_Resources!DQ36,LT_Resources!DQ41,LT_Resources!DQ43:DQ44,LT_Resources!DQ48,LT_Resources!DQ53,LT_Resources!DQ58:DQ59),SUM(Resources_ESP!DQ32,Resources_ESP!DQ34,Resources_ESP!DQ37:DQ52)) -> 30.34883721 | DR26: =IF(StudyType<2,SUM(LT_Resources!DR36,LT_Resources!DR41,LT_Resources!DR43:DR44,LT_Resources!DR48,LT_Resources!DR53,LT_Resources!DR58:DR59),SUM(Resources_ESP!DR32,Resources_ESP!DR34,Resources_ESP!DR37:DR52)) -> 19.86842105 | DS26: =IF(StudyType<2,SUM(LT_Resources!DS36,LT_Resources!DS41,LT_Resources!DS43:DS44,LT_Resources!DS48,LT_Resources!DS53,LT_Resources!DS58:DS59),SUM(Resources_ESP!DS32,Resources_ESP!DS34,Resources_ESP!DS37:DS52)) -> 31.08841463 | DT26: =IF(StudyType<2,SUM(LT_Resources!DT36,LT_Resources!DT41,LT_Resources!DT43:DT44,LT_Resources!DT48,LT_Resources!DT53,LT_Resources!DT58:DT59),SUM(Resources_ESP!DT32,Resources_ESP!DT34,Resources_ESP!DT37:DT52)) -> 13.88719512 | DU26: =IF(StudyType<2,SUM(LT_Resources!DU36,LT_Resources!DU41,LT_Resources!DU43:DU44,LT_Resources!DU48,LT_Resources!DU53,LT_Resources!DU58:DU59),SUM(Resources_ESP!DU32,Resources_ESP!DU34,Resources_ESP!DU37:DU52)) -> 25.771875 | DV26: =SUMPRODUCT(DJ26:DU26,DB_Inputs!DJ$9:DU$9)/DB_Inputs!DV$9 -> 21.73570686 | DX26: =IF(StudyType<2,SUM(LT_Resources!DX36,LT_Resources!DX41,LT_Resources!DX43:DX44,LT_Resources!DX48,LT_Resources!DX53,LT_Resources!DX58:DX59),SUM(Resources_ESP!DX32,Resources_ESP!DX34,Resources_ESP!DX37:DX52)) -> 156.724359 | DY26: =IF(StudyType<2,SUM(LT_Resources!DY36,LT_Resources!DY41,LT_Resources!DY43:DY44,LT_Resources!DY48,LT_Resources!DY53,LT_Resources!DY58:DY59),SUM(Resources_ESP!DY32,Resources_ESP!DY34,Resources_ESP!DY37:DY52)) -> 171.7032641 | DZ26: =IF(StudyType<2,SUM(LT_Resources!DZ36,LT_Resources!DZ41,LT_Resources!DZ43:DZ44,LT_Resources!DZ48,LT_Resources!DZ53,LT_Resources!DZ58:DZ59),SUM(Resources_ESP!DZ32,Resources_ESP!DZ34,Resources_ESP!DZ37:DZ52)) -> 167.9512195 | EA26: =IF(StudyType<2,SUM(LT_Resources!EA36,LT_Resources!EA41,LT_Resources!EA43:EA44,LT_Resources!EA48,LT_Resources!EA53,LT_Resources!EA58:EA59),SUM(Resources_ESP!EA32,Resources_ESP!EA34,Resources_ESP!EA37:EA52)) -> 163.8255814 | EB26: =IF(StudyType<2,SUM(LT_Resources!EB36,LT_Resources!EB41,LT_Resources!EB43:EB44,LT_Resources!EB48,LT_Resources!EB53,LT_Resources!EB58:EB59),SUM(Resources_ESP!EB32,Resources_ESP!EB34,Resources_ESP!EB37:EB52)) -> 154.8645833 | EC26: =IF(StudyType<2,SUM(LT_Resources!EC36,LT_Resources!EC41,LT_Resources!EC43:EC44,LT_Resources!EC48,LT_Resources!EC53,LT_Resources!EC58:EC59),SUM(Resources_ESP!EC32,Resources_ESP!EC34,Resources_ESP!EC37:EC52)) -> 159.073955 | ED26: =IF(StudyType<2,SUM(LT_Resources!ED36,LT_Resources!ED41,LT_Resources!ED43:ED44,LT_Resources!ED48,LT_Resources!ED53,LT_Resources!ED58:ED59),SUM(Resources_ESP!ED32,Resources_ESP!ED34,Resources_ESP!ED37:ED52)) -> 162.7467105 | EE26: =IF(StudyType<2,SUM(LT_Resources!EE36,LT_Resources!EE41,LT_Resources!EE43:EE44,LT_Resources!EE48,LT_Resources!EE53,LT_Resources!EE58:EE59),SUM(Resources_ESP!EE32,Resources_ESP!EE34,Resources_ESP!EE37:EE52)) -> 173.4476744 | EF26: =IF(StudyType<2,SUM(LT_Resources!EF36,LT_Resources!EF41,LT_Resources!EF43:EF44,LT_Resources!EF48,LT_Resources!EF53,LT_Resources!EF58:EF59),SUM(Resources_ESP!EF32,Resources_ESP!EF34,Resources_ESP!EF37:EF52)) -> 162.9671053 | EG26: =IF(StudyType<2,SUM(LT_Resources!EG36,LT_Resources!EG41,LT_Resources!EG43:EG44,LT_Resources!EG48,LT_Resources!EG53,LT_Resources!EG58:EG59),SUM(Resources_ESP!EG32,Resources_ESP!EG34,Resources_ESP!EG37:EG52)) -> 174.1859756 | EH26: =IF(StudyType<2,SUM(LT_Resources!EH36,LT_Resources!EH41,LT_Resources!EH43:EH44,LT_Resources!EH48,LT_Resources!EH53,LT_Resources!EH58:EH59),SUM(Resources_ESP!EH32,Resources_ESP!EH34,Resources_ESP!EH37:EH52)) -> 158.9847561 | EI26: =IF(StudyType<2,SUM(LT_Resources!EI36,LT_Resources!EI41,LT_Resources!EI43:EI44,LT_Resources!EI48,LT_Resources!EI53,LT_Resources!EI58:EI59),SUM(Resources_ESP!EI32,Resources_ESP!EI34,Resources_ESP!EI37:EI52)) -> 168.86875 | EJ26: =SUMPRODUCT(DX26:EI26,DB_Inputs!DX$9:EI$9)/DB_Inputs!EJ$9 -> 164.8336798 | EL26: =IF(StudyType<2,SUM(LT_Resources!EL36,LT_Resources!EL41,LT_Resources!EL43:EL44,LT_Resources!EL48,LT_Resources!EL53,LT_Resources!EL58:EL59),SUM(Resources_ESP!EL32,Resources_ESP!EL34,Resources_ESP!EL37:EL52)) -> 5.195121951 | EM26: =IF(StudyType<2,SUM(LT_Resources!EM36,LT_Resources!EM41,LT_Resources!EM43:EM44,LT_Resources!EM48,LT_Resources!EM53,LT_Resources!EM58:EM59),SUM(Resources_ESP!EM32,Resources_ESP!EM34,Resources_ESP!EM37:EM52)) -> 13.68847352 | EN26: =IF(StudyType<2,SUM(LT_Resources!EN36,LT_Resources!EN41,LT_Resources!EN43:EN44,LT_Resources!EN48,LT_Resources!EN53,LT_Resources!EN58:EN59),SUM(Resources_ESP!EN32,Resources_ESP!EN34,Resources_ESP!EN37:EN52)) -> 13.82317073 | EO26: =IF(StudyType<2,SUM(LT_Resources!EO36,LT_Resources!EO41,LT_Resources!EO43:EO44,LT_Resources!EO48,LT_Resources!EO53,LT_Resources!EO58:EO59),SUM(Resources_ESP!EO32,Resources_ESP!EO34,Resources_ESP!EO37:EO52)) -> 15.27325581 | EP26: =IF(StudyType<2,SUM(LT_Resources!EP36,LT_Resources!EP41,LT_Resources!EP43:EP44,LT_Resources!EP48,LT_Resources!EP53,LT_Resources!EP58:EP59),SUM(Resources_ESP!EP32,Resources_ESP!EP34,Resources_ESP!EP37:EP52)) -> 4.037162162 | EQ26: =IF(StudyType<2,SUM(LT_Resources!EQ36,LT_Resources!EQ41,LT_Resources!EQ43:EQ44,LT_Resources!EQ48,LT_Resources!EQ53,LT_Resources!EQ58:EQ59),SUM(Resources_ESP!EQ32,Resources_ESP!EQ34,Resources_ESP!EQ37:EQ52)) -> 6.218649518 | ER26: =IF(StudyType<2,SUM(LT_Resources!ER36,LT_Resources!ER41,LT_Resources!ER43:ER44,LT_Resources!ER48,LT_Resources!ER53,LT_Resources!ER58:ER59),SUM(Resources_ESP!ER32,Resources_ESP!ER34,Resources_ESP!ER37:ER52)) -> 4.06875 | ES26: =IF(StudyType<2,SUM(LT_Resources!ES36,LT_Resources!ES41,LT_Resources!ES43:ES44,LT_Resources!ES48,LT_Resources!ES53,LT_Resources!ES58:ES59),SUM(Resources_ESP!ES32,Resources_ESP!ES34,Resources_ESP!ES37:ES52)) -> 15.49390244 | ET26: =IF(StudyType<2,SUM(LT_Resources!ET36,LT_Resources!ET41,LT_Resources!ET43:ET44,LT_Resources!ET48,LT_Resources!ET53,LT_Resources!ET58:ET59),SUM(Resources_ESP!ET32,Resources_ESP!ET34,Resources_ESP!ET37:ET52)) -> 3.717105263 | EU26: =IF(StudyType<2,SUM(LT_Resources!EU36,LT_Resources!EU41,LT_Resources!EU43:EU44,LT_Resources!EU48,LT_Resources!EU53,LT_Resources!EU58:EU59),SUM(Resources_ESP!EU32,Resources_ESP!EU34,Resources_ESP!EU37:EU52)) -> 14.75 | EV26: =IF(StudyType<2,SUM(LT_Resources!EV36,LT_Resources!EV41,LT_Resources!EV43:EV44,LT_Resources!EV48,LT_Resources!EV53,LT_Resources!EV58:EV59),SUM(Resources_ESP!EV32,Resources_ESP!EV34,Resources_ESP!EV37:EV52)) -> 5.733974359 | EW26: =IF(StudyType<2,SUM(LT_Resources!EW36,LT_Resources!EW41,LT_Resources!EW43:EW44,LT_Resources!EW48,LT_Resources!EW53,LT_Resources!EW58:EW59),SUM(Resources_ESP!EW32,Resources_ESP!EW34,Resources_ESP!EW37:EW52)) -> 15.58125 | EX26: =SUMPRODUCT(EL26:EW26,DB_Inputs!EL$9:EW$9)/DB_Inputs!EX$9 -> 9.95280083 | EZ26: =IF(StudyType<2,SUM(LT_Resources!EZ36,LT_Resources!EZ41,LT_Resources!EZ43:EZ44,LT_Resources!EZ48,LT_Resources!EZ53,LT_Resources!EZ58:EZ59),SUM(Resources_ESP!EZ32,Resources_ESP!EZ34,Resources_ESP!EZ37:EZ52)) -> 158.9481707 | FA26: =IF(StudyType<2,SUM(LT_Resources!FA36,LT_Resources!FA41,LT_Resources!FA43:FA44,LT_Resources!FA48,LT_Resources!FA53,LT_Resources!FA58:FA59),SUM(Resources_ESP!FA32,Resources_ESP!FA34,Resources_ESP!FA37:FA52)) -> 168.9626168 | FB26: =IF(StudyType<2,SUM(LT_Resources!FB36,LT_Resources!FB41,LT_Resources!FB43:FB44,LT_Resources!FB48,LT_Resources!FB53,LT_Resources!FB58:FB59),SUM(Resources_ESP!FB32,Resources_ESP!FB34,Resources_ESP!FB37:FB52)) -> 168.625 | FC26: =IF(StudyType<2,SUM(LT_Resources!FC36,LT_Resources!FC41,LT_Resources!FC43:FC44,LT_Resources!FC48,LT_Resources!FC53,LT_Resources!FC58:FC59),SUM(Resources_ESP!FC32,Resources_ESP!FC34,Resources_ESP!FC37:FC52)) -> 171.1158537 | FD26: =IF(StudyType<2,SUM(LT_Resources!FD36,LT_Resources!FD41,LT_Resources!FD43:FD44,LT_Resources!FD48,LT_Resources!FD53,LT_Resources!FD58:FD59),SUM(Resources_ESP!FD32,Resources_ESP!FD34,Resources_ESP!FD37:FD52)) -> 159.3229167 | FE26: =IF(StudyType<2,SUM(LT_Resources!FE36,LT_Resources!FE41,LT_Resources!FE43:FE44,LT_Resources!FE48,LT_Resources!FE53,LT_Resources!FE58:FE59),SUM(Resources_ESP!FE32,Resources_ESP!FE34,Resources_ESP!FE37:FE52)) -> 161.4951768 | FF26: =IF(StudyType<2,SUM(LT_Resources!FF36,LT_Resources!FF41,LT_Resources!FF43:FF44,LT_Resources!FF48,LT_Resources!FF53,LT_Resources!FF58:FF59),SUM(Resources_ESP!FF32,Resources_ESP!FF34,Resources_ESP!FF37:FF52)) -> 159.34375 | FG26: =IF(StudyType<2,SUM(LT_Resources!FG36,LT_Resources!FG41,LT_Resources!FG43:FG44,LT_Resources!FG48,LT_Resources!FG53,LT_Resources!FG58:FG59),SUM(Resources_ESP!FG32,Resources_ESP!FG34,Resources_ESP!FG37:FG52)) -> 170.7682927 | FH26: =IF(StudyType<2,SUM(LT_Resources!FH36,LT_Resources!FH41,LT_Resources!FH43:FH44,LT_Resources!FH48,LT_Resources!FH53,LT_Resources!FH58:FH59),SUM(Resources_ESP!FH32,Resources_ESP!FH34,Resources_ESP!FH37:FH52)) -> 158.9934211 | FI26: =IF(StudyType<2,SUM(LT_Resources!FI36,LT_Resources!FI41,LT_Resources!FI43:FI44,LT_Resources!FI48,LT_Resources!FI53,LT_Resources!FI58:FI59),SUM(Resources_ESP!FI32,Resources_ESP!FI34,Resources_ESP!FI37:FI52)) -> 170.0261628 | FJ26: =IF(StudyType<2,SUM(LT_Resources!FJ36,LT_Resources!FJ41,LT_Resources!FJ43:FJ44,LT_Resources!FJ48,LT_Resources!FJ53,LT_Resources!FJ58:FJ59),SUM(Resources_ESP!FJ32,Resources_ESP!FJ34,Resources_ESP!FJ37:FJ52)) -> 161.0096154 | FK26: =IF(StudyType<2,SUM(LT_Resources!FK36,LT_Resources!FK41,LT_Resources!FK43:FK44,LT_Resources!FK48,LT_Resources!FK53,LT_Resources!FK58:FK59),SUM(Resources_ESP!FK32,Resources_ESP!FK34,Resources_ESP!FK37:FK52)) -> 170.2857143 | FL26: =SUMPRODUCT(EZ26:FK26,DB_Inputs!EZ$9:FK$9)/DB_Inputs!FL$9 -> 165.0856625 | FN26: =IF(StudyType<2,SUM(LT_Resources!FN36,LT_Resources!FN41,LT_Resources!FN43:FN44,LT_Resources!FN48,LT_Resources!FN53,LT_Resources!FN58:FN59),SUM(Resources_ESP!FN32,Resources_ESP!FN34,Resources_ESP!FN37:FN52)) -> 3.676282051 | FO26: =IF(StudyType<2,SUM(LT_Resources!FO36,LT_Resources!FO41,LT_Resources!FO43:FO44,LT_Resources!FO48,LT_Resources!FO53,LT_Resources!FO58:FO59),SUM(Resources_ESP!FO32,Resources_ESP!FO34,Resources_ESP!FO37:FO52)) -> 13.68847352 | FP26: =IF(StudyType<2,SUM(LT_Resources!FP36,LT_Resources!FP41,LT_Resources!FP43:FP44,LT_Resources!FP48,LT_Resources!FP53,LT_Resources!FP58:FP59),SUM(Resources_ESP!FP32,Resources_ESP!FP34,Resources_ESP!FP37:FP52)) -> 13.34883721 | FQ26: =IF(StudyType<2,SUM(LT_Resources!FQ36,LT_Resources!FQ41,LT_Resources!FQ43:FQ44,LT_Resources!FQ48,LT_Resources!FQ53,LT_Resources!FQ58:FQ59),SUM(Resources_ESP!FQ32,Resources_ESP!FQ34,Resources_ESP!FQ37:FQ52)) -> 15.84146341 | FR26: =IF(StudyType<2,SUM(LT_Resources!FR36,LT_Resources!FR41,LT_Resources!FR43:FR44,LT_Resources!FR48,LT_Resources!FR53,LT_Resources!FR58:FR59),SUM(Resources_ESP!FR32,Resources_ESP!FR34,Resources_ESP!FR37:FR52)) -> 4.048611111 | FS26: =IF(StudyType<2,SUM(LT_Resources!FS36,LT_Resources!FS41,LT_Resources!FS43:FS44,LT_Resources!FS48,LT_Resources!FS53,LT_Resources!FS58:FS59),SUM(Resources_ESP!FS32,Resources_ESP!FS34,Resources_ESP!FS37:FS52)) -> 6.091743119 | FT26: =IF(StudyType<2,SUM(LT_Resources!FT36,LT_Resources!FT41,LT_Resources!FT43:FT44,LT_Resources!FT48,LT_Resources!FT53,LT_Resources!FT58:FT59),SUM(Resources_ESP!FT32,Resources_ESP!FT34,Resources_ESP!FT37:FT52)) -> 4.092105263 | FU26: =IF(StudyType<2,SUM(LT_Resources!FU36,LT_Resources!FU41,LT_Resources!FU43:FU44,LT_Resources!FU48,LT_Resources!FU53,LT_Resources!FU58:FU59),SUM(Resources_ESP!FU32,Resources_ESP!FU34,Resources_ESP!FU37:FU52)) -> 15.49390244 | FV26: =IF(StudyType<2,SUM(LT_Resources!FV36,LT_Resources!FV41,LT_Resources!FV43:FV44,LT_Resources!FV48,LT_Resources!FV53,LT_Resources!FV58:FV59),SUM(Resources_ESP!FV32,Resources_ESP!FV34,Resources_ESP!FV37:FV52)) -> 3.7125 | FW26: =IF(StudyType<2,SUM(LT_Resources!FW36,LT_Resources!FW41,LT_Resources!FW43:FW44,LT_Resources!FW48,LT_Resources!FW53,LT_Resources!FW58:FW59),SUM(Resources_ESP!FW32,Resources_ESP!FW34,Resources_ESP!FW37:FW52)) -> 15.29268293 | FX26: =IF(StudyType<2,SUM(LT_Resources!FX36,LT_Resources!FX41,LT_Resources!FX43:FX44,LT_Resources!FX48,LT_Resources!FX53,LT_Resources!FX58:FX59),SUM(Resources_ESP!FX32,Resources_ESP!FX34,Resources_ESP!FX37:FX52)) -> 5.733974359 | FY26: =IF(StudyType<2,SUM(LT_Resources!FY36,LT_Resources!FY41,LT_Resources!FY43:FY44,LT_Resources!FY48,LT_Resources!FY53,LT_Resources!FY58:FY59),SUM(Resources_ESP!FY32,Resources_ESP!FY34,Resources_ESP!FY37:FY52)) -> 15.01190476 | FZ26: =SUMPRODUCT(FN26:FY26,DB_Inputs!FN$9:FY$9)/DB_Inputs!FZ$9 -> 9.836278586 | GB26: =IF(StudyType<2,SUM(LT_Resources!GB36,LT_Resources!GB41,LT_Resources!GB43:GB44,LT_Resources!GB48,LT_Resources!GB53,LT_Resources!GB58:GB59),SUM(Resources_ESP!GB32,Resources_ESP!GB34,Resources_ESP!GB37:GB52)) -> 169.5 | GC26: =IF(StudyType<2,SUM(LT_Resources!GC36,LT_Resources!GC41,LT_Resources!GC43:GC44,LT_Resources!GC48,LT_Resources!GC53,LT_Resources!GC58:GC59),SUM(Resources_ESP!GC32,Resources_ESP!GC34,Resources_ESP!GC37:GC52)) -> 179.5140187 | GD26: =IF(StudyType<2,SUM(LT_Resources!GD36,LT_Resources!GD41,LT_Resources!GD43:GD44,LT_Resources!GD48,LT_Resources!GD53,LT_Resources!GD58:GD59),SUM(Resources_ESP!GD32,Resources_ESP!GD34,Resources_ESP!GD37:GD52)) -> 179.1715116 | GE26: =IF(StudyType<2,SUM(LT_Resources!GE36,LT_Resources!GE41,LT_Resources!GE43:GE44,LT_Resources!GE48,LT_Resources!GE53,LT_Resources!GE58:GE59),SUM(Resources_ESP!GE32,Resources_ESP!GE34,Resources_ESP!GE37:GE52)) -> 181.6646341 | GF26: =IF(StudyType<2,SUM(LT_Resources!GF36,LT_Resources!GF41,LT_Resources!GF43:GF44,LT_Resources!GF48,LT_Resources!GF53,LT_Resources!GF58:GF59),SUM(Resources_ESP!GF32,Resources_ESP!GF34,Resources_ESP!GF37:GF52)) -> 169.8715278 | GG26: =IF(StudyType<2,SUM(LT_Resources!GG36,LT_Resources!GG41,LT_Resources!GG43:GG44,LT_Resources!GG48,LT_Resources!GG53,LT_Resources!GG58:GG59),SUM(Resources_ESP!GG32,Resources_ESP!GG34,Resources_ESP!GG37:GG52)) -> 169.9082569 | GH26: =IF(StudyType<2,SUM(LT_Resources!GH36,LT_Resources!GH41,LT_Resources!GH43:GH44,LT_Resources!GH48,LT_Resources!GH53,LT_Resources!GH58:GH59),SUM(Resources_ESP!GH32,Resources_ESP!GH34,Resources_ESP!GH37:GH52)) -> 169.9144737 | GI26: =IF(StudyType<2,SUM(LT_Resources!GI36,LT_Resources!GI41,LT_Resources!GI43:GI44,LT_Resources!GI48,LT_Resources!GI53,LT_Resources!GI58:GI59),SUM(Resources_ESP!GI32,Resources_ESP!GI34,Resources_ESP!GI37:GI52)) -> 181.3170732 | GJ26: =IF(StudyType<2,SUM(LT_Resources!GJ36,LT_Resources!GJ41,LT_Resources!GJ43:GJ44,LT_Resources!GJ48,LT_Resources!GJ53,LT_Resources!GJ58:GJ59),SUM(Resources_ESP!GJ32,Resources_ESP!GJ34,Resources_ESP!GJ37:GJ52)) -> 169.5375 | GK26: =IF(StudyType<2,SUM(LT_Resources!GK36,LT_Resources!GK41,LT_Resources!GK43:GK44,LT_Resources!GK48,LT_Resources!GK53,LT_Resources!GK58:GK59),SUM(Resources_ESP!GK32,Resources_ESP!GK34,Resources_ESP!GK37:GK52)) -> 181.1158537 | GL26: =IF(StudyType<2,SUM(LT_Resources!GL36,LT_Resources!GL41,LT_Resources!GL43:GL44,LT_Resources!GL48,LT_Resources!GL53,LT_Resources!GL58:GL59),SUM(Resources_ESP!GL32,Resources_ESP!GL34,Resources_ESP!GL37:GL52)) -> 169.3262195 | GM26: =IF(StudyType<2,SUM(LT_Resources!GM36,LT_Resources!GM41,LT_Resources!GM43:GM44,LT_Resources!GM48,LT_Resources!GM53,LT_Resources!GM58:GM59),SUM(Resources_ESP!GM32,Resources_ESP!GM34,Resources_ESP!GM37:GM52)) -> 181.5375 | GN26: =SUMPRODUCT(GB26:GM26,DB_Inputs!GB$9:GM$9)/DB_Inputs!GN$9 -> 175.3188669 | GP26: =IF(StudyType<2,SUM(LT_Resources!GP36,LT_Resources!GP41,LT_Resources!GP43:GP44,LT_Resources!GP48,LT_Resources!GP53,LT_Resources!GP58:GP59),SUM(Resources_ESP!GP32,Resources_ESP!GP34,Resources_ESP!GP37:GP52)) -> 0 | GQ26: =IF(StudyType<2,SUM(LT_Resources!GQ36,LT_Resources!GQ41,LT_Resources!GQ43:GQ44,LT_Resources!GQ48,LT_Resources!GQ53,LT_Resources!GQ58:GQ59),SUM(Resources_ESP!GQ32,Resources_ESP!GQ34,Resources_ESP!GQ37:GQ52)) -> 0 | GR26: =IF(StudyType<2,SUM(LT_Resources!GR36,LT_Resources!GR41,LT_Resources!GR43:GR44,LT_Resources!GR48,LT_Resources!GR53,LT_Resources!GR58:GR59),SUM(Resources_ESP!GR32,Resources_ESP!GR34,Resources_ESP!GR37:GR52)) -> 0 | GS26: =IF(StudyType<2,SUM(LT_Resources!GS36,LT_Resources!GS41,LT_Resources!GS43:GS44,LT_Resources!GS48,LT_Resources!GS53,LT_Resources!GS58:GS59),SUM(Resources_ESP!GS32,Resources_ESP!GS34,Resources_ESP!GS37:GS52)) -> 0 | GT26: =IF(StudyType<2,SUM(LT_Resources!GT36,LT_Resources!GT41,LT_Resources!GT43:GT44,LT_Resources!GT48,LT_Resources!GT53,LT_Resources!GT58:GT59),SUM(Resources_ESP!GT32,Resources_ESP!GT34,Resources_ESP!GT37:GT52)) -> 0 | GU26: =IF(StudyType<2,SUM(LT_Resources!GU36,LT_Resources!GU41,LT_Resources!GU43:GU44,LT_Resources!GU48,LT_Resources!GU53,LT_Resources!GU58:GU59),SUM(Resources_ESP!GU32,Resources_ESP!GU34,Resources_ESP!GU37:GU52)) -> 0 | GV26: =IF(StudyType<2,SUM(LT_Resources!GV36,LT_Resources!GV41,LT_Resources!GV43:GV44,LT_Resources!GV48,LT_Resources!GV53,LT_Resources!GV58:GV59),SUM(Resources_ESP!GV32,Resources_ESP!GV34,Resources_ESP!GV37:GV52)) -> 0 | GW26: =IF(StudyType<2,SUM(LT_Resources!GW36,LT_Resources!GW41,LT_Resources!GW43:GW44,LT_Resources!GW48,LT_Resources!GW53,LT_Resources!GW58:GW59),SUM(Resources_ESP!GW32,Resources_ESP!GW34,Resources_ESP!GW37:GW52)) -> 0 | GX26: =IF(StudyType<2,SUM(LT_Resources!GX36,LT_Resources!GX41,LT_Resources!GX43:GX44,LT_Resources!GX48,LT_Resources!GX53,LT_Resources!GX58:GX59),SUM(Resources_ESP!GX32,Resources_ESP!GX34,Resources_ESP!GX37:GX52)) -> 0 | GY26: =IF(StudyType<2,SUM(LT_Resources!GY36,LT_Resources!GY41,LT_Resources!GY43:GY44,LT_Resources!GY48,LT_Resources!GY53,LT_Resources!GY58:GY59),SUM(Resources_ESP!GY32,Resources_ESP!GY34,Resources_ESP!GY37:GY52)) -> 0 | GZ26: =IF(StudyType<2,SUM(LT_Resources!GZ36,LT_Resources!GZ41,LT_Resources!GZ43:GZ44,LT_Resources!GZ48,LT_Resources!GZ53,LT_Resources!GZ58:GZ59),SUM(Resources_ESP!GZ32,Resources_ESP!GZ34,Resources_ESP!GZ37:GZ52)) -> 0 | HA26: =IF(StudyType<2,SUM(LT_Resources!HA36,LT_Resources!HA41,LT_Resources!HA43:HA44,LT_Resources!HA48,LT_Resources!HA53,LT_Resources!HA58:HA59),SUM(Resources_ESP!HA32,Resources_ESP!HA34,Resources_ESP!HA37:HA52)) -> 0 | HB26: =SUMPRODUCT(GP26:HA26,DB_Inputs!GP$9:HA$9)/DB_Inputs!HB$9 -> 0
A27: Static Non-Hydro Resources Flat | B27: =(B25*DB_Inputs!B8+FedRev!B26*DB_Inputs!B9)/DB_Inputs!B10 -> 286.46 | C27: =(C25*DB_Inputs!C8+FedRev!C26*DB_Inputs!C9)/DB_Inputs!C10 -> 289.2572122 | D27: =(D25*DB_Inputs!D8+FedRev!D26*DB_Inputs!D9)/DB_Inputs!D10 -> 275.4952689 | E27: =(E25*DB_Inputs!E8+FedRev!E26*DB_Inputs!E9)/DB_Inputs!E10 -> 281.1027957 | F27: =(F25*DB_Inputs!F8+FedRev!F26*DB_Inputs!F9)/DB_Inputs!F10 -> 275.5590476 | G27: =(G25*DB_Inputs!G8+FedRev!G26*DB_Inputs!G9)/DB_Inputs!G10 -> 298.8361102 | H27: =(H25*DB_Inputs!H8+FedRev!H26*DB_Inputs!H9)/DB_Inputs!H10 -> 284.0326667 | I27: =(I25*DB_Inputs!I8+FedRev!I26*DB_Inputs!I9)/DB_Inputs!I10 -> 287.8257393 | J27: =(J25*DB_Inputs!J8+FedRev!J26*DB_Inputs!J9)/DB_Inputs!J10 -> 299.8697778 | K27: =(K25*DB_Inputs!K8+FedRev!K26*DB_Inputs!K9)/DB_Inputs!K10 -> 282.5332259 | L27: =(L25*DB_Inputs!L8+FedRev!L26*DB_Inputs!L9)/DB_Inputs!L10 -> 288.1079973 | M27: =(M25*DB_Inputs!M8+FedRev!M26*DB_Inputs!M9)/DB_Inputs!M10 -> 267.0086667 | N27: =SUMPRODUCT(B27:M27,DB_Inputs!B$14:M$14)/DB_Inputs!N$14 -> 284.7438333 | P27: =(P25*DB_Inputs!P8+FedRev!P26*DB_Inputs!P9)/DB_Inputs!P10 -> 342.7180644 | Q27: =(Q25*DB_Inputs!Q8+FedRev!Q26*DB_Inputs!Q9)/DB_Inputs!Q10 -> 340.9423579 | R27: =(R25*DB_Inputs!R8+FedRev!R26*DB_Inputs!R9)/DB_Inputs!R10 -> 327.1565592 | S27: =(S25*DB_Inputs!S8+FedRev!S26*DB_Inputs!S9)/DB_Inputs!S10 -> 333.1901613 | T27: =(T25*DB_Inputs!T8+FedRev!T26*DB_Inputs!T9)/DB_Inputs!T10 -> 322.768869 | U27: =(U25*DB_Inputs!U8+FedRev!U26*DB_Inputs!U9)/DB_Inputs!U10 -> 318.4902154 | V27: =(V25*DB_Inputs!V8+FedRev!V26*DB_Inputs!V9)/DB_Inputs!V10 -> 308.9354444 | W27: =(W25*DB_Inputs!W8+FedRev!W26*DB_Inputs!W9)/DB_Inputs!W10 -> 307.1940189 | X27: =(X25*DB_Inputs!X8+FedRev!X26*DB_Inputs!X9)/DB_Inputs!X10 -> 302.4100556 | Y27: =(Y25*DB_Inputs!Y8+FedRev!Y26*DB_Inputs!Y9)/DB_Inputs!Y10 -> 307.0144086 | Z27: =(Z25*DB_Inputs!Z8+FedRev!Z26*DB_Inputs!Z9)/DB_Inputs!Z10 -> 301.9090726 | AA27: =(AA25*DB_Inputs!AA8+FedRev!AA26*DB_Inputs!AA9)/DB_Inputs!AA10 -> 293.9017222 | AB27: =SUMPRODUCT(P27:AA27,DB_Inputs!P$14:AA$14)/DB_Inputs!AB$14 -> 317.2383528 | AD27: =(AD25*DB_Inputs!AD8+FedRev!AD26*DB_Inputs!AD9)/DB_Inputs!AD10 -> 271.1078495 | AE27: =(AE25*DB_Inputs!AE8+FedRev!AE26*DB_Inputs!AE9)/DB_Inputs!AE10 -> 272.3473648 | AF27: =(AF25*DB_Inputs!AF8+FedRev!AF26*DB_Inputs!AF9)/DB_Inputs!AF10 -> 264.3675806 | AG27: =(AG25*DB_Inputs!AG8+FedRev!AG26*DB_Inputs!AG9)/DB_Inputs!AG10 -> 264.7385484 | AH27: =(AH25*DB_Inputs!AH8+FedRev!AH26*DB_Inputs!AH9)/DB_Inputs!AH10 -> 266.8875575 | AI27: =(AI25*DB_Inputs!AI8+FedRev!AI26*DB_Inputs!AI9)/DB_Inputs!AI10 -> 266.5279004 | AJ27: =(AJ25*DB_Inputs!AJ8+FedRev!AJ26*DB_Inputs!AJ9)/DB_Inputs!AJ10 -> 257.2490694 | AK27: =(AK25*DB_Inputs!AK8+FedRev!AK26*DB_Inputs!AK9)/DB_Inputs!AK10 -> 248.7540323 | AL27: =(AL25*DB_Inputs!AL8+FedRev!AL26*DB_Inputs!AL9)/DB_Inputs!AL10 -> 257.6680556 | AM27: =(AM25*DB_Inputs!AM8+FedRev!AM26*DB_Inputs!AM9)/DB_Inputs!AM10 -> 255.3239247 | AN27: =(AN25*DB_Inputs!AN8+FedRev!AN26*DB_Inputs!AN9)/DB_Inputs!AN10 -> 243.4825269 | AO27: =(AO25*DB_Inputs!AO8+FedRev!AO26*DB_Inputs!AO9)/DB_Inputs!AO10 -> 249.1791667 | AP27: =SUMPRODUCT(AD27:AO27,DB_Inputs!AD$10:AO$10)/DB_Inputs!AP$10 -> 259.7723076 | AR27: =(AR25*DB_Inputs!AR8+FedRev!AR26*DB_Inputs!AR9)/DB_Inputs!AR10 -> 371.1478495 | AS27: =(AS25*DB_Inputs!AS8+FedRev!AS26*DB_Inputs!AS9)/DB_Inputs!AS10 -> 367.8404993 | AT27: =(AT25*DB_Inputs!AT8+FedRev!AT26*DB_Inputs!AT9)/DB_Inputs!AT10 -> 371.9569892 | AU27: =(AU25*DB_Inputs!AU8+FedRev!AU26*DB_Inputs!AU9)/DB_Inputs!AU10 -> 361.7096774 | AV27: =(AV25*DB_Inputs!AV8+FedRev!AV26*DB_Inputs!AV9)/DB_Inputs!AV10 -> 368.7886905 | AW27: =(AW25*DB_Inputs!AW8+FedRev!AW26*DB_Inputs!AW9)/DB_Inputs!AW10 -> 372.7833109 | AX27: =(AX25*DB_Inputs!AX8+FedRev!AX26*DB_Inputs!AX9)/DB_Inputs!AX10 -> 357.1875 | AY27: =(AY25*DB_Inputs!AY8+FedRev!AY26*DB_Inputs!AY9)/DB_Inputs!AY10 -> 349.0981183 | AZ27: =(AZ25*DB_Inputs!AZ8+FedRev!AZ26*DB_Inputs!AZ9)/DB_Inputs!AZ10 -> 356.2638889 | BA27: =(BA25*DB_Inputs!BA8+FedRev!BA26*DB_Inputs!BA9)/DB_Inputs!BA10 -> 263.1733871 | BB27: =(BB25*DB_Inputs!BB8+FedRev!BB26*DB_Inputs!BB9)/DB_Inputs!BB10 -> 252.563172 | BC27: =(BC25*DB_Inputs!BC8+FedRev!BC26*DB_Inputs!BC9)/DB_Inputs!BC10 -> 258.1097222 | BD27: =SUMPRODUCT(AR27:BC27,DB_Inputs!AR$10:BC$10)/DB_Inputs!BD$10 -> 337.3242009 | BF27: =(BF25*DB_Inputs!BF8+FedRev!BF26*DB_Inputs!BF9)/DB_Inputs!BF10 -> 146.3387097 | BG27: =(BG25*DB_Inputs!BG8+FedRev!BG26*DB_Inputs!BG9)/DB_Inputs!BG10 -> 154.6754508 | BH27: =(BH25*DB_Inputs!BH8+FedRev!BH26*DB_Inputs!BH9)/DB_Inputs!BH10 -> 152.8252688 | BI27: =(BI25*DB_Inputs!BI8+FedRev!BI26*DB_Inputs!BI9)/DB_Inputs!BI10 -> 143.1155914 | BJ27: =(BJ25*DB_Inputs!BJ8+FedRev!BJ26*DB_Inputs!BJ9)/DB_Inputs!BJ10 -> 149.3497024 | BK27: =(BK25*DB_Inputs!BK8+FedRev!BK26*DB_Inputs!BK9)/DB_Inputs!BK10 -> 153.0942127 | BL27: =(BL25*DB_Inputs!BL8+FedRev!BL26*DB_Inputs!BL9)/DB_Inputs!BL10 -> 158.7013889 | BM27: =(BM25*DB_Inputs!BM8+FedRev!BM26*DB_Inputs!BM9)/DB_Inputs!BM10 -> 153.6223118 | BN27: =(BN25*DB_Inputs!BN8+FedRev!BN26*DB_Inputs!BN9)/DB_Inputs!BN10 -> 157.7763889 | BO27: =(BO25*DB_Inputs!BO8+FedRev!BO26*DB_Inputs!BO9)/DB_Inputs!BO10 -> 152.8803763 | BP27: =(BP25*DB_Inputs!BP8+FedRev!BP26*DB_Inputs!BP9)/DB_Inputs!BP10 -> 152.5497312 | BQ27: =(BQ25*DB_Inputs!BQ8+FedRev!BQ26*DB_Inputs!BQ9)/DB_Inputs!BQ10 -> 152.9569444 | BR27: =SUMPRODUCT(BF27:BQ27,DB_Inputs!BF$10:BQ$10)/DB_Inputs!BR$10 -> 152.3078767 | BT27: =(BT25*DB_Inputs!BT8+FedRev!BT26*DB_Inputs!BT9)/DB_Inputs!BT10 -> 274.7594086 | BU27: =(BU25*DB_Inputs!BU8+FedRev!BU26*DB_Inputs!BU9)/DB_Inputs!BU10 -> 283.0957004 | BV27: =(BV25*DB_Inputs!BV8+FedRev!BV26*DB_Inputs!BV9)/DB_Inputs!BV10 -> 281.2459677 | BW27: =(BW25*DB_Inputs!BW8+FedRev!BW26*DB_Inputs!BW9)/DB_Inputs!BW10 -> 271.5362903 | BX27: =(BX25*DB_Inputs!BX8+FedRev!BX26*DB_Inputs!BX9)/DB_Inputs!BX10 -> 277.7708333 | BY27: =(BY25*DB_Inputs!BY8+FedRev!BY26*DB_Inputs!BY9)/DB_Inputs!BY10 -> 281.5154778 | BZ27: =(BZ25*DB_Inputs!BZ8+FedRev!BZ26*DB_Inputs!BZ9)/DB_Inputs!BZ10 -> 281.8125 | CA27: =(CA25*DB_Inputs!CA8+FedRev!CA26*DB_Inputs!CA9)/DB_Inputs!CA10 -> 287.1827957 | CB27: =(CB25*DB_Inputs!CB8+FedRev!CB26*DB_Inputs!CB9)/DB_Inputs!CB10 -> 286.1972222 | CC27: =(CC25*DB_Inputs!CC8+FedRev!CC26*DB_Inputs!CC9)/DB_Inputs!CC10 -> 281.3010753 | CD27: =(CD25*DB_Inputs!CD8+FedRev!CD26*DB_Inputs!CD9)/DB_Inputs!CD10 -> 280.9704301 | CE27: =(CE25*DB_Inputs!CE8+FedRev!CE26*DB_Inputs!CE9)/DB_Inputs!CE10 -> 281.3777778 | CF27: =SUMPRODUCT(BT27:CE27,DB_Inputs!BT$10:CE$10)/DB_Inputs!CF$10 -> 280.7287671 | CH27: =(CH25*DB_Inputs!CH8+FedRev!CH26*DB_Inputs!CH9)/DB_Inputs!CH10 -> 146.3387097 | CI27: =(CI25*DB_Inputs!CI8+FedRev!CI26*DB_Inputs!CI9)/DB_Inputs!CI10 -> 154.6754508 | CJ27: =(CJ25*DB_Inputs!CJ8+FedRev!CJ26*DB_Inputs!CJ9)/DB_Inputs!CJ10 -> 147.6854839 | CK27: =(CK25*DB_Inputs!CK8+FedRev!CK26*DB_Inputs!CK9)/DB_Inputs!CK10 -> 148.2553763 | CL27: =(CL25*DB_Inputs!CL8+FedRev!CL26*DB_Inputs!CL9)/DB_Inputs!CL10 -> 150.1192529 | CM27: =(CM25*DB_Inputs!CM8+FedRev!CM26*DB_Inputs!CM9)/DB_Inputs!CM10 -> 147.9475101 | CN27: =(CN25*DB_Inputs!CN8+FedRev!CN26*DB_Inputs!CN9)/DB_Inputs!CN10 -> 158.7013889 | CO27: =(CO25*DB_Inputs!CO8+FedRev!CO26*DB_Inputs!CO9)/DB_Inputs!CO10 -> 158.7620968 | CP27: =(CP25*DB_Inputs!CP8+FedRev!CP26*DB_Inputs!CP9)/DB_Inputs!CP10 -> 152.4652778 | CQ27: =(CQ25*DB_Inputs!CQ8+FedRev!CQ26*DB_Inputs!CQ9)/DB_Inputs!CQ10 -> 158.0201613 | CR27: =(CR25*DB_Inputs!CR8+FedRev!CR26*DB_Inputs!CR9)/DB_Inputs!CR10 -> 152.5497312 | CS27: =(CS25*DB_Inputs!CS8+FedRev!CS26*DB_Inputs!CS9)/DB_Inputs!CS10 -> 150.2236111 | CT27: =SUMPRODUCT(CH27:CS27,DB_Inputs!CH$10:CS$10)/DB_Inputs!CT$10 -> 152.1367259 | CV27: =(CV25*DB_Inputs!CV8+FedRev!CV26*DB_Inputs!CV9)/DB_Inputs!CV10 -> 290.8454301 | CW27: =(CW25*DB_Inputs!CW8+FedRev!CW26*DB_Inputs!CW9)/DB_Inputs!CW10 -> 296.5353675 | CX27: =(CX25*DB_Inputs!CX8+FedRev!CX26*DB_Inputs!CX9)/DB_Inputs!CX10 -> 289.5456989 | CY27: =(CY25*DB_Inputs!CY8+FedRev!CY26*DB_Inputs!CY9)/DB_Inputs!CY10 -> 290.1155914 | CZ27: =(CZ25*DB_Inputs!CZ8+FedRev!CZ26*DB_Inputs!CZ9)/DB_Inputs!CZ10 -> 293.9732143 | DA27: =(DA25*DB_Inputs!DA8+FedRev!DA26*DB_Inputs!DA9)/DB_Inputs!DA10 -> 289.8088829 | DB27: =(DB25*DB_Inputs!DB8+FedRev!DB26*DB_Inputs!DB9)/DB_Inputs!DB10 -> 300.5625 | DC27: =(DC25*DB_Inputs!DC8+FedRev!DC26*DB_Inputs!DC9)/DB_Inputs!DC10 -> 300.6223118 | DD27: =(DD25*DB_Inputs!DD8+FedRev!DD26*DB_Inputs!DD9)/DB_Inputs!DD10 -> 294.325 | DE27: =(DE25*DB_Inputs!DE8+FedRev!DE26*DB_Inputs!DE9)/DB_Inputs!DE10 -> 299.8803763 | DF27: =(DF25*DB_Inputs!DF8+FedRev!DF26*DB_Inputs!DF9)/DB_Inputs!DF10 -> 291.766129 | DG27: =(DG25*DB_Inputs!DG8+FedRev!DG26*DB_Inputs!DG9)/DB_Inputs!DG10 -> 292.7944444 | DH27: =SUMPRODUCT(CV27:DG27,DB_Inputs!CV$10:DG$10)/DB_Inputs!DH$10 -> 294.2141553 | DJ27: =(DJ25*DB_Inputs!DJ8+FedRev!DJ26*DB_Inputs!DJ9)/DB_Inputs!DJ10 -> 148.983871 | DK27: =(DK25*DB_Inputs!DK8+FedRev!DK26*DB_Inputs!DK9)/DB_Inputs!DK10 -> 153.9653259 | DL27: =(DL25*DB_Inputs!DL8+FedRev!DL26*DB_Inputs!DL9)/DB_Inputs!DL10 -> 148.3736559 | DM27: =(DM25*DB_Inputs!DM8+FedRev!DM26*DB_Inputs!DM9)/DB_Inputs!DM10 -> 148.2553763 | DN27: =(DN25*DB_Inputs!DN8+FedRev!DN26*DB_Inputs!DN9)/DB_Inputs!DN10 -> 152.1116071 | DO27: =(DO25*DB_Inputs!DO8+FedRev!DO26*DB_Inputs!DO9)/DB_Inputs!DO10 -> 147.9475101 | DP27: =(DP25*DB_Inputs!DP8+FedRev!DP26*DB_Inputs!DP9)/DB_Inputs!DP10 -> 158.7013889 | DQ27: =(DQ25*DB_Inputs!DQ8+FedRev!DQ26*DB_Inputs!DQ9)/DB_Inputs!DQ10 -> 158.0739247 | DR27: =(DR25*DB_Inputs!DR8+FedRev!DR26*DB_Inputs!DR9)/DB_Inputs!DR10 -> 153.1763889 | DS27: =(DS25*DB_Inputs!DS8+FedRev!DS26*DB_Inputs!DS9)/DB_Inputs!DS10 -> 158.0201613 | DT27: =(DT25*DB_Inputs!DT8+FedRev!DT26*DB_Inputs!DT9)/DB_Inputs!DT10 -> 149.9045699 | DU27: =(DU25*DB_Inputs!DU8+FedRev!DU26*DB_Inputs!DU9)/DB_Inputs!DU10 -> 152.7569444 | DV27: =SUMPRODUCT(DJ27:DU27,DB_Inputs!DJ$10:DU$10)/DB_Inputs!DV$10 -> 152.5033105 | DX27: =(DX25*DB_Inputs!DX8+FedRev!DX26*DB_Inputs!DX9)/DB_Inputs!DX10 -> 289.436828 | DY27: =(DY25*DB_Inputs!DY8+FedRev!DY26*DB_Inputs!DY9)/DB_Inputs!DY10 -> 297.0638003 | DZ27: =(DZ25*DB_Inputs!DZ8+FedRev!DZ26*DB_Inputs!DZ9)/DB_Inputs!DZ10 -> 291.4717742 | EA27: =(EA25*DB_Inputs!EA8+FedRev!EA26*DB_Inputs!EA9)/DB_Inputs!EA10 -> 290.6653226 | EB27: =(EB25*DB_Inputs!EB8+FedRev!EB26*DB_Inputs!EB9)/DB_Inputs!EB10 -> 296.1860119 | EC27: =(EC25*DB_Inputs!EC8+FedRev!EC26*DB_Inputs!EC9)/DB_Inputs!EC10 -> 292.6164199 | ED27: =(ED25*DB_Inputs!ED8+FedRev!ED26*DB_Inputs!ED9)/DB_Inputs!ED10 -> 301.7986111 | EE27: =(EE25*DB_Inputs!EE8+FedRev!EE26*DB_Inputs!EE9)/DB_Inputs!EE10 -> 299.4086022 | EF27: =(EF25*DB_Inputs!EF8+FedRev!EF26*DB_Inputs!EF9)/DB_Inputs!EF10 -> 298.0972222 | EG27: =(EG25*DB_Inputs!EG8+FedRev!EG26*DB_Inputs!EG9)/DB_Inputs!EG10 -> 300.2365591 | EH27: =(EH25*DB_Inputs!EH8+FedRev!EH26*DB_Inputs!EH9)/DB_Inputs!EH10 -> 293.0026882 | EI27: =(EI25*DB_Inputs!EI8+FedRev!EI26*DB_Inputs!EI9)/DB_Inputs!EI10 -> 295.8541667 | EJ27: =SUMPRODUCT(DX27:EI27,DB_Inputs!DX$10:EI$10)/DB_Inputs!EJ$10 -> 295.451484 | EL27: =(EL25*DB_Inputs!EL8+FedRev!EL26*DB_Inputs!EL9)/DB_Inputs!EL10 -> 138.0725806 | EM27: =(EM25*DB_Inputs!EM8+FedRev!EM26*DB_Inputs!EM9)/DB_Inputs!EM10 -> 141.7337032 | EN27: =(EN25*DB_Inputs!EN8+FedRev!EN26*DB_Inputs!EN9)/DB_Inputs!EN10 -> 138.5094086 | EO27: =(EO25*DB_Inputs!EO8+FedRev!EO26*DB_Inputs!EO9)/DB_Inputs!EO10 -> 142.2916667 | EP27: =(EP25*DB_Inputs!EP8+FedRev!EP26*DB_Inputs!EP9)/DB_Inputs!EP10 -> 140.2428161 | EQ27: =(EQ25*DB_Inputs!EQ8+FedRev!EQ26*DB_Inputs!EQ9)/DB_Inputs!EQ10 -> 139.4845222 | ER27: =(ER25*DB_Inputs!ER8+FedRev!ER26*DB_Inputs!ER9)/DB_Inputs!ER10 -> 141.4666667 | ES27: =(ES25*DB_Inputs!ES8+FedRev!ES26*DB_Inputs!ES9)/DB_Inputs!ES10 -> 140.8454301 | ET27: =(ET25*DB_Inputs!ET8+FedRev!ET26*DB_Inputs!ET9)/DB_Inputs!ET10 -> 139.0277778 | EU27: =(EU25*DB_Inputs!EU8+FedRev!EU26*DB_Inputs!EU9)/DB_Inputs!EU10 -> 140.8373656 | EV27: =(EV25*DB_Inputs!EV8+FedRev!EV26*DB_Inputs!EV9)/DB_Inputs!EV10 -> 140.4502688 | EW27: =(EW25*DB_Inputs!EW8+FedRev!EW26*DB_Inputs!EW9)/DB_Inputs!EW10 -> 141.5194444 | EX27: =SUMPRODUCT(EL27:EW27,DB_Inputs!EL$10:EW$10)/DB_Inputs!EX$10 -> 140.3682832 | EZ27: =(EZ25*DB_Inputs!EZ8+FedRev!EZ26*DB_Inputs!EZ9)/DB_Inputs!EZ10 -> 291.8951613 | FA27: =(FA25*DB_Inputs!FA8+FedRev!FA26*DB_Inputs!FA9)/DB_Inputs!FA10 -> 297.0083218 | FB27: =(FB25*DB_Inputs!FB8+FedRev!FB26*DB_Inputs!FB9)/DB_Inputs!FB10 -> 293.0967742 | FC27: =(FC25*DB_Inputs!FC8+FedRev!FC26*DB_Inputs!FC9)/DB_Inputs!FC10 -> 298.2540323 | FD27: =(FD25*DB_Inputs!FD8+FedRev!FD26*DB_Inputs!FD9)/DB_Inputs!FD10 -> 299.6354167 | FE27: =(FE25*DB_Inputs!FE8+FedRev!FE26*DB_Inputs!FE9)/DB_Inputs!FE10 -> 294.7604307 | FF27: =(FF25*DB_Inputs!FF8+FedRev!FF26*DB_Inputs!FF9)/DB_Inputs!FF10 -> 296.7416667 | FG27: =(FG25*DB_Inputs!FG8+FedRev!FG26*DB_Inputs!FG9)/DB_Inputs!FG10 -> 296.1196237 | FH27: =(FH25*DB_Inputs!FH8+FedRev!FH26*DB_Inputs!FH9)/DB_Inputs!FH10 -> 294.3027778 | FI27: =(FI25*DB_Inputs!FI8+FedRev!FI26*DB_Inputs!FI9)/DB_Inputs!FI10 -> 296.1129032 | FJ27: =(FJ25*DB_Inputs!FJ8+FedRev!FJ26*DB_Inputs!FJ9)/DB_Inputs!FJ10 -> 295.7258065 | FK27: =(FK25*DB_Inputs!FK8+FedRev!FK26*DB_Inputs!FK9)/DB_Inputs!FK10 -> 296.0833333 | FL27: =SUMPRODUCT(EZ27:FK27,DB_Inputs!EZ$10:FK$10)/DB_Inputs!FL$10 -> 295.7777397 | FN27: =(FN25*DB_Inputs!FN8+FedRev!FN26*DB_Inputs!FN9)/DB_Inputs!FN10 -> 137.3091398 | FO27: =(FO25*DB_Inputs!FO8+FedRev!FO26*DB_Inputs!FO9)/DB_Inputs!FO10 -> 141.7337032 | FP27: =(FP25*DB_Inputs!FP8+FedRev!FP26*DB_Inputs!FP9)/DB_Inputs!FP10 -> 137.8212366 | FQ27: =(FQ25*DB_Inputs!FQ8+FedRev!FQ26*DB_Inputs!FQ9)/DB_Inputs!FQ10 -> 142.9798387 | FR27: =(FR25*DB_Inputs!FR8+FedRev!FR26*DB_Inputs!FR9)/DB_Inputs!FR10 -> 144.360119 | FS27: =(FS25*DB_Inputs!FS8+FedRev!FS26*DB_Inputs!FS9)/DB_Inputs!FS10 -> 138.795424 | FT27: =(FT25*DB_Inputs!FT8+FedRev!FT26*DB_Inputs!FT9)/DB_Inputs!FT10 -> 142.1777778 | FU27: =(FU25*DB_Inputs!FU8+FedRev!FU26*DB_Inputs!FU9)/DB_Inputs!FU10 -> 140.8454301 | FV27: =(FV25*DB_Inputs!FV8+FedRev!FV26*DB_Inputs!FV9)/DB_Inputs!FV10 -> 138.3166667 | FW27: =(FW25*DB_Inputs!FW8+FedRev!FW26*DB_Inputs!FW9)/DB_Inputs!FW10 -> 141.5255376 | FX27: =(FX25*DB_Inputs!FX8+FedRev!FX26*DB_Inputs!FX9)/DB_Inputs!FX10 -> 140.4502688 | FY27: =(FY25*DB_Inputs!FY8+FedRev!FY26*DB_Inputs!FY9)/DB_Inputs!FY10 -> 140.8083333 | FZ27: =SUMPRODUCT(FN27:FY27,DB_Inputs!FN$10:FY$10)/DB_Inputs!FZ$10 -> 140.5611872 | GB27: =(GB25*DB_Inputs!GB8+FedRev!GB26*DB_Inputs!GB9)/DB_Inputs!GB10 -> 303.1330645 | GC27: =(GC25*DB_Inputs!GC8+FedRev!GC26*DB_Inputs!GC9)/DB_Inputs!GC10 -> 307.5589459 | GD27: =(GD25*DB_Inputs!GD8+FedRev!GD26*DB_Inputs!GD9)/DB_Inputs!GD10 -> 303.6451613 | GE27: =(GE25*DB_Inputs!GE8+FedRev!GE26*DB_Inputs!GE9)/DB_Inputs!GE10 -> 308.8037634 | GF27: =(GF25*DB_Inputs!GF8+FedRev!GF26*DB_Inputs!GF9)/DB_Inputs!GF10 -> 309.2068452 | GG27: =(GG25*DB_Inputs!GG8+FedRev!GG26*DB_Inputs!GG9)/DB_Inputs!GG10 -> 303.7362046 | GH27: =(GH25*DB_Inputs!GH8+FedRev!GH26*DB_Inputs!GH9)/DB_Inputs!GH10 -> 308 | GI27: =(GI25*DB_Inputs!GI8+FedRev!GI26*DB_Inputs!GI9)/DB_Inputs!GI10 -> 308.4327957 | GJ27: =(GJ25*DB_Inputs!GJ8+FedRev!GJ26*DB_Inputs!GJ9)/DB_Inputs!GJ10 -> 302.3194444 | GK27: =(GK25*DB_Inputs!GK8+FedRev!GK26*DB_Inputs!GK9)/DB_Inputs!GK10 -> 308.2311828 | GL27: =(GL25*DB_Inputs!GL8+FedRev!GL26*DB_Inputs!GL9)/DB_Inputs!GL10 -> 305.5846774 | GM27: =(GM25*DB_Inputs!GM8+FedRev!GM26*DB_Inputs!GM9)/DB_Inputs!GM10 -> 305.5222222 | GN27: =SUMPRODUCT(GB27:GM27,DB_Inputs!GB$10:GM$10)/DB_Inputs!GN$10 -> 306.1603881 | GP27: =(GP25*DB_Inputs!GP8+FedRev!GP26*DB_Inputs!GP9)/DB_Inputs!GP10 -> 0 | GQ27: =(GQ25*DB_Inputs!GQ8+FedRev!GQ26*DB_Inputs!GQ9)/DB_Inputs!GQ10 -> 29.16682386 | GR27: =(GR25*DB_Inputs!GR8+FedRev!GR26*DB_Inputs!GR9)/DB_Inputs!GR10 -> 0 | GS27: =(GS25*DB_Inputs!GS8+FedRev!GS26*DB_Inputs!GS9)/DB_Inputs!GS10 -> 0 | GT27: =(GT25*DB_Inputs!GT8+FedRev!GT26*DB_Inputs!GT9)/DB_Inputs!GT10 -> 0 | GU27: =(GU25*DB_Inputs!GU8+FedRev!GU26*DB_Inputs!GU9)/DB_Inputs!GU10 -> 0 | GV27: =(GV25*DB_Inputs!GV8+FedRev!GV26*DB_Inputs!GV9)/DB_Inputs!GV10 -> 0 | GW27: =(GW25*DB_Inputs!GW8+FedRev!GW26*DB_Inputs!GW9)/DB_Inputs!GW10 -> 0 | GX27: =(GX25*DB_Inputs!GX8+FedRev!GX26*DB_Inputs!GX9)/DB_Inputs!GX10 -> 0 | GY27: =(GY25*DB_Inputs!GY8+FedRev!GY26*DB_Inputs!GY9)/DB_Inputs!GY10 -> 0 | GZ27: =(GZ25*DB_Inputs!GZ8+FedRev!GZ26*DB_Inputs!GZ9)/DB_Inputs!GZ10 -> 0 | HA27: =(HA25*DB_Inputs!HA8+FedRev!HA26*DB_Inputs!HA9)/DB_Inputs!HA10 -> 0 | HB27: =SUMPRODUCT(GP27:HA27,DB_Inputs!GP$10:HA$10)/DB_Inputs!HB$10 -> 2.394043716
A29: Tx Loss Return by WY HLH | B29: =IF(DB_Inputs!B$18=0,0,DB_Inputs!B87) -> 30.47064252 | C29: =IF(DB_Inputs!C$18=0,0,DB_Inputs!C87) -> 38.21974801 | D29: =IF(DB_Inputs!D$18=0,0,DB_Inputs!D87) -> 39.12997048 | E29: =IF(DB_Inputs!E$18=0,0,DB_Inputs!E87) -> 31.91542401 | F29: =IF(DB_Inputs!F$18=0,0,DB_Inputs!F87) -> 32.65445113 | G29: =IF(DB_Inputs!G$18=0,0,DB_Inputs!G87) -> 31.26309961 | H29: =IF(DB_Inputs!H$18=0,0,DB_Inputs!H87) -> 26.07485105 | I29: =IF(DB_Inputs!I$18=0,0,DB_Inputs!I87) -> 55.1298888 | J29: =IF(DB_Inputs!J$18=0,0,DB_Inputs!J87) -> 54.68672636 | K29: =IF(DB_Inputs!K$18=0,0,DB_Inputs!K87) -> 33.91729999 | L29: =IF(DB_Inputs!L$18=0,0,DB_Inputs!L87) -> 33.73342201 | M29: =IF(DB_Inputs!M$18=0,0,DB_Inputs!M87) -> 32.38586465 | N29: =SUMPRODUCT(B29:M29,DB_Inputs!B$12:M$12)/DB_Inputs!N$12 -> 36.68852982 | P29: =IF(DB_Inputs!P$18=0,0,DB_Inputs!P87) -> 29.56351804 | Q29: =IF(DB_Inputs!Q$18=0,0,DB_Inputs!Q87) -> 38.97843253 | R29: =IF(DB_Inputs!R$18=0,0,DB_Inputs!R87) -> 43.82041104 | S29: =IF(DB_Inputs!S$18=0,0,DB_Inputs!S87) -> 49.19581752 | T29: =IF(DB_Inputs!T$18=0,0,DB_Inputs!T87) -> 46.26711281 | U29: =IF(DB_Inputs!U$18=0,0,DB_Inputs!U87) -> 48.86051503 | V29: =IF(DB_Inputs!V$18=0,0,DB_Inputs!V87) -> 56.51088206 | W29: =IF(DB_Inputs!W$18=0,0,DB_Inputs!W87) -> 51.98804819 | X29: =IF(DB_Inputs!X$18=0,0,DB_Inputs!X87) -> 49.70716212 | Y29: =IF(DB_Inputs!Y$18=0,0,DB_Inputs!Y87) -> 49.70070614 | Z29: =IF(DB_Inputs!Z$18=0,0,DB_Inputs!Z87) -> 42.26795432 | AA29: =IF(DB_Inputs!AA$18=0,0,DB_Inputs!AA87) -> 36.08285212 | AB29: =SUMPRODUCT(P29:AA29,DB_Inputs!P$12:AA$12)/DB_Inputs!AB$12 -> 45.24805944 | AD29: =DB_Inputs!AD87 -> 38.76058704 | AE29: =DB_Inputs!AE87 -> 51.93415116 | AF29: =DB_Inputs!AF87 -> 44.88690672 | AG29: =DB_Inputs!AG87 -> 38.96648142 | AH29: =DB_Inputs!AH87 -> 38.16305353 | AI29: =DB_Inputs!AI87 -> 53.82117406 | AJ29: =DB_Inputs!AJ87 -> 45.99873728 | AK29: =DB_Inputs!AK87 -> 59.14604541 | AL29: =DB_Inputs!AL87 -> 51.27318167 | AM29: =DB_Inputs!AM87 -> 47.37960674 | AN29: =DB_Inputs!AN87 -> 34.92991965 | AO29: =DB_Inputs!AO87 -> 41.18866789 | AP29: =SUMPRODUCT(AD29:AO29,DB_Inputs!AD$8:AO$8)/DB_Inputs!AP$8 -> 45.49059445 | AR29: =DB_Inputs!AR87 -> 39.94377909 | AS29: =DB_Inputs!AS87 -> 48.47597182 | AT29: =DB_Inputs!AT87 -> 52.53360521 | AU29: =DB_Inputs!AU87 -> 55.57343988 | AV29: =DB_Inputs!AV87 -> 54.789271 | AW29: =DB_Inputs!AW87 -> 44.42628204 | AX29: =DB_Inputs!AX87 -> 40.01983583 | AY29: =DB_Inputs!AY87 -> 57.31533926 | AZ29: =DB_Inputs!AZ87 -> 51.8309935 | BA29: =DB_Inputs!BA87 -> 49.9785091 | BB29: =DB_Inputs!BB87 -> 37.79790552 | BC29: =DB_Inputs!BC87 -> 34.47099182 | BD29: =SUMPRODUCT(AR29:BC29,DB_Inputs!AR$8:BC$8)/DB_Inputs!BD$8 -> 47.15483332 | BF29: =DB_Inputs!BF87 -> 35.90446304 | BG29: =DB_Inputs!BG87 -> 48.47121519 | BH29: =DB_Inputs!BH87 -> 50.60873246 | BI29: =DB_Inputs!BI87 -> 64.92907516 | BJ29: =DB_Inputs!BJ87 -> 62.93066428 | BK29: =DB_Inputs!BK87 -> 61.64724175 | BL29: =DB_Inputs!BL87 -> 62.08735741 | BM29: =DB_Inputs!BM87 -> 73.78995338 | BN29: =DB_Inputs!BN87 -> 65.84495813 | BO29: =DB_Inputs!BO87 -> 53.74134056 | BP29: =DB_Inputs!BP87 -> 41.02898601 | BQ29: =DB_Inputs!BQ87 -> 31.61921751 | BR29: =SUMPRODUCT(BF29:BQ29,DB_Inputs!BF$8:BQ$8)/DB_Inputs!BR$8 -> 54.30601767 | BT29: =DB_Inputs!BT87 -> 35.6880078 | BU29: =DB_Inputs!BU87 -> 48.66654945 | BV29: =DB_Inputs!BV87 -> 50.11102871 | BW29: =DB_Inputs!BW87 -> 63.65904991 | BX29: =DB_Inputs!BX87 -> 48.17860703 | BY29: =DB_Inputs!BY87 -> 66.73764945 | BZ29: =DB_Inputs!BZ87 -> 55.04265459 | CA29: =DB_Inputs!CA87 -> 61.58112551 | CB29: =DB_Inputs!CB87 -> 45.69983097 | CC29: =DB_Inputs!CC87 -> 56.33409274 | CD29: =DB_Inputs!CD87 -> 38.54517704 | CE29: =DB_Inputs!CE87 -> 30.91742057 | CF29: =SUMPRODUCT(BT29:CE29,DB_Inputs!BT$8:CE$8)/DB_Inputs!CF$8 -> 50.1123677 | CH29: =DB_Inputs!CH87 -> 38.20070135 | CI29: =DB_Inputs!CI87 -> 51.00411809 | CJ29: =DB_Inputs!CJ87 -> 41.90490002 | CK29: =DB_Inputs!CK87 -> 51.26202784 | CL29: =DB_Inputs!CL87 -> 43.91387566 | CM29: =DB_Inputs!CM87 -> 45.59914016 | CN29: =DB_Inputs!CN87 -> 39.55212741 | CO29: =DB_Inputs!CO87 -> 72.02530883 | CP29: =DB_Inputs!CP87 -> 70.52750942 | CQ29: =DB_Inputs!CQ87 -> 60.01800847 | CR29: =DB_Inputs!CR87 -> 41.80084743 | CS29: =DB_Inputs!CS87 -> 33.91302616 | CT29: =SUMPRODUCT(CH29:CS29,DB_Inputs!CH$8:CS$8)/DB_Inputs!CT$8 -> 49.18366695 | CV29: =DB_Inputs!CV87 -> 37.92075656 | CW29: =DB_Inputs!CW87 -> 43.60374279 | CX29: =DB_Inputs!CX87 -> 41.78563987 | CY29: =DB_Inputs!CY87 -> 43.60047465 | CZ29: =DB_Inputs!CZ87 -> 40.98278475 | DA29: =DB_Inputs!DA87 -> 38.28772252 | DB29: =DB_Inputs!DB87 -> 36.58152568 | DC29: =DB_Inputs!DC87 -> 42.79030384 | DD29: =DB_Inputs!DD87 -> 42.47042202 | DE29: =DB_Inputs!DE87 -> 35.76012456 | DF29: =DB_Inputs!DF87 -> 38.47708537 | DG29: =DB_Inputs!DG87 -> 35.89238166 | DH29: =SUMPRODUCT(CV29:DG29,DB_Inputs!CV$8:DG$8)/DB_Inputs!DH$8 -> 39.81817613 | DJ29: =DB_Inputs!DJ87 -> 38.26273922 | DK29: =DB_Inputs!DK87 -> 45.41250572 | DL29: =DB_Inputs!DL87 -> 43.36189798 | DM29: =DB_Inputs!DM87 -> 33.98604992 | DN29: =DB_Inputs!DN87 -> 41.00643313 | DO29: =DB_Inputs!DO87 -> 39.36694837 | DP29: =DB_Inputs!DP87 -> 44.02048254 | DQ29: =DB_Inputs!DQ87 -> 47.18526209 | DR29: =DB_Inputs!DR87 -> 35.37725801 | DS29: =DB_Inputs!DS87 -> 47.00782714 | DT29: =DB_Inputs!DT87 -> 40.35531258 | DU29: =DB_Inputs!DU87 -> 36.07014454 | DV29: =SUMPRODUCT(DJ29:DU29,DB_Inputs!DJ$8:DU$8)/DB_Inputs!DV$8 -> 40.90848159 | DX29: =DB_Inputs!DX87 -> 36.54145941 | DY29: =DB_Inputs!DY87 -> 44.99067013 | DZ29: =DB_Inputs!DZ87 -> 43.45392393 | EA29: =DB_Inputs!EA87 -> 33.48112212 | EB29: =DB_Inputs!EB87 -> 33.36350396 | EC29: =DB_Inputs!EC87 -> 36.20867158 | ED29: =DB_Inputs!ED87 -> 25.98081232 | EE29: =DB_Inputs!EE87 -> 48.80971722 | EF29: =DB_Inputs!EF87 -> 31.63510792 | EG29: =DB_Inputs!EG87 -> 47.71700845 | EH29: =DB_Inputs!EH87 -> 37.36056321 | EI29: =DB_Inputs!EI87 -> 31.10562834 | EJ29: =SUMPRODUCT(DX29:EI29,DB_Inputs!DX$8:EI$8)/DB_Inputs!EJ$8 -> 37.5227955 | EL29: =DB_Inputs!EL87 -> 35.04492018 | EM29: =DB_Inputs!EM87 -> 42.69056977 | EN29: =DB_Inputs!EN87 -> 40.96279671 | EO29: =DB_Inputs!EO87 -> 30.8902526 | EP29: =DB_Inputs!EP87 -> 31.13214681 | EQ29: =DB_Inputs!EQ87 -> 48.5139486 | ER29: =DB_Inputs!ER87 -> 60.48833387 | ES29: =DB_Inputs!ES87 -> 74.05267822 | ET29: =DB_Inputs!ET87 -> 66.73758699 | EU29: =DB_Inputs!EU87 -> 54.48791671 | EV29: =DB_Inputs!EV87 -> 45.01835078 | EW29: =DB_Inputs!EW87 -> 35.63941558 | EX29: =SUMPRODUCT(EL29:EW29,DB_Inputs!EL$8:EW$8)/DB_Inputs!EX$8 -> 47.22511527 | EZ29: =DB_Inputs!EZ87 -> 37.25283775 | FA29: =DB_Inputs!FA87 -> 45.90481508 | FB29: =DB_Inputs!FB87 -> 46.37821229 | FC29: =DB_Inputs!FC87 -> 62.67613677 | FD29: =DB_Inputs!FD87 -> 58.66603984 | FE29: =DB_Inputs!FE87 -> 53.17100193 | FF29: =DB_Inputs!FF87 -> 46.25977022 | FG29: =DB_Inputs!FG87 -> 56.87979896 | FH29: =DB_Inputs!FH87 -> 65.22534955 | FI29: =DB_Inputs!FI87 -> 57.41673368 | FJ29: =DB_Inputs!FJ87 -> 53.27010097 | FK29: =DB_Inputs!FK87 -> 35.29435312 | FL29: =SUMPRODUCT(EZ29:FK29,DB_Inputs!EZ$8:FK$8)/DB_Inputs!FL$8 -> 51.63671467 | FN29: =DB_Inputs!FN87 -> 42.02550902 | FO29: =DB_Inputs!FO87 -> 61.39859531 | FP29: =DB_Inputs!FP87 -> 68.11283238 | FQ29: =DB_Inputs!FQ87 -> 75.71077699 | FR29: =DB_Inputs!FR87 -> 69.51289206 | FS29: =DB_Inputs!FS87 -> 67.19243896 | FT29: =DB_Inputs!FT87 -> 61.63434511 | FU29: =DB_Inputs!FU87 -> 62.80918179 | FV29: =DB_Inputs!FV87 -> 54.47859443 | FW29: =DB_Inputs!FW87 -> 49.51472817 | FX29: =DB_Inputs!FX87 -> 38.17114767 | FY29: =DB_Inputs!FY87 -> 32.95572471 | FZ29: =SUMPRODUCT(FN29:FY29,DB_Inputs!FN$8:FY$8)/DB_Inputs!FZ$8 -> 56.88177633 | GB29: =DB_Inputs!GB87 -> 38.40117195 | GC29: =DB_Inputs!GC87 -> 41.18279819 | GD29: =DB_Inputs!GD87 -> 41.5258509 | GE29: =DB_Inputs!GE87 -> 58.49626698 | GF29: =DB_Inputs!GF87 -> 59.39972126 | GG29: =DB_Inputs!GG87 -> 53.65086948 | GH29: =DB_Inputs!GH87 -> 42.28694478 | GI29: =DB_Inputs!GI87 -> 50.70645857 | GJ29: =DB_Inputs!GJ87 -> 46.69703855 | GK29: =DB_Inputs!GK87 -> 58.41041277 | GL29: =DB_Inputs!GL87 -> 43.89280531 | GM29: =DB_Inputs!GM87 -> 31.87541387 | GN29: =SUMPRODUCT(GB29:GM29,DB_Inputs!GB$8:GM$8)/DB_Inputs!GN$8 -> 47.19215047 | GP29: =DB_Inputs!GP87 -> 35.20175122 | GQ29: =DB_Inputs!GQ87 -> 43.39251397 | GR29: =DB_Inputs!GR87 -> 42.49062388 | GS29: =DB_Inputs!GS87 -> 35.41733145 | GT29: =DB_Inputs!GT87 -> 39.05005307 | GU29: =DB_Inputs!GU87 -> 39.88669833 | GV29: =DB_Inputs!GV87 -> 49.99555944 | GW29: =DB_Inputs!GW87 -> 71.76380929 | GX29: =DB_Inputs!GX87 -> 65.6410606 | GY29: =DB_Inputs!GY87 -> 47.94192129 | GZ29: =DB_Inputs!GZ87 -> 38.35196311 | HA29: =DB_Inputs!HA87 -> 33.41713225 | HB29: =SUMPRODUCT(GP29:HA29,DB_Inputs!GP$8:HA$8)/DB_Inputs!HB$8 -> 45.16666636
A30: Tx Loss Return by WY LLH | B30: =IF(DB_Inputs!B$18=0,0,DB_Inputs!B88) -> 21.27480966 | C30: =IF(DB_Inputs!C$18=0,0,DB_Inputs!C88) -> 28.05482883 | D30: =IF(DB_Inputs!D$18=0,0,DB_Inputs!D88) -> 27.65665371 | E30: =IF(DB_Inputs!E$18=0,0,DB_Inputs!E88) -> 25.35662571 | F30: =IF(DB_Inputs!F$18=0,0,DB_Inputs!F88) -> 24.80196714 | G30: =IF(DB_Inputs!G$18=0,0,DB_Inputs!G88) -> 25.39683392 | H30: =IF(DB_Inputs!H$18=0,0,DB_Inputs!H88) -> 19.43241208 | I30: =IF(DB_Inputs!I$18=0,0,DB_Inputs!I88) -> 40.53657776 | J30: =IF(DB_Inputs!J$18=0,0,DB_Inputs!J88) -> 43.86703676 | K30: =IF(DB_Inputs!K$18=0,0,DB_Inputs!K88) -> 21.75412983 | L30: =IF(DB_Inputs!L$18=0,0,DB_Inputs!L88) -> 23.29996151 | M30: =IF(DB_Inputs!M$18=0,0,DB_Inputs!M88) -> 21.49869672 | N30: =SUMPRODUCT(B30:M30,DB_Inputs!B$13:M$13)/DB_Inputs!N$13 -> 26.83294537 | P30: =IF(DB_Inputs!P$18=0,0,DB_Inputs!P88) -> 22.09344974 | Q30: =IF(DB_Inputs!Q$18=0,0,DB_Inputs!Q88) -> 28.68222745 | R30: =IF(DB_Inputs!R$18=0,0,DB_Inputs!R88) -> 29.82803777 | S30: =IF(DB_Inputs!S$18=0,0,DB_Inputs!S88) -> 33.96484033 | T30: =IF(DB_Inputs!T$18=0,0,DB_Inputs!T88) -> 32.41569828 | U30: =IF(DB_Inputs!U$18=0,0,DB_Inputs!U88) -> 34.8938228 | V30: =IF(DB_Inputs!V$18=0,0,DB_Inputs!V88) -> 50.2373044 | W30: =IF(DB_Inputs!W$18=0,0,DB_Inputs!W88) -> 54.79897388 | X30: =IF(DB_Inputs!X$18=0,0,DB_Inputs!X88) -> 36.49574379 | Y30: =IF(DB_Inputs!Y$18=0,0,DB_Inputs!Y88) -> 43.227416 | Z30: =IF(DB_Inputs!Z$18=0,0,DB_Inputs!Z88) -> 26.41782352 | AA30: =IF(DB_Inputs!AA$18=0,0,DB_Inputs!AA88) -> 22.78340485 | AB30: =SUMPRODUCT(P30:AA30,DB_Inputs!P$13:AA$13)/DB_Inputs!AB$13 -> 34.62798454 | AD30: =DB_Inputs!AD88 -> 26.92410017 | AE30: =DB_Inputs!AE88 -> 36.99359965 | AF30: =DB_Inputs!AF88 -> 32.82435113 | AG30: =DB_Inputs!AG88 -> 28.57043444 | AH30: =DB_Inputs!AH88 -> 29.43688679 | AI30: =DB_Inputs!AI88 -> 42.94676204 | AJ30: =DB_Inputs!AJ88 -> 30.71293403 | AK30: =DB_Inputs!AK88 -> 40.69144838 | AL30: =DB_Inputs!AL88 -> 41.61634715 | AM30: =DB_Inputs!AM88 -> 27.1710492 | AN30: =DB_Inputs!AN88 -> 26.90118748 | AO30: =DB_Inputs!AO88 -> 29.28107353 | AP30: =SUMPRODUCT(AD30:AO30,DB_Inputs!AD$9:AO$9)/DB_Inputs!AP$9 -> 32.88030357 | AR30: =DB_Inputs!AR88 -> 29.13491674 | AS30: =DB_Inputs!AS88 -> 36.82190416 | AT30: =DB_Inputs!AT88 -> 36.505336 | AU30: =DB_Inputs!AU88 -> 38.65690465 | AV30: =DB_Inputs!AV88 -> 36.22946498 | AW30: =DB_Inputs!AW88 -> 33.98251087 | AX30: =DB_Inputs!AX88 -> 29.54059554 | AY30: =DB_Inputs!AY88 -> 41.50781035 | AZ30: =DB_Inputs!AZ88 -> 34.05672641 | BA30: =DB_Inputs!BA88 -> 29.74353859 | BB30: =DB_Inputs!BB88 -> 28.2075219 | BC30: =DB_Inputs!BC88 -> 25.79910034 | BD30: =SUMPRODUCT(AR30:BC30,DB_Inputs!AR$9:BC$9)/DB_Inputs!BD$9 -> 33.43279119 | BF30: =DB_Inputs!BF88 -> 27.41483965 | BG30: =DB_Inputs!BG88 -> 36.31503492 | BH30: =DB_Inputs!BH88 -> 36.25210206 | BI30: =DB_Inputs!BI88 -> 39.50968017 | BJ30: =DB_Inputs!BJ88 -> 43.21774257 | BK30: =DB_Inputs!BK88 -> 45.97875213 | BL30: =DB_Inputs!BL88 -> 57.53299494 | BM30: =DB_Inputs!BM88 -> 57.30859817 | BN30: =DB_Inputs!BN88 -> 66.4992867 | BO30: =DB_Inputs!BO88 -> 37.36163752 | BP30: =DB_Inputs!BP88 -> 26.52582473 | BQ30: =DB_Inputs!BQ88 -> 25.55490657 | BR30: =SUMPRODUCT(BF30:BQ30,DB_Inputs!BF$9:BQ$9)/DB_Inputs!BR$9 -> 41.47695347 | BT30: =DB_Inputs!BT88 -> 27.32146131 | BU30: =DB_Inputs!BU88 -> 35.24033797 | BV30: =DB_Inputs!BV88 -> 37.61399385 | BW30: =DB_Inputs!BW88 -> 45.71588577 | BX30: =DB_Inputs!BX88 -> 34.0091166 | BY30: =DB_Inputs!BY88 -> 57.03801811 | BZ30: =DB_Inputs!BZ88 -> 42.03043685 | CA30: =DB_Inputs!CA88 -> 45.78998998 | CB30: =DB_Inputs!CB88 -> 33.3517359 | CC30: =DB_Inputs!CC88 -> 36.09764625 | CD30: =DB_Inputs!CD88 -> 25.71401737 | CE30: =DB_Inputs!CE88 -> 25.57537856 | CF30: =SUMPRODUCT(BT30:CE30,DB_Inputs!BT$9:CE$9)/DB_Inputs!CF$9 -> 37.18891912 | CH30: =DB_Inputs!CH88 -> 26.68364804 | CI30: =DB_Inputs!CI88 -> 37.64388951 | CJ30: =DB_Inputs!CJ88 -> 33.86047808 | CK30: =DB_Inputs!CK88 -> 32.46444358 | CL30: =DB_Inputs!CL88 -> 32.97476227 | CM30: =DB_Inputs!CM88 -> 37.47735161 | CN30: =DB_Inputs!CN88 -> 31.69411603 | CO30: =DB_Inputs!CO88 -> 52.19947642 | CP30: =DB_Inputs!CP88 -> 73.74984911 | CQ30: =DB_Inputs!CQ88 -> 37.69809231 | CR30: =DB_Inputs!CR88 -> 28.18341802 | CS30: =DB_Inputs!CS88 -> 25.9796959 | CT30: =SUMPRODUCT(CH30:CS30,DB_Inputs!CH$9:CS$9)/DB_Inputs!CT$9 -> 37.54949908 | CV30: =DB_Inputs!CV88 -> 26.66759801 | CW30: =DB_Inputs!CW88 -> 33.77877148 | CX30: =DB_Inputs!CX88 -> 33.30108771 | CY30: =DB_Inputs!CY88 -> 31.63441133 | CZ30: =DB_Inputs!CZ88 -> 31.42018671 | DA30: =DB_Inputs!DA88 -> 32.29364478 | DB30: =DB_Inputs!DB88 -> 27.40691265 | DC30: =DB_Inputs!DC88 -> 30.61114494 | DD30: =DB_Inputs!DD88 -> 33.9410614 | DE30: =DB_Inputs!DE88 -> 24.3340203 | DF30: =DB_Inputs!DF88 -> 28.28206641 | DG30: =DB_Inputs!DG88 -> 27.57071648 | DH30: =SUMPRODUCT(CV30:DG30,DB_Inputs!CV$9:DG$9)/DB_Inputs!DH$9 -> 30.12421395 | DJ30: =DB_Inputs!DJ88 -> 26.8972795 | DK30: =DB_Inputs!DK88 -> 33.60311455 | DL30: =DB_Inputs!DL88 -> 31.8365864 | DM30: =DB_Inputs!DM88 -> 26.1532342 | DN30: =DB_Inputs!DN88 -> 32.2391642 | DO30: =DB_Inputs!DO88 -> 30.56069242 | DP30: =DB_Inputs!DP88 -> 34.21023826 | DQ30: =DB_Inputs!DQ88 -> 32.27627653 | DR30: =DB_Inputs!DR88 -> 26.2458091 | DS30: =DB_Inputs!DS88 -> 27.64493829 | DT30: =DB_Inputs!DT88 -> 28.69670612 | DU30: =DB_Inputs!DU88 -> 25.99729286 | DV30: =SUMPRODUCT(DJ30:DU30,DB_Inputs!DJ$9:DU$9)/DB_Inputs!DV$9 -> 29.70269186 | DX30: =DB_Inputs!DX88 -> 27.61598998 | DY30: =DB_Inputs!DY88 -> 34.72750556 | DZ30: =DB_Inputs!DZ88 -> 32.29948214 | EA30: =DB_Inputs!EA88 -> 28.17241314 | EB30: =DB_Inputs!EB88 -> 27.9366352 | EC30: =DB_Inputs!EC88 -> 29.12412206 | ED30: =DB_Inputs!ED88 -> 24.17595721 | EE30: =DB_Inputs!EE88 -> 34.43501006 | EF30: =DB_Inputs!EF88 -> 21.24226613 | EG30: =DB_Inputs!EG88 -> 28.0605855 | EH30: =DB_Inputs!EH88 -> 26.13181474 | EI30: =DB_Inputs!EI88 -> 25.33037478 | EJ30: =SUMPRODUCT(DX30:EI30,DB_Inputs!DX$9:EI$9)/DB_Inputs!EJ$9 -> 28.38925727 | EL30: =DB_Inputs!EL88 -> 27.30968584 | EM30: =DB_Inputs!EM88 -> 30.65609619 | EN30: =DB_Inputs!EN88 -> 33.41859538 | EO30: =DB_Inputs!EO88 -> 26.38301675 | EP30: =DB_Inputs!EP88 -> 26.80290462 | EQ30: =DB_Inputs!EQ88 -> 40.78738249 | ER30: =DB_Inputs!ER88 -> 54.77304437 | ES30: =DB_Inputs!ES88 -> 55.67294177 | ET30: =DB_Inputs!ET88 -> 60.37838546 | EU30: =DB_Inputs!EU88 -> 40.24959817 | EV30: =DB_Inputs!EV88 -> 28.10818563 | EW30: =DB_Inputs!EW88 -> 27.19865953 | EX30: =SUMPRODUCT(EL30:EW30,DB_Inputs!EL$9:EW$9)/DB_Inputs!EX$9 -> 37.58197397 | EZ30: =DB_Inputs!EZ88 -> 28.25150832 | FA30: =DB_Inputs!FA88 -> 33.87767256 | FB30: =DB_Inputs!FB88 -> 36.62351678 | FC30: =DB_Inputs!FC88 -> 48.95981542 | FD30: =DB_Inputs!FD88 -> 43.92668972 | FE30: =DB_Inputs!FE88 -> 43.53595474 | FF30: =DB_Inputs!FF88 -> 37.14415939 | FG30: =DB_Inputs!FG88 -> 42.53826613 | FH30: =DB_Inputs!FH88 -> 64.45425274 | FI30: =DB_Inputs!FI88 -> 61.4405038 | FJ30: =DB_Inputs!FJ88 -> 36.45202918 | FK30: =DB_Inputs!FK88 -> 27.2316136 | FL30: =SUMPRODUCT(EZ30:FK30,DB_Inputs!EZ$9:FK$9)/DB_Inputs!FL$9 -> 41.94623942 | FN30: =DB_Inputs!FN88 -> 28.96203775 | FO30: =DB_Inputs!FO88 -> 51.47905151 | FP30: =DB_Inputs!FP88 -> 64.8226435 | FQ30: =DB_Inputs!FQ88 -> 65.71392282 | FR30: =DB_Inputs!FR88 -> 61.07632683 | FS30: =DB_Inputs!FS88 -> 60.86596788 | FT30: =DB_Inputs!FT88 -> 55.16929186 | FU30: =DB_Inputs!FU88 -> 51.33204106 | FV30: =DB_Inputs!FV88 -> 53.19012551 | FW30: =DB_Inputs!FW88 -> 30.25923324 | FX30: =DB_Inputs!FX88 -> 26.54574887 | FY30: =DB_Inputs!FY88 -> 25.60798304 | FZ30: =SUMPRODUCT(FN30:FY30,DB_Inputs!FN$9:FY$9)/DB_Inputs!FZ$9 -> 47.90749475 | GB30: =DB_Inputs!GB88 -> 26.91587621 | GC30: =DB_Inputs!GC88 -> 32.95779432 | GD30: =DB_Inputs!GD88 -> 32.04005948 | GE30: =DB_Inputs!GE88 -> 50.13309168 | GF30: =DB_Inputs!GF88 -> 40.91921017 | GG30: =DB_Inputs!GG88 -> 43.4077005 | GH30: =DB_Inputs!GH88 -> 32.75158403 | GI30: =DB_Inputs!GI88 -> 39.37512215 | GJ30: =DB_Inputs!GJ88 -> 37.67168495 | GK30: =DB_Inputs!GK88 -> 36.48067589 | GL30: =DB_Inputs!GL88 -> 32.26384845 | GM30: =DB_Inputs!GM88 -> 24.21522181 | GN30: =SUMPRODUCT(GB30:GM30,DB_Inputs!GB$9:GM$9)/DB_Inputs!GN$9 -> 35.77058894 | GP30: =DB_Inputs!GP88 -> 27.54061438 | GQ30: =DB_Inputs!GQ88 -> 33.03499096 | GR30: =DB_Inputs!GR88 -> 31.635015 | GS30: =DB_Inputs!GS88 -> 27.73984604 | GT30: =DB_Inputs!GT88 -> 30.25198579 | GU30: =DB_Inputs!GU88 -> 32.08542762 | GV30: =DB_Inputs!GV88 -> 40.62991836 | GW30: =DB_Inputs!GW88 -> 55.45366111 | GX30: =DB_Inputs!GX88 -> 55.58775694 | GY30: =DB_Inputs!GY88 -> 28.38199766 | GZ30: =DB_Inputs!GZ88 -> 27.59552862 | HA30: =DB_Inputs!HA88 -> 25.06294667 | HB30: =SUMPRODUCT(GP30:HA30,DB_Inputs!GP$9:HA$9)/DB_Inputs!HB$9 -> 34.57588431
A31: Tx Loss Return by WY Flat | B31: =IF(DB_Inputs!B$18=0,0,DB_Inputs!B89) -> 26.41656567 | C31: =IF(DB_Inputs!C$18=0,0,DB_Inputs!C89) -> 33.69417373 | D31: =IF(DB_Inputs!D$18=0,0,DB_Inputs!D89) -> 33.82510359 | E31: =IF(DB_Inputs!E$18=0,0,DB_Inputs!E89) -> 29.02391078 | F31: =IF(DB_Inputs!F$18=0,0,DB_Inputs!F89) -> 29.28910085 | G31: =IF(DB_Inputs!G$18=0,0,DB_Inputs!G89) -> 28.80763712 | H31: =IF(DB_Inputs!H$18=0,0,DB_Inputs!H89) -> 23.12265595 | I31: =IF(DB_Inputs!I$18=0,0,DB_Inputs!I89) -> 48.69627856 | J31: =IF(DB_Inputs!J$18=0,0,DB_Inputs!J89) -> 50.11841297 | K31: =IF(DB_Inputs!K$18=0,0,DB_Inputs!K89) -> 28.29346863 | L31: =IF(DB_Inputs!L$18=0,0,DB_Inputs!L89) -> 29.35809986 | M31: =IF(DB_Inputs!M$18=0,0,DB_Inputs!M89) -> 27.30518628 | N31: =SUMPRODUCT(B31:M31,DB_Inputs!B$14:M$14)/DB_Inputs!N$14 -> 32.34127202 | P31: =IF(DB_Inputs!P$18=0,0,DB_Inputs!P89) -> 26.43090875 | Q31: =IF(DB_Inputs!Q$18=0,0,DB_Inputs!Q89) -> 34.3944078 | R31: =IF(DB_Inputs!R$18=0,0,DB_Inputs!R89) -> 37.3508191 | S31: =IF(DB_Inputs!S$18=0,0,DB_Inputs!S89) -> 42.48108564 | T31: =IF(DB_Inputs!T$18=0,0,DB_Inputs!T89) -> 40.3307923 | U31: =IF(DB_Inputs!U$18=0,0,DB_Inputs!U89) -> 42.71366663 | V31: =IF(DB_Inputs!V$18=0,0,DB_Inputs!V89) -> 53.86203816 | W31: =IF(DB_Inputs!W$18=0,0,DB_Inputs!W89) -> 53.22727349 | X31: =IF(DB_Inputs!X$18=0,0,DB_Inputs!X89) -> 43.83542064 | Y31: =IF(DB_Inputs!Y$18=0,0,DB_Inputs!Y89) -> 46.84689006 | Z31: =IF(DB_Inputs!Z$18=0,0,DB_Inputs!Z89) -> 35.62112527 | AA31: =IF(DB_Inputs!AA$18=0,0,DB_Inputs!AA89) -> 29.87644339 | AB31: =SUMPRODUCT(P31:AA31,DB_Inputs!P$14:AA$14)/DB_Inputs!AB$14 -> 40.58298544 | AD31: =DB_Inputs!AD89 -> 33.796899 | AE31: =DB_Inputs!AE89 -> 45.28239383 | AF31: =DB_Inputs!AF89 -> 39.30959607 | AG31: =DB_Inputs!AG89 -> 34.38327791 | AH31: =DB_Inputs!AH89 -> 34.45192515 | AI31: =DB_Inputs!AI89 -> 49.0352619 | AJ31: =DB_Inputs!AJ89 -> 39.54473146 | AK31: =DB_Inputs!AK89 -> 50.61327474 | AL31: =DB_Inputs!AL89 -> 47.19585154 | AM31: =DB_Inputs!AM89 -> 38.47045772 | AN31: =DB_Inputs!AN89 -> 31.39037106 | AO31: =DB_Inputs!AO89 -> 35.89640373 | AP31: =SUMPRODUCT(AD31:AO31,DB_Inputs!AD$10:AO$10)/DB_Inputs!AP$10 -> 39.95492942 | AR31: =DB_Inputs!AR89 -> 35.41103036 | AS31: =DB_Inputs!AS89 -> 43.02878624 | AT31: =DB_Inputs!AT89 -> 45.467379 | AU31: =DB_Inputs!AU89 -> 47.75181606 | AV31: =DB_Inputs!AV89 -> 46.83506842 | AW31: =DB_Inputs!AW89 -> 40.05479774 | AX31: =DB_Inputs!AX89 -> 35.5952677 | AY31: =DB_Inputs!AY89 -> 50.00648181 | AZ31: =DB_Inputs!AZ89 -> 44.32630295 | BA31: =DB_Inputs!BA89 -> 41.05771565 | BB31: =DB_Inputs!BB89 -> 33.56988693 | BC31: =DB_Inputs!BC89 -> 30.61681783 | BD31: =SUMPRODUCT(AR31:BC31,DB_Inputs!AR$10:BC$10)/DB_Inputs!BD$10 -> 41.12716002 | BF31: =DB_Inputs!BF89 -> 32.16172585 | BG31: =DB_Inputs!BG89 -> 43.05910164 | BH31: =DB_Inputs!BH89 -> 44.27946529 | BI31: =DB_Inputs!BI89 -> 53.17602156 | BJ31: =DB_Inputs!BJ89 -> 54.48226927 | BK31: =DB_Inputs!BK89 -> 55.08882954 | BL31: =DB_Inputs!BL89 -> 60.16440436 | BM31: =DB_Inputs!BM89 -> 66.16954183 | BN31: =DB_Inputs!BN89 -> 66.1212302 | BO31: =DB_Inputs!BO89 -> 46.16792947 | BP31: =DB_Inputs!BP89 -> 34.94701515 | BQ31: =DB_Inputs!BQ89 -> 28.9239682 | BR31: =SUMPRODUCT(BF31:BQ31,DB_Inputs!BF$10:BQ$10)/DB_Inputs!BR$10 -> 48.67060225 | BT31: =DB_Inputs!BT89 -> 31.99953032 | BU31: =DB_Inputs!BU89 -> 42.68899899 | BV31: =DB_Inputs!BV89 -> 44.60158323 | BW31: =DB_Inputs!BW89 -> 55.36274821 | BX31: =DB_Inputs!BX89 -> 42.10596828 | BY31: =DB_Inputs!BY89 -> 62.67764225 | BZ31: =DB_Inputs!BZ89 -> 49.2594467 | CA31: =DB_Inputs!CA89 -> 54.6194421 | CB31: =DB_Inputs!CB89 -> 40.48619083 | CC31: =DB_Inputs!CC89 -> 46.97745619 | CD31: =DB_Inputs!CD89 -> 33.16436815 | CE31: =DB_Inputs!CE89 -> 28.54317967 | CF31: =SUMPRODUCT(BT31:CE31,DB_Inputs!BT$10:CE$10)/DB_Inputs!CF$10 -> 44.43549211 | CH31: =DB_Inputs!CH89 -> 33.12329075 | CI31: =DB_Inputs!CI89 -> 45.0559442 | CJ31: =DB_Inputs!CJ89 -> 38.18543611 | CK31: =DB_Inputs!CK89 -> 42.9749208 | CL31: =DB_Inputs!CL89 -> 39.26160905 | CM31: =DB_Inputs!CM89 -> 42.02467871 | CN31: =DB_Inputs!CN89 -> 36.23430038 | CO31: =DB_Inputs!CO89 -> 63.28488809 | CP31: =DB_Inputs!CP89 -> 71.95966039 | CQ31: =DB_Inputs!CQ89 -> 50.17804543 | CR31: =DB_Inputs!CR89 -> 36.09031251 | CS31: =DB_Inputs!CS89 -> 30.21080537 | CT31: =SUMPRODUCT(CH31:CS31,DB_Inputs!CH$10:CS$10)/DB_Inputs!CT$10 -> 44.0553088 | CV31: =DB_Inputs!CV89 -> 33.20169007 | CW31: =DB_Inputs!CW89 -> 39.22951839 | CX31: =DB_Inputs!CX89 -> 37.86267489 | CY31: =DB_Inputs!CY89 -> 38.3251134 | CZ31: =DB_Inputs!CZ89 -> 36.88452845 | DA31: =DB_Inputs!DA89 -> 35.64968292 | DB31: =DB_Inputs!DB89 -> 32.70780018 | DC31: =DB_Inputs!DC89 -> 37.42099723 | DD31: =DB_Inputs!DD89 -> 38.67959508 | DE31: =DB_Inputs!DE89 -> 30.72280978 | DF31: =DB_Inputs!DF89 -> 33.98250712 | DG31: =DB_Inputs!DG89 -> 32.1938638 | DH31: =SUMPRODUCT(CV31:DG31,DB_Inputs!CV$10:DG$10)/DB_Inputs!DH$10 -> 35.55991512 | DJ31: =DB_Inputs!DJ89 -> 33.49657869 | DK31: =DB_Inputs!DK89 -> 39.89272095 | DL31: =DB_Inputs!DL89 -> 38.28084664 | DM31: =DB_Inputs!DM89 -> 30.5328731 | DN31: =DB_Inputs!DN89 -> 37.24903216 | DO31: =DB_Inputs!DO89 -> 35.49124757 | DP31: =DB_Inputs!DP89 -> 39.8783794 | DQ31: =DB_Inputs!DQ89 -> 40.29186016 | DR31: =DB_Inputs!DR89 -> 31.52175736 | DS31: =DB_Inputs!DS89 -> 38.4714998 | DT31: =DB_Inputs!DT89 -> 35.21549683 | DU31: =DB_Inputs!DU89 -> 31.59332157 | DV31: =SUMPRODUCT(DJ31:DU31,DB_Inputs!DJ$10:DU$10)/DB_Inputs!DV$10 -> 35.98612099 | DX31: =DB_Inputs!DX89 -> 32.79852062 | DY31: =DB_Inputs!DY89 -> 40.19360153 | DZ31: =DB_Inputs!DZ89 -> 38.53637433 | EA31: =DB_Inputs!EA89 -> 31.02655775 | EB31: =DB_Inputs!EB89 -> 31.03770306 | EC31: =DB_Inputs!EC89 -> 33.24326795 | ED31: =DB_Inputs!ED89 -> 25.21876239 | EE31: =DB_Inputs!EE89 -> 42.16334724 | EF31: =DB_Inputs!EF89 -> 27.24701916 | EG31: =DB_Inputs!EG89 -> 39.0512736 | EH31: =DB_Inputs!EH89 -> 32.41025474 | EI31: =DB_Inputs!EI89 -> 28.53884898 | EJ31: =SUMPRODUCT(DX31:EI31,DB_Inputs!DX$10:EI$10)/DB_Inputs!EJ$10 -> 33.51071158 | EL31: =DB_Inputs!EL89 -> 31.6347631 | EM31: =DB_Inputs!EM89 -> 37.33264187 | EN31: =DB_Inputs!EN89 -> 37.63685849 | EO31: =DB_Inputs!EO89 -> 28.80626183 | EP31: =DB_Inputs!EP89 -> 29.29097484 | EQ31: =DB_Inputs!EQ89 -> 45.27981393 | ER31: =DB_Inputs!ER89 -> 57.94820521 | ES31: =DB_Inputs!ES89 -> 65.94978366 | ET31: =DB_Inputs!ET89 -> 64.05259079 | EU31: =DB_Inputs!EU89 -> 47.90460814 | EV31: =DB_Inputs!EV89 -> 37.9269912 | EW31: =DB_Inputs!EW89 -> 31.88796845 | EX31: =SUMPRODUCT(EL31:EW31,DB_Inputs!EL$10:EW$10)/DB_Inputs!EX$10 -> 42.99196945 | EZ31: =DB_Inputs!EZ89 -> 33.28450972 | FA31: =DB_Inputs!FA89 -> 40.55015107 | FB31: =DB_Inputs!FB89 -> 41.86797673 | FC31: =DB_Inputs!FC89 -> 56.62915639 | FD31: =DB_Inputs!FD89 -> 52.3491755 | FE31: =DB_Inputs!FE89 -> 49.13802794 | FF31: =DB_Inputs!FF89 -> 42.20838763 | FG31: =DB_Inputs!FG89 -> 50.55718771 | FH31: =DB_Inputs!FH89 -> 64.89977534 | FI31: =DB_Inputs!FI89 -> 59.27718653 | FJ31: =DB_Inputs!FJ89 -> 46.21736119 | FK31: =DB_Inputs!FK89 -> 31.53174134 | FL31: =SUMPRODUCT(EZ31:FK31,DB_Inputs!EZ$10:FK$10)/DB_Inputs!FL$10 -> 47.36228586 | FN31: =DB_Inputs!FN89 -> 36.54727913 | FO31: =DB_Inputs!FO89 -> 56.98226583 | FP31: =DB_Inputs!FP89 -> 66.59156225 | FQ31: =DB_Inputs!FQ89 -> 71.30356171 | FR31: =DB_Inputs!FR89 -> 65.89722125 | FS31: =DB_Inputs!FS89 -> 64.4081105 | FT31: =DB_Inputs!FT89 -> 58.90465596 | FU31: =DB_Inputs!FU89 -> 57.74936706 | FV31: =DB_Inputs!FV89 -> 53.90594158 | FW31: =DB_Inputs!FW89 -> 41.02574653 | FX31: =DB_Inputs!FX89 -> 33.29598043 | FY31: =DB_Inputs!FY89 -> 29.52677859 | FZ31: =SUMPRODUCT(FN31:FY31,DB_Inputs!FN$10:FY$10)/DB_Inputs!FZ$10 -> 52.93964899 | GB31: =DB_Inputs!GB89 -> 33.58475761 | GC31: =DB_Inputs!GC89 -> 37.52090327 | GD31: =DB_Inputs!GD89 -> 37.13994734 | GE31: =DB_Inputs!GE89 -> 54.80927572 | GF31: =DB_Inputs!GF89 -> 51.47950222 | GG31: =DB_Inputs!GG89 -> 49.14277223 | GH31: =DB_Inputs!GH89 -> 38.26090357 | GI31: =DB_Inputs!GI89 -> 45.71092316 | GJ31: =DB_Inputs!GJ89 -> 42.68577028 | GK31: =DB_Inputs!GK89 -> 48.74246426 | GL31: =DB_Inputs!GL89 -> 38.76606089 | GM31: =DB_Inputs!GM89 -> 28.47088407 | GN31: =SUMPRODUCT(GB31:GM31,DB_Inputs!GB$10:GM$10)/DB_Inputs!GN$10 -> 42.17500792 | GP31: =DB_Inputs!GP89 -> 31.98901642 | GQ31: =DB_Inputs!GQ89 -> 38.55134163 | GR31: =DB_Inputs!GR89 -> 37.70481782 | GS31: =DB_Inputs!GS89 -> 32.03263358 | GT31: =DB_Inputs!GT89 -> 35.10609187 | GU31: =DB_Inputs!GU89 -> 36.62129431 | GV31: =DB_Inputs!GV89 -> 46.04117765 | GW31: =DB_Inputs!GW89 -> 64.22255798 | GX31: =DB_Inputs!GX89 -> 61.39633239 | GY31: =DB_Inputs!GY89 -> 39.31872916 | GZ31: =DB_Inputs!GZ89 -> 33.60987909 | HA31: =DB_Inputs!HA89 -> 29.70416088 | HB31: =SUMPRODUCT(GP31:HA31,DB_Inputs!GP$10:HA$10)/DB_Inputs!HB$10 -> 40.51752524
A33: Hydro Generation HLH | B33: =IF(DB_Inputs!B$18=0,0,DB_Inputs!B82) -> 6648.225675 | C33: =IF(DB_Inputs!C$18=0,0,DB_Inputs!C82) -> 8444.901742 | D33: =IF(DB_Inputs!D$18=0,0,DB_Inputs!D82) -> 8672.664985 | E33: =IF(DB_Inputs!E$18=0,0,DB_Inputs!E82) -> 7080.202044 | F33: =IF(DB_Inputs!F$18=0,0,DB_Inputs!F82) -> 7251.093097 | G33: =IF(DB_Inputs!G$18=0,0,DB_Inputs!G82) -> 6880.922593 | H33: =IF(DB_Inputs!H$18=0,0,DB_Inputs!H82) -> 5812.016511 | I33: =IF(DB_Inputs!I$18=0,0,DB_Inputs!I82) -> 12542.05364 | J33: =IF(DB_Inputs!J$18=0,0,DB_Inputs!J82) -> 12495.02267 | K33: =IF(DB_Inputs!K$18=0,0,DB_Inputs!K82) -> 7802.351268 | L33: =IF(DB_Inputs!L$18=0,0,DB_Inputs!L82) -> 7760.323952 | M33: =IF(DB_Inputs!M$18=0,0,DB_Inputs!M82) -> 7371.840888 | N33: =SUMPRODUCT(B33:M33,DB_Inputs!B$12:M$12)/DB_Inputs!N$12 -> 8243.351437 | P33: =IF(DB_Inputs!P$18=0,0,DB_Inputs!P82) -> 6407.719615 | Q33: =IF(DB_Inputs!Q$18=0,0,DB_Inputs!Q82) -> 8631.421056 | R33: =IF(DB_Inputs!R$18=0,0,DB_Inputs!R82) -> 9840.064312 | S33: =IF(DB_Inputs!S$18=0,0,DB_Inputs!S82) -> 11145.77072 | T33: =IF(DB_Inputs!T$18=0,0,DB_Inputs!T82) -> 10397.13514 | U33: =IF(DB_Inputs!U$18=0,0,DB_Inputs!U82) -> 11018.51282 | V33: =IF(DB_Inputs!V$18=0,0,DB_Inputs!V82) -> 12837.94133 | W33: =IF(DB_Inputs!W$18=0,0,DB_Inputs!W82) -> 12783.41198 | X33: =IF(DB_Inputs!X$18=0,0,DB_Inputs!X82) -> 12581.15937 | Y33: =IF(DB_Inputs!Y$18=0,0,DB_Inputs!Y82) -> 11677.39215 | Z33: =IF(DB_Inputs!Z$18=0,0,DB_Inputs!Z82) -> 9582.710543 | AA33: =IF(DB_Inputs!AA$18=0,0,DB_Inputs!AA82) -> 8175.440619 | AB33: =SUMPRODUCT(P33:AA33,DB_Inputs!P$12:AA$12)/DB_Inputs!AB$12 -> 10422.92607 | AD33: =DB_Inputs!AD82 -> 0 | AE33: =DB_Inputs!AE82 -> 0 | AF33: =DB_Inputs!AF82 -> 0 | AG33: =DB_Inputs!AG82 -> 0 | AH33: =DB_Inputs!AH82 -> 0 | AI33: =DB_Inputs!AI82 -> 0 | AJ33: =DB_Inputs!AJ82 -> 0 | AK33: =DB_Inputs!AK82 -> 0 | AL33: =DB_Inputs!AL82 -> 0 | AM33: =DB_Inputs!AM82 -> 0 | AN33: =DB_Inputs!AN82 -> 0 | AO33: =DB_Inputs!AO82 -> 0 | AP33: =SUMPRODUCT(AD33:AO33,DB_Inputs!AD$8:AO$8)/DB_Inputs!AP$8 -> 0 | AR33: =DB_Inputs!AR82 -> 0 | AS33: =DB_Inputs!AS82 -> 0 | AT33: =DB_Inputs!AT82 -> 0 | AU33: =DB_Inputs!AU82 -> 0 | AV33: =DB_Inputs!AV82 -> 0 | AW33: =DB_Inputs!AW82 -> 0 | AX33: =DB_Inputs!AX82 -> 0 | AY33: =DB_Inputs!AY82 -> 0 | AZ33: =DB_Inputs!AZ82 -> 0 | BA33: =DB_Inputs!BA82 -> 0 | BB33: =DB_Inputs!BB82 -> 0 | BC33: =DB_Inputs!BC82 -> 0 | BD33: =SUMPRODUCT(AR33:BC33,DB_Inputs!AR$8:BC$8)/DB_Inputs!BD$8 -> 0 | BF33: =DB_Inputs!BF82 -> 0 | BG33: =DB_Inputs!BG82 -> 0 | BH33: =DB_Inputs!BH82 -> 0 | BI33: =DB_Inputs!BI82 -> 0 | BJ33: =DB_Inputs!BJ82 -> 0 | BK33: =DB_Inputs!BK82 -> 0 | BL33: =DB_Inputs!BL82 -> 0 | BM33: =DB_Inputs!BM82 -> 0 | BN33: =DB_Inputs!BN82 -> 0 | BO33: =DB_Inputs!BO82 -> 0 | BP33: =DB_Inputs!BP82 -> 0 | BQ33: =DB_Inputs!BQ82 -> 0 | BR33: =SUMPRODUCT(BF33:BQ33,DB_Inputs!BF$8:BQ$8)/DB_Inputs!BR$8 -> 0 | BT33: =DB_Inputs!BT82 -> 0 | BU33: =DB_Inputs!BU82 -> 0 | BV33: =DB_Inputs!BV82 -> 0 | BW33: =DB_Inputs!BW82 -> 0 | BX33: =DB_Inputs!BX82 -> 0 | BY33: =DB_Inputs!BY82 -> 0 | BZ33: =DB_Inputs!BZ82 -> 0 | CA33: =DB_Inputs!CA82 -> 0 | CB33: =DB_Inputs!CB82 -> 0 | CC33: =DB_Inputs!CC82 -> 0 | CD33: =DB_Inputs!CD82 -> 0 | CE33: =DB_Inputs!CE82 -> 0 | CF33: =SUMPRODUCT(BT33:CE33,DB_Inputs!BT$8:CE$8)/DB_Inputs!CF$8 -> 0 | CH33: =DB_Inputs!CH82 -> 0 | CI33: =DB_Inputs!CI82 -> 0 | CJ33: =DB_Inputs!CJ82 -> 0 | CK33: =DB_Inputs!CK82 -> 0 | CL33: =DB_Inputs!CL82 -> 0 | CM33: =DB_Inputs!CM82 -> 0 | CN33: =DB_Inputs!CN82 -> 0 | CO33: =DB_Inputs!CO82 -> 0 | CP33: =DB_Inputs!CP82 -> 0 | CQ33: =DB_Inputs!CQ82 -> 0 | CR33: =DB_Inputs!CR82 -> 0 | CS33: =DB_Inputs!CS82 -> 0 | CT33: =SUMPRODUCT(CH33:CS33,DB_Inputs!CH$8:CS$8)/DB_Inputs!CT$8 -> 0 | CV33: =DB_Inputs!CV82 -> 0 | CW33: =DB_Inputs!CW82 -> 0 | CX33: =DB_Inputs!CX82 -> 0 | CY33: =DB_Inputs!CY82 -> 0 | CZ33: =DB_Inputs!CZ82 -> 0 | DA33: =DB_Inputs!DA82 -> 0 | DB33: =DB_Inputs!DB82 -> 0 | DC33: =DB_Inputs!DC82 -> 0 | DD33: =DB_Inputs!DD82 -> 0 | DE33: =DB_Inputs!DE82 -> 0 | DF33: =DB_Inputs!DF82 -> 0 | DG33: =DB_Inputs!DG82 -> 0 | DH33: =SUMPRODUCT(CV33:DG33,DB_Inputs!CV$8:DG$8)/DB_Inputs!DH$8 -> 0 | DJ33: =DB_Inputs!DJ82 -> 0 | DK33: =DB_Inputs!DK82 -> 0 | DL33: =DB_Inputs!DL82 -> 0 | DM33: =DB_Inputs!DM82 -> 0 | DN33: =DB_Inputs!DN82 -> 0 | DO33: =DB_Inputs!DO82 -> 0 | DP33: =DB_Inputs!DP82 -> 0 | DQ33: =DB_Inputs!DQ82 -> 0 | DR33: =DB_Inputs!DR82 -> 0 | DS33: =DB_Inputs!DS82 -> 0 | DT33: =DB_Inputs!DT82 -> 0 | DU33: =DB_Inputs!DU82 -> 0 | DV33: =SUMPRODUCT(DJ33:DU33,DB_Inputs!DJ$8:DU$8)/DB_Inputs!DV$8 -> 0 | DX33: =DB_Inputs!DX82 -> 0 | DY33: =DB_Inputs!DY82 -> 0 | DZ33: =DB_Inputs!DZ82 -> 0 | EA33: =DB_Inputs!EA82 -> 0 | EB33: =DB_Inputs!EB82 -> 0 | EC33: =DB_Inputs!EC82 -> 0 | ED33: =DB_Inputs!ED82 -> 0 | EE33: =DB_Inputs!EE82 -> 0 | EF33: =DB_Inputs!EF82 -> 0 | EG33: =DB_Inputs!EG82 -> 0 | EH33: =DB_Inputs!EH82 -> 0 | EI33: =DB_Inputs!EI82 -> 0 | EJ33: =SUMPRODUCT(DX33:EI33,DB_Inputs!DX$8:EI$8)/DB_Inputs!EJ$8 -> 0 | EL33: =DB_Inputs!EL82 -> 0 | EM33: =DB_Inputs!EM82 -> 0 | EN33: =DB_Inputs!EN82 -> 0 | EO33: =DB_Inputs!EO82 -> 0 | EP33: =DB_Inputs!EP82 -> 0 | EQ33: =DB_Inputs!EQ82 -> 0 | ER33: =DB_Inputs!ER82 -> 0 | ES33: =DB_Inputs!ES82 -> 0 | ET33: =DB_Inputs!ET82 -> 0 | EU33: =DB_Inputs!EU82 -> 0 | EV33: =DB_Inputs!EV82 -> 0 | EW33: =DB_Inputs!EW82 -> 0 | EX33: =SUMPRODUCT(EL33:EW33,DB_Inputs!EL$8:EW$8)/DB_Inputs!EX$8 -> 0 | EZ33: =DB_Inputs!EZ82 -> 0 | FA33: =DB_Inputs!FA82 -> 0 | FB33: =DB_Inputs!FB82 -> 0 | FC33: =DB_Inputs!FC82 -> 0 | FD33: =DB_Inputs!FD82 -> 0 | FE33: =DB_Inputs!FE82 -> 0 | FF33: =DB_Inputs!FF82 -> 0 | FG33: =DB_Inputs!FG82 -> 0 | FH33: =DB_Inputs!FH82 -> 0 | FI33: =DB_Inputs!FI82 -> 0 | FJ33: =DB_Inputs!FJ82 -> 0 | FK33: =DB_Inputs!FK82 -> 0 | FL33: =SUMPRODUCT(EZ33:FK33,DB_Inputs!EZ$8:FK$8)/DB_Inputs!FL$8 -> 0 | FN33: =DB_Inputs!FN82 -> 0 | FO33: =DB_Inputs!FO82 -> 0 | FP33: =DB_Inputs!FP82 -> 0 | FQ33: =DB_Inputs!FQ82 -> 0 | FR33: =DB_Inputs!FR82 -> 0 | FS33: =DB_Inputs!FS82 -> 0 | FT33: =DB_Inputs!FT82 -> 0 | FU33: =DB_Inputs!FU82 -> 0 | FV33: =DB_Inputs!FV82 -> 0 | FW33: =DB_Inputs!FW82 -> 0 | FX33: =DB_Inputs!FX82 -> 0 | FY33: =DB_Inputs!FY82 -> 0 | FZ33: =SUMPRODUCT(FN33:FY33,DB_Inputs!FN$8:FY$8)/DB_Inputs!FZ$8 -> 0 | GB33: =DB_Inputs!GB82 -> 0 | GC33: =DB_Inputs!GC82 -> 0 | GD33: =DB_Inputs!GD82 -> 0 | GE33: =DB_Inputs!GE82 -> 0 | GF33: =DB_Inputs!GF82 -> 0 | GG33: =DB_Inputs!GG82 -> 0 | GH33: =DB_Inputs!GH82 -> 0 | GI33: =DB_Inputs!GI82 -> 0 | GJ33: =DB_Inputs!GJ82 -> 0 | GK33: =DB_Inputs!GK82 -> 0 | GL33: =DB_Inputs!GL82 -> 0 | GM33: =DB_Inputs!GM82 -> 0 | GN33: =SUMPRODUCT(GB33:GM33,DB_Inputs!GB$8:GM$8)/DB_Inputs!GN$8 -> 0 | GP33: =DB_Inputs!GP82 -> 0 | GQ33: =DB_Inputs!GQ82 -> 0 | GR33: =DB_Inputs!GR82 -> 0 | GS33: =DB_Inputs!GS82 -> 0 | GT33: =DB_Inputs!GT82 -> 0 | GU33: =DB_Inputs!GU82 -> 0 | GV33: =DB_Inputs!GV82 -> 0 | GW33: =DB_Inputs!GW82 -> 0 | GX33: =DB_Inputs!GX82 -> 0 | GY33: =DB_Inputs!GY82 -> 0 | GZ33: =DB_Inputs!GZ82 -> 0 | HA33: =DB_Inputs!HA82 -> 0 | HB33: =SUMPRODUCT(GP33:HA33,DB_Inputs!GP$8:HA$8)/DB_Inputs!HB$8 -> 0
A34: Hydro Generation LLH | B34: =IF(DB_Inputs!B$18=0,0,DB_Inputs!B83) -> 4111.558293 | C34: =IF(DB_Inputs!C$18=0,0,DB_Inputs!C83) -> 5797.73874 | D34: =IF(DB_Inputs!D$18=0,0,DB_Inputs!D83) -> 5723.710588 | E34: =IF(DB_Inputs!E$18=0,0,DB_Inputs!E83) -> 5023.962627 | F34: =IF(DB_Inputs!F$18=0,0,DB_Inputs!F83) -> 4873.752081 | G34: =IF(DB_Inputs!G$18=0,0,DB_Inputs!G83) -> 5016.060738 | H34: =IF(DB_Inputs!H$18=0,0,DB_Inputs!H83) -> 3805.496234 | I34: =IF(DB_Inputs!I$18=0,0,DB_Inputs!I83) -> 9085.45414 | J34: =IF(DB_Inputs!J$18=0,0,DB_Inputs!J83) -> 9820.38039 | K34: =IF(DB_Inputs!K$18=0,0,DB_Inputs!K83) -> 4472.396334 | L34: =IF(DB_Inputs!L$18=0,0,DB_Inputs!L83) -> 4898.391006 | M34: =IF(DB_Inputs!M$18=0,0,DB_Inputs!M83) -> 4333.148912 | N34: =SUMPRODUCT(B34:M34,DB_Inputs!B$13:M$13)/DB_Inputs!N$13 -> 5563.157528 | P34: =IF(DB_Inputs!P$18=0,0,DB_Inputs!P83) -> 4303.921423 | Q34: =IF(DB_Inputs!Q$18=0,0,DB_Inputs!Q83) -> 5938.423262 | R34: =IF(DB_Inputs!R$18=0,0,DB_Inputs!R83) -> 6175.883817 | S34: =IF(DB_Inputs!S$18=0,0,DB_Inputs!S83) -> 7087.483835 | T34: =IF(DB_Inputs!T$18=0,0,DB_Inputs!T83) -> 6781.048168 | U34: =IF(DB_Inputs!U$18=0,0,DB_Inputs!U83) -> 7356.221274 | V34: =IF(DB_Inputs!V$18=0,0,DB_Inputs!V83) -> 11355.50306 | W34: =IF(DB_Inputs!W$18=0,0,DB_Inputs!W83) -> 12922.01331 | X34: =IF(DB_Inputs!X$18=0,0,DB_Inputs!X83) -> 9001.830783 | Y34: =IF(DB_Inputs!Y$18=0,0,DB_Inputs!Y83) -> 9654.575783 | Z34: =IF(DB_Inputs!Z$18=0,0,DB_Inputs!Z83) -> 5754.661993 | AA34: =IF(DB_Inputs!AA$18=0,0,DB_Inputs!AA83) -> 4592.807135 | AB34: =SUMPRODUCT(P34:AA34,DB_Inputs!P$13:AA$13)/DB_Inputs!AB$13 -> 7570.971947 | AD34: =DB_Inputs!AD83 -> 0 | AE34: =DB_Inputs!AE83 -> 0 | AF34: =DB_Inputs!AF83 -> 0 | AG34: =DB_Inputs!AG83 -> 0 | AH34: =DB_Inputs!AH83 -> 0 | AI34: =DB_Inputs!AI83 -> 0 | AJ34: =DB_Inputs!AJ83 -> 0 | AK34: =DB_Inputs!AK83 -> 0 | AL34: =DB_Inputs!AL83 -> 0 | AM34: =DB_Inputs!AM83 -> 0 | AN34: =DB_Inputs!AN83 -> 0 | AO34: =DB_Inputs!AO83 -> 0 | AP34: =SUMPRODUCT(AD34:AO34,DB_Inputs!AD$9:AO$9)/DB_Inputs!AP$9 -> 0 | AR34: =DB_Inputs!AR83 -> 0 | AS34: =DB_Inputs!AS83 -> 0 | AT34: =DB_Inputs!AT83 -> 0 | AU34: =DB_Inputs!AU83 -> 0 | AV34: =DB_Inputs!AV83 -> 0 | AW34: =DB_Inputs!AW83 -> 0 | AX34: =DB_Inputs!AX83 -> 0 | AY34: =DB_Inputs!AY83 -> 0 | AZ34: =DB_Inputs!AZ83 -> 0 | BA34: =DB_Inputs!BA83 -> 0 | BB34: =DB_Inputs!BB83 -> 0 | BC34: =DB_Inputs!BC83 -> 0 | BD34: =SUMPRODUCT(AR34:BC34,DB_Inputs!AR$9:BC$9)/DB_Inputs!BD$9 -> 0 | BF34: =DB_Inputs!BF83 -> 0 | BG34: =DB_Inputs!BG83 -> 0 | BH34: =DB_Inputs!BH83 -> 0 | BI34: =DB_Inputs!BI83 -> 0 | BJ34: =DB_Inputs!BJ83 -> 0 | BK34: =DB_Inputs!BK83 -> 0 | BL34: =DB_Inputs!BL83 -> 0 | BM34: =DB_Inputs!BM83 -> 0 | BN34: =DB_Inputs!BN83 -> 0 | BO34: =DB_Inputs!BO83 -> 0 | BP34: =DB_Inputs!BP83 -> 0 | BQ34: =DB_Inputs!BQ83 -> 0 | BR34: =SUMPRODUCT(BF34:BQ34,DB_Inputs!BF$9:BQ$9)/DB_Inputs!BR$9 -> 0 | BT34: =DB_Inputs!BT83 -> 0 | BU34: =DB_Inputs!BU83 -> 0 | BV34: =DB_Inputs!BV83 -> 0 | BW34: =DB_Inputs!BW83 -> 0 | BX34: =DB_Inputs!BX83 -> 0 | BY34: =DB_Inputs!BY83 -> 0 | BZ34: =DB_Inputs!BZ83 -> 0 | CA34: =DB_Inputs!CA83 -> 0 | CB34: =DB_Inputs!CB83 -> 0 | CC34: =DB_Inputs!CC83 -> 0 | CD34: =DB_Inputs!CD83 -> 0 | CE34: =DB_Inputs!CE83 -> 0 | CF34: =SUMPRODUCT(BT34:CE34,DB_Inputs!BT$9:CE$9)/DB_Inputs!CF$9 -> 0 | CH34: =DB_Inputs!CH83 -> 0 | CI34: =DB_Inputs!CI83 -> 0 | CJ34: =DB_Inputs!CJ83 -> 0 | CK34: =DB_Inputs!CK83 -> 0 | CL34: =DB_Inputs!CL83 -> 0 | CM34: =DB_Inputs!CM83 -> 0 | CN34: =DB_Inputs!CN83 -> 0 | CO34: =DB_Inputs!CO83 -> 0 | CP34: =DB_Inputs!CP83 -> 0 | CQ34: =DB_Inputs!CQ83 -> 0 | CR34: =DB_Inputs!CR83 -> 0 | CS34: =DB_Inputs!CS83 -> 0 | CT34: =SUMPRODUCT(CH34:CS34,DB_Inputs!CH$9:CS$9)/DB_Inputs!CT$9 -> 0 | CV34: =DB_Inputs!CV83 -> 0 | CW34: =DB_Inputs!CW83 -> 0 | CX34: =DB_Inputs!CX83 -> 0 | CY34: =DB_Inputs!CY83 -> 0 | CZ34: =DB_Inputs!CZ83 -> 0 | DA34: =DB_Inputs!DA83 -> 0 | DB34: =DB_Inputs!DB83 -> 0 | DC34: =DB_Inputs!DC83 -> 0 | DD34: =DB_Inputs!DD83 -> 0 | DE34: =DB_Inputs!DE83 -> 0 | DF34: =DB_Inputs!DF83 -> 0 | DG34: =DB_Inputs!DG83 -> 0 | DH34: =SUMPRODUCT(CV34:DG34,DB_Inputs!CV$9:DG$9)/DB_Inputs!DH$9 -> 0 | DJ34: =DB_Inputs!DJ83 -> 0 | DK34: =DB_Inputs!DK83 -> 0 | DL34: =DB_Inputs!DL83 -> 0 | DM34: =DB_Inputs!DM83 -> 0 | DN34: =DB_Inputs!DN83 -> 0 | DO34: =DB_Inputs!DO83 -> 0 | DP34: =DB_Inputs!DP83 -> 0 | DQ34: =DB_Inputs!DQ83 -> 0 | DR34: =DB_Inputs!DR83 -> 0 | DS34: =DB_Inputs!DS83 -> 0 | DT34: =DB_Inputs!DT83 -> 0 | DU34: =DB_Inputs!DU83 -> 0 | DV34: =SUMPRODUCT(DJ34:DU34,DB_Inputs!DJ$9:DU$9)/DB_Inputs!DV$9 -> 0 | DX34: =DB_Inputs!DX83 -> 0 | DY34: =DB_Inputs!DY83 -> 0 | DZ34: =DB_Inputs!DZ83 -> 0 | EA34: =DB_Inputs!EA83 -> 0 | EB34: =DB_Inputs!EB83 -> 0 | EC34: =DB_Inputs!EC83 -> 0 | ED34: =DB_Inputs!ED83 -> 0 | EE34: =DB_Inputs!EE83 -> 0 | EF34: =DB_Inputs!EF83 -> 0 | EG34: =DB_Inputs!EG83 -> 0 | EH34: =DB_Inputs!EH83 -> 0 | EI34: =DB_Inputs!EI83 -> 0 | EJ34: =SUMPRODUCT(DX34:EI34,DB_Inputs!DX$9:EI$9)/DB_Inputs!EJ$9 -> 0 | EL34: =DB_Inputs!EL83 -> 0 | EM34: =DB_Inputs!EM83 -> 0 | EN34: =DB_Inputs!EN83 -> 0 | EO34: =DB_Inputs!EO83 -> 0 | EP34: =DB_Inputs!EP83 -> 0 | EQ34: =DB_Inputs!EQ83 -> 0 | ER34: =DB_Inputs!ER83 -> 0 | ES34: =DB_Inputs!ES83 -> 0 | ET34: =DB_Inputs!ET83 -> 0 | EU34: =DB_Inputs!EU83 -> 0 | EV34: =DB_Inputs!EV83 -> 0 | EW34: =DB_Inputs!EW83 -> 0 | EX34: =SUMPRODUCT(EL34:EW34,DB_Inputs!EL$9:EW$9)/DB_Inputs!EX$9 -> 0 | EZ34: =DB_Inputs!EZ83 -> 0 | FA34: =DB_Inputs!FA83 -> 0 | FB34: =DB_Inputs!FB83 -> 0 | FC34: =DB_Inputs!FC83 -> 0 | FD34: =DB_Inputs!FD83 -> 0 | FE34: =DB_Inputs!FE83 -> 0 | FF34: =DB_Inputs!FF83 -> 0 | FG34: =DB_Inputs!FG83 -> 0 | FH34: =DB_Inputs!FH83 -> 0 | FI34: =DB_Inputs!FI83 -> 0 | FJ34: =DB_Inputs!FJ83 -> 0 | FK34: =DB_Inputs!FK83 -> 0 | FL34: =SUMPRODUCT(EZ34:FK34,DB_Inputs!EZ$9:FK$9)/DB_Inputs!FL$9 -> 0 | FN34: =DB_Inputs!FN83 -> 0 | FO34: =DB_Inputs!FO83 -> 0 | FP34: =DB_Inputs!FP83 -> 0 | FQ34: =DB_Inputs!FQ83 -> 0 | FR34: =DB_Inputs!FR83 -> 0 | FS34: =DB_Inputs!FS83 -> 0 | FT34: =DB_Inputs!FT83 -> 0 | FU34: =DB_Inputs!FU83 -> 0 | FV34: =DB_Inputs!FV83 -> 0 | FW34: =DB_Inputs!FW83 -> 0 | FX34: =DB_Inputs!FX83 -> 0 | FY34: =DB_Inputs!FY83 -> 0 | FZ34: =SUMPRODUCT(FN34:FY34,DB_Inputs!FN$9:FY$9)/DB_Inputs!FZ$9 -> 0 | GB34: =DB_Inputs!GB83 -> 0 | GC34: =DB_Inputs!GC83 -> 0 | GD34: =DB_Inputs!GD83 -> 0 | GE34: =DB_Inputs!GE83 -> 0 | GF34: =DB_Inputs!GF83 -> 0 | GG34: =DB_Inputs!GG83 -> 0 | GH34: =DB_Inputs!GH83 -> 0 | GI34: =DB_Inputs!GI83 -> 0 | GJ34: =DB_Inputs!GJ83 -> 0 | GK34: =DB_Inputs!GK83 -> 0 | GL34: =DB_Inputs!GL83 -> 0 | GM34: =DB_Inputs!GM83 -> 0 | GN34: =SUMPRODUCT(GB34:GM34,DB_Inputs!GB$9:GM$9)/DB_Inputs!GN$9 -> 0 | GP34: =DB_Inputs!GP83 -> 0 | GQ34: =DB_Inputs!GQ83 -> 0 | GR34: =DB_Inputs!GR83 -> 0 | GS34: =DB_Inputs!GS83 -> 0 | GT34: =DB_Inputs!GT83 -> 0 | GU34: =DB_Inputs!GU83 -> 0 | GV34: =DB_Inputs!GV83 -> 0 | GW34: =DB_Inputs!GW83 -> 0 | GX34: =DB_Inputs!GX83 -> 0 | GY34: =DB_Inputs!GY83 -> 0 | GZ34: =DB_Inputs!GZ83 -> 0 | HA34: =DB_Inputs!HA83 -> 0 | HB34: =SUMPRODUCT(GP34:HA34,DB_Inputs!GP$9:HA$9)/DB_Inputs!HB$9 -> 0
A35: Hydro Generation Flat | B35: =IF(DB_Inputs!B$18=0,0,DB_Inputs!B84) -> 5529.909948 | C35: =IF(DB_Inputs!C$18=0,0,DB_Inputs!C84) -> 7266.345121 | D35: =IF(DB_Inputs!D$18=0,0,DB_Inputs!D84) -> 7309.169941 | E35: =IF(DB_Inputs!E$18=0,0,DB_Inputs!E84) -> 6173.687892 | F35: =IF(DB_Inputs!F$18=0,0,DB_Inputs!F84) -> 6232.232661 | G35: =IF(DB_Inputs!G$18=0,0,DB_Inputs!G84) -> 6100.341117 | H35: =IF(DB_Inputs!H$18=0,0,DB_Inputs!H84) -> 4920.229721 | I35: =IF(DB_Inputs!I$18=0,0,DB_Inputs!I84) -> 11018.17644 | J35: =IF(DB_Inputs!J$18=0,0,DB_Inputs!J84) -> 11365.72926 | K35: =IF(DB_Inputs!K$18=0,0,DB_Inputs!K84) -> 6262.694686 | L35: =IF(DB_Inputs!L$18=0,0,DB_Inputs!L84) -> 6560.158523 | M35: =IF(DB_Inputs!M$18=0,0,DB_Inputs!M84) -> 5953.784633 | N35: =SUMPRODUCT(B35:M35,DB_Inputs!B$14:M$14)/DB_Inputs!N$14 -> 7061.128918 | P35: =IF(DB_Inputs!P$18=0,0,DB_Inputs!P84) -> 5525.481663 | Q35: =IF(DB_Inputs!Q$18=0,0,DB_Inputs!Q84) -> 7432.458099 | R35: =IF(DB_Inputs!R$18=0,0,DB_Inputs!R84) -> 8145.87333 | S35: =IF(DB_Inputs!S$18=0,0,DB_Inputs!S84) -> 9356.633492 | T35: =IF(DB_Inputs!T$18=0,0,DB_Inputs!T84) -> 8847.383583 | U35: =IF(DB_Inputs!U$18=0,0,DB_Inputs!U84) -> 9406.710213 | V35: =IF(DB_Inputs!V$18=0,0,DB_Inputs!V84) -> 12212.02295 | W35: =IF(DB_Inputs!W$18=0,0,DB_Inputs!W84) -> 12844.51579 | X35: =IF(DB_Inputs!X$18=0,0,DB_Inputs!X84) -> 10990.34666 | Y35: =IF(DB_Inputs!Y$18=0,0,DB_Inputs!Y84) -> 10785.61289 | Z35: =IF(DB_Inputs!Z$18=0,0,DB_Inputs!Z84) -> 7977.399861 | AA35: =IF(DB_Inputs!AA$18=0,0,DB_Inputs!AA84) -> 6503.544993 | AB35: =SUMPRODUCT(P35:AA35,DB_Inputs!P$14:AA$14)/DB_Inputs!AB$14 -> 9170.149878 | AD35: =DB_Inputs!AD84 -> 0 | AE35: =DB_Inputs!AE84 -> 0 | AF35: =DB_Inputs!AF84 -> 0 | AG35: =DB_Inputs!AG84 -> 0 | AH35: =DB_Inputs!AH84 -> 0 | AI35: =DB_Inputs!AI84 -> 0 | AJ35: =DB_Inputs!AJ84 -> 0 | AK35: =DB_Inputs!AK84 -> 0 | AL35: =DB_Inputs!AL84 -> 0 | AM35: =DB_Inputs!AM84 -> 0 | AN35: =DB_Inputs!AN84 -> 0 | AO35: =DB_Inputs!AO84 -> 0 | AP35: =SUMPRODUCT(AD35:AO35,DB_Inputs!AD$10:AO$10)/DB_Inputs!AP$10 -> 0 | AR35: =DB_Inputs!AR84 -> 0 | AS35: =DB_Inputs!AS84 -> 0 | AT35: =DB_Inputs!AT84 -> 0 | AU35: =DB_Inputs!AU84 -> 0 | AV35: =DB_Inputs!AV84 -> 0 | AW35: =DB_Inputs!AW84 -> 0 | AX35: =DB_Inputs!AX84 -> 0 | AY35: =DB_Inputs!AY84 -> 0 | AZ35: =DB_Inputs!AZ84 -> 0 | BA35: =DB_Inputs!BA84 -> 0 | BB35: =DB_Inputs!BB84 -> 0 | BC35: =DB_Inputs!BC84 -> 0 | BD35: =SUMPRODUCT(AR35:BC35,DB_Inputs!AR$10:BC$10)/DB_Inputs!BD$10 -> 0 | BF35: =DB_Inputs!BF84 -> 0 | BG35: =DB_Inputs!BG84 -> 0 | BH35: =DB_Inputs!BH84 -> 0 | BI35: =DB_Inputs!BI84 -> 0 | BJ35: =DB_Inputs!BJ84 -> 0 | BK35: =DB_Inputs!BK84 -> 0 | BL35: =DB_Inputs!BL84 -> 0 | BM35: =DB_Inputs!BM84 -> 0 | BN35: =DB_Inputs!BN84 -> 0 | BO35: =DB_Inputs!BO84 -> 0 | BP35: =DB_Inputs!BP84 -> 0 | BQ35: =DB_Inputs!BQ84 -> 0 | BR35: =SUMPRODUCT(BF35:BQ35,DB_Inputs!BF$10:BQ$10)/DB_Inputs!BR$10 -> 0 | BT35: =DB_Inputs!BT84 -> 0 | BU35: =DB_Inputs!BU84 -> 0 | BV35: =DB_Inputs!BV84 -> 0 | BW35: =DB_Inputs!BW84 -> 0 | BX35: =DB_Inputs!BX84 -> 0 | BY35: =DB_Inputs!BY84 -> 0 | BZ35: =DB_Inputs!BZ84 -> 0 | CA35: =DB_Inputs!CA84 -> 0 | CB35: =DB_Inputs!CB84 -> 0 | CC35: =DB_Inputs!CC84 -> 0 | CD35: =DB_Inputs!CD84 -> 0 | CE35: =DB_Inputs!CE84 -> 0 | CF35: =SUMPRODUCT(BT35:CE35,DB_Inputs!BT$10:CE$10)/DB_Inputs!CF$10 -> 0 | CH35: =DB_Inputs!CH84 -> 0 | CI35: =DB_Inputs!CI84 -> 0 | CJ35: =DB_Inputs!CJ84 -> 0 | CK35: =DB_Inputs!CK84 -> 0 | CL35: =DB_Inputs!CL84 -> 0 | CM35: =DB_Inputs!CM84 -> 0 | CN35: =DB_Inputs!CN84 -> 0 | CO35: =DB_Inputs!CO84 -> 0 | CP35: =DB_Inputs!CP84 -> 0 | CQ35: =DB_Inputs!CQ84 -> 0 | CR35: =DB_Inputs!CR84 -> 0 | CS35: =DB_Inputs!CS84 -> 0 | CT35: =SUMPRODUCT(CH35:CS35,DB_Inputs!CH$10:CS$10)/DB_Inputs!CT$10 -> 0 | CV35: =DB_Inputs!CV84 -> 0 | CW35: =DB_Inputs!CW84 -> 0 | CX35: =DB_Inputs!CX84 -> 0 | CY35: =DB_Inputs!CY84 -> 0 | CZ35: =DB_Inputs!CZ84 -> 0 | DA35: =DB_Inputs!DA84 -> 0 | DB35: =DB_Inputs!DB84 -> 0 | DC35: =DB_Inputs!DC84 -> 0 | DD35: =DB_Inputs!DD84 -> 0 | DE35: =DB_Inputs!DE84 -> 0 | DF35: =DB_Inputs!DF84 -> 0 | DG35: =DB_Inputs!DG84 -> 0 | DH35: =SUMPRODUCT(CV35:DG35,DB_Inputs!CV$10:DG$10)/DB_Inputs!DH$10 -> 0 | DJ35: =DB_Inputs!DJ84 -> 0 | DK35: =DB_Inputs!DK84 -> 0 | DL35: =DB_Inputs!DL84 -> 0 | DM35: =DB_Inputs!DM84 -> 0 | DN35: =DB_Inputs!DN84 -> 0 | DO35: =DB_Inputs!DO84 -> 0 | DP35: =DB_Inputs!DP84 -> 0 | DQ35: =DB_Inputs!DQ84 -> 0 | DR35: =DB_Inputs!DR84 -> 0 | DS35: =DB_Inputs!DS84 -> 0 | DT35: =DB_Inputs!DT84 -> 0 | DU35: =DB_Inputs!DU84 -> 0 | DV35: =SUMPRODUCT(DJ35:DU35,DB_Inputs!DJ$10:DU$10)/DB_Inputs!DV$10 -> 0 | DX35: =DB_Inputs!DX84 -> 0 | DY35: =DB_Inputs!DY84 -> 0 | DZ35: =DB_Inputs!DZ84 -> 0 | EA35: =DB_Inputs!EA84 -> 0 | EB35: =DB_Inputs!EB84 -> 0 | EC35: =DB_Inputs!EC84 -> 0 | ED35: =DB_Inputs!ED84 -> 0 | EE35: =DB_Inputs!EE84 -> 0 | EF35: =DB_Inputs!EF84 -> 0 | EG35: =DB_Inputs!EG84 -> 0 | EH35: =DB_Inputs!EH84 -> 0 | EI35: =DB_Inputs!EI84 -> 0 | EJ35: =SUMPRODUCT(DX35:EI35,DB_Inputs!DX$10:EI$10)/DB_Inputs!EJ$10 -> 0 | EL35: =DB_Inputs!EL84 -> 0 | EM35: =DB_Inputs!EM84 -> 0 | EN35: =DB_Inputs!EN84 -> 0 | EO35: =DB_Inputs!EO84 -> 0 | EP35: =DB_Inputs!EP84 -> 0 | EQ35: =DB_Inputs!EQ84 -> 0 | ER35: =DB_Inputs!ER84 -> 0 | ES35: =DB_Inputs!ES84 -> 0 | ET35: =DB_Inputs!ET84 -> 0 | EU35: =DB_Inputs!EU84 -> 0 | EV35: =DB_Inputs!EV84 -> 0 | EW35: =DB_Inputs!EW84 -> 0 | EX35: =SUMPRODUCT(EL35:EW35,DB_Inputs!EL$10:EW$10)/DB_Inputs!EX$10 -> 0 | EZ35: =DB_Inputs!EZ84 -> 0 | FA35: =DB_Inputs!FA84 -> 0 | FB35: =DB_Inputs!FB84 -> 0 | FC35: =DB_Inputs!FC84 -> 0 | FD35: =DB_Inputs!FD84 -> 0 | FE35: =DB_Inputs!FE84 -> 0 | FF35: =DB_Inputs!FF84 -> 0 | FG35: =DB_Inputs!FG84 -> 0 | FH35: =DB_Inputs!FH84 -> 0 | FI35: =DB_Inputs!FI84 -> 0 | FJ35: =DB_Inputs!FJ84 -> 0 | FK35: =DB_Inputs!FK84 -> 0 | FL35: =SUMPRODUCT(EZ35:FK35,DB_Inputs!EZ$10:FK$10)/DB_Inputs!FL$10 -> 0 | FN35: =DB_Inputs!FN84 -> 0 | FO35: =DB_Inputs!FO84 -> 0 | FP35: =DB_Inputs!FP84 -> 0 | FQ35: =DB_Inputs!FQ84 -> 0 | FR35: =DB_Inputs!FR84 -> 0 | FS35: =DB_Inputs!FS84 -> 0 | FT35: =DB_Inputs!FT84 -> 0 | FU35: =DB_Inputs!FU84 -> 0 | FV35: =DB_Inputs!FV84 -> 0 | FW35: =DB_Inputs!FW84 -> 0 | FX35: =DB_Inputs!FX84 -> 0 | FY35: =DB_Inputs!FY84 -> 0 | FZ35: =SUMPRODUCT(FN35:FY35,DB_Inputs!FN$10:FY$10)/DB_Inputs!FZ$10 -> 0 | GB35: =DB_Inputs!GB84 -> 0 | GC35: =DB_Inputs!GC84 -> 0 | GD35: =DB_Inputs!GD84 -> 0 | GE35: =DB_Inputs!GE84 -> 0 | GF35: =DB_Inputs!GF84 -> 0 | GG35: =DB_Inputs!GG84 -> 0 | GH35: =DB_Inputs!GH84 -> 0 | GI35: =DB_Inputs!GI84 -> 0 | GJ35: =DB_Inputs!GJ84 -> 0 | GK35: =DB_Inputs!GK84 -> 0 | GL35: =DB_Inputs!GL84 -> 0 | GM35: =DB_Inputs!GM84 -> 0 | GN35: =SUMPRODUCT(GB35:GM35,DB_Inputs!GB$10:GM$10)/DB_Inputs!GN$10 -> 0 | GP35: =DB_Inputs!GP84 -> 0 | GQ35: =DB_Inputs!GQ84 -> 0 | GR35: =DB_Inputs!GR84 -> 0 | GS35: =DB_Inputs!GS84 -> 0 | GT35: =DB_Inputs!GT84 -> 0 | GU35: =DB_Inputs!GU84 -> 0 | GV35: =DB_Inputs!GV84 -> 0 | GW35: =DB_Inputs!GW84 -> 0 | GX35: =DB_Inputs!GX84 -> 0 | GY35: =DB_Inputs!GY84 -> 0 | GZ35: =DB_Inputs!GZ84 -> 0 | HA35: =DB_Inputs!HA84 -> 0 | HB35: =SUMPRODUCT(GP35:HA35,DB_Inputs!GP$10:HA$10)/DB_Inputs!HB$10 -> 0
A37: CGS HLH | B37: =IF(DB_Inputs!B$18=0,0,IF(StudyType > 0, DB_Inputs!B94,#REF!)) -> 1139.512745 | C37: =IF(DB_Inputs!C$18=0,0,IF(StudyType > 0, DB_Inputs!C94,#REF!)) -> 1139.811798 | D37: =IF(DB_Inputs!D$18=0,0,IF(StudyType > 0, DB_Inputs!D94,#REF!)) -> 1149.009172 | E37: =IF(DB_Inputs!E$18=0,0,IF(StudyType > 0, DB_Inputs!E94,#REF!)) -> 1154.926358 | F37: =IF(DB_Inputs!F$18=0,0,IF(StudyType > 0, DB_Inputs!F94,#REF!)) -> 1159.404055 | G37: =IF(DB_Inputs!G$18=0,0,IF(StudyType > 0, DB_Inputs!G94,#REF!)) -> 1165.269579 | H37: =IF(DB_Inputs!H$18=0,0,IF(StudyType > 0, DB_Inputs!H94,#REF!)) -> 260.3949192 | I37: =IF(DB_Inputs!I$18=0,0,IF(StudyType > 0, DB_Inputs!I94,#REF!)) -> 1192.095333 | J37: =IF(DB_Inputs!J$18=0,0,IF(StudyType > 0, DB_Inputs!J94,#REF!)) -> 1216.599526 | K37: =IF(DB_Inputs!K$18=0,0,IF(StudyType > 0, DB_Inputs!K94,#REF!)) -> 1168.236663 | L37: =IF(DB_Inputs!L$18=0,0,IF(StudyType > 0, DB_Inputs!L94,#REF!)) -> 1151.977647 | M37: =IF(DB_Inputs!M$18=0,0,IF(StudyType > 0, DB_Inputs!M94,#REF!)) -> 1054.635382 | N37: =SUMPRODUCT(B37:M37,DB_Inputs!B$12:M$12)/DB_Inputs!N$12 -> 1081.439276 | P37: =IF(DB_Inputs!P$18=0,0,IF(StudyType > 0, DB_Inputs!P94,#REF!)) -> 1113.729998 | Q37: =IF(DB_Inputs!Q$18=0,0,IF(StudyType > 0, DB_Inputs!Q94,#REF!)) -> 1160.436083 | R37: =IF(DB_Inputs!R$18=0,0,IF(StudyType > 0, DB_Inputs!R94,#REF!)) -> 1137.280939 | S37: =IF(DB_Inputs!S$18=0,0,IF(StudyType > 0, DB_Inputs!S94,#REF!)) -> 1054.299974 | T37: =IF(DB_Inputs!T$18=0,0,IF(StudyType > 0, DB_Inputs!T94,#REF!)) -> 1061.373768 | U37: =IF(DB_Inputs!U$18=0,0,IF(StudyType > 0, DB_Inputs!U94,#REF!)) -> 1163.249913 | V37: =IF(DB_Inputs!V$18=0,0,IF(StudyType > 0, DB_Inputs!V94,#REF!)) -> 1169.630838 | W37: =IF(DB_Inputs!W$18=0,0,IF(StudyType > 0, DB_Inputs!W94,#REF!)) -> 345.4003384 | X37: =IF(DB_Inputs!X$18=0,0,IF(StudyType > 0, DB_Inputs!X94,#REF!)) -> 0 | Y37: =IF(DB_Inputs!Y$18=0,0,IF(StudyType > 0, DB_Inputs!Y94,#REF!)) -> 1043.752375 | Z37: =IF(DB_Inputs!Z$18=0,0,IF(StudyType > 0, DB_Inputs!Z94,#REF!)) -> 1116.590048 | AA37: =IF(DB_Inputs!AA$18=0,0,IF(StudyType > 0, DB_Inputs!AA94,#REF!)) -> 1142.025559 | AB37: =SUMPRODUCT(P37:AA37,DB_Inputs!P$12:AA$12)/DB_Inputs!AB$12 -> 960.0254724 | AD37: =IF(StudyType > 0, DB_Inputs!AD94,#REF!) -> 1115.35527 | AE37: =IF(StudyType > 0, DB_Inputs!AE94,#REF!) -> 1074.810027 | AF37: =IF(StudyType > 0, DB_Inputs!AF94,#REF!) -> 1109.081745 | AG37: =IF(StudyType > 0, DB_Inputs!AG94,#REF!) -> 1063.280605 | AH37: =IF(StudyType > 0, DB_Inputs!AH94,#REF!) -> 1095.697981 | AI37: =IF(StudyType > 0, DB_Inputs!AI94,#REF!) -> 1109.578845 | AJ37: =IF(StudyType > 0, DB_Inputs!AJ94,#REF!) -> 1085.201483 | AK37: =IF(StudyType > 0, DB_Inputs!AK94,#REF!) -> 1046.20964 | AL37: =IF(StudyType > 0, DB_Inputs!AL94,#REF!) -> 1083.854716 | AM37: =IF(StudyType > 0, DB_Inputs!AM94,#REF!) -> 1109.239318 | AN37: =IF(StudyType > 0, DB_Inputs!AN94,#REF!) -> 1069.951643 | AO37: =IF(StudyType > 0, DB_Inputs!AO94,#REF!) -> 1115.676165 | AP37: =SUMPRODUCT(AD37:AO37,DB_Inputs!AD$8:AO$8)/DB_Inputs!AP$8 -> 1089.935887 | AR37: =IF(StudyType > 0, DB_Inputs!AR94,#REF!) -> 1106.498868 | AS37: =IF(StudyType > 0, DB_Inputs!AS94,#REF!) -> 1110.533996 | AT37: =IF(StudyType > 0, DB_Inputs!AT94,#REF!) -> 1100.5862 | AU37: =IF(StudyType > 0, DB_Inputs!AU94,#REF!) -> 1091.720758 | AV37: =IF(StudyType > 0, DB_Inputs!AV94,#REF!) -> 1117.010407 | AW37: =IF(StudyType > 0, DB_Inputs!AW94,#REF!) -> 1114.125174 | AX37: =IF(StudyType > 0, DB_Inputs!AX94,#REF!) -> 1094.221421 | AY37: =IF(StudyType > 0, DB_Inputs!AY94,#REF!) -> 369.1783029 | AZ37: =IF(StudyType > 0, DB_Inputs!AZ94,#REF!) -> 0 | BA37: =IF(StudyType > 0, DB_Inputs!BA94,#REF!) -> 344.0697901 | BB37: =IF(StudyType > 0, DB_Inputs!BB94,#REF!) -> 1102.36366 | BC37: =IF(StudyType > 0, DB_Inputs!BC94,#REF!) -> 1097.649011 | BD37: =SUMPRODUCT(AR37:BC37,DB_Inputs!AR$8:BC$8)/DB_Inputs!BD$8 -> 886.1690048 | BF37: =IF(StudyType > 0, DB_Inputs!BF94,#REF!) -> 1115.880318 | BG37: =IF(StudyType > 0, DB_Inputs!BG94,#REF!) -> 1053.517371 | BH37: =IF(StudyType > 0, DB_Inputs!BH94,#REF!) -> 1038.674126 | BI37: =IF(StudyType > 0, DB_Inputs!BI94,#REF!) -> 1100.582512 | BJ37: =IF(StudyType > 0, DB_Inputs!BJ94,#REF!) -> 1102.408913 | BK37: =IF(StudyType > 0, DB_Inputs!BK94,#REF!) -> 1113.084626 | BL37: =IF(StudyType > 0, DB_Inputs!BL94,#REF!) -> 1037.980654 | BM37: =IF(StudyType > 0, DB_Inputs!BM94,#REF!) -> 1087.864378 | BN37: =IF(StudyType > 0, DB_Inputs!BN94,#REF!) -> 1111.834153 | BO37: =IF(StudyType > 0, DB_Inputs!BO94,#REF!) -> 1113.804821 | BP37: =IF(StudyType > 0, DB_Inputs!BP94,#REF!) -> 1114.954334 | BQ37: =IF(StudyType > 0, DB_Inputs!BQ94,#REF!) -> 1087.802829 | BR37: =SUMPRODUCT(BF37:BQ37,DB_Inputs!BF$8:BQ$8)/DB_Inputs!BR$8 -> 1089.960144 | BT37: =IF(StudyType > 0, DB_Inputs!BT94,#REF!) -> 1116.242278 | BU37: =IF(StudyType > 0, DB_Inputs!BU94,#REF!) -> 1094.067723 | BV37: =IF(StudyType > 0, DB_Inputs!BV94,#REF!) -> 1038.368397 | BW37: =IF(StudyType > 0, DB_Inputs!BW94,#REF!) -> 1070.166119 | BX37: =IF(StudyType > 0, DB_Inputs!BX94,#REF!) -> 1114.000607 | BY37: =IF(StudyType > 0, DB_Inputs!BY94,#REF!) -> 1083.683718 | BZ37: =IF(StudyType > 0, DB_Inputs!BZ94,#REF!) -> 1117.815647 | CA37: =IF(StudyType > 0, DB_Inputs!CA94,#REF!) -> 404.6128917 | CB37: =IF(StudyType > 0, DB_Inputs!CB94,#REF!) -> 0 | CC37: =IF(StudyType > 0, DB_Inputs!CC94,#REF!) -> 1053.256489 | CD37: =IF(StudyType > 0, DB_Inputs!CD94,#REF!) -> 905.7784614 | CE37: =IF(StudyType > 0, DB_Inputs!CE94,#REF!) -> 1083.962867 | CF37: =SUMPRODUCT(BT37:CE37,DB_Inputs!BT$8:CE$8)/DB_Inputs!CF$8 -> 920.1075806 | CH37: =IF(StudyType > 0, DB_Inputs!CH94,#REF!) -> 1053.134742 | CI37: =IF(StudyType > 0, DB_Inputs!CI94,#REF!) -> 1086.785079 | CJ37: =IF(StudyType > 0, DB_Inputs!CJ94,#REF!) -> 1038.372281 | CK37: =IF(StudyType > 0, DB_Inputs!CK94,#REF!) -> 1119.260037 | CL37: =IF(StudyType > 0, DB_Inputs!CL94,#REF!) -> 1109.643628 | CM37: =IF(StudyType > 0, DB_Inputs!CM94,#REF!) -> 888.9176394 | CN37: =IF(StudyType > 0, DB_Inputs!CN94,#REF!) -> 1117.623498 | CO37: =IF(StudyType > 0, DB_Inputs!CO94,#REF!) -> 1099.825591 | CP37: =IF(StudyType > 0, DB_Inputs!CP94,#REF!) -> 1110.395983 | CQ37: =IF(StudyType > 0, DB_Inputs!CQ94,#REF!) -> 1118.432858 | CR37: =IF(StudyType > 0, DB_Inputs!CR94,#REF!) -> 762.4521207 | CS37: =IF(StudyType > 0, DB_Inputs!CS94,#REF!) -> 1056.856376 | CT37: =SUMPRODUCT(CH37:CS37,DB_Inputs!CH$8:CS$8)/DB_Inputs!CT$8 -> 1045.302079 | CV37: =IF(StudyType > 0, DB_Inputs!CV94,#REF!) -> 1077.077583 | CW37: =IF(StudyType > 0, DB_Inputs!CW94,#REF!) -> 1092.334875 | CX37: =IF(StudyType > 0, DB_Inputs!CX94,#REF!) -> 1089.469804 | CY37: =IF(StudyType > 0, DB_Inputs!CY94,#REF!) -> 1070.020809 | CZ37: =IF(StudyType > 0, DB_Inputs!CZ94,#REF!) -> 1107.671383 | DA37: =IF(StudyType > 0, DB_Inputs!DA94,#REF!) -> 1068.664455 | DB37: =IF(StudyType > 0, DB_Inputs!DB94,#REF!) -> 1009.120576 | DC37: =IF(StudyType > 0, DB_Inputs!DC94,#REF!) -> 250.7215385 | DD37: =IF(StudyType > 0, DB_Inputs!DD94,#REF!) -> 0 | DE37: =IF(StudyType > 0, DB_Inputs!DE94,#REF!) -> 920.8385799 | DF37: =IF(StudyType > 0, DB_Inputs!DF94,#REF!) -> 1113.108177 | DG37: =IF(StudyType > 0, DB_Inputs!DG94,#REF!) -> 1092.621492 | DH37: =SUMPRODUCT(CV37:DG37,DB_Inputs!CV$8:DG$8)/DB_Inputs!DH$8 -> 908.0462204 | DJ37: =IF(StudyType > 0, DB_Inputs!DJ94,#REF!) -> 1058.809474 | DK37: =IF(StudyType > 0, DB_Inputs!DK94,#REF!) -> 1112.976991 | DL37: =IF(StudyType > 0, DB_Inputs!DL94,#REF!) -> 1112.545512 | DM37: =IF(StudyType > 0, DB_Inputs!DM94,#REF!) -> 1118.372322 | DN37: =IF(StudyType > 0, DB_Inputs!DN94,#REF!) -> 1029.994511 | DO37: =IF(StudyType > 0, DB_Inputs!DO94,#REF!) -> 1070.018059 | DP37: =IF(StudyType > 0, DB_Inputs!DP94,#REF!) -> 1110.594744 | DQ37: =IF(StudyType > 0, DB_Inputs!DQ94,#REF!) -> 1117.34122 | DR37: =IF(StudyType > 0, DB_Inputs!DR94,#REF!) -> 1118.471144 | DS37: =IF(StudyType > 0, DB_Inputs!DS94,#REF!) -> 1107.535115 | DT37: =IF(StudyType > 0, DB_Inputs!DT94,#REF!) -> 1095.839235 | DU37: =IF(StudyType > 0, DB_Inputs!DU94,#REF!) -> 1066.465908 | DV37: =SUMPRODUCT(DJ37:DU37,DB_Inputs!DJ$8:DU$8)/DB_Inputs!DV$8 -> 1093.427132 | DX37: =IF(StudyType > 0, DB_Inputs!DX94,#REF!) -> 1113.475703 | DY37: =IF(StudyType > 0, DB_Inputs!DY94,#REF!) -> 896.9672385 | DZ37: =IF(StudyType > 0, DB_Inputs!DZ94,#REF!) -> 1115.675163 | EA37: =IF(StudyType > 0, DB_Inputs!EA94,#REF!) -> 1100.18287 | EB37: =IF(StudyType > 0, DB_Inputs!EB94,#REF!) -> 1101.668368 | EC37: =IF(StudyType > 0, DB_Inputs!EC94,#REF!) -> 1061.503624 | ED37: =IF(StudyType > 0, DB_Inputs!ED94,#REF!) -> 1115.015832 | EE37: =IF(StudyType > 0, DB_Inputs!EE94,#REF!) -> 272.4284038 | EF37: =IF(StudyType > 0, DB_Inputs!EF94,#REF!) -> 0 | EG37: =IF(StudyType > 0, DB_Inputs!EG94,#REF!) -> 1065.749023 | EH37: =IF(StudyType > 0, DB_Inputs!EH94,#REF!) -> 1090.316369 | EI37: =IF(StudyType > 0, DB_Inputs!EI94,#REF!) -> 1100.927851 | EJ37: =SUMPRODUCT(DX37:EI37,DB_Inputs!DX$8:EI$8)/DB_Inputs!EJ$8 -> 920.4750506 | EL37: =IF(StudyType > 0, DB_Inputs!EL94,#REF!) -> 1115.355417 | EM37: =IF(StudyType > 0, DB_Inputs!EM94,#REF!) -> 1074.862163 | EN37: =IF(StudyType > 0, DB_Inputs!EN94,#REF!) -> 1109.054754 | EO37: =IF(StudyType > 0, DB_Inputs!EO94,#REF!) -> 1065.687195 | EP37: =IF(StudyType > 0, DB_Inputs!EP94,#REF!) -> 1095.762879 | EQ37: =IF(StudyType > 0, DB_Inputs!EQ94,#REF!) -> 1109.639175 | ER37: =IF(StudyType > 0, DB_Inputs!ER94,#REF!) -> 1085.459343 | ES37: =IF(StudyType > 0, DB_Inputs!ES94,#REF!) -> 1046.37043 | ET37: =IF(StudyType > 0, DB_Inputs!ET94,#REF!) -> 1090.053405 | EU37: =IF(StudyType > 0, DB_Inputs!EU94,#REF!) -> 1113.926004 | EV37: =IF(StudyType > 0, DB_Inputs!EV94,#REF!) -> 1071.967232 | EW37: =IF(StudyType > 0, DB_Inputs!EW94,#REF!) -> 1115.676545 | EX37: =SUMPRODUCT(EL37:EW37,DB_Inputs!EL$8:EW$8)/DB_Inputs!EX$8 -> 1091.134449 | EZ37: =IF(StudyType > 0, DB_Inputs!EZ94,#REF!) -> 1106.498898 | FA37: =IF(StudyType > 0, DB_Inputs!FA94,#REF!) -> 1110.542958 | FB37: =IF(StudyType > 0, DB_Inputs!FB94,#REF!) -> 1100.596705 | FC37: =IF(StudyType > 0, DB_Inputs!FC94,#REF!) -> 1091.174938 | FD37: =IF(StudyType > 0, DB_Inputs!FD94,#REF!) -> 1117.006805 | FE37: =IF(StudyType > 0, DB_Inputs!FE94,#REF!) -> 1114.123116 | FF37: =IF(StudyType > 0, DB_Inputs!FF94,#REF!) -> 1094.318292 | FG37: =IF(StudyType > 0, DB_Inputs!FG94,#REF!) -> 370.9897881 | FH37: =IF(StudyType > 0, DB_Inputs!FH94,#REF!) -> 0 | FI37: =IF(StudyType > 0, DB_Inputs!FI94,#REF!) -> 343.7374432 | FJ37: =IF(StudyType > 0, DB_Inputs!FJ94,#REF!) -> 1102.379673 | FK37: =IF(StudyType > 0, DB_Inputs!FK94,#REF!) -> 1097.647747 | FL37: =SUMPRODUCT(EZ37:FK37,DB_Inputs!EZ$8:FK$8)/DB_Inputs!FL$8 -> 885.6615154 | FN37: =IF(StudyType > 0, DB_Inputs!FN94,#REF!) -> 1115.879721 | FO37: =IF(StudyType > 0, DB_Inputs!FO94,#REF!) -> 1053.555973 | FP37: =IF(StudyType > 0, DB_Inputs!FP94,#REF!) -> 1038.457562 | FQ37: =IF(StudyType > 0, DB_Inputs!FQ94,#REF!) -> 1100.463168 | FR37: =IF(StudyType > 0, DB_Inputs!FR94,#REF!) -> 1102.371923 | FS37: =IF(StudyType > 0, DB_Inputs!FS94,#REF!) -> 1113.063146 | FT37: =IF(StudyType > 0, DB_Inputs!FT94,#REF!) -> 1038.136028 | FU37: =IF(StudyType > 0, DB_Inputs!FU94,#REF!) -> 1087.671104 | FV37: =IF(StudyType > 0, DB_Inputs!FV94,#REF!) -> 1111.673463 | FW37: =IF(StudyType > 0, DB_Inputs!FW94,#REF!) -> 1113.70781 | FX37: =IF(StudyType > 0, DB_Inputs!FX94,#REF!) -> 1114.945567 | FY37: =IF(StudyType > 0, DB_Inputs!FY94,#REF!) -> 1087.803695 | FZ37: =SUMPRODUCT(FN37:FY37,DB_Inputs!FN$8:FY$8)/DB_Inputs!FZ$8 -> 1090.122949 | GB37: =IF(StudyType > 0, DB_Inputs!GB94,#REF!) -> 1116.242462 | GC37: =IF(StudyType > 0, DB_Inputs!GC94,#REF!) -> 1094.077299 | GD37: =IF(StudyType > 0, DB_Inputs!GD94,#REF!) -> 1038.432178 | GE37: =IF(StudyType > 0, DB_Inputs!GE94,#REF!) -> 1068.290533 | GF37: =IF(StudyType > 0, DB_Inputs!GF94,#REF!) -> 1113.945848 | GG37: =IF(StudyType > 0, DB_Inputs!GG94,#REF!) -> 1083.104052 | GH37: =IF(StudyType > 0, DB_Inputs!GH94,#REF!) -> 1117.788387 | GI37: =IF(StudyType > 0, DB_Inputs!GI94,#REF!) -> 401.8438913 | GJ37: =IF(StudyType > 0, DB_Inputs!GJ94,#REF!) -> 0 | GK37: =IF(StudyType > 0, DB_Inputs!GK94,#REF!) -> 1049.48478 | GL37: =IF(StudyType > 0, DB_Inputs!GL94,#REF!) -> 905.0456468 | GM37: =IF(StudyType > 0, DB_Inputs!GM94,#REF!) -> 1083.961179 | GN37: =SUMPRODUCT(GB37:GM37,DB_Inputs!GB$8:GM$8)/DB_Inputs!GN$8 -> 923.6140156 | GP37: =IF(StudyType > 0, DB_Inputs!GP94,#REF!) -> 1053.140762 | GQ37: =IF(StudyType > 0, DB_Inputs!GQ94,#REF!) -> 1086.65701 | GR37: =IF(StudyType > 0, DB_Inputs!GR94,#REF!) -> 1037.259171 | GS37: =IF(StudyType > 0, DB_Inputs!GS94,#REF!) -> 1100.313536 | GT37: =IF(StudyType > 0, DB_Inputs!GT94,#REF!) -> 1102.292095 | GU37: =IF(StudyType > 0, DB_Inputs!GU94,#REF!) -> 1113.045702 | GV37: =IF(StudyType > 0, DB_Inputs!GV94,#REF!) -> 1037.784841 | GW37: =IF(StudyType > 0, DB_Inputs!GW94,#REF!) -> 1085.966073 | GX37: =IF(StudyType > 0, DB_Inputs!GX94,#REF!) -> 1111.427061 | GY37: =IF(StudyType > 0, DB_Inputs!GY94,#REF!) -> 1113.660991 | GZ37: =IF(StudyType > 0, DB_Inputs!GZ94,#REF!) -> 1114.943786 | HA37: =IF(StudyType > 0, DB_Inputs!HA94,#REF!) -> 1087.80576 | HB37: =SUMPRODUCT(GP37:HA37,DB_Inputs!GP$8:HA$8)/DB_Inputs!HB$8 -> 1086.903354
